{"text_format":"3","workbook":"xlsx","n_sheets":80,"sheets":["modList00","Инструкция","Лог обновления","Титульный","Территории","Перечень тарифов","Форма 1.0.1 | Т-ТЭ | >=25МВт","Форма 4.10.2 | Т-ТЭ | >=25МВт","Форма 1.0.1 | Т-ТЭ | ТСО","Форма 4.10.2 | Т-ТЭ | ТСО","Форма 1.0.1 | Т-ТЭ | потр","Форма 4.10.2 | Т-ТЭ | потр","Форма 1.0.1 | Т-ТЭ | предел","Форма 4.10.2 | Т-ТЭ | предел","Форма 1.0.1 | Т-ТЭ | индикат","Форма 4.10.2 | Т-ТЭ | индикат","Форма 1.0.1 | Резерв мощности","Форма 4.10.2 | Резерв мощности","Форма 1.0.1 | Т-ТН","Форма 4.10.3 | Т-ТН","Форма 1.0.1 | Т-передача ТЭ","Форма 4.10.3 | Т-передача ТЭ","Форма 1.0.1 | Т-передача ТН","Форма 4.10.3 | Т-передача ТН","Форма 1.0.1 | Т-гор.вода","Форма 4.10.4 | Т-гор.вода","Форма 1.0.1 | Т-подкл","Форма 4.10.5 | Т-подкл","Форма 1.0.1 | Т-подкл(инд)","Форма 4.10.6 | Т-подкл(инд)","Форма 1.0.1 | Форма 4.9","Форма 4.9","Форма 1.0.1 | Форма 4.10.1","Форма 4.10.1","Форма 1.0.2","Сведения об изменении","Комментарии","Проверка","et_union_hor","TEHSHEET","modList14_1","modList13","modListTempFilter","modCheckCyan","REESTR_LINK","REESTR_DS","modHTTP","modfrmRezimChoose","modSheetMain","REESTR_VT","REESTR_VED","modfrmReestrObj","AllSheetsInThisWorkbook","et_union_vert","modInstruction","modRegion","modReestr","modfrmReestr","modUpdTemplMain","REESTR_ORG","modClassifierValidate","modProv","modHyp","modServiceModule","modList01","modList02","modList03","REESTR_MO_FILTER","REESTR_MO","modInfo","modList05","modList06","modList07","modList11","modList12","modfrmDateChoose","modComm","modThisWorkbook","modfrmReestrMR","modfrmCheckUpdates"],"not_rendered":{"images":20,"macros":1,"defined_names":823},"read":"whole","date_system":"1900"}

{"sheet":"modList00","index":0,"n_rows":0,"n_cols":0,"rows_kept":0,"hidden":true}

{"sheet":"Инструкция","index":1,"n_rows":102,"n_cols":27,"rows_kept":102,"merged":[[1,1,1,6],[2,1,2,2],[4,1,4,24],[6,4,18,23],[20,5,20,12],[20,15,20,23],[21,5,21,12],[21,15,21,23],[22,15,22,22],[34,4,38,23],[39,4,39,23],[40,4,44,23],[45,4,56,23],[57,4,57,20],[58,4,58,6],[58,7,58,23],[59,4,59,6],[59,7,59,23],[60,7,60,23],[69,4,69,19],[70,4,70,19],[80,4,80,20],[81,4,81,6],[81,7,81,23],[83,7,83,23],[97,4,97,23],[99,5,99,18],[101,5,101,23]]}
[{"$nulls":26}," (требуется обновление)"]
[null,{"$f":"\"Код отчёта: \" & GetCode()","v":"Код отчёта: FAS.JKH.OPEN.INFO.REQUEST.WARM"}]
[null,{"$f":"\"Версия \" & GetVersion()","v":"Версия 1.0.2"}]
[]
[null,"Предложение регулируемой организации об установлении тарифов в сфере теплоснабжения (цены и тарифы), информация о способах приобретения, стоимости и объемах товаров, необходимых для производства регулируемых товаров и (или) оказания регулируемых услуг"]
[]
[{"$nulls":4},"• На рабочем месте должен быть установлен MS Office 2007 SP3, 2010, 2013, 2016 с полной версией MS Excel\n\n• Макросы во время работы должны быть включены (!)\n\n• Для корректной работы отчёта требуется выбрать низкий уровень безопасности\n(В меню MS Excel 2007/2010/2013/2016: Параметры Excel | Центр управления безопасностью | Параметры центра управления безопасностью | Параметры макросов | Включить все макросы | ОК)\n\n• Если Вы работаете в табличном процессоре MS Excel 2007 и выше, то можете использовать для работы формат XLSB (Двоичная книга Excel). При работе в формате XLSB заметно быстрее происходит сохранение файла, а также уменьшается размер по сравнению с форматами XLS и XLSM\n\n• Не рекомендуется снимать защиту с листов и каким-либо образом модифицировать защищаемые формулы и расчётные поля, в противном случае, отчёт будет отклонён системой\n\n• При сохранении не следует выбирать формат XLSX (Книга Excel), так как в указанном формате макросы, необходимые для работы отчёта, безвозвратно удаляются"]
{"$rows_empty":13}
[{"$nulls":4},"A"," - необязательные для заполнения",{"$nulls":8},"A"," - с формулами и константами"]
[{"$nulls":4},"A"," - обязательные для заполнения",{"$nulls":8},"A"," - с выбором значений по двойному клику"]
{"$rows_empty":12}
[{"$nulls":4},"Если в предложенном Вам списке необходимая организация, МР/МО отсутствуют, обновите реестры с помощью кнопок\n\nВ результате синхронизации с базой данных список организаций (МР/МО) будет заменён актуальным (механизм синхронизации требует подключения к сети Интернет и основан на использовании протокола HTTPS (TCP порт 443))\n\nЕсли после обновления Вам не удалось найти необходимую организацию в списке, обратитесь к ответственному за поддержание реестра Вашего региона."]
{"$rows_empty":10}
[{"$nulls":4},"• При сохранении шаблона осуществляется проверка корректности данных, в том числе на наличие значений в ячейках, обязательных для заполнения\n\n• Если какая-то ячейка не удовлетворяет условию проверки, на лист «Проверка» добавляется гиперссылка на данную ячейку и указывается причина ошибки\n\n• В колонке «Статус» для каждого сообщения возможны 2 значения: ошибка и предупреждение\n\n• При наличии сообщений со статусом «Ошибка» шаблон будет отклонён системой и не будет загружен в хранилище данных, сообщения со статусом «Предупреждение» носят информационный характер, и такой шаблон будет принят системой"]
{"$rows_empty":11}
[{"$nulls":4},"Обратиться за помощью в службу технической поддержки"]
{"$rows_empty":11}
[{"$nulls":4},"Инструкция по загрузке сопроводительных материалов"]
[{"$nulls":4},"Инструкция по работе с отчетной формой"]
{"$rows_empty":9}
[{"$nulls":4},"Обратиться за помощью в службу технической поддержки"]
{"$rows_empty":16}
[{"$nulls":4},"При наличии подключения к Интернет, можно автоматически проверять наличие доступных обновлений. Выберите способ оповещения о наличии обновлений для отчёта:"]
[]
[{"$nulls":5},"проверять доступные обновления (рекомендуется)",{"$nulls":20},"y"]
[]
[{"$nulls":5},"никогда не проверять наличие обновлений (не рекомендуется)"]

{"sheet":"Лог обновления","index":2,"n_rows":21,"n_cols":3,"rows_kept":21,"hidden":true}
["Дата/Время","Сообщение","Статус"]
["2020-04-28T13:03:32","Проверка доступных обновлений...","Информация"]
["2020-04-28T13:03:33","Доступно обновление до версии 1.0.2","Информация"]
["2020-04-28T13:03:33","Описание изменений: Версия 1.0.2\n1. Корректировка значения группы потребителей \"население\" на \"население и приравненные категории\"\n\nВерсия 1.0.1\n1. Корректировка наименования п.5 листа 'Форма 4.10.1'.","Информация"]
["2020-04-28T13:03:33","Размер файла обновления: 282112 байт","Информация"]
["2020-04-28T13:03:36","Подготовка к обновлению...","Информация"]
["2020-04-28T13:03:39","Сохранение файла резервной копии: \\\\oao\\yar\\groups\\feo\\ТАРИФЫ\\РАСКРЫТИЕ ИНФОРМАЦИИ\\2020\\10 дней после сдачи тарифов\\шаблоны\\FAS.JKH.OPEN.INFO.REQUEST.WARM(v1.0).BKP..xlsb","Информация"]
["2020-04-28T13:03:44","Резервная копия создана: \\\\oao\\yar\\groups\\feo\\ТАРИФЫ\\РАСКРЫТИЕ ИНФОРМАЦИИ\\2020\\10 дней после сдачи тарифов\\шаблоны\\FAS.JKH.OPEN.INFO.REQUEST.WARM(v1.0).BKP..xlsb","Информация"]
["2020-04-28T13:03:44","Создание книги для установки обновлений...","Информация"]
["2020-04-28T13:03:51","Файл обновления загружен: \\\\oao\\yar\\groups\\feo\\ТАРИФЫ\\РАСКРЫТИЕ ИНФОРМАЦИИ\\2020\\10 дней после сдачи тарифов\\шаблоны\\UPDATE.FAS.JKH.OPEN.INFO.REQUEST.WARM.TO.1.0.2.3.xls","Информация"]
["2020-04-28T13:03:58","Обновление завершилось удачно! Шаблон FAS.JKH.OPEN.INFO.REQUEST.WARM(v1.0).xlsb сохранен под именем 'FAS.JKH.OPEN.INFO.REQUEST.WARM(v1.0.2).xlsb'","Информация"]
["2020-04-29T08:08:07","Проверка доступных обновлений...","Информация"]
["2020-04-29T08:08:10","Нет доступных обновлений для отчёта с кодом FAS.JKH.OPEN.INFO.REQUEST.WARM!","Информация"]
["2020-04-29T08:20:59","Проверка доступных обновлений...","Информация"]
["2020-04-29T08:21:02","Нет доступных обновлений для отчёта с кодом FAS.JKH.OPEN.INFO.REQUEST.WARM!","Информация"]
["2020-04-29T08:21:12","Проверка доступных обновлений...","Информация"]
["2020-04-29T08:21:13","Нет доступных обновлений для отчёта с кодом FAS.JKH.OPEN.INFO.REQUEST.WARM!","Информация"]
["2020-04-29T08:32:42","Проверка доступных обновлений...","Информация"]
["2020-04-29T08:32:43","Нет доступных обновлений для отчёта с кодом FAS.JKH.OPEN.INFO.REQUEST.WARM!","Информация"]
["2020-04-29T09:13:42","Проверка доступных обновлений...","Информация"]
["2020-04-29T09:13:43","Нет доступных обновлений для отчёта с кодом FAS.JKH.OPEN.INFO.REQUEST.WARM!","Информация"]

{"sheet":"Титульный","index":3,"n_rows":48,"n_cols":6,"rows_kept":48,"merged":[[4,4,4,5],[47,4,47,5],[53,4,53,8]]}
[{"$nulls":5},26523308]
[{"$nulls":4},{"$f":"\"Код шаблона: \" & GetCode()","v":"Код шаблона: FAS.JKH.OPEN.INFO.REQUEST.WARM"}]
[{"$nulls":4},{"$f":"\"Версия \" & GetVersion()","v":"Версия 1.0.2"}]
[]
[{"$nulls":4},"Предложение регулируемой организации об установлении тарифов в сфере теплоснабжения (цены и тарифы), информация о способах приобретения, стоимости и объемах товаров, необходимых для производства регулируемых товаров и (или) оказания регулируемых услуг*"]
[]
[{"$nulls":4},"Субъект РФ","Ярославская область"]
[]
[{"$nulls":4},"Отсутствует Интернет в границах территории МО, где организация осуществляет регулируемые виды деятельности","нет"]
[]
[{"$nulls":4},"Начало периода регулирования","01.01.2021"]
[{"$nulls":4},"Окончание периода регулирования","31.12.2023"]
[]
[{"$nulls":4},"Тип отчета","первичное раскрытие информации"]
[{"$nulls":4},"Дата внесения изменений в информацию, подлежащую раскрытию","29.04.2020"]
[{"$nulls":4},"Дата периода регулирования, с которой вводятся изменения в тарифы"]
[{"$nulls":5},"Первичное предложение по тарифам"]
[]
[{"$nulls":4},"Дата подачи заявления об утверждении тарифов","28.04.2020"]
[{"$nulls":4},"Номер подачи заявления об утверждении тарифов","01-10/004762 "]
[]
[{"$nulls":5},"Изменение тарифов"]
[]
[{"$nulls":4},"Дата подачи заявления об изменении тарифов"]
[{"$nulls":4},"Номер заявления об изменении тарифов"]
[]
[]
[{"$nulls":4},"Является ли данное юридическое лицо подразделением (филиалом) другой организации","нет"]
[{"$nulls":4},"Наименование организации","ПАО \"ТГК-2\""]
[{"$nulls":4},"Наименование филиала"]
[{"$nulls":4},"ИНН","7606053324"]
[{"$nulls":4},"КПП","760601001"]
[]
[{"$nulls":4},"Тип теплоснабжающей организации","Регулируемая организация"]
[]
[{"$nulls":4},"Режим налогообложения","общий"]
[]
[]
[]
[{"$nulls":4},"Почтовый адрес регулируемой организации","150003, г. Ярославль, ул. Пятницкая, д. 6"]
[{"$nulls":4},"Фамилия, имя, отчество руководителя","Пинигина Надежда Ивановна"]
[{"$nulls":5},"Ответственный за заполнение формы"]
[{"$nulls":4},"Фамилия, имя, отчество","Бакланова Оксана Владимировна"]
[{"$nulls":4},"Должность","Заместитель начальника управления тарифного регулирования"]
[{"$nulls":4},"Контактный телефон","(4852) 58-61-20"]
[{"$nulls":4},"E-mail","BaklanovaOV@tgc-2.ru"]
[]
[{"$nulls":3},"*","Информация о способах приобретения, стоимости и объемах товаров, необходимых для производства регулируемых товаров и (или) оказания регулируемых услуг регулируемых организаций, публикуется по форме 4.2 едиными теплоснабжающими организациями, теплоснабжающими организациями и теплосетевыми организациями в ценовых зонах теплоснабжения позднее 30 календарных дней со дня направления годового бухгалтерского баланса в налоговые органы с учетом положений пункта 30 постановления Правительства №570 от 5 июля 2013 г."]

{"sheet":"Территории","index":4,"n_rows":18,"n_cols":18,"rows_kept":18,"merged":[[3,3,3,7],[5,3,5,4],[5,5,5,6],[7,3,7,4],[7,5,7,7],[7,8,7,11],[8,5,8,6],[8,8,8,9],[9,5,9,6],[9,8,9,9],[11,2,13,2],[11,3,13,3],[11,4,13,4],[12,5,13,5],[12,6,13,6],[12,7,13,7],[14,2,16,2],[14,3,16,3],[14,4,16,4],[15,5,16,5],[15,6,16,6],[15,7,16,7]]}
[{"$nulls":10},"МО","ОКТМО","МР"]
[]
[]
[{"$nulls":3},"Перечень муниципальных районов и муниципальных образований (территорий действия тарифа)"]
[]
[{"$nulls":5},"да"]
[]
[{"$nulls":3},"Территория действия тарифа",null,"Муниципальный район",null,null,"Муниципальное образование"]
[{"$nulls":3},"№ п/п","Наименование","№ п/п",null,"Наименование","№ п/п",null,"Наименование","ОКТМО"]
[{"$nulls":3},"1","2","3",null,"4","5",null,"6","7"]
[{"$nulls":3},0,{"$nulls":8},"размерженный МР",null,null,"флаг используемости территории на листе Перечень тарифов","копия территорий","МР (ОКТМО)"]
[null,"auto",null,1,"город Ярославль, город Ярославль (78701000);",null,0,null,null,"0",null,null,{"$f":"mergeValue(H12)","v":0},null,null,{"$f":"IF(ISERROR(MATCH(Q12,MODesc,0)),\"n\",\"y\")","v":"y"},"город Ярославль, город Ярославль (78701000);",{"$f":"K12&\"(\"&L12&\")\"","v":"()"}]
[null,"auto",{"$nulls":4},1,"город Ярославль",null,"0",null,null,{"$f":"mergeValue(H13)","v":"город Ярославль"},{"$nulls":4},{"$f":"K13&\"(\"&L13&\")\"","v":"()"}]
[null,"auto",{"$nulls":7},1,"город Ярославль","78701000",{"$f":"mergeValue(H14)","v":"город Ярославль"},{"$nulls":4},{"$f":"K14&\" (\"&L14&\")\"","v":"город Ярославль (78701000)"}]
[null,"auto",null,2,"Ярославский муниципальный район, Ярославский муниципальный район (78650000);",null,0,null,null,"0",null,null,{"$f":"mergeValue(H15)","v":0},null,null,{"$f":"IF(ISERROR(MATCH(Q15,MODesc,0)),\"n\",\"y\")","v":"y"},"Ярославский муниципальный район, Ярославский муниципальный район (78650000);",{"$f":"K15&\"(\"&L15&\")\"","v":"()"}]
[null,"auto",{"$nulls":4},1,"Ярославский муниципальный район",null,"0",null,null,{"$f":"mergeValue(H16)","v":"Ярославский муниципальный район"},{"$nulls":4},{"$f":"K16&\"(\"&L16&\")\"","v":"()"}]
[null,"auto",{"$nulls":7},1,"Ярославский муниципальный район","78650000",{"$f":"mergeValue(H17)","v":"Ярославский муниципальный район"},{"$nulls":4},{"$f":"K17&\" (\"&L17&\")\"","v":"Ярославский муниципальный район (78650000)"}]
[null,"man",{"$nulls":14},"Добавить территорию действия тарифа"]

{"sheet":"Перечень тарифов","index":5,"n_rows":50,"n_cols":23,"rows_kept":50,"merged":[[4,3,4,9],[5,3,5,9],[6,4,6,5],[6,6,6,9],[7,4,7,5],[7,6,7,9],[8,4,8,5],[8,6,8,9],[9,4,9,5],[10,4,10,5],[11,4,11,5],[12,4,12,5],[16,3,17,3],[16,4,17,4],[16,5,17,5],[16,6,17,6],[16,7,17,8],[16,9,17,9],[16,10,16,13],[16,14,16,17],[16,18,16,21],[16,22,17,22],[17,11,17,12],[17,15,17,16],[17,19,17,20],[18,7,18,8],[18,11,18,12],[18,15,18,16],[18,19,18,20],[20,3,29,3],[20,4,29,4],[20,5,29,5],[20,6,29,6],[20,7,28,7],[20,8,28,8],[20,9,28,9],[20,10,28,10],[20,11,22,11],[20,12,22,12],[20,13,22,13],[20,14,22,14],[20,15,21,15],[20,16,21,16],[20,17,21,17],[20,18,21,18],[23,11,27,11],[23,12,27,12],[23,13,27,13],[23,14,27,14],[23,15,24,15],[23,16,24,16],[23,17,24,17],[23,18,24,18],[25,15,26,15],[25,16,26,16],[25,17,26,17],[25,18,26,18],[30,3,34,3],[30,4,34,4],[30,5,34,5],[30,6,34,6],[30,7,33,7],[30,8,33,8],[30,9,33,9],[30,10,33,10],[30,11,32,11],[30,12,32,12],[30,13,32,13],[30,14,32,14],[30,15,31,15],[30,16,31,16],[30,17,31,17],[30,18,31,18],[41,4,41,22],[42,4,42,22],[43,4,43,22],[44,4,44,22],[45,4,45,22],[47,4,47,22],[48,4,48,22],[49,4,49,22]]}
[]
[]
[]
[]
[{"$nulls":3},"Перечень тарифов и технологически не связанных между собой систем теплоснабжения, в отношении которых предлагаются различные тарифы в сфере теплоснабжения и горячего водоснабжения с использованием открытых систем теплоснабжения (информация раскрывается отдельно по каждой системе теплоснабжения)"]
[]
[]
[]
[]
[]
[{"$nulls":4},"Тариф на горячую воду предлагается с (!) разбивкой по поставщикам",null,"нет"]
[{"$nulls":4},"Тариф на горячую воду предлагается без (!) разбивки на компоненты",null,"нет"]
[]
[]
[]
[]
[{"$nulls":3},"№ п/п","Вид тарифа","Вид деятельности","Наличие двухставочного тарифа","№ п/п",null,"Наименование тарифа","Дифференциация по\n МО (территориям)",{"$nulls":3},"Дифференциация по \nцентрализованным системам теплоснабжения",{"$nulls":3},"Дифференциация по источникам тепловой энергии",{"$nulls":3},"Примечание"]
[{"$nulls":10},"да/нет","№ п/п",null,"Описание","да/нет","№ п/п",null,"Описание","да/нет","№ п/п",null,"Наименование"]
[{"$nulls":3},"1","2","3","4","5",null,"6","7","8",null,"9","10","11",null,"12","11","12",null,"13","14"]
[{"$nulls":3},0]
[13,null,null,1,"Тарифы на тепловую энергию (мощность), поставляемую потребителям теплоснабжающими организациями в соответствии с установленными предельными (минимальными и (или) максимальными) уровнями указанных тарифов","Производство тепловой энергии. Некомбинированная выработка; Производство тепловой энергии. Комбинированная выработка с уст. мощностью производства электрической энергии 25 МВт и более; Передача. Тепловая энергия; Сбыт. Тепловая энергия","нет",null,1,"Тарифы на тепловую энергию, поставляемую потребителям единой теплоснабжающей организации ПАО \"ТГК-2\"","да",null,"1","город Ярославль, город Ярославль (78701000);","да",null,"1","Тарифы на тепловую энергию для потребитетей г. Ярославля в зоне деятельности ЕТО-1","нет",null,"1"]
[]
[]
[{"$nulls":12},"2","Ярославский муниципальный район, Ярославский муниципальный район (78650000);","да",null,"1","Тарифы на тепловую энергию для потребитетей Ярославского муниципального района Ярославской области в зоне деятельности ЕТО-4","нет",null,"1"]
[]
[{"$nulls":16},"2","Тарифы на тепловую энергию для потребителей с. Лучинское Ярославского муниципального района Ярославской области через тепловые сети ФГБУ \"Центр жилищно-коммунального управления\" Министерства обороны РФ","нет",null,"1"]
[]
[]
[]
[]
[2,null,null,2,"Тарифы на тепловую энергию (мощность), поставляемую другим теплоснабжающим организациям теплоснабжающими организациями","Сбыт. Тепловая энергия","нет",null,1,"Тарифы на тепловую энергию, поставляемую единой теплоснабжающей организацией ПАО \"ТГК-2\" теплосетевым организациям в зоне деятельности ЕТО-1, приобретающим тепловую энергию с целью компенсации потерь","да",null,"1","город Ярославль, город Ярославль (78701000);","да",null,"1","Тарифы на тепловую энергию для теплосетевых организаций с целью компенсации потерь в зоне деятельности ЕТО-1","нет",null,"1"]
{"$rows_empty":10}
[{"$nulls":4},"Информация о регулируемых ценах (тарифах) на товары (услуги) единой теплоснабжающей организации в ценовых зонах теплоснабжения включает сведения:"]
[{"$nulls":4},"- о предельном уровне цены на тепловую энергию (мощность), поставляемую потребителям, об индикативном предельном уровне цены на тепловую энергию (мощность) и о графике поэтапного равномерного доведения предельного уровня цены на тепловую энергию (мощность) (при наличии), определяемых в соответствии с Правилами определения в ценовых зонах теплоснабжения предельного уровня цены на тепловую энергию (мощность), включая правила индексации предельного уровня цены на тепловую энергию (мощность), утвержденными ПП РФ от 15 декабря 2017 г. № 1562 \"Об определении в ценовых зонах теплоснабжения предельного уровня цены на тепловую энергию (мощность), включая индексацию предельного уровня цены на тепловую энергию (мощность), и технико-экономических параметров работы котельных и тепловых сетей, используемых для расчета предельного уровня цены на тепловую энергию (мощность)\";"]
[{"$nulls":4},"- о тарифах на теплоноситель в виде воды, поставляемый единой теплоснабжающей организацией потребителям и теплоснабжающими организациями другим теплоснабжающим организациям с использованием открытых систем теплоснабжения (горячего водоснабжения), за исключением случая, предусмотренного пунктом 6 части 1 статьи 23.4 ФЗ \"О теплоснабжении\";"]
[{"$nulls":4},"- о тарифах на горячую воду, поставляемую единой теплоснабжающей организацией потребителям с использованием открытых систем теплоснабжения (горячего водоснабжения), установленных в виде формулы двухкомпонентного тарифа с использованием компонента на теплоноситель и компонента на тепловую энергию, в том числе о числовых значениях компонентов указанного тарифа;"]
[{"$nulls":4},"- о плате за подключение (технологическое присоединение) к системе теплоснабжения, применяемой в случае, установленном частью 9 статьи 23.4 ФЗ \"О теплоснабжении\"."]
[]
[{"$nulls":4},"Информация о регулируемых ценах (тарифах) на товары (услуги) теплоснабжающей организации и теплосетевой организации в ценовых зонах теплоснабжения включает сведения:"]
[{"$nulls":4},"- о тарифах на теплоноситель в виде воды, поставляемый другим теплоснабжающим организациям с использованием открытых систем теплоснабжения (горячего водоснабжения), за исключением случая, предусмотренного пунктом 6 части 1 статьи 23.4 ФЗ \"О теплоснабжении\";"]
[{"$nulls":4},"- о тарифах на товары (услуги) в сфере теплоснабжения в случаях, указанных в частях 12.1 - 12.4 статьи 10 ФЗ \"О теплоснабжении\""]

{"sheet":"Форма 1.0.1 | Т-ТЭ | >=25МВт","index":6,"n_rows":19,"n_cols":10,"rows_kept":19,"hidden":true,"merged":[[1,5,1,7],[3,5,3,7],[3,8,4,8],[7,0,15,0],[10,1,14,1],[11,2,13,2],[12,8,13,8],[18,6,18,7]]}
["1"]
[{"$nulls":5},"Форма 1.0.1 Основные параметры раскрываемой информации 1"]
[]
[{"$nulls":5},"Параметры формы",null,null,"Описание параметров формы"]
[{"$nulls":5},"№ п/п","Наименование параметра","Информация"]
[{"$nulls":5},"1",2,3,4,4]
[{"$nulls":5},1,"Дата заполнения/внесения изменений",{"$f":"IF(dateCh=\"\",\"\",dateCh)","v":"29.04.2020"},"Указывается календарная дата первичного заполнения или внесения изменений в форму в виде «ДД.ММ.ГГГГ»."]
[1,{"$nulls":4},{"$f":"\"2.\" &mergeValue(A8)","v":"2.1"},"Наименование централизованной системы коммунальной инфраструктуры",null,"Указывается наименование централизованной системы холодного водоснабжения/горячего водоснабжения/водоотведения/теплоснабжения, к которой относится размещаемая информация.\nВ случае наличия нескольких централизованных систем коммунальной инфраструктуры, информация по каждой из них указывается в отдельной строке."]
[{"$nulls":5},{"$f":"\"3.\" &mergeValue(A9)","v":"3.1"},"Наименование регулируемого вида деятельности",null,"Указывается наименование вида регулируемой деятельности."]
[{"$nulls":5},{"$f":"\"4.\"&mergeValue(A10)","v":"4.1"},"Территория оказания услуги по регулируемому виду деятельности","x"]
[null,1,{"$nulls":3},{"$f":"\"4.\"&mergeValue(A11) &\".\"&mergeValue(B11)","v":"4.1.1"},"Субъект Российской Федерации",{"$f":"IF(region_name=\"\",\"\",region_name)","v":"Ярославская область"},"Указывается наименование субъекта Российской Федерации"]
[null,null,1,null,null,{"$f":"\"4.\"&mergeValue(A12) &\".\"&mergeValue(B12)&\".\"&mergeValue(C12)","v":"4.1.1.1"},"муниципальный район",null,"Указывается наименование муниципального района, на территории которого организация оказывает услуги по регулируемому виду деятельности."]
[{"$nulls":3},1,null,{"$f":"\"4.\"&mergeValue(A13) &\".\"&mergeValue(B13)&\".\"&mergeValue(C13)&\".\"&mergeValue(D13)","v":"4.1.1.1.1"},"муниципальное образование",null,"Указывается наименование и код муниципального района, муниципального образования в соответствии с Общероссийским классификатором территорий муниципальных образований (далее - ОКТМО), входящего в муниципальный район, на территории которого организация оказывает услуги по регулируемому виду деятельности.\nВ случае оказания услуг по регулируемому виду деятельности на территории нескольких муниципальных районов (муниципальных образований) данные по каждому их них указываются в отдельной строке."]
[{"$nulls":6},"Добавить МО"]
[{"$nulls":6},"Добавить МР"]
[{"$nulls":6},"Добавить территорию"]
[{"$nulls":6},"Добавить ЦС"]
[]
[{"$nulls":6},"  1 Информация размещается при раскрытии информации по каждой из форм."]

{"sheet":"Форма 4.10.2 | Т-ТЭ | >=25МВт","index":7,"n_rows":34,"n_cols":26,"rows_kept":34,"hidden":true,"merged":[[4,11,4,19],[6,14,6,19],[7,14,7,19],[8,14,8,19],[9,14,9,19],[10,11,10,12],[11,14,11,20],[12,11,12,21],[12,22,15,22],[13,11,15,11],[13,12,15,12],[13,14,13,19],[13,20,15,20],[13,21,15,21],[14,14,15,14],[14,15,14,16],[14,17,14,19],[15,18,15,19],[16,18,16,19],[17,0,30,0],[17,14,17,21],[18,1,29,1],[18,14,18,21],[19,2,28,2],[19,14,19,21],[20,3,27,3],[20,14,20,21],[21,4,26,4],[21,8,26,8],[21,14,21,21],[22,5,25,5],[22,9,25,9],[22,14,22,21],[23,17,24,17],[23,18,24,18],[23,19,24,19],[23,20,24,20],[23,22,25,22],[33,12,33,22]]}
[]
[]
[]
[]
[{"$nulls":11},"Форма 4.10.2 Информация о предложении величин тарифов на тепловую энергию, поддержанию резервной тепловой мощности1"]
[]
[]
[{"$nulls":12},{"$f":"\"Дата подачи заявления об \"&IF(datePr_ch=\"\",\"утверждении\",\"изменении\") & \" тарифов\"","v":"Дата подачи заявления об утверждении тарифов"},null,{"$f":"IF(datePr_ch=\"\",IF(datePr=\"\",\"\",datePr),datePr_ch)","v":"28.04.2020"}]
[{"$nulls":12},{"$f":"\"Номер подачи заявления об \"&IF(numberPr_ch=\"\",\"утверждении\",\"изменении\") & \" тарифов\"","v":"Номер подачи заявления об утверждении тарифов"},null,{"$f":"IF(numberPr_ch=\"\",IF(numberPr=\"\",\"\",numberPr),numberPr_ch)","v":"01-10/004762 "}]
[]
[{"$nulls":20},"dp"]
[]
[{"$nulls":11},"Параметры формы",{"$nulls":10},"Описание параметров формы"]
[{"$nulls":11},"№ п/п","Параметр дифференциации тарифа",null,"Период действия тарифа",{"$nulls":5},"Наличие других периодов действия тарифа","Добавить период"]
[{"$nulls":14},"Одноставочный тариф, руб./Гкал","Двухставочный тариф",null,"Период действия"]
[{"$nulls":15},"ставка за тепловую  энергию, руб./Гкал","ставка за содержание тепловой мощности, тыс.руб./Гкал/ч/мес","дата начала","дата окончания"]
[{"$nulls":10},1,"1","2",{"$f":"OFFSET(N17,0,-1)","v":"2"},{"$f":"OFFSET(O17,0,-1)+1","v":3},{"$f":"OFFSET(P17,0,-1)+1","v":4},{"$f":"OFFSET(Q17,0,-1)+1","v":5},{"$f":"OFFSET(R17,0,-1)+1","v":6},{"$f":"OFFSET(S17,0,-1)+1","v":7},null,{"$f":"OFFSET(U17,0,-2)+1","v":8},{"$f":"OFFSET(V17,0,-1)","v":8},{"$f":"OFFSET(W17,0,-1)+1","v":9}]
[1,{"$nulls":10},{"$f":"mergeValue(A18)","v":1},"Наименование тарифа",{"$nulls":9},"Указывается наименование тарифа в случае подачи предложения по нескольким тарифам.\nВ случае наличия нескольких тарифов информация по ним указывается в отдельных строках.",null,null,{"$f":"IF(M18=\"\",\"\",M18 )","v":"Наименование тарифа"}]
[null,1,{"$nulls":9},{"$f":"mergeValue(A19) &\".\"& mergeValue(B19)","v":"1.1"},"Территория действия тарифа",{"$nulls":9},"Указывается наименование территории действия тарифа при наличии дифференциации тарифа по территориальному признаку.\nВ случае дифференциации тарифов по территориальному признаку информация по ним указывается в отдельных строках.",null,null,"Территория действия тарифа"]
[null,null,1,{"$nulls":8},{"$f":"mergeValue(A20) &\".\"& mergeValue(B20)&\".\"& mergeValue(C20)","v":"1.1.1"},"Наименование системы теплоснабжения ",{"$nulls":9},"Указывается наименование системы теплоснабжения при наличии дифференциации тарифа по системам теплоснабжения.\nВ случае дифференциации тарифов по системам теплоснабжения информация по ним указывается в отдельных строках.",null,null,"Наименование системы теплоснабжения "]
[{"$nulls":3},1,{"$nulls":7},{"$f":"mergeValue(A21) &\".\"& mergeValue(B21)&\".\"& mergeValue(C21)&\".\"& mergeValue(D21)","v":"1.1.1.1"},"Источник тепловой энергии  ",{"$nulls":9},"Указывается наименование источника тепловой энергии\nВ случае дифференциации тарифов по источникам тепловой энергии информация по ним указывается в отдельных строках.",null,null,"Источник тепловой энергии  "]
[{"$nulls":4},1,null,null,1,1,null,null,{"$f":"mergeValue(A22) &\".\"& mergeValue(B22)&\".\"& mergeValue(C22)&\".\"& mergeValue(D22)&\".\"& mergeValue(E22)","v":"1.1.1.1.1"},"Схема подключения теплопотребляющей установки к коллектору источника тепловой энергии",{"$nulls":9},"Указывается схема подключения теплопотребляющей установки к коллектору источника тепловой энергии только для тарифов на тепловую энергию и за услуги по поддержанию резервной мощности.\nЗначение выбирается из перечня: Без дифференциации; к коллектору источника тепловой энергии; к тепловой сети без дополнительного преобразования на тепловых пунктах, эксплуатируемых теплоснабжающей организацией; к тепловой сети после тепловых пунктов (на тепловых пунктах), эксплуатируемых теплоснабжающей организацией.\nВ случае дифференциации тарифов по схемам подключения теплопотребляющей установки к коллектору источника тепловой энергии информация по ним указывается в отдельных строках.",null,null,"Схема подключения теплопотребляющей установки к коллектору источника тепловой энергии"]
[{"$nulls":5},1,{"$nulls":3},1,null,{"$f":"mergeValue(A23) &\".\"& mergeValue(B23)&\".\"& mergeValue(C23)&\".\"& mergeValue(D23)&\".\"& mergeValue(E23)&\".\"& mergeValue(F23)","v":"1.1.1.1.1.1"},"Группа потребителей",{"$nulls":9},"Указывается группа потребителей при наличии дифференциации тарифа по группам потребителей.\nЗначение выбирается из перечня: Организации-перепродавцы; Бюджетные организации; Население; Прочие; Без дифференциации.\nВ случае дифференциации тарифов группам потребителей информация по ним указывается в отдельных строках.",null,null,"Группа потребителей"]
[{"$nulls":6},1,{"$nulls":3},1,{"$f":"mergeValue(A24) &\".\"& mergeValue(B24)&\".\"& mergeValue(C24)&\".\"& mergeValue(D24)&\".\"& mergeValue(E24)&\".\"& mergeValue(F24)&\".\"& mergeValue(G24)","v":"1.1.1.1.1.1.1"},{"$nulls":6},"да",null,"нет",null,"В колонке «Параметр дифференциации тарифов» указывается вид теплоносителя.\nЗначение выбирается из перечня: вода; пар; отборный пар, 1.2-2.5 кг/см2; отборный пар, 2.5-7 кг/см2; отборный пар, 7-13 кг/см2; отборный пар, > 13 кг/см2; острый и редуцированный пар; горячая вода в системе централизованного теплоснабжения на отопление; горячая вода в системе централизованного теплоснабжения на горячее водоснабжение; прочее.\nПри подаче предложения на двухставочный тариф колонка «Одноставочный тариф» не заполняется.\nПри подаче предложения на одноставочный тариф колонки в блоке «Двухставочный тариф» не заполняются.\nДаты начала и окончания действия тарифов указываются в виде «ДД.ММ.ГГГГ».\nВ случае отсутствия даты окончания действия тарифа в колонке «Дата окончания» указывается «Нет».\nИнформация в колонке «Ставка за содержание тепловой мощности, тыс. руб./Гкал/ч/мес» указывается только для тарифа по поддержанию резервной мощности. \nВ случае дифференциации тарифов по периодам действия тарифа информация по ним указывается в отдельных колонках.\nВ случае дифференциации тарифов по видам теплоносителя информация по ним указывается в отдельных строках.",{"$f":"strCheckDate(O25:V25)","v":""},null,""]
[{"$nulls":16},{"$f":"R24 & \"-\" & T24","v":"-"},{"$nulls":8},""]
[{"$nulls":12},"Добавить вид теплоносителя (параметры теплоносителя)",{"$nulls":12},"Добавить вид теплоносителя (параметры теплоносителя)"]
[{"$nulls":12},"Добавить группу потребителей",{"$nulls":12},"Добавить группу потребителей"]
[{"$nulls":12},"Добавить схему подключения",{"$nulls":12},"Добавить схему подключения"]
[{"$nulls":12},"Добавить источник тепловой энергии",{"$nulls":12},"Добавить источник тепловой энергии"]
[{"$nulls":12},"Добавить наименование системы теплоснабжения",{"$nulls":12},"Добавить наименование системы теплоснабжения"]
[{"$nulls":12},"Добавить территорию действия тарифа",{"$nulls":12},"Добавить территорию действия тарифа"]
[{"$nulls":12},"Добавить наименование тарифа"]
[]
[{"$nulls":11},1,"Для каждого вида тарифа в сфере теплоснабжения форма заполняется отдельно. При размещении информации по данной форме дополнительно указывается дата подачи заявления об утверждении тарифа и его номер.\n\nПо данной форме размещается в том числе информация о предложении об установлении цен (тарифов) в сфере теплоснабжения для единых теплоснабжающих организаций, а также теплоснабжающих организаций, теплосетевых организаций в ценовых зонах теплоснабжения."]

{"sheet":"Форма 1.0.1 | Т-ТЭ | ТСО","index":8,"n_rows":15,"n_cols":10,"rows_kept":15,"merged":[[1,5,1,7],[3,5,3,7],[3,8,4,8],[7,0,12,0],[10,1,12,1],[11,2,12,2],[14,6,14,7]]}
["2"]
[{"$nulls":5},"Форма 1.0.1 Основные параметры раскрываемой информации 1"]
[]
[{"$nulls":5},"Параметры формы",null,null,"Описание параметров формы"]
[{"$nulls":5},"№ п/п","Наименование параметра","Информация"]
[{"$nulls":5},"1",2,3,4,4]
[{"$nulls":5},1,"Дата заполнения/внесения изменений",{"$f":"IF(dateCh=\"\",\"\",dateCh)","v":"29.04.2020"},"Указывается календарная дата первичного заполнения или внесения изменений в форму в виде «ДД.ММ.ГГГГ»."]
[1,{"$nulls":4},{"$f":"\"2.\" &mergeValue(A8)","v":"2.1"},"Наименование централизованной системы коммунальной инфраструктуры",{"$f":"IF('Перечень тарифов'!R31=\"\",\"наименование отсутствует\",\"\" & 'Перечень тарифов'!R31 & \"\")","v":"Тарифы на тепловую энергию для теплосетевых организаций с целью компенсации потерь в зоне деятельности ЕТО-1"},"Указывается наименование централизованной системы холодного водоснабжения/горячего водоснабжения/водоотведения/теплоснабжения, к которой относится размещаемая информация.\nВ случае наличия нескольких централизованных систем коммунальной инфраструктуры, информация по каждой из них указывается в отдельной строке."]
[{"$nulls":5},{"$f":"\"3.\" &mergeValue(A9)","v":"3.1"},"Наименование регулируемого вида деятельности",{"$f":"IF('Перечень тарифов'!F31=\"\",\"наименование отсутствует\",\"\" & 'Перечень тарифов'!F31 & \"\")","v":"Сбыт. Тепловая энергия"},"Указывается наименование вида регулируемой деятельности."]
[{"$nulls":5},{"$f":"\"4.\"&mergeValue(A10)","v":"4.1"},"Территория оказания услуги по регулируемому виду деятельности","x"]
[null,1,{"$nulls":3},{"$f":"\"4.\"&mergeValue(A11) &\".\"&mergeValue(B11)","v":"4.1.1"},"Субъект Российской Федерации",{"$f":"IF(region_name=\"\",\"\",region_name)","v":"Ярославская область"},"Указывается наименование субъекта Российской Федерации"]
[null,null,1,null,null,{"$f":"\"4.\"&mergeValue(A12) &\".\"&mergeValue(B12)&\".\"&mergeValue(C12)","v":"4.1.1.1"},"муниципальный район",{"$f":"IF(Территории!H13=\"\",\"\",\"\" & Территории!H13 & \"\")","v":"город Ярославль"},"Указывается наименование муниципального района, на территории которого организация оказывает услуги по регулируемому виду деятельности."]
[{"$nulls":3},1,null,{"$f":"\"4.\"&mergeValue(A13) &\".\"&mergeValue(B13)&\".\"&mergeValue(C13)&\".\"&mergeValue(D13)","v":"4.1.1.1.1"},"муниципальное образование",{"$f":"IF(Территории!R14=\"\",\"\",\"\" & Территории!R14 & \"\")","v":"город Ярославль (78701000)"},"Указывается наименование и код муниципального района, муниципального образования в соответствии с Общероссийским классификатором территорий муниципальных образований (далее - ОКТМО), входящего в муниципальный район, на территории которого организация оказывает услуги по регулируемому виду деятельности.\nВ случае оказания услуг по регулируемому виду деятельности на территории нескольких муниципальных районов (муниципальных образований) данные по каждому их них указываются в отдельной строке."]
[]
[{"$nulls":6},"  1 Информация размещается при раскрытии информации по каждой из форм."]

{"sheet":"Форма 4.10.2 | Т-ТЭ | ТСО","index":9,"n_rows":30,"n_cols":61,"rows_kept":30,"merged":[[4,11,4,19],[6,14,6,19],[7,14,7,19],[8,14,8,19],[9,14,9,19],[10,11,10,12],[11,14,11,20],[11,21,11,27],[11,28,11,34],[11,35,11,41],[11,42,11,48],[11,49,11,55],[12,11,12,56],[12,57,15,57],[13,11,15,11],[13,12,15,12],[13,14,13,19],[13,20,15,20],[13,21,13,26],[13,27,15,27],[13,28,13,33],[13,34,15,34],[13,35,13,40],[13,41,15,41],[13,42,13,47],[13,48,15,48],[13,49,13,54],[13,55,15,55],[13,56,15,56],[14,14,15,14],[14,15,14,16],[14,17,14,19],[14,21,15,21],[14,22,14,23],[14,24,14,26],[14,28,15,28],[14,29,14,30],[14,31,14,33],[14,35,15,35],[14,36,14,37],[14,38,14,40],[14,42,15,42],[14,43,14,44],[14,45,14,47],[14,49,15,49],[14,50,14,51],[14,52,14,54],[15,18,15,19],[15,25,15,26],[15,32,15,33],[15,39,15,40],[15,46,15,47],[15,53,15,54],[16,18,16,19],[16,25,16,26],[16,32,16,33],[16,39,16,40],[16,46,16,47],[16,53,16,54],[17,0,27,0],[17,14,17,56],[18,1,27,1],[18,14,18,56],[19,2,27,2],[19,14,19,56],[20,3,27,3],[20,14,20,56],[21,4,26,4],[21,8,26,8],[21,14,21,56],[22,5,25,5],[22,9,25,9],[22,14,22,56],[23,17,24,17],[23,18,24,18],[23,19,24,19],[23,20,24,20],[23,24,24,24],[23,25,24,25],[23,26,24,26],[23,27,24,27],[23,31,24,31],[23,32,24,32],[23,33,24,33],[23,34,24,34],[23,38,24,38],[23,39,24,39],[23,40,24,40],[23,41,24,41],[23,45,24,45],[23,46,24,46],[23,47,24,47],[23,48,24,48],[23,52,24,52],[23,53,24,53],[23,54,24,54],[23,55,24,55],[23,57,25,57],[29,12,29,57]]}
[]
[]
[]
[]
[{"$nulls":11},"Форма 4.10.2 Информация о предложении величин тарифов на тепловую энергию, поддержанию резервной тепловой мощности1"]
[]
[]
[{"$nulls":12},{"$f":"\"Дата подачи заявления об \"&IF(datePr_ch=\"\",\"утверждении\",\"изменении\") & \" тарифов\"","v":"Дата подачи заявления об утверждении тарифов"},null,{"$f":"IF(datePr_ch=\"\",IF(datePr=\"\",\"\",datePr),datePr_ch)","v":"28.04.2020"}]
[{"$nulls":12},{"$f":"\"Номер подачи заявления об \"&IF(numberPr_ch=\"\",\"утверждении\",\"изменении\") & \" тарифов\"","v":"Номер подачи заявления об утверждении тарифов"},null,{"$f":"IF(numberPr_ch=\"\",IF(numberPr=\"\",\"\",numberPr),numberPr_ch)","v":"01-10/004762 "}]
[]
[{"$nulls":20},"dp",{"$nulls":6},"dp",{"$nulls":6},"dp",{"$nulls":6},"dp",{"$nulls":6},"dp",{"$nulls":6},"dp"]
[{"$nulls":21},"О",{"$nulls":6},"О",{"$nulls":6},"О",{"$nulls":6},"О",{"$nulls":6},"О"]
[{"$nulls":11},"Параметры формы",{"$nulls":45},"Описание параметров формы"]
[{"$nulls":11},"№ п/п","Параметр дифференциации тарифа",null,"Период действия тарифа",{"$nulls":5},"Наличие других периодов действия тарифа","Период действия тарифа",{"$nulls":5},"Наличие других периодов действия тарифа","Период действия тарифа",{"$nulls":5},"Наличие других периодов действия тарифа","Период действия тарифа",{"$nulls":5},"Наличие других периодов действия тарифа","Период действия тарифа",{"$nulls":5},"Наличие других периодов действия тарифа","Период действия тарифа",{"$nulls":5},"Наличие других периодов действия тарифа","Добавить период"]
[{"$nulls":14},"Одноставочный тариф, руб./Гкал","Двухставочный тариф",null,"Период действия",{"$nulls":3},"Одноставочный тариф, руб./Гкал","Двухставочный тариф",null,"Период действия",{"$nulls":3},"Одноставочный тариф, руб./Гкал","Двухставочный тариф",null,"Период действия",{"$nulls":3},"Одноставочный тариф, руб./Гкал","Двухставочный тариф",null,"Период действия",{"$nulls":3},"Одноставочный тариф, руб./Гкал","Двухставочный тариф",null,"Период действия",{"$nulls":3},"Одноставочный тариф, руб./Гкал","Двухставочный тариф",null,"Период действия"]
[{"$nulls":15},"ставка за тепловую  энергию, руб./Гкал","ставка за содержание тепловой мощности, тыс.руб./Гкал/ч/мес","дата начала","дата окончания",{"$nulls":3},"ставка за тепловую  энергию, руб./Гкал","ставка за содержание тепловой мощности, тыс.руб./Гкал/ч/мес","дата начала","дата окончания",{"$nulls":3},"ставка за тепловую  энергию, руб./Гкал","ставка за содержание тепловой мощности, тыс.руб./Гкал/ч/мес","дата начала","дата окончания",{"$nulls":3},"ставка за тепловую  энергию, руб./Гкал","ставка за содержание тепловой мощности, тыс.руб./Гкал/ч/мес","дата начала","дата окончания",{"$nulls":3},"ставка за тепловую  энергию, руб./Гкал","ставка за содержание тепловой мощности, тыс.руб./Гкал/ч/мес","дата начала","дата окончания",{"$nulls":3},"ставка за тепловую  энергию, руб./Гкал","ставка за содержание тепловой мощности, тыс.руб./Гкал/ч/мес","дата начала","дата окончания"]
[{"$nulls":10},1,"1","2",{"$f":"OFFSET(N17,0,-1)","v":"2"},{"$f":"OFFSET(O17,0,-1)+1","v":3},{"$f":"OFFSET(P17,0,-1)+1","v":4},{"$f":"OFFSET(Q17,0,-1)+1","v":5},{"$f":"OFFSET(R17,0,-1)+1","v":6},{"$f":"OFFSET(S17,0,-1)+1","v":7},null,{"$f":"OFFSET(U17,0,-2)+1","v":8},{"$f":"OFFSET(V17,0,-1)+1","v":9},{"$f":"OFFSET(W17,0,-1)+1","v":10},{"$f":"OFFSET(X17,0,-1)+1","v":11},{"$f":"OFFSET(Y17,0,-1)+1","v":12},{"$f":"OFFSET(Z17,0,-1)+1","v":13},null,{"$f":"OFFSET(AB17,0,-2)+1","v":14},{"$f":"OFFSET(AC17,0,-1)+1","v":15},{"$f":"OFFSET(AD17,0,-1)+1","v":16},{"$f":"OFFSET(AE17,0,-1)+1","v":17},{"$f":"OFFSET(AF17,0,-1)+1","v":18},{"$f":"OFFSET(AG17,0,-1)+1","v":19},null,{"$f":"OFFSET(AI17,0,-2)+1","v":20},{"$f":"OFFSET(AJ17,0,-1)+1","v":21},{"$f":"OFFSET(AK17,0,-1)+1","v":22},{"$f":"OFFSET(AL17,0,-1)+1","v":23},{"$f":"OFFSET(AM17,0,-1)+1","v":24},{"$f":"OFFSET(AN17,0,-1)+1","v":25},null,{"$f":"OFFSET(AP17,0,-2)+1","v":26},{"$f":"OFFSET(AQ17,0,-1)+1","v":27},{"$f":"OFFSET(AR17,0,-1)+1","v":28},{"$f":"OFFSET(AS17,0,-1)+1","v":29},{"$f":"OFFSET(AT17,0,-1)+1","v":30},{"$f":"OFFSET(AU17,0,-1)+1","v":31},null,{"$f":"OFFSET(AW17,0,-2)+1","v":32},{"$f":"OFFSET(AX17,0,-1)+1","v":33},{"$f":"OFFSET(AY17,0,-1)+1","v":34},{"$f":"OFFSET(AZ17,0,-1)+1","v":35},{"$f":"OFFSET(BA17,0,-1)+1","v":36},{"$f":"OFFSET(BB17,0,-1)+1","v":37},null,{"$f":"OFFSET(BD17,0,-2)+1","v":38},{"$f":"OFFSET(BE17,0,-1)","v":38},{"$f":"OFFSET(BF17,0,-1)+1","v":39}]
[1,{"$nulls":10},{"$f":"mergeValue(A18)","v":1},"Наименование тарифа",null,{"$f":"IF('Перечень тарифов'!J31=\"\",\"\",\"\" & 'Перечень тарифов'!J31 & \"\")","v":"Тарифы на тепловую энергию, поставляемую единой теплоснабжающей организацией ПАО \"ТГК-2\" теплосетевым организациям в зоне деятельности ЕТО-1, приобретающим тепловую энергию с целью компенсации потерь"},{"$nulls":42},"Указывается наименование тарифа в случае подачи предложения по нескольким тарифам.\nВ случае наличия нескольких тарифов информация по ним указывается в отдельных строках.",null,null,{"$f":"IF(M18=\"\",\"\",M18 )","v":"Наименование тарифа"}]
[null,1,{"$nulls":9},{"$f":"mergeValue(A19) &\".\"& mergeValue(B19)","v":"1.1"},"Территория действия тарифа",null,{"$f":"IF('Перечень тарифов'!N31=\"\",\"\",\"\" & 'Перечень тарифов'!N31 & \"\")","v":"город Ярославль, город Ярославль (78701000);"},{"$nulls":42},"Указывается наименование территории действия тарифа при наличии дифференциации тарифа по территориальному признаку.\nВ случае дифференциации тарифов по территориальному признаку информация по ним указывается в отдельных строках.",null,null,"Территория действия тарифа"]
[null,null,1,{"$nulls":8},{"$f":"mergeValue(A20) &\".\"& mergeValue(B20)&\".\"& mergeValue(C20)","v":"1.1.1"},"Наименование системы теплоснабжения ",null,{"$f":"IF('Перечень тарифов'!R31=\"\",\"\",\"\" & 'Перечень тарифов'!R31 & \"\")","v":"Тарифы на тепловую энергию для теплосетевых организаций с целью компенсации потерь в зоне деятельности ЕТО-1"},{"$nulls":42},"Указывается наименование системы теплоснабжения при наличии дифференциации тарифа по системам теплоснабжения.\nВ случае дифференциации тарифов по системам теплоснабжения информация по ним указывается в отдельных строках.",null,null,"Наименование системы теплоснабжения "]
[{"$nulls":3},1,{"$nulls":7},{"$f":"mergeValue(A21) &\".\"& mergeValue(B21)&\".\"& mergeValue(C21)&\".\"& mergeValue(D21)","v":"1.1.1.1"},{"$nulls":48},""]
[{"$nulls":4},1,null,null,1,1,null,null,{"$f":"mergeValue(A22) &\".\"& mergeValue(B22)&\".\"& mergeValue(C22)&\".\"& mergeValue(D22)&\".\"& mergeValue(E22)","v":"1.1.1.1.1"},"Схема подключения теплопотребляющей установки к коллектору источника тепловой энергии",null,"без дифференциации",{"$nulls":42},"Указывается схема подключения теплопотребляющей установки к коллектору источника тепловой энергии только для тарифов на тепловую энергию и за услуги по поддержанию резервной мощности.\nЗначение выбирается из перечня: Без дифференциации; к коллектору источника тепловой энергии; к тепловой сети без дополнительного преобразования на тепловых пунктах, эксплуатируемых теплоснабжающей организацией; к тепловой сети после тепловых пунктов (на тепловых пунктах), эксплуатируемых теплоснабжающей организацией.\nВ случае дифференциации тарифов по схемам подключения теплопотребляющей установки к коллектору источника тепловой энергии информация по ним указывается в отдельных строках.",null,null,"Схема подключения теплопотребляющей установки к коллектору источника тепловой энергии"]
[{"$nulls":5},1,{"$nulls":3},1,null,{"$f":"mergeValue(A23) &\".\"& mergeValue(B23)&\".\"& mergeValue(C23)&\".\"& mergeValue(D23)&\".\"& mergeValue(E23)&\".\"& mergeValue(F23)","v":"1.1.1.1.1.1"},"Группа потребителей",null,"прочие",{"$nulls":42},"Указывается группа потребителей при наличии дифференциации тарифа по группам потребителей.\nЗначение выбирается из перечня: Организации-перепродавцы; Бюджетные организации; Население; Прочие; Без дифференциации.\nВ случае дифференциации тарифов группам потребителей информация по ним указывается в отдельных строках.",null,null,"Группа потребителей"]
[{"$nulls":6},1,{"$nulls":3},1,{"$f":"mergeValue(A24) &\".\"& mergeValue(B24)&\".\"& mergeValue(C24)&\".\"& mergeValue(D24)&\".\"& mergeValue(E24)&\".\"& mergeValue(F24)&\".\"& mergeValue(G24)","v":"1.1.1.1.1.1.1"},"вода",null,{"v":1391.03,"d":"1,391.03"},null,null,"01.01.2021","да","30.06.2021","да",{"v":1586.82,"d":"1,586.82"},null,null,"01.07.2021","да","31.12.2021","да",{"v":1586.82,"d":"1,586.82"},null,null,"01.01.2022","да","30.06.2022","да",{"v":1597.28,"d":"1,597.28"},null,null,"01.07.2022","да","31.12.2022","да",{"v":1597.28,"d":"1,597.28"},null,null,"01.01.2023","да","30.06.2023","да",{"v":1642.2,"d":"1,642.20"},null,null,"01.07.2023","да","31.12.2023","нет",null,"В колонке «Параметр дифференциации тарифов» указывается вид теплоносителя.\nЗначение выбирается из перечня: вода; пар; отборный пар, 1.2-2.5 кг/см2; отборный пар, 2.5-7 кг/см2; отборный пар, 7-13 кг/см2; отборный пар, > 13 кг/см2; острый и редуцированный пар; горячая вода в системе централизованного теплоснабжения на отопление; горячая вода в системе централизованного теплоснабжения на горячее водоснабжение; прочее.\nПри подаче предложения на двухставочный тариф колонка «Одноставочный тариф» не заполняется.\nПри подаче предложения на одноставочный тариф колонки в блоке «Двухставочный тариф» не заполняются.\nДаты начала и окончания действия тарифов указываются в виде «ДД.ММ.ГГГГ».\nВ случае отсутствия даты окончания действия тарифа в колонке «Дата окончания» указывается «Нет».\nИнформация в колонке «Ставка за содержание тепловой мощности, тыс. руб./Гкал/ч/мес» указывается только для тарифа по поддержанию резервной мощности. \nВ случае дифференциации тарифов по периодам действия тарифа информация по ним указывается в отдельных колонках.\nВ случае дифференциации тарифов по видам теплоносителя информация по ним указывается в отдельных строках.",{"$f":"strCheckDate(O25:BE25)","v":""},null,"вода"]
[{"$nulls":16},{"$f":"R24 & \"-\" & T24","v":"01.01.2021-30.06.2021"},{"$nulls":6},{"$f":"Y24 & \"-\" & AA24","v":"01.07.2021-31.12.2021"},{"$nulls":6},{"$f":"AF24 & \"-\" & AH24","v":"01.01.2022-30.06.2022"},{"$nulls":6},{"$f":"AM24 & \"-\" & AO24","v":"01.07.2022-31.12.2022"},{"$nulls":6},{"$f":"AT24 & \"-\" & AV24","v":"01.01.2023-30.06.2023"},{"$nulls":6},{"$f":"BA24 & \"-\" & BC24","v":"01.07.2023-31.12.2023"},{"$nulls":8},""]
[{"$nulls":12},"Добавить вид теплоносителя (параметры теплоносителя)",{"$nulls":47},"Добавить вид теплоносителя (параметры теплоносителя)"]
[{"$nulls":12},"Добавить группу потребителей",{"$nulls":47},"Добавить группу потребителей"]
[{"$nulls":12},"Добавить схему подключения",{"$nulls":47},"Добавить схему подключения"]
[]
[{"$nulls":11},1,"Для каждого вида тарифа в сфере теплоснабжения форма заполняется отдельно. При размещении информации по данной форме дополнительно указывается дата подачи заявления об утверждении тарифа и его номер.\n\nПо данной форме размещается в том числе информация о предложении об установлении цен (тарифов) в сфере теплоснабжения для единых теплоснабжающих организаций, а также теплоснабжающих организаций, теплосетевых организаций в ценовых зонах теплоснабжения."]

{"sheet":"Форма 1.0.1 | Т-ТЭ | потр","index":10,"n_rows":27,"n_cols":10,"rows_kept":27,"merged":[[1,5,1,7],[3,5,3,7],[3,8,4,8],[7,0,12,0],[10,1,12,1],[11,2,12,2],[13,0,18,0],[16,1,18,1],[17,2,18,2],[19,0,24,0],[22,1,24,1],[23,2,24,2],[26,6,26,7]]}
["2"]
[{"$nulls":5},"Форма 1.0.1 Основные параметры раскрываемой информации 1"]
[]
[{"$nulls":5},"Параметры формы",null,null,"Описание параметров формы"]
[{"$nulls":5},"№ п/п","Наименование параметра","Информация"]
[{"$nulls":5},"1",2,3,4,4]
[{"$nulls":5},1,"Дата заполнения/внесения изменений",{"$f":"IF(dateCh=\"\",\"\",dateCh)","v":"29.04.2020"},"Указывается календарная дата первичного заполнения или внесения изменений в форму в виде «ДД.ММ.ГГГГ»."]
[1,{"$nulls":4},{"$f":"\"2.\" &mergeValue(A8)","v":"2.1"},"Наименование централизованной системы коммунальной инфраструктуры",{"$f":"IF('Перечень тарифов'!R21=\"\",\"наименование отсутствует\",\"\" & 'Перечень тарифов'!R21 & \"\")","v":"Тарифы на тепловую энергию для потребитетей г. Ярославля в зоне деятельности ЕТО-1"},"Указывается наименование централизованной системы холодного водоснабжения/горячего водоснабжения/водоотведения/теплоснабжения, к которой относится размещаемая информация.\nВ случае наличия нескольких централизованных систем коммунальной инфраструктуры, информация по каждой из них указывается в отдельной строке."]
[{"$nulls":5},{"$f":"\"3.\" &mergeValue(A9)","v":"3.1"},"Наименование регулируемого вида деятельности",{"$f":"IF('Перечень тарифов'!F21=\"\",\"наименование отсутствует\",\"\" & 'Перечень тарифов'!F21 & \"\")","v":"Производство тепловой энергии. Некомбинированная выработка; Производство тепловой энергии. Комбинированная выработка с уст. мощностью производства электрической энергии 25 МВт и более; Передача. Тепловая энергия; Сбыт. Тепловая энергия"},"Указывается наименование вида регулируемой деятельности."]
[{"$nulls":5},{"$f":"\"4.\"&mergeValue(A10)","v":"4.1"},"Территория оказания услуги по регулируемому виду деятельности","x"]
[null,1,{"$nulls":3},{"$f":"\"4.\"&mergeValue(A11) &\".\"&mergeValue(B11)","v":"4.1.1"},"Субъект Российской Федерации",{"$f":"IF(region_name=\"\",\"\",region_name)","v":"Ярославская область"},"Указывается наименование субъекта Российской Федерации"]
[null,null,1,null,null,{"$f":"\"4.\"&mergeValue(A12) &\".\"&mergeValue(B12)&\".\"&mergeValue(C12)","v":"4.1.1.1"},"муниципальный район",{"$f":"IF(Территории!H13=\"\",\"\",\"\" & Территории!H13 & \"\")","v":"город Ярославль"},"Указывается наименование муниципального района, на территории которого организация оказывает услуги по регулируемому виду деятельности."]
[{"$nulls":3},1,null,{"$f":"\"4.\"&mergeValue(A13) &\".\"&mergeValue(B13)&\".\"&mergeValue(C13)&\".\"&mergeValue(D13)","v":"4.1.1.1.1"},"муниципальное образование",{"$f":"IF(Территории!R14=\"\",\"\",\"\" & Территории!R14 & \"\")","v":"город Ярославль (78701000)"},"Указывается наименование и код муниципального района, муниципального образования в соответствии с Общероссийским классификатором территорий муниципальных образований (далее - ОКТМО), входящего в муниципальный район, на территории которого организация оказывает услуги по регулируемому виду деятельности.\nВ случае оказания услуг по регулируемому виду деятельности на территории нескольких муниципальных районов (муниципальных образований) данные по каждому их них указываются в отдельной строке."]
[2,{"$nulls":4},{"$f":"\"2.\" &mergeValue(A14)","v":"2.2"},"Наименование централизованной системы коммунальной инфраструктуры",{"$f":"IF('Перечень тарифов'!R24=\"\",\"наименование отсутствует\",\"\" & 'Перечень тарифов'!R24 & \"\")","v":"Тарифы на тепловую энергию для потребитетей Ярославского муниципального района Ярославской области в зоне деятельности ЕТО-4"},"Указывается наименование централизованной системы холодного водоснабжения/горячего водоснабжения/водоотведения/теплоснабжения, к которой относится размещаемая информация.\nВ случае наличия нескольких централизованных систем коммунальной инфраструктуры, информация по каждой из них указывается в отдельной строке."]
[{"$nulls":5},{"$f":"\"3.\" &mergeValue(A15)","v":"3.2"},"Наименование регулируемого вида деятельности",{"$f":"IF('Перечень тарифов'!F21=\"\",\"наименование отсутствует\",\"\" & 'Перечень тарифов'!F21 & \"\")","v":"Производство тепловой энергии. Некомбинированная выработка; Производство тепловой энергии. Комбинированная выработка с уст. мощностью производства электрической энергии 25 МВт и более; Передача. Тепловая энергия; Сбыт. Тепловая энергия"},"Указывается наименование вида регулируемой деятельности."]
[{"$nulls":5},{"$f":"\"4.\"&mergeValue(A16)","v":"4.2"},"Территория оказания услуги по регулируемому виду деятельности","x"]
[null,1,{"$nulls":3},{"$f":"\"4.\"&mergeValue(A17) &\".\"&mergeValue(B17)","v":"4.2.1"},"Субъект Российской Федерации",{"$f":"IF(region_name=\"\",\"\",region_name)","v":"Ярославская область"},"Указывается наименование субъекта Российской Федерации"]
[null,null,1,null,null,{"$f":"\"4.\"&mergeValue(A18) &\".\"&mergeValue(B18)&\".\"&mergeValue(C18)","v":"4.2.1.1"},"муниципальный район",{"$f":"IF(Территории!H16=\"\",\"\",\"\" & Территории!H16 & \"\")","v":"Ярославский муниципальный район"},"Указывается наименование муниципального района, на территории которого организация оказывает услуги по регулируемому виду деятельности."]
[{"$nulls":3},1,null,{"$f":"\"4.\"&mergeValue(A19) &\".\"&mergeValue(B19)&\".\"&mergeValue(C19)&\".\"&mergeValue(D19)","v":"4.2.1.1.1"},"муниципальное образование",{"$f":"IF(Территории!R17=\"\",\"\",\"\" & Территории!R17 & \"\")","v":"Ярославский муниципальный район (78650000)"},"Указывается наименование и код муниципального района, муниципального образования в соответствии с Общероссийским классификатором территорий муниципальных образований (далее - ОКТМО), входящего в муниципальный район, на территории которого организация оказывает услуги по регулируемому виду деятельности.\nВ случае оказания услуг по регулируемому виду деятельности на территории нескольких муниципальных районов (муниципальных образований) данные по каждому их них указываются в отдельной строке."]
[3,{"$nulls":4},{"$f":"\"2.\" &mergeValue(A20)","v":"2.3"},"Наименование централизованной системы коммунальной инфраструктуры",{"$f":"IF('Перечень тарифов'!R26=\"\",\"наименование отсутствует\",\"\" & 'Перечень тарифов'!R26 & \"\")","v":"Тарифы на тепловую энергию для потребителей с. Лучинское Ярославского муниципального района Ярославской области через тепловые сети ФГБУ \"Центр жилищно-коммунального управления\" Министерства обороны РФ"},"Указывается наименование централизованной системы холодного водоснабжения/горячего водоснабжения/водоотведения/теплоснабжения, к которой относится размещаемая информация.\nВ случае наличия нескольких централизованных систем коммунальной инфраструктуры, информация по каждой из них указывается в отдельной строке."]
[{"$nulls":5},{"$f":"\"3.\" &mergeValue(A21)","v":"3.3"},"Наименование регулируемого вида деятельности",{"$f":"IF('Перечень тарифов'!F21=\"\",\"наименование отсутствует\",\"\" & 'Перечень тарифов'!F21 & \"\")","v":"Производство тепловой энергии. Некомбинированная выработка; Производство тепловой энергии. Комбинированная выработка с уст. мощностью производства электрической энергии 25 МВт и более; Передача. Тепловая энергия; Сбыт. Тепловая энергия"},"Указывается наименование вида регулируемой деятельности."]
[{"$nulls":5},{"$f":"\"4.\"&mergeValue(A22)","v":"4.3"},"Территория оказания услуги по регулируемому виду деятельности","x"]
[null,1,{"$nulls":3},{"$f":"\"4.\"&mergeValue(A23) &\".\"&mergeValue(B23)","v":"4.3.1"},"Субъект Российской Федерации",{"$f":"IF(region_name=\"\",\"\",region_name)","v":"Ярославская область"},"Указывается наименование субъекта Российской Федерации"]
[null,null,1,null,null,{"$f":"\"4.\"&mergeValue(A24) &\".\"&mergeValue(B24)&\".\"&mergeValue(C24)","v":"4.3.1.1"},"муниципальный район",{"$f":"IF(Территории!H16=\"\",\"\",\"\" & Территории!H16 & \"\")","v":"Ярославский муниципальный район"},"Указывается наименование муниципального района, на территории которого организация оказывает услуги по регулируемому виду деятельности."]
[{"$nulls":3},1,null,{"$f":"\"4.\"&mergeValue(A25) &\".\"&mergeValue(B25)&\".\"&mergeValue(C25)&\".\"&mergeValue(D25)","v":"4.3.1.1.1"},"муниципальное образование",{"$f":"IF(Территории!R17=\"\",\"\",\"\" & Территории!R17 & \"\")","v":"Ярославский муниципальный район (78650000)"},"Указывается наименование и код муниципального района, муниципального образования в соответствии с Общероссийским классификатором территорий муниципальных образований (далее - ОКТМО), входящего в муниципальный район, на территории которого организация оказывает услуги по регулируемому виду деятельности.\nВ случае оказания услуг по регулируемому виду деятельности на территории нескольких муниципальных районов (муниципальных образований) данные по каждому их них указываются в отдельной строке."]
[]
[{"$nulls":6},"  1 Информация размещается при раскрытии информации по каждой из форм."]

{"sheet":"Форма 4.10.2 | Т-ТЭ | потр","index":11,"n_rows":77,"n_cols":61,"rows_kept":77,"merged":[[4,11,4,19],[6,14,6,19],[7,14,7,19],[8,14,8,19],[9,14,9,19],[10,11,10,12],[11,14,11,20],[11,21,11,27],[11,28,11,34],[11,35,11,41],[11,42,11,48],[11,49,11,55],[12,11,12,56],[12,57,15,57],[13,11,15,11],[13,12,15,12],[13,14,13,19],[13,20,15,20],[13,21,13,26],[13,27,15,27],[13,28,13,33],[13,34,15,34],[13,35,13,40],[13,41,15,41],[13,42,13,47],[13,48,15,48],[13,49,13,54],[13,55,15,55],[13,56,15,56],[14,14,15,14],[14,15,14,16],[14,17,14,19],[14,21,15,21],[14,22,14,23],[14,24,14,26],[14,28,15,28],[14,29,14,30],[14,31,14,33],[14,35,15,35],[14,36,14,37],[14,38,14,40],[14,42,15,42],[14,43,14,44],[14,45,14,47],[14,49,15,49],[14,50,14,51],[14,52,14,54],[15,18,15,19],[15,25,15,26],[15,32,15,33],[15,39,15,40],[15,46,15,47],[15,53,15,54],[16,18,16,19],[16,25,16,26],[16,32,16,33],[16,39,16,40],[16,46,16,47],[16,53,16,54],[17,0,74,0],[17,14,17,56],[18,1,47,1],[18,14,18,56],[19,2,47,2],[19,14,19,56],[20,3,47,3],[20,14,20,56],[21,4,34,4],[21,8,34,8],[21,14,21,56],[22,5,27,5],[22,9,27,9],[22,14,22,56],[23,17,26,17],[23,18,26,18],[23,19,26,19],[23,20,26,20],[23,24,26,24],[23,25,26,25],[23,26,26,26],[23,27,26,27],[23,31,26,31],[23,32,26,32],[23,33,26,33],[23,34,26,34],[23,38,26,38],[23,39,26,39],[23,40,26,40],[23,41,26,41],[23,45,26,45],[23,46,26,46],[23,47,26,47],[23,48,26,48],[23,52,26,52],[23,53,26,53],[23,54,26,54],[23,55,26,55],[23,57,27,57],[28,5,33,5],[28,9,33,9],[28,14,28,56],[29,17,32,17],[29,18,32,18],[29,19,32,19],[29,20,32,20],[29,24,32,24],[29,25,32,25],[29,26,32,26],[29,27,32,27],[29,31,32,31],[29,32,32,32],[29,33,32,33],[29,34,32,34],[29,38,32,38],[29,39,32,39],[29,40,32,40],[29,41,32,41],[29,45,32,45],[29,46,32,46],[29,47,32,47],[29,48,32,48],[29,52,32,52],[29,53,32,53],[29,54,32,54],[29,55,32,55],[29,57,33,57],[35,4,46,4],[35,8,46,8],[35,14,35,56],[36,5,40,5],[36,9,40,9],[36,14,36,56],[37,17,39,17],[37,18,39,18],[37,19,39,19],[37,20,39,20],[37,24,39,24],[37,25,39,25],[37,26,39,26],[37,27,39,27],[37,31,39,31],[37,32,39,32],[37,33,39,33],[37,34,39,34],[37,38,39,38],[37,39,39,39],[37,40,39,40],[37,41,39,41],[37,45,39,45],[37,46,39,46],[37,47,39,47],[37,48,39,48],[37,52,39,52],[37,53,39,53],[37,54,39,54],[37,55,39,55],[37,57,40,57],[41,5,45,5],[41,9,45,9],[41,14,41,56],[42,17,44,17],[42,18,44,18],[42,19,44,19],[42,20,44,20],[42,24,44,24],[42,25,44,25],[42,26,44,26],[42,27,44,27],[42,31,44,31],[42,32,44,32],[42,33,44,33],[42,34,44,34],[42,38,44,38],[42,39,44,39],[42,40,44,40],[42,41,44,41],[42,45,44,45],[42,46,44,46],[42,47,44,47],[42,48,44,48],[42,52,44,52],[42,53,44,53],[42,54,44,54],[42,55,44,55],[42,57,45,57],[48,1,74,1],[48,14,48,56],[49,2,61,2],[49,14,49,56],[50,3,61,3],[50,14,50,56],[51,4,60,4],[51,8,60,8],[51,14,51,56],[52,5,55,5],[52,9,55,9],[52,14,52,56],[53,17,54,17],[53,18,54,18],[53,19,54,19],[53,20,54,20],[53,24,54,24],[53,25,54,25],[53,26,54,26],[53,27,54,27],[53,31,54,31],[53,32,54,32],[53,33,54,33],[53,34,54,34],[53,38,54,38],[53,39,54,39],[53,40,54,40],[53,41,54,41],[53,45,54,45],[53,46,54,46],[53,47,54,47],[53,48,54,48],[53,52,54,52],[53,53,54,53],[53,54,54,54],[53,55,54,55],[53,57,55,57],[56,5,59,5],[56,9,59,9],[56,14,56,56],[57,17,58,17],[57,18,58,18],[57,19,58,19],[57,20,58,20],[57,24,58,24],[57,25,58,25],[57,26,58,26],[57,27,58,27],[57,31,58,31],[57,32,58,32],[57,33,58,33],[57,34,58,34],[57,38,58,38],[57,39,58,39],[57,40,58,40],[57,41,58,41],[57,45,58,45],[57,46,58,46],[57,47,58,47],[57,48,58,48],[57,52,58,52],[57,53,58,53],[57,54,58,54],[57,55,58,55],[57,57,59,57],[62,2,74,2],[62,14,62,56],[63,3,74,3],[63,14,63,56],[64,4,73,4],[64,8,73,8],[64,14,64,56],[65,5,68,5],[65,9,68,9],[65,14,65,56],[66,17,67,17],[66,18,67,18],[66,19,67,19],[66,20,67,20],[66,24,67,24],[66,25,67,25],[66,26,67,26],[66,27,67,27],[66,31,67,31],[66,32,67,32],[66,33,67,33],[66,34,67,34],[66,38,67,38],[66,39,67,39],[66,40,67,40],[66,41,67,41],[66,45,67,45],[66,46,67,46],[66,47,67,47],[66,48,67,48],[66,52,67,52],[66,53,67,53],[66,54,67,54],[66,55,67,55],[66,57,68,57],[69,5,72,5],[69,9,72,9],[69,14,69,56],[70,17,71,17],[70,18,71,18],[70,19,71,19],[70,20,71,20],[70,24,71,24],[70,25,71,25],[70,26,71,26],[70,27,71,27],[70,31,71,31],[70,32,71,32],[70,33,71,33],[70,34,71,34],[70,38,71,38],[70,39,71,39],[70,40,71,40],[70,41,71,41],[70,45,71,45],[70,46,71,46],[70,47,71,47],[70,48,71,48],[70,52,71,52],[70,53,71,53],[70,54,71,54],[70,55,71,55],[70,57,72,57],[76,12,76,57]]}
[]
[]
[]
[]
[{"$nulls":11},"Форма 4.10.2 Информация о предложении величин тарифов на тепловую энергию, поддержанию резервной тепловой мощности1"]
[]
[]
[{"$nulls":12},{"$f":"\"Дата подачи заявления об \"&IF(datePr_ch=\"\",\"утверждении\",\"изменении\") & \" тарифов\"","v":"Дата подачи заявления об утверждении тарифов"},null,{"$f":"IF(datePr_ch=\"\",IF(datePr=\"\",\"\",datePr),datePr_ch)","v":"28.04.2020"}]
[{"$nulls":12},{"$f":"\"Номер подачи заявления об \"&IF(numberPr_ch=\"\",\"утверждении\",\"изменении\") & \" тарифов\"","v":"Номер подачи заявления об утверждении тарифов"},null,{"$f":"IF(numberPr_ch=\"\",IF(numberPr=\"\",\"\",numberPr),numberPr_ch)","v":"01-10/004762 "}]
[]
[{"$nulls":20},"dp",{"$nulls":6},"dp",{"$nulls":6},"dp",{"$nulls":6},"dp",{"$nulls":6},"dp",{"$nulls":6},"dp"]
[{"$nulls":21},"О",{"$nulls":6},"О",{"$nulls":6},"О",{"$nulls":6},"О",{"$nulls":6},"О"]
[{"$nulls":11},"Параметры формы",{"$nulls":45},"Описание параметров формы"]
[{"$nulls":11},"№ п/п","Параметр дифференциации тарифа",null,"Период действия тарифа",{"$nulls":5},"Наличие других периодов действия тарифа","Период действия тарифа",{"$nulls":5},"Наличие других периодов действия тарифа","Период действия тарифа",{"$nulls":5},"Наличие других периодов действия тарифа","Период действия тарифа",{"$nulls":5},"Наличие других периодов действия тарифа","Период действия тарифа",{"$nulls":5},"Наличие других периодов действия тарифа","Период действия тарифа",{"$nulls":5},"Наличие других периодов действия тарифа","Добавить период"]
[{"$nulls":14},"Одноставочный тариф, руб./Гкал","Двухставочный тариф",null,"Период действия",{"$nulls":3},"Одноставочный тариф, руб./Гкал","Двухставочный тариф",null,"Период действия",{"$nulls":3},"Одноставочный тариф, руб./Гкал","Двухставочный тариф",null,"Период действия",{"$nulls":3},"Одноставочный тариф, руб./Гкал","Двухставочный тариф",null,"Период действия",{"$nulls":3},"Одноставочный тариф, руб./Гкал","Двухставочный тариф",null,"Период действия",{"$nulls":3},"Одноставочный тариф, руб./Гкал","Двухставочный тариф",null,"Период действия"]
[{"$nulls":15},"ставка за тепловую  энергию, руб./Гкал","ставка за содержание тепловой мощности, тыс.руб./Гкал/ч/мес","дата начала","дата окончания",{"$nulls":3},"ставка за тепловую  энергию, руб./Гкал","ставка за содержание тепловой мощности, тыс.руб./Гкал/ч/мес","дата начала","дата окончания",{"$nulls":3},"ставка за тепловую  энергию, руб./Гкал","ставка за содержание тепловой мощности, тыс.руб./Гкал/ч/мес","дата начала","дата окончания",{"$nulls":3},"ставка за тепловую  энергию, руб./Гкал","ставка за содержание тепловой мощности, тыс.руб./Гкал/ч/мес","дата начала","дата окончания",{"$nulls":3},"ставка за тепловую  энергию, руб./Гкал","ставка за содержание тепловой мощности, тыс.руб./Гкал/ч/мес","дата начала","дата окончания",{"$nulls":3},"ставка за тепловую  энергию, руб./Гкал","ставка за содержание тепловой мощности, тыс.руб./Гкал/ч/мес","дата начала","дата окончания"]
[{"$nulls":10},1,"1","2",{"$f":"OFFSET(N17,0,-1)","v":"2"},{"$f":"OFFSET(O17,0,-1)+1","v":3},{"$f":"OFFSET(P17,0,-1)+1","v":4},{"$f":"OFFSET(Q17,0,-1)+1","v":5},{"$f":"OFFSET(R17,0,-1)+1","v":6},{"$f":"OFFSET(S17,0,-1)+1","v":7},null,{"$f":"OFFSET(U17,0,-2)+1","v":8},{"$f":"OFFSET(V17,0,-1)+1","v":9},{"$f":"OFFSET(W17,0,-1)+1","v":10},{"$f":"OFFSET(X17,0,-1)+1","v":11},{"$f":"OFFSET(Y17,0,-1)+1","v":12},{"$f":"OFFSET(Z17,0,-1)+1","v":13},null,{"$f":"OFFSET(AB17,0,-2)+1","v":14},{"$f":"OFFSET(AC17,0,-1)+1","v":15},{"$f":"OFFSET(AD17,0,-1)+1","v":16},{"$f":"OFFSET(AE17,0,-1)+1","v":17},{"$f":"OFFSET(AF17,0,-1)+1","v":18},{"$f":"OFFSET(AG17,0,-1)+1","v":19},null,{"$f":"OFFSET(AI17,0,-2)+1","v":20},{"$f":"OFFSET(AJ17,0,-1)+1","v":21},{"$f":"OFFSET(AK17,0,-1)+1","v":22},{"$f":"OFFSET(AL17,0,-1)+1","v":23},{"$f":"OFFSET(AM17,0,-1)+1","v":24},{"$f":"OFFSET(AN17,0,-1)+1","v":25},null,{"$f":"OFFSET(AP17,0,-2)+1","v":26},{"$f":"OFFSET(AQ17,0,-1)+1","v":27},{"$f":"OFFSET(AR17,0,-1)+1","v":28},{"$f":"OFFSET(AS17,0,-1)+1","v":29},{"$f":"OFFSET(AT17,0,-1)+1","v":30},{"$f":"OFFSET(AU17,0,-1)+1","v":31},null,{"$f":"OFFSET(AW17,0,-2)+1","v":32},{"$f":"OFFSET(AX17,0,-1)+1","v":33},{"$f":"OFFSET(AY17,0,-1)+1","v":34},{"$f":"OFFSET(AZ17,0,-1)+1","v":35},{"$f":"OFFSET(BA17,0,-1)+1","v":36},{"$f":"OFFSET(BB17,0,-1)+1","v":37},null,{"$f":"OFFSET(BD17,0,-2)+1","v":38},{"$f":"OFFSET(BE17,0,-1)","v":38},{"$f":"OFFSET(BF17,0,-1)+1","v":39}]
[1,{"$nulls":10},{"$f":"mergeValue(A18)","v":1},"Наименование тарифа",null,{"$f":"IF('Перечень тарифов'!J21=\"\",\"\",\"\" & 'Перечень тарифов'!J21 & \"\")","v":"Тарифы на тепловую энергию, поставляемую потребителям единой теплоснабжающей организации ПАО \"ТГК-2\""},{"$nulls":42},"Указывается наименование тарифа в случае подачи предложения по нескольким тарифам.\nВ случае наличия нескольких тарифов информация по ним указывается в отдельных строках.",null,null,{"$f":"IF(M18=\"\",\"\",M18 )","v":"Наименование тарифа"}]
[null,1,{"$nulls":9},{"$f":"mergeValue(A19) &\".\"& mergeValue(B19)","v":"1.1"},"Территория действия тарифа",null,{"$f":"IF('Перечень тарифов'!N21=\"\",\"\",\"\" & 'Перечень тарифов'!N21 & \"\")","v":"город Ярославль, город Ярославль (78701000);"},{"$nulls":42},"Указывается наименование территории действия тарифа при наличии дифференциации тарифа по территориальному признаку.\nВ случае дифференциации тарифов по территориальному признаку информация по ним указывается в отдельных строках.",null,null,"Территория действия тарифа"]
[null,null,1,{"$nulls":8},{"$f":"mergeValue(A20) &\".\"& mergeValue(B20)&\".\"& mergeValue(C20)","v":"1.1.1"},"Наименование системы теплоснабжения ",null,{"$f":"IF('Перечень тарифов'!R21=\"\",\"\",\"\" & 'Перечень тарифов'!R21 & \"\")","v":"Тарифы на тепловую энергию для потребитетей г. Ярославля в зоне деятельности ЕТО-1"},{"$nulls":42},"Указывается наименование системы теплоснабжения при наличии дифференциации тарифа по системам теплоснабжения.\nВ случае дифференциации тарифов по системам теплоснабжения информация по ним указывается в отдельных строках.",null,null,"Наименование системы теплоснабжения "]
[{"$nulls":3},1,{"$nulls":7},{"$f":"mergeValue(A21) &\".\"& mergeValue(B21)&\".\"& mergeValue(C21)&\".\"& mergeValue(D21)","v":"1.1.1.1"},{"$nulls":48},""]
[{"$nulls":4},1,null,null,1,1,null,null,{"$f":"mergeValue(A22) &\".\"& mergeValue(B22)&\".\"& mergeValue(C22)&\".\"& mergeValue(D22)&\".\"& mergeValue(E22)","v":"1.1.1.1.1"},"Схема подключения теплопотребляющей установки к коллектору источника тепловой энергии",null,"к коллектору источника тепловой энергии",{"$nulls":42},"Указывается схема подключения теплопотребляющей установки к коллектору источника тепловой энергии только для тарифов на тепловую энергию и за услуги по поддержанию резервной мощности.\nЗначение выбирается из перечня: Без дифференциации; к коллектору источника тепловой энергии; к тепловой сети без дополнительного преобразования на тепловых пунктах, эксплуатируемых теплоснабжающей организацией; к тепловой сети после тепловых пунктов (на тепловых пунктах), эксплуатируемых теплоснабжающей организацией.\nВ случае дифференциации тарифов по схемам подключения теплопотребляющей установки к коллектору источника тепловой энергии информация по ним указывается в отдельных строках.",null,null,"Схема подключения теплопотребляющей установки к коллектору источника тепловой энергии"]
[{"$nulls":5},1,{"$nulls":3},1,null,{"$f":"mergeValue(A23) &\".\"& mergeValue(B23)&\".\"& mergeValue(C23)&\".\"& mergeValue(D23)&\".\"& mergeValue(E23)&\".\"& mergeValue(F23)","v":"1.1.1.1.1.1"},"Группа потребителей",null,"без дифференциации",{"$nulls":42},"Указывается группа потребителей при наличии дифференциации тарифа по группам потребителей.\nЗначение выбирается из перечня: Организации-перепродавцы; Бюджетные организации; Население; Прочие; Без дифференциации.\nВ случае дифференциации тарифов группам потребителей информация по ним указывается в отдельных строках.",null,null,"Группа потребителей"]
[{"$nulls":6},1,{"$nulls":3},1,{"$f":"mergeValue(A24) &\".\"& mergeValue(B24)&\".\"& mergeValue(C24)&\".\"& mergeValue(D24)&\".\"& mergeValue(E24)&\".\"& mergeValue(F24)&\".\"& mergeValue(G24)","v":"1.1.1.1.1.1.1"},"вода",null,{"v":1096.75,"d":"1,096.75"},null,null,"01.01.2021","да","30.06.2021","да",{"v":1221.98,"d":"1,221.98"},null,null,"01.07.2021","да","31.12.2021","да",{"v":1221.98,"d":"1,221.98"},null,null,"01.01.2022","да","30.06.2022","да",{"v":1228.49,"d":"1,228.49"},null,null,"01.07.2022","да","31.12.2022","да",{"v":1228.49,"d":"1,228.49"},null,null,"01.01.2023","да","30.06.2023","да",{"v":1262.44,"d":"1,262.44"},null,null,"01.07.2023","да","31.12.2023","нет",null,"В колонке «Параметр дифференциации тарифов» указывается вид теплоносителя.\nЗначение выбирается из перечня: вода; пар; отборный пар, 1.2-2.5 кг/см2; отборный пар, 2.5-7 кг/см2; отборный пар, 7-13 кг/см2; отборный пар, > 13 кг/см2; острый и редуцированный пар; горячая вода в системе централизованного теплоснабжения на отопление; горячая вода в системе централизованного теплоснабжения на горячее водоснабжение; прочее.\nПри подаче предложения на двухставочный тариф колонка «Одноставочный тариф» не заполняется.\nПри подаче предложения на одноставочный тариф колонки в блоке «Двухставочный тариф» не заполняются.\nДаты начала и окончания действия тарифов указываются в виде «ДД.ММ.ГГГГ».\nВ случае отсутствия даты окончания действия тарифа в колонке «Дата окончания» указывается «Нет».\nИнформация в колонке «Ставка за содержание тепловой мощности, тыс. руб./Гкал/ч/мес» указывается только для тарифа по поддержанию резервной мощности. \nВ случае дифференциации тарифов по периодам действия тарифа информация по ним указывается в отдельных колонках.\nВ случае дифференциации тарифов по видам теплоносителя информация по ним указывается в отдельных строках.",{"$f":"strCheckDate(O27:BE27)","v":""},null,"вода"]
[{"$nulls":6},2,{"$nulls":3},"О",{"$f":"mergeValue(A25) &\".\"& mergeValue(B25)&\".\"& mergeValue(C25)&\".\"& mergeValue(D25)&\".\"& mergeValue(E25)&\".\"& mergeValue(F25)&\".\"& mergeValue(G25)","v":"1.1.1.1.1.1.2"},"отборный пар, 7-13 кг/см2",null,{"v":1438.67,"d":"1,438.67"},{"$nulls":6},{"v":1216.14,"d":"1,216.14"},{"$nulls":6},{"v":1216.14,"d":"1,216.14"},{"$nulls":6},{"v":1222.18,"d":"1,222.18"},{"$nulls":6},{"v":1222.18,"d":"1,222.18"},{"$nulls":6},{"v":1256.48,"d":"1,256.48"},{"$nulls":8},{"$f":"strCheckDate(O27:BE27)","v":""},null,"отборный пар, 7-13 кг/см2"]
[{"$nulls":6},3,{"$nulls":3},"О",{"$f":"mergeValue(A26) &\".\"& mergeValue(B26)&\".\"& mergeValue(C26)&\".\"& mergeValue(D26)&\".\"& mergeValue(E26)&\".\"& mergeValue(F26)&\".\"& mergeValue(G26)","v":"1.1.1.1.1.1.3"},"острый и редуцированный пар",null,{"v":1602.15,"d":"1,602.15"},{"$nulls":6},{"v":1216.14,"d":"1,216.14"},{"$nulls":6},{"v":1216.14,"d":"1,216.14"},{"$nulls":6},{"v":1222.18,"d":"1,222.18"},{"$nulls":6},{"v":1222.18,"d":"1,222.18"},{"$nulls":6},{"v":1256.48,"d":"1,256.48"},{"$nulls":8},{"$f":"strCheckDate(O27:BE27)","v":""},null,"острый и редуцированный пар"]
[{"$nulls":16},{"$f":"R24 & \"-\" & T24","v":"01.01.2021-30.06.2021"},{"$nulls":6},{"$f":"Y24 & \"-\" & AA24","v":"01.07.2021-31.12.2021"},{"$nulls":6},{"$f":"AF24 & \"-\" & AH24","v":"01.01.2022-30.06.2022"},{"$nulls":6},{"$f":"AM24 & \"-\" & AO24","v":"01.07.2022-31.12.2022"},{"$nulls":6},{"$f":"AT24 & \"-\" & AV24","v":"01.01.2023-30.06.2023"},{"$nulls":6},{"$f":"BA24 & \"-\" & BC24","v":"01.07.2023-31.12.2023"},{"$nulls":8},""]
[{"$nulls":12},"Добавить вид теплоносителя (параметры теплоносителя)",{"$nulls":47},"Добавить вид теплоносителя (параметры теплоносителя)"]
[{"$nulls":5},2,{"$nulls":3},"О",null,{"$f":"mergeValue(A29) &\".\"& mergeValue(B29)&\".\"& mergeValue(C29)&\".\"& mergeValue(D29)&\".\"& mergeValue(E29)&\".\"& mergeValue(F29)","v":"1.1.1.1.1.2"},"Группа потребителей",null,"население и приравненные категории",{"$nulls":42},"Указывается группа потребителей при наличии дифференциации тарифа по группам потребителей.\nЗначение выбирается из перечня: Организации-перепродавцы; Бюджетные организации; Население; Прочие; Без дифференциации.\nВ случае дифференциации тарифов группам потребителей информация по ним указывается в отдельных строках.",null,null,"Группа потребителей"]
[{"$nulls":6},1,{"$nulls":3},1,{"$f":"mergeValue(A30) &\".\"& mergeValue(B30)&\".\"& mergeValue(C30)&\".\"& mergeValue(D30)&\".\"& mergeValue(E30)&\".\"& mergeValue(F30)&\".\"& mergeValue(G30)","v":"1.1.1.1.1.2.1"},"вода",null,{"v":1316.1,"d":"1,316.10"},null,null,"01.01.2021","да","30.06.2021","да",{"v":1466.37,"d":"1,466.37"},null,null,"01.07.2021","да","31.12.2021","да",{"v":1466.37,"d":"1,466.37"},null,null,"01.01.2022","да","30.06.2022","да",{"v":1474.19,"d":"1,474.19"},null,null,"01.07.2022","да","31.12.2022","да",{"v":1474.19,"d":"1,474.19"},null,null,"01.01.2023","да","30.06.2023","да",{"v":1514.93,"d":"1,514.93"},null,null,"01.07.2023","да","31.12.2023","нет",null,"В колонке «Параметр дифференциации тарифов» указывается вид теплоносителя.\nЗначение выбирается из перечня: вода; пар; отборный пар, 1.2-2.5 кг/см2; отборный пар, 2.5-7 кг/см2; отборный пар, 7-13 кг/см2; отборный пар, > 13 кг/см2; острый и редуцированный пар; горячая вода в системе централизованного теплоснабжения на отопление; горячая вода в системе централизованного теплоснабжения на горячее водоснабжение; прочее.\nПри подаче предложения на двухставочный тариф колонка «Одноставочный тариф» не заполняется.\nПри подаче предложения на одноставочный тариф колонки в блоке «Двухставочный тариф» не заполняются.\nДаты начала и окончания действия тарифов указываются в виде «ДД.ММ.ГГГГ».\nВ случае отсутствия даты окончания действия тарифа в колонке «Дата окончания» указывается «Нет».\nИнформация в колонке «Ставка за содержание тепловой мощности, тыс. руб./Гкал/ч/мес» указывается только для тарифа по поддержанию резервной мощности. \nВ случае дифференциации тарифов по периодам действия тарифа информация по ним указывается в отдельных колонках.\nВ случае дифференциации тарифов по видам теплоносителя информация по ним указывается в отдельных строках.",{"$f":"strCheckDate(O33:BE33)","v":""},null,"вода"]
[{"$nulls":6},2,{"$nulls":3},"О",{"$f":"mergeValue(A31) &\".\"& mergeValue(B31)&\".\"& mergeValue(C31)&\".\"& mergeValue(D31)&\".\"& mergeValue(E31)&\".\"& mergeValue(F31)&\".\"& mergeValue(G31)","v":"1.1.1.1.1.2.2"},"отборный пар, 7-13 кг/см2",null,{"v":1726.4,"d":"1,726.40"},{"$nulls":6},{"v":1459.37,"d":"1,459.37"},{"$nulls":6},{"v":1459.37,"d":"1,459.37"},{"$nulls":6},{"v":1466.62,"d":"1,466.62"},{"$nulls":6},{"v":1466.62,"d":"1,466.62"},{"$nulls":6},{"v":1507.78,"d":"1,507.78"},{"$nulls":8},{"$f":"strCheckDate(O33:BE33)","v":""},null,"отборный пар, 7-13 кг/см2"]
[{"$nulls":6},3,{"$nulls":3},"О",{"$f":"mergeValue(A32) &\".\"& mergeValue(B32)&\".\"& mergeValue(C32)&\".\"& mergeValue(D32)&\".\"& mergeValue(E32)&\".\"& mergeValue(F32)&\".\"& mergeValue(G32)","v":"1.1.1.1.1.2.3"},"острый и редуцированный пар",null,{"v":1922.59,"d":"1,922.59"},{"$nulls":6},{"v":1459.37,"d":"1,459.37"},{"$nulls":6},{"v":1459.37,"d":"1,459.37"},{"$nulls":6},{"v":1466.62,"d":"1,466.62"},{"$nulls":6},{"v":1466.62,"d":"1,466.62"},{"$nulls":6},{"v":1507.78,"d":"1,507.78"},{"$nulls":8},{"$f":"strCheckDate(O33:BE33)","v":""},null,"острый и редуцированный пар"]
[{"$nulls":16},{"$f":"R30 & \"-\" & T30","v":"01.01.2021-30.06.2021"},{"$nulls":6},{"$f":"Y30 & \"-\" & AA30","v":"01.07.2021-31.12.2021"},{"$nulls":6},{"$f":"AF30 & \"-\" & AH30","v":"01.01.2022-30.06.2022"},{"$nulls":6},{"$f":"AM30 & \"-\" & AO30","v":"01.07.2022-31.12.2022"},{"$nulls":6},{"$f":"AT30 & \"-\" & AV30","v":"01.01.2023-30.06.2023"},{"$nulls":6},{"$f":"BA30 & \"-\" & BC30","v":"01.07.2023-31.12.2023"},{"$nulls":8},""]
[{"$nulls":12},"Добавить вид теплоносителя (параметры теплоносителя)",{"$nulls":47},"Добавить вид теплоносителя (параметры теплоносителя)"]
[{"$nulls":12},"Добавить группу потребителей",{"$nulls":47},"Добавить группу потребителей"]
[{"$nulls":4},2,null,null,1,"О",null,null,{"$f":"mergeValue(A36) &\".\"& mergeValue(B36)&\".\"& mergeValue(C36)&\".\"& mergeValue(D36)&\".\"& mergeValue(E36)","v":"1.1.1.1.2"},"Схема подключения теплопотребляющей установки к коллектору источника тепловой энергии",null,"к тепловой сети без дополнительного преобразования на тепловых пунктах, эксплуатируемых теплоснабжающей организацией",{"$nulls":42},"Указывается схема подключения теплопотребляющей установки к коллектору источника тепловой энергии только для тарифов на тепловую энергию и за услуги по поддержанию резервной мощности.\nЗначение выбирается из перечня: Без дифференциации; к коллектору источника тепловой энергии; к тепловой сети без дополнительного преобразования на тепловых пунктах, эксплуатируемых теплоснабжающей организацией; к тепловой сети после тепловых пунктов (на тепловых пунктах), эксплуатируемых теплоснабжающей организацией.\nВ случае дифференциации тарифов по схемам подключения теплопотребляющей установки к коллектору источника тепловой энергии информация по ним указывается в отдельных строках.",null,null,"Схема подключения теплопотребляющей установки к коллектору источника тепловой энергии"]
[{"$nulls":5},1,{"$nulls":3},1,null,{"$f":"mergeValue(A37) &\".\"& mergeValue(B37)&\".\"& mergeValue(C37)&\".\"& mergeValue(D37)&\".\"& mergeValue(E37)&\".\"& mergeValue(F37)","v":"1.1.1.1.2.1"},"Группа потребителей",null,"без дифференциации",{"$nulls":42},"Указывается группа потребителей при наличии дифференциации тарифа по группам потребителей.\nЗначение выбирается из перечня: Организации-перепродавцы; Бюджетные организации; Население; Прочие; Без дифференциации.\nВ случае дифференциации тарифов группам потребителей информация по ним указывается в отдельных строках.",null,null,"Группа потребителей"]
[{"$nulls":6},1,{"$nulls":3},1,{"$f":"mergeValue(A38) &\".\"& mergeValue(B38)&\".\"& mergeValue(C38)&\".\"& mergeValue(D38)&\".\"& mergeValue(E38)&\".\"& mergeValue(F38)&\".\"& mergeValue(G38)","v":"1.1.1.1.2.1.1"},"вода",null,{"v":1618.19,"d":"1,618.19"},null,null,"01.01.2021","да","30.06.2021","да",{"v":1845.46,"d":"1,845.46"},null,null,"01.07.2021","да","31.12.2021","да",{"v":1845.46,"d":"1,845.46"},null,null,"01.01.2022","да","30.06.2022","да",{"v":1857.38,"d":"1,857.38"},null,null,"01.07.2022","да","31.12.2022","да",{"v":1857.38,"d":"1,857.38"},null,null,"01.01.2023","да","30.06.2023","да",{"v":1921.41,"d":"1,921.41"},null,null,"01.07.2023","да","31.12.2023","нет",null,"В колонке «Параметр дифференциации тарифов» указывается вид теплоносителя.\nЗначение выбирается из перечня: вода; пар; отборный пар, 1.2-2.5 кг/см2; отборный пар, 2.5-7 кг/см2; отборный пар, 7-13 кг/см2; отборный пар, > 13 кг/см2; острый и редуцированный пар; горячая вода в системе централизованного теплоснабжения на отопление; горячая вода в системе централизованного теплоснабжения на горячее водоснабжение; прочее.\nПри подаче предложения на двухставочный тариф колонка «Одноставочный тариф» не заполняется.\nПри подаче предложения на одноставочный тариф колонки в блоке «Двухставочный тариф» не заполняются.\nДаты начала и окончания действия тарифов указываются в виде «ДД.ММ.ГГГГ».\nВ случае отсутствия даты окончания действия тарифа в колонке «Дата окончания» указывается «Нет».\nИнформация в колонке «Ставка за содержание тепловой мощности, тыс. руб./Гкал/ч/мес» указывается только для тарифа по поддержанию резервной мощности. \nВ случае дифференциации тарифов по периодам действия тарифа информация по ним указывается в отдельных колонках.\nВ случае дифференциации тарифов по видам теплоносителя информация по ним указывается в отдельных строках.",{"$f":"strCheckDate(O40:BE40)","v":""},null,"вода"]
[{"$nulls":6},2,{"$nulls":3},"О",{"$f":"mergeValue(A39) &\".\"& mergeValue(B39)&\".\"& mergeValue(C39)&\".\"& mergeValue(D39)&\".\"& mergeValue(E39)&\".\"& mergeValue(F39)&\".\"& mergeValue(G39)","v":"1.1.1.1.2.1.2"},"отборный пар, 2.5-7 кг/см2",null,{"v":1870.51,"d":"1,870.51"},{"$nulls":6},{"v":1582.16,"d":"1,582.16"},{"$nulls":6},{"v":1582.16,"d":"1,582.16"},{"$nulls":6},{"v":1591.46,"d":"1,591.46"},{"$nulls":6},{"v":1591.46,"d":"1,591.46"},{"$nulls":6},{"v":1636.12,"d":"1,636.12"},{"$nulls":8},{"$f":"strCheckDate(O40:BE40)","v":""},null,"отборный пар, 2.5-7 кг/см2"]
[{"$nulls":16},{"$f":"R38 & \"-\" & T38","v":"01.01.2021-30.06.2021"},{"$nulls":6},{"$f":"Y38 & \"-\" & AA38","v":"01.07.2021-31.12.2021"},{"$nulls":6},{"$f":"AF38 & \"-\" & AH38","v":"01.01.2022-30.06.2022"},{"$nulls":6},{"$f":"AM38 & \"-\" & AO38","v":"01.07.2022-31.12.2022"},{"$nulls":6},{"$f":"AT38 & \"-\" & AV38","v":"01.01.2023-30.06.2023"},{"$nulls":6},{"$f":"BA38 & \"-\" & BC38","v":"01.07.2023-31.12.2023"},{"$nulls":8},""]
[{"$nulls":12},"Добавить вид теплоносителя (параметры теплоносителя)",{"$nulls":47},"Добавить вид теплоносителя (параметры теплоносителя)"]
[{"$nulls":5},2,{"$nulls":3},"О",null,{"$f":"mergeValue(A42) &\".\"& mergeValue(B42)&\".\"& mergeValue(C42)&\".\"& mergeValue(D42)&\".\"& mergeValue(E42)&\".\"& mergeValue(F42)","v":"1.1.1.1.2.2"},"Группа потребителей",null,"население и приравненные категории",{"$nulls":42},"Указывается группа потребителей при наличии дифференциации тарифа по группам потребителей.\nЗначение выбирается из перечня: Организации-перепродавцы; Бюджетные организации; Население; Прочие; Без дифференциации.\nВ случае дифференциации тарифов группам потребителей информация по ним указывается в отдельных строках.",null,null,"Группа потребителей"]
[{"$nulls":6},1,{"$nulls":3},1,{"$f":"mergeValue(A43) &\".\"& mergeValue(B43)&\".\"& mergeValue(C43)&\".\"& mergeValue(D43)&\".\"& mergeValue(E43)&\".\"& mergeValue(F43)&\".\"& mergeValue(G43)","v":"1.1.1.1.2.2.1"},"вода",null,{"v":1941.83,"d":"1,941.83"},null,null,"01.01.2021","да","30.06.2021","да",{"v":2214.55,"d":"2,214.55"},null,null,"01.07.2021","да","31.12.2021","да",{"v":2214.55,"d":"2,214.55"},null,null,"01.01.2022","да","30.06.2022","да",{"v":2228.85,"d":"2,228.85"},null,null,"01.07.2022","да","31.12.2022","да",{"v":2228.85,"d":"2,228.85"},null,null,"01.01.2023","да","30.06.2023","да",{"v":2305.69,"d":"2,305.69"},null,null,"01.07.2023","да","31.12.2023","нет",null,"В колонке «Параметр дифференциации тарифов» указывается вид теплоносителя.\nЗначение выбирается из перечня: вода; пар; отборный пар, 1.2-2.5 кг/см2; отборный пар, 2.5-7 кг/см2; отборный пар, 7-13 кг/см2; отборный пар, > 13 кг/см2; острый и редуцированный пар; горячая вода в системе централизованного теплоснабжения на отопление; горячая вода в системе централизованного теплоснабжения на горячее водоснабжение; прочее.\nПри подаче предложения на двухставочный тариф колонка «Одноставочный тариф» не заполняется.\nПри подаче предложения на одноставочный тариф колонки в блоке «Двухставочный тариф» не заполняются.\nДаты начала и окончания действия тарифов указываются в виде «ДД.ММ.ГГГГ».\nВ случае отсутствия даты окончания действия тарифа в колонке «Дата окончания» указывается «Нет».\nИнформация в колонке «Ставка за содержание тепловой мощности, тыс. руб./Гкал/ч/мес» указывается только для тарифа по поддержанию резервной мощности. \nВ случае дифференциации тарифов по периодам действия тарифа информация по ним указывается в отдельных колонках.\nВ случае дифференциации тарифов по видам теплоносителя информация по ним указывается в отдельных строках.",{"$f":"strCheckDate(O45:BE45)","v":""},null,"вода"]
[{"$nulls":6},2,{"$nulls":3},"О",{"$f":"mergeValue(A44) &\".\"& mergeValue(B44)&\".\"& mergeValue(C44)&\".\"& mergeValue(D44)&\".\"& mergeValue(E44)&\".\"& mergeValue(F44)&\".\"& mergeValue(G44)","v":"1.1.1.1.2.2.2"},"отборный пар, 7-13 кг/см2",null,{"v":2244.61,"d":"2,244.61"},{"$nulls":6},{"v":1898.59,"d":"1,898.59"},{"$nulls":6},{"v":1898.59,"d":"1,898.59"},{"$nulls":6},{"v":1909.75,"d":"1,909.75"},{"$nulls":6},{"v":1909.75,"d":"1,909.75"},{"$nulls":6},{"v":1963.35,"d":"1,963.35"},{"$nulls":8},{"$f":"strCheckDate(O45:BE45)","v":""},null,"отборный пар, 7-13 кг/см2"]
[{"$nulls":16},{"$f":"R43 & \"-\" & T43","v":"01.01.2021-30.06.2021"},{"$nulls":6},{"$f":"Y43 & \"-\" & AA43","v":"01.07.2021-31.12.2021"},{"$nulls":6},{"$f":"AF43 & \"-\" & AH43","v":"01.01.2022-30.06.2022"},{"$nulls":6},{"$f":"AM43 & \"-\" & AO43","v":"01.07.2022-31.12.2022"},{"$nulls":6},{"$f":"AT43 & \"-\" & AV43","v":"01.01.2023-30.06.2023"},{"$nulls":6},{"$f":"BA43 & \"-\" & BC43","v":"01.07.2023-31.12.2023"},{"$nulls":8},""]
[{"$nulls":12},"Добавить вид теплоносителя (параметры теплоносителя)",{"$nulls":47},"Добавить вид теплоносителя (параметры теплоносителя)"]
[{"$nulls":12},"Добавить группу потребителей",{"$nulls":47},"Добавить группу потребителей"]
[{"$nulls":12},"Добавить схему подключения",{"$nulls":47},"Добавить схему подключения"]
[null,2,{"$nulls":9},{"$f":"mergeValue(A49) &\".\"& mergeValue(B49)","v":"1.2"},"Территория действия тарифа",null,{"$f":"IF('Перечень тарифов'!N24=\"\",\"\",\"\" & 'Перечень тарифов'!N24 & \"\")","v":"Ярославский муниципальный район, Ярославский муниципальный район (78650000);"},{"$nulls":42},"Указывается наименование территории действия тарифа при наличии дифференциации тарифа по территориальному признаку.\nВ случае дифференциации тарифов по территориальному признаку информация по ним указывается в отдельных строках.",null,null,"Территория действия тарифа"]
[null,null,1,{"$nulls":8},{"$f":"mergeValue(A50) &\".\"& mergeValue(B50)&\".\"& mergeValue(C50)","v":"1.2.1"},"Наименование системы теплоснабжения ",null,{"$f":"IF('Перечень тарифов'!R24=\"\",\"\",\"\" & 'Перечень тарифов'!R24 & \"\")","v":"Тарифы на тепловую энергию для потребитетей Ярославского муниципального района Ярославской области в зоне деятельности ЕТО-4"},{"$nulls":42},"Указывается наименование системы теплоснабжения при наличии дифференциации тарифа по системам теплоснабжения.\nВ случае дифференциации тарифов по системам теплоснабжения информация по ним указывается в отдельных строках.",null,null,"Наименование системы теплоснабжения "]
[{"$nulls":3},1,{"$nulls":7},{"$f":"mergeValue(A51) &\".\"& mergeValue(B51)&\".\"& mergeValue(C51)&\".\"& mergeValue(D51)","v":"1.2.1.1"},{"$nulls":48},""]
[{"$nulls":4},1,null,null,1,1,null,null,{"$f":"mergeValue(A52) &\".\"& mergeValue(B52)&\".\"& mergeValue(C52)&\".\"& mergeValue(D52)&\".\"& mergeValue(E52)","v":"1.2.1.1.1"},"Схема подключения теплопотребляющей установки к коллектору источника тепловой энергии",null,"к тепловой сети без дополнительного преобразования на тепловых пунктах, эксплуатируемых теплоснабжающей организацией",{"$nulls":42},"Указывается схема подключения теплопотребляющей установки к коллектору источника тепловой энергии только для тарифов на тепловую энергию и за услуги по поддержанию резервной мощности.\nЗначение выбирается из перечня: Без дифференциации; к коллектору источника тепловой энергии; к тепловой сети без дополнительного преобразования на тепловых пунктах, эксплуатируемых теплоснабжающей организацией; к тепловой сети после тепловых пунктов (на тепловых пунктах), эксплуатируемых теплоснабжающей организацией.\nВ случае дифференциации тарифов по схемам подключения теплопотребляющей установки к коллектору источника тепловой энергии информация по ним указывается в отдельных строках.",null,null,"Схема подключения теплопотребляющей установки к коллектору источника тепловой энергии"]
[{"$nulls":5},1,{"$nulls":3},1,null,{"$f":"mergeValue(A53) &\".\"& mergeValue(B53)&\".\"& mergeValue(C53)&\".\"& mergeValue(D53)&\".\"& mergeValue(E53)&\".\"& mergeValue(F53)","v":"1.2.1.1.1.1"},"Группа потребителей",null,"без дифференциации",{"$nulls":42},"Указывается группа потребителей при наличии дифференциации тарифа по группам потребителей.\nЗначение выбирается из перечня: Организации-перепродавцы; Бюджетные организации; Население; Прочие; Без дифференциации.\nВ случае дифференциации тарифов группам потребителей информация по ним указывается в отдельных строках.",null,null,"Группа потребителей"]
[{"$nulls":6},1,{"$nulls":3},1,{"$f":"mergeValue(A54) &\".\"& mergeValue(B54)&\".\"& mergeValue(C54)&\".\"& mergeValue(D54)&\".\"& mergeValue(E54)&\".\"& mergeValue(F54)&\".\"& mergeValue(G54)","v":"1.2.1.1.1.1.1"},"вода",null,{"v":2021.83,"d":"2,021.83"},null,null,"01.01.2021","да","30.06.2021","да",{"v":2337.49,"d":"2,337.49"},null,null,"01.07.2021","да","31.12.2021","да",{"v":2337.49,"d":"2,337.49"},null,null,"01.01.2022","да","30.06.2022","да",{"v":2359.12,"d":"2,359.12"},null,null,"01.07.2022","да","31.12.2022","да",{"v":2359.12,"d":"2,359.12"},null,null,"01.01.2023","да","30.06.2023","да",{"v":2416.7,"d":"2,416.70"},null,null,"01.07.2023","да","31.12.2023","нет",null,"В колонке «Параметр дифференциации тарифов» указывается вид теплоносителя.\nЗначение выбирается из перечня: вода; пар; отборный пар, 1.2-2.5 кг/см2; отборный пар, 2.5-7 кг/см2; отборный пар, 7-13 кг/см2; отборный пар, > 13 кг/см2; острый и редуцированный пар; горячая вода в системе централизованного теплоснабжения на отопление; горячая вода в системе централизованного теплоснабжения на горячее водоснабжение; прочее.\nПри подаче предложения на двухставочный тариф колонка «Одноставочный тариф» не заполняется.\nПри подаче предложения на одноставочный тариф колонки в блоке «Двухставочный тариф» не заполняются.\nДаты начала и окончания действия тарифов указываются в виде «ДД.ММ.ГГГГ».\nВ случае отсутствия даты окончания действия тарифа в колонке «Дата окончания» указывается «Нет».\nИнформация в колонке «Ставка за содержание тепловой мощности, тыс. руб./Гкал/ч/мес» указывается только для тарифа по поддержанию резервной мощности. \nВ случае дифференциации тарифов по периодам действия тарифа информация по ним указывается в отдельных колонках.\nВ случае дифференциации тарифов по видам теплоносителя информация по ним указывается в отдельных строках.",{"$f":"strCheckDate(O55:BE55)","v":""},null,"вода"]
[{"$nulls":16},{"$f":"R54 & \"-\" & T54","v":"01.01.2021-30.06.2021"},{"$nulls":6},{"$f":"Y54 & \"-\" & AA54","v":"01.07.2021-31.12.2021"},{"$nulls":6},{"$f":"AF54 & \"-\" & AH54","v":"01.01.2022-30.06.2022"},{"$nulls":6},{"$f":"AM54 & \"-\" & AO54","v":"01.07.2022-31.12.2022"},{"$nulls":6},{"$f":"AT54 & \"-\" & AV54","v":"01.01.2023-30.06.2023"},{"$nulls":6},{"$f":"BA54 & \"-\" & BC54","v":"01.07.2023-31.12.2023"},{"$nulls":8},""]
[{"$nulls":12},"Добавить вид теплоносителя (параметры теплоносителя)",{"$nulls":47},"Добавить вид теплоносителя (параметры теплоносителя)"]
[{"$nulls":5},2,{"$nulls":3},"О",null,{"$f":"mergeValue(A57) &\".\"& mergeValue(B57)&\".\"& mergeValue(C57)&\".\"& mergeValue(D57)&\".\"& mergeValue(E57)&\".\"& mergeValue(F57)","v":"1.2.1.1.1.2"},"Группа потребителей",null,"население и приравненные категории",{"$nulls":42},"Указывается группа потребителей при наличии дифференциации тарифа по группам потребителей.\nЗначение выбирается из перечня: Организации-перепродавцы; Бюджетные организации; Население; Прочие; Без дифференциации.\nВ случае дифференциации тарифов группам потребителей информация по ним указывается в отдельных строках.",null,null,"Группа потребителей"]
[{"$nulls":6},1,{"$nulls":3},1,{"$f":"mergeValue(A58) &\".\"& mergeValue(B58)&\".\"& mergeValue(C58)&\".\"& mergeValue(D58)&\".\"& mergeValue(E58)&\".\"& mergeValue(F58)&\".\"& mergeValue(G58)","v":"1.2.1.1.1.2.1"},"вода",null,{"v":2426.2,"d":"2,426.20"},null,null,"01.01.2021","да","30.06.2021","да",{"v":2804.99,"d":"2,804.99"},null,null,"01.07.2021","да","31.12.2021","да",{"v":2804.99,"d":"2,804.99"},null,null,"01.01.2022","да","30.06.2022","да",{"v":2830.94,"d":"2,830.94"},null,null,"01.07.2022","да","31.12.2022","да",{"v":2830.94,"d":"2,830.94"},null,null,"01.01.2023","да","30.06.2023","да",{"v":2900.04,"d":"2,900.04"},null,null,"01.07.2023","да","31.12.2023","нет",null,"В колонке «Параметр дифференциации тарифов» указывается вид теплоносителя.\nЗначение выбирается из перечня: вода; пар; отборный пар, 1.2-2.5 кг/см2; отборный пар, 2.5-7 кг/см2; отборный пар, 7-13 кг/см2; отборный пар, > 13 кг/см2; острый и редуцированный пар; горячая вода в системе централизованного теплоснабжения на отопление; горячая вода в системе централизованного теплоснабжения на горячее водоснабжение; прочее.\nПри подаче предложения на двухставочный тариф колонка «Одноставочный тариф» не заполняется.\nПри подаче предложения на одноставочный тариф колонки в блоке «Двухставочный тариф» не заполняются.\nДаты начала и окончания действия тарифов указываются в виде «ДД.ММ.ГГГГ».\nВ случае отсутствия даты окончания действия тарифа в колонке «Дата окончания» указывается «Нет».\nИнформация в колонке «Ставка за содержание тепловой мощности, тыс. руб./Гкал/ч/мес» указывается только для тарифа по поддержанию резервной мощности. \nВ случае дифференциации тарифов по периодам действия тарифа информация по ним указывается в отдельных колонках.\nВ случае дифференциации тарифов по видам теплоносителя информация по ним указывается в отдельных строках.",{"$f":"strCheckDate(O59:BE59)","v":""},null,"вода"]
[{"$nulls":16},{"$f":"R58 & \"-\" & T58","v":"01.01.2021-30.06.2021"},{"$nulls":6},{"$f":"Y58 & \"-\" & AA58","v":"01.07.2021-31.12.2021"},{"$nulls":6},{"$f":"AF58 & \"-\" & AH58","v":"01.01.2022-30.06.2022"},{"$nulls":6},{"$f":"AM58 & \"-\" & AO58","v":"01.07.2022-31.12.2022"},{"$nulls":6},{"$f":"AT58 & \"-\" & AV58","v":"01.01.2023-30.06.2023"},{"$nulls":6},{"$f":"BA58 & \"-\" & BC58","v":"01.07.2023-31.12.2023"},{"$nulls":8},""]
[{"$nulls":12},"Добавить вид теплоносителя (параметры теплоносителя)",{"$nulls":47},"Добавить вид теплоносителя (параметры теплоносителя)"]
[{"$nulls":12},"Добавить группу потребителей",{"$nulls":47},"Добавить группу потребителей"]
[{"$nulls":4},"",{"$nulls":7},"Добавить схему подключения",{"$nulls":47},"Добавить схему подключения"]
[null,null,2,{"$nulls":8},{"$f":"mergeValue(A63) &\".\"& mergeValue(B63)&\".\"& mergeValue(C63)","v":"1.2.2"},"Наименование системы теплоснабжения ",null,{"$f":"IF('Перечень тарифов'!R26=\"\",\"\",\"\" & 'Перечень тарифов'!R26 & \"\")","v":"Тарифы на тепловую энергию для потребителей с. Лучинское Ярославского муниципального района Ярославской области через тепловые сети ФГБУ \"Центр жилищно-коммунального управления\" Министерства обороны РФ"},{"$nulls":42},"Указывается наименование системы теплоснабжения при наличии дифференциации тарифа по системам теплоснабжения.\nВ случае дифференциации тарифов по системам теплоснабжения информация по ним указывается в отдельных строках.",null,null,"Наименование системы теплоснабжения "]
[{"$nulls":3},1,{"$nulls":7},{"$f":"mergeValue(A64) &\".\"& mergeValue(B64)&\".\"& mergeValue(C64)&\".\"& mergeValue(D64)","v":"1.2.2.1"},{"$nulls":48},""]
[{"$nulls":4},1,null,null,1,1,null,null,{"$f":"mergeValue(A65) &\".\"& mergeValue(B65)&\".\"& mergeValue(C65)&\".\"& mergeValue(D65)&\".\"& mergeValue(E65)","v":"1.2.2.1.1"},"Схема подключения теплопотребляющей установки к коллектору источника тепловой энергии",null,"к тепловой сети без дополнительного преобразования на тепловых пунктах, эксплуатируемых теплоснабжающей организацией",{"$nulls":42},"Указывается схема подключения теплопотребляющей установки к коллектору источника тепловой энергии только для тарифов на тепловую энергию и за услуги по поддержанию резервной мощности.\nЗначение выбирается из перечня: Без дифференциации; к коллектору источника тепловой энергии; к тепловой сети без дополнительного преобразования на тепловых пунктах, эксплуатируемых теплоснабжающей организацией; к тепловой сети после тепловых пунктов (на тепловых пунктах), эксплуатируемых теплоснабжающей организацией.\nВ случае дифференциации тарифов по схемам подключения теплопотребляющей установки к коллектору источника тепловой энергии информация по ним указывается в отдельных строках.",null,null,"Схема подключения теплопотребляющей установки к коллектору источника тепловой энергии"]
[{"$nulls":5},1,{"$nulls":3},1,null,{"$f":"mergeValue(A66) &\".\"& mergeValue(B66)&\".\"& mergeValue(C66)&\".\"& mergeValue(D66)&\".\"& mergeValue(E66)&\".\"& mergeValue(F66)","v":"1.2.2.1.1.1"},"Группа потребителей",null,"без дифференциации",{"$nulls":42},"Указывается группа потребителей при наличии дифференциации тарифа по группам потребителей.\nЗначение выбирается из перечня: Организации-перепродавцы; Бюджетные организации; Население; Прочие; Без дифференциации.\nВ случае дифференциации тарифов группам потребителей информация по ним указывается в отдельных строках.",null,null,"Группа потребителей"]
[{"$nulls":6},1,{"$nulls":3},1,{"$f":"mergeValue(A67) &\".\"& mergeValue(B67)&\".\"& mergeValue(C67)&\".\"& mergeValue(D67)&\".\"& mergeValue(E67)&\".\"& mergeValue(F67)&\".\"& mergeValue(G67)","v":"1.2.2.1.1.1.1"},"вода",null,{"v":1789.86,"d":"1,789.86"},null,null,"01.01.2021","да","30.06.2021","да",{"v":2006.02,"d":"2,006.02"},null,null,"01.07.2021","да","31.12.2021","да",{"v":2006.02,"d":"2,006.02"},null,null,"01.01.2022","да","30.06.2022","да",{"v":2032.27,"d":"2,032.27"},null,null,"01.07.2022","да","31.12.2022","да",{"v":2032.27,"d":"2,032.27"},null,null,"01.01.2023","да","30.06.2023","да",{"v":2094.57,"d":"2,094.57"},null,null,"01.07.2023","да","31.12.2023","нет",null,"В колонке «Параметр дифференциации тарифов» указывается вид теплоносителя.\nЗначение выбирается из перечня: вода; пар; отборный пар, 1.2-2.5 кг/см2; отборный пар, 2.5-7 кг/см2; отборный пар, 7-13 кг/см2; отборный пар, > 13 кг/см2; острый и редуцированный пар; горячая вода в системе централизованного теплоснабжения на отопление; горячая вода в системе централизованного теплоснабжения на горячее водоснабжение; прочее.\nПри подаче предложения на двухставочный тариф колонка «Одноставочный тариф» не заполняется.\nПри подаче предложения на одноставочный тариф колонки в блоке «Двухставочный тариф» не заполняются.\nДаты начала и окончания действия тарифов указываются в виде «ДД.ММ.ГГГГ».\nВ случае отсутствия даты окончания действия тарифа в колонке «Дата окончания» указывается «Нет».\nИнформация в колонке «Ставка за содержание тепловой мощности, тыс. руб./Гкал/ч/мес» указывается только для тарифа по поддержанию резервной мощности. \nВ случае дифференциации тарифов по периодам действия тарифа информация по ним указывается в отдельных колонках.\nВ случае дифференциации тарифов по видам теплоносителя информация по ним указывается в отдельных строках.",{"$f":"strCheckDate(O68:BE68)","v":""},null,"вода"]
[{"$nulls":16},{"$f":"R67 & \"-\" & T67","v":"01.01.2021-30.06.2021"},{"$nulls":6},{"$f":"Y67 & \"-\" & AA67","v":"01.07.2021-31.12.2021"},{"$nulls":6},{"$f":"AF67 & \"-\" & AH67","v":"01.01.2022-30.06.2022"},{"$nulls":6},{"$f":"AM67 & \"-\" & AO67","v":"01.07.2022-31.12.2022"},{"$nulls":6},{"$f":"AT67 & \"-\" & AV67","v":"01.01.2023-30.06.2023"},{"$nulls":6},{"$f":"BA67 & \"-\" & BC67","v":"01.07.2023-31.12.2023"},{"$nulls":8},""]
[{"$nulls":12},"Добавить вид теплоносителя (параметры теплоносителя)",{"$nulls":47},"Добавить вид теплоносителя (параметры теплоносителя)"]
[{"$nulls":5},2,{"$nulls":3},"О",null,{"$f":"mergeValue(A70) &\".\"& mergeValue(B70)&\".\"& mergeValue(C70)&\".\"& mergeValue(D70)&\".\"& mergeValue(E70)&\".\"& mergeValue(F70)","v":"1.2.2.1.1.2"},"Группа потребителей",null,"население и приравненные категории",{"$nulls":42},"Указывается группа потребителей при наличии дифференциации тарифа по группам потребителей.\nЗначение выбирается из перечня: Организации-перепродавцы; Бюджетные организации; Население; Прочие; Без дифференциации.\nВ случае дифференциации тарифов группам потребителей информация по ним указывается в отдельных строках.",null,null,"Группа потребителей"]
[{"$nulls":6},1,{"$nulls":3},1,{"$f":"mergeValue(A71) &\".\"& mergeValue(B71)&\".\"& mergeValue(C71)&\".\"& mergeValue(D71)&\".\"& mergeValue(E71)&\".\"& mergeValue(F71)&\".\"& mergeValue(G71)","v":"1.2.2.1.1.2.1"},"вода",null,{"v":2147.83,"d":"2,147.83"},null,null,"01.01.2021","да","30.06.2021","да",{"v":2407.23,"d":"2,407.23"},null,null,"01.07.2021","да","31.12.2021","да",{"v":2407.23,"d":"2,407.23"},null,null,"01.01.2022","да","30.06.2022","да",{"v":2438.73,"d":"2,438.73"},null,null,"01.07.2022","да","31.12.2022","да",{"v":2438.73,"d":"2,438.73"},null,null,"01.01.2023","да","30.06.2023","да",{"v":2513.48,"d":"2,513.48"},null,null,"01.07.2023","да","31.12.2023","нет",null,"В колонке «Параметр дифференциации тарифов» указывается вид теплоносителя.\nЗначение выбирается из перечня: вода; пар; отборный пар, 1.2-2.5 кг/см2; отборный пар, 2.5-7 кг/см2; отборный пар, 7-13 кг/см2; отборный пар, > 13 кг/см2; острый и редуцированный пар; горячая вода в системе централизованного теплоснабжения на отопление; горячая вода в системе централизованного теплоснабжения на горячее водоснабжение; прочее.\nПри подаче предложения на двухставочный тариф колонка «Одноставочный тариф» не заполняется.\nПри подаче предложения на одноставочный тариф колонки в блоке «Двухставочный тариф» не заполняются.\nДаты начала и окончания действия тарифов указываются в виде «ДД.ММ.ГГГГ».\nВ случае отсутствия даты окончания действия тарифа в колонке «Дата окончания» указывается «Нет».\nИнформация в колонке «Ставка за содержание тепловой мощности, тыс. руб./Гкал/ч/мес» указывается только для тарифа по поддержанию резервной мощности. \nВ случае дифференциации тарифов по периодам действия тарифа информация по ним указывается в отдельных колонках.\nВ случае дифференциации тарифов по видам теплоносителя информация по ним указывается в отдельных строках.",{"$f":"strCheckDate(O72:BE72)","v":""},null,"вода"]
[{"$nulls":16},{"$f":"R71 & \"-\" & T71","v":"01.01.2021-30.06.2021"},{"$nulls":6},{"$f":"Y71 & \"-\" & AA71","v":"01.07.2021-31.12.2021"},{"$nulls":6},{"$f":"AF71 & \"-\" & AH71","v":"01.01.2022-30.06.2022"},{"$nulls":6},{"$f":"AM71 & \"-\" & AO71","v":"01.07.2022-31.12.2022"},{"$nulls":6},{"$f":"AT71 & \"-\" & AV71","v":"01.01.2023-30.06.2023"},{"$nulls":6},{"$f":"BA71 & \"-\" & BC71","v":"01.07.2023-31.12.2023"},{"$nulls":8},""]
[{"$nulls":12},"Добавить вид теплоносителя (параметры теплоносителя)",{"$nulls":47},"Добавить вид теплоносителя (параметры теплоносителя)"]
[{"$nulls":12},"Добавить группу потребителей",{"$nulls":47},"Добавить группу потребителей"]
[{"$nulls":4},"",{"$nulls":7},"Добавить схему подключения",{"$nulls":47},"Добавить схему подключения"]
[]
[{"$nulls":11},1,"Для каждого вида тарифа в сфере теплоснабжения форма заполняется отдельно. При размещении информации по данной форме дополнительно указывается дата подачи заявления об утверждении тарифа и его номер.\n\nПо данной форме размещается в том числе информация о предложении об установлении цен (тарифов) в сфере теплоснабжения для единых теплоснабжающих организаций, а также теплоснабжающих организаций, теплосетевых организаций в ценовых зонах теплоснабжения."]

{"sheet":"Форма 1.0.1 | Т-ТЭ | предел","index":12,"n_rows":19,"n_cols":10,"rows_kept":19,"hidden":true,"merged":[[1,5,1,7],[3,5,3,7],[3,8,4,8],[7,0,15,0],[10,1,14,1],[11,2,13,2],[12,8,13,8],[18,6,18,7]]}
["3"]
[{"$nulls":5},"Форма 1.0.1 Основные параметры раскрываемой информации 1"]
[]
[{"$nulls":5},"Параметры формы",null,null,"Описание параметров формы"]
[{"$nulls":5},"№ п/п","Наименование параметра","Информация"]
[{"$nulls":5},"1",2,3,4,4]
[{"$nulls":5},1,"Дата заполнения/внесения изменений",{"$f":"IF(dateCh=\"\",\"\",dateCh)","v":"29.04.2020"},"Указывается календарная дата первичного заполнения или внесения изменений в форму в виде «ДД.ММ.ГГГГ»."]
[1,{"$nulls":4},{"$f":"\"2.\" &mergeValue(A8)","v":"2.1"},"Наименование централизованной системы коммунальной инфраструктуры",null,"Указывается наименование централизованной системы холодного водоснабжения/горячего водоснабжения/водоотведения/теплоснабжения, к которой относится размещаемая информация.\nВ случае наличия нескольких централизованных систем коммунальной инфраструктуры, информация по каждой из них указывается в отдельной строке."]
[{"$nulls":5},{"$f":"\"3.\" &mergeValue(A9)","v":"3.1"},"Наименование регулируемого вида деятельности",null,"Указывается наименование вида регулируемой деятельности."]
[{"$nulls":5},{"$f":"\"4.\"&mergeValue(A10)","v":"4.1"},"Территория оказания услуги по регулируемому виду деятельности","x"]
[null,1,{"$nulls":3},{"$f":"\"4.\"&mergeValue(A11) &\".\"&mergeValue(B11)","v":"4.1.1"},"Субъект Российской Федерации",{"$f":"IF(region_name=\"\",\"\",region_name)","v":"Ярославская область"},"Указывается наименование субъекта Российской Федерации"]
[null,null,1,null,null,{"$f":"\"4.\"&mergeValue(A12) &\".\"&mergeValue(B12)&\".\"&mergeValue(C12)","v":"4.1.1.1"},"муниципальный район",null,"Указывается наименование муниципального района, на территории которого организация оказывает услуги по регулируемому виду деятельности."]
[{"$nulls":3},1,null,{"$f":"\"4.\"&mergeValue(A13) &\".\"&mergeValue(B13)&\".\"&mergeValue(C13)&\".\"&mergeValue(D13)","v":"4.1.1.1.1"},"муниципальное образование",null,"Указывается наименование и код муниципального района, муниципального образования в соответствии с Общероссийским классификатором территорий муниципальных образований (далее - ОКТМО), входящего в муниципальный район, на территории которого организация оказывает услуги по регулируемому виду деятельности.\nВ случае оказания услуг по регулируемому виду деятельности на территории нескольких муниципальных районов (муниципальных образований) данные по каждому их них указываются в отдельной строке."]
[{"$nulls":6},"Добавить МО"]
[{"$nulls":6},"Добавить МР"]
[{"$nulls":6},"Добавить территорию"]
[{"$nulls":6},"Добавить ЦС"]
[]
[{"$nulls":6},"  1 Информация размещается при раскрытии информации по каждой из форм."]

{"sheet":"Форма 4.10.2 | Т-ТЭ | предел","index":13,"n_rows":36,"n_cols":26,"rows_kept":36,"hidden":true,"merged":[[4,11,4,19],[6,14,6,15],[8,14,8,19],[9,14,9,19],[10,14,10,19],[11,14,11,19],[12,11,12,12],[13,14,13,20],[14,11,14,21],[14,22,17,22],[15,11,17,11],[15,12,17,12],[15,14,15,19],[15,20,17,20],[15,21,17,21],[16,14,17,14],[16,15,16,16],[16,17,16,19],[17,18,17,19],[18,18,18,19],[19,0,32,0],[19,14,19,21],[20,1,31,1],[20,14,20,21],[21,2,30,2],[21,14,21,21],[22,3,29,3],[22,14,22,21],[23,4,28,4],[23,8,28,8],[23,14,23,21],[24,5,27,5],[24,9,27,9],[24,14,24,21],[25,17,26,17],[25,18,26,18],[25,19,26,19],[25,20,26,20],[25,22,27,22],[35,12,35,22]]}
[]
[]
[]
[]
[{"$nulls":11},"Форма 4.10.2 Информация о предложении величин тарифов на тепловую энергию, поддержанию резервной тепловой мощности1"]
[]
[]
[]
[]
[{"$nulls":12},{"$f":"\"Дата подачи заявления об \"&IF(datePr_ch=\"\",\"утверждении\",\"изменении\") & \" тарифов\"","v":"Дата подачи заявления об утверждении тарифов"},null,{"$f":"IF(datePr_ch=\"\",IF(datePr=\"\",\"\",datePr),datePr_ch)","v":"28.04.2020"}]
[{"$nulls":12},{"$f":"\"Номер подачи заявления об \"&IF(numberPr_ch=\"\",\"утверждении\",\"изменении\") & \" тарифов\"","v":"Номер подачи заявления об утверждении тарифов"},null,{"$f":"IF(numberPr_ch=\"\",IF(numberPr=\"\",\"\",numberPr),numberPr_ch)","v":"01-10/004762 "}]
[]
[{"$nulls":20},"dp"]
[]
[{"$nulls":11},"Параметры формы",{"$nulls":10},"Описание параметров формы"]
[{"$nulls":11},"№ п/п","Параметр дифференциации тарифа",null,"Период действия тарифа",{"$nulls":5},"Наличие других периодов действия тарифа","Добавить период"]
[{"$nulls":14},"Одноставочный тариф, руб./Гкал","Двухставочный тариф",null,"Период действия"]
[{"$nulls":15},"ставка за тепловую  энергию, руб./Гкал","ставка за содержание тепловой мощности, тыс.руб./Гкал/ч/мес","дата начала","дата окончания"]
[{"$nulls":10},1,"1","2",{"$f":"OFFSET(N19,0,-1)","v":"2"},{"$f":"OFFSET(O19,0,-1)+1","v":3},{"$f":"OFFSET(P19,0,-1)+1","v":4},{"$f":"OFFSET(Q19,0,-1)+1","v":5},{"$f":"OFFSET(R19,0,-1)+1","v":6},{"$f":"OFFSET(S19,0,-1)+1","v":7},null,{"$f":"OFFSET(U19,0,-2)+1","v":8},{"$f":"OFFSET(V19,0,-1)","v":8},{"$f":"OFFSET(W19,0,-1)+1","v":9}]
[1,{"$nulls":10},{"$f":"mergeValue(A20)","v":1},"Наименование тарифа",{"$nulls":9},"Указывается наименование тарифа в случае подачи предложения по нескольким тарифам.\nВ случае наличия нескольких тарифов информация по ним указывается в отдельных строках.",null,null,{"$f":"IF(M20=\"\",\"\",M20 )","v":"Наименование тарифа"}]
[null,1,{"$nulls":9},{"$f":"mergeValue(A21) &\".\"& mergeValue(B21)","v":"1.1"},"Территория действия тарифа",{"$nulls":9},"Указывается наименование территории действия тарифа при наличии дифференциации тарифа по территориальному признаку.\nВ случае дифференциации тарифов по территориальному признаку информация по ним указывается в отдельных строках.",null,null,"Территория действия тарифа"]
[null,null,1,{"$nulls":8},{"$f":"mergeValue(A22) &\".\"& mergeValue(B22)&\".\"& mergeValue(C22)","v":"1.1.1"},"Наименование системы теплоснабжения ",{"$nulls":9},"Указывается наименование системы теплоснабжения при наличии дифференциации тарифа по системам теплоснабжения.\nВ случае дифференциации тарифов по системам теплоснабжения информация по ним указывается в отдельных строках.",null,null,"Наименование системы теплоснабжения "]
[{"$nulls":3},1,{"$nulls":7},{"$f":"mergeValue(A23) &\".\"& mergeValue(B23)&\".\"& mergeValue(C23)&\".\"& mergeValue(D23)","v":"1.1.1.1"},"Источник тепловой энергии  ",{"$nulls":9},"Указывается наименование источника тепловой энергии\nВ случае дифференциации тарифов по источникам тепловой энергии информация по ним указывается в отдельных строках.",null,null,"Источник тепловой энергии  "]
[{"$nulls":4},1,null,null,1,1,null,null,{"$f":"mergeValue(A24) &\".\"& mergeValue(B24)&\".\"& mergeValue(C24)&\".\"& mergeValue(D24)&\".\"& mergeValue(E24)","v":"1.1.1.1.1"},"Схема подключения теплопотребляющей установки к коллектору источника тепловой энергии",{"$nulls":9},"Указывается схема подключения теплопотребляющей установки к коллектору источника тепловой энергии только для тарифов на тепловую энергию и за услуги по поддержанию резервной мощности.\nЗначение выбирается из перечня: Без дифференциации; к коллектору источника тепловой энергии; к тепловой сети без дополнительного преобразования на тепловых пунктах, эксплуатируемых теплоснабжающей организацией; к тепловой сети после тепловых пунктов (на тепловых пунктах), эксплуатируемых теплоснабжающей организацией.\nВ случае дифференциации тарифов по схемам подключения теплопотребляющей установки к коллектору источника тепловой энергии информация по ним указывается в отдельных строках.",null,null,"Схема подключения теплопотребляющей установки к коллектору источника тепловой энергии"]
[{"$nulls":5},1,{"$nulls":3},1,null,{"$f":"mergeValue(A25) &\".\"& mergeValue(B25)&\".\"& mergeValue(C25)&\".\"& mergeValue(D25)&\".\"& mergeValue(E25)&\".\"& mergeValue(F25)","v":"1.1.1.1.1.1"},"Группа потребителей",{"$nulls":9},"Указывается группа потребителей при наличии дифференциации тарифа по группам потребителей.\nЗначение выбирается из перечня: Организации-перепродавцы; Бюджетные организации; Население; Прочие; Без дифференциации.\nВ случае дифференциации тарифов группам потребителей информация по ним указывается в отдельных строках.",null,null,"Группа потребителей"]
[{"$nulls":6},1,{"$nulls":3},1,{"$f":"mergeValue(A26) &\".\"& mergeValue(B26)&\".\"& mergeValue(C26)&\".\"& mergeValue(D26)&\".\"& mergeValue(E26)&\".\"& mergeValue(F26)&\".\"& mergeValue(G26)","v":"1.1.1.1.1.1.1"},{"$nulls":6},"да",null,"нет",null,"В колонке «Параметр дифференциации тарифов» указывается вид теплоносителя.\nЗначение выбирается из перечня: вода; пар; отборный пар, 1.2-2.5 кг/см2; отборный пар, 2.5-7 кг/см2; отборный пар, 7-13 кг/см2; отборный пар, > 13 кг/см2; острый и редуцированный пар; горячая вода в системе централизованного теплоснабжения на отопление; горячая вода в системе централизованного теплоснабжения на горячее водоснабжение; прочее.\nПри подаче предложения на двухставочный тариф колонка «Одноставочный тариф» не заполняется.\nПри подаче предложения на одноставочный тариф колонки в блоке «Двухставочный тариф» не заполняются.\nДаты начала и окончания действия тарифов указываются в виде «ДД.ММ.ГГГГ».\nВ случае отсутствия даты окончания действия тарифа в колонке «Дата окончания» указывается «Нет».\nИнформация в колонке «Ставка за содержание тепловой мощности, тыс. руб./Гкал/ч/мес» указывается только для тарифа по поддержанию резервной мощности. \nВ случае дифференциации тарифов по периодам действия тарифа информация по ним указывается в отдельных колонках.\nВ случае дифференциации тарифов по видам теплоносителя информация по ним указывается в отдельных строках.",{"$f":"strCheckDate(O27:V27)","v":""},null,""]
[{"$nulls":16},{"$f":"R26 & \"-\" & T26","v":"-"},{"$nulls":8},""]
[{"$nulls":12},"Добавить вид теплоносителя (параметры теплоносителя)",{"$nulls":12},"Добавить вид теплоносителя (параметры теплоносителя)"]
[{"$nulls":12},"Добавить группу потребителей",{"$nulls":12},"Добавить группу потребителей"]
[{"$nulls":12},"Добавить схему подключения",{"$nulls":12},"Добавить схему подключения"]
[{"$nulls":12},"Добавить источник тепловой энергии",{"$nulls":12},"Добавить источник тепловой энергии"]
[{"$nulls":12},"Добавить наименование системы теплоснабжения",{"$nulls":12},"Добавить наименование системы теплоснабжения"]
[{"$nulls":12},"Добавить территорию действия тарифа",{"$nulls":12},"Добавить территорию действия тарифа"]
[{"$nulls":12},"Добавить наименование тарифа"]
[]
[{"$nulls":11},1,"Для каждого вида тарифа в сфере теплоснабжения форма заполняется отдельно. При размещении информации по данной форме дополнительно указывается дата подачи заявления об утверждении тарифа и его номер.\n\nПо данной форме размещается в том числе информация о предложении об установлении цен (тарифов) в сфере теплоснабжения для единых теплоснабжающих организаций, а также теплоснабжающих организаций, теплосетевых организаций в ценовых зонах теплоснабжения."]

{"sheet":"Форма 1.0.1 | Т-ТЭ | индикат","index":14,"n_rows":19,"n_cols":10,"rows_kept":19,"hidden":true,"merged":[[1,5,1,7],[3,5,3,7],[3,8,4,8],[7,0,15,0],[10,1,14,1],[11,2,13,2],[12,8,13,8],[18,6,18,7]]}
["3"]
[{"$nulls":5},"Форма 1.0.1 Основные параметры раскрываемой информации 1"]
[]
[{"$nulls":5},"Параметры формы",null,null,"Описание параметров формы"]
[{"$nulls":5},"№ п/п","Наименование параметра","Информация"]
[{"$nulls":5},"1",2,3,4,4]
[{"$nulls":5},1,"Дата заполнения/внесения изменений",{"$f":"IF(dateCh=\"\",\"\",dateCh)","v":"29.04.2020"},"Указывается календарная дата первичного заполнения или внесения изменений в форму в виде «ДД.ММ.ГГГГ»."]
[1,{"$nulls":4},{"$f":"\"2.\" &mergeValue(A8)","v":"2.1"},"Наименование централизованной системы коммунальной инфраструктуры",null,"Указывается наименование централизованной системы холодного водоснабжения/горячего водоснабжения/водоотведения/теплоснабжения, к которой относится размещаемая информация.\nВ случае наличия нескольких централизованных систем коммунальной инфраструктуры, информация по каждой из них указывается в отдельной строке."]
[{"$nulls":5},{"$f":"\"3.\" &mergeValue(A9)","v":"3.1"},"Наименование регулируемого вида деятельности",null,"Указывается наименование вида регулируемой деятельности."]
[{"$nulls":5},{"$f":"\"4.\"&mergeValue(A10)","v":"4.1"},"Территория оказания услуги по регулируемому виду деятельности","x"]
[null,1,{"$nulls":3},{"$f":"\"4.\"&mergeValue(A11) &\".\"&mergeValue(B11)","v":"4.1.1"},"Субъект Российской Федерации",{"$f":"IF(region_name=\"\",\"\",region_name)","v":"Ярославская область"},"Указывается наименование субъекта Российской Федерации"]
[null,null,1,null,null,{"$f":"\"4.\"&mergeValue(A12) &\".\"&mergeValue(B12)&\".\"&mergeValue(C12)","v":"4.1.1.1"},"муниципальный район",null,"Указывается наименование муниципального района, на территории которого организация оказывает услуги по регулируемому виду деятельности."]
[{"$nulls":3},1,null,{"$f":"\"4.\"&mergeValue(A13) &\".\"&mergeValue(B13)&\".\"&mergeValue(C13)&\".\"&mergeValue(D13)","v":"4.1.1.1.1"},"муниципальное образование",null,"Указывается наименование и код муниципального района, муниципального образования в соответствии с Общероссийским классификатором территорий муниципальных образований (далее - ОКТМО), входящего в муниципальный район, на территории которого организация оказывает услуги по регулируемому виду деятельности.\nВ случае оказания услуг по регулируемому виду деятельности на территории нескольких муниципальных районов (муниципальных образований) данные по каждому их них указываются в отдельной строке."]
[{"$nulls":6},"Добавить МО"]
[{"$nulls":6},"Добавить МР"]
[{"$nulls":6},"Добавить территорию"]
[{"$nulls":6},"Добавить ЦС"]
[]
[{"$nulls":6},"  1 Информация размещается при раскрытии информации по каждой из форм."]

{"sheet":"Форма 4.10.2 | Т-ТЭ | индикат","index":15,"n_rows":36,"n_cols":26,"rows_kept":36,"hidden":true,"merged":[[4,11,4,19],[6,14,6,19],[8,14,8,19],[9,14,9,19],[10,14,10,19],[11,14,11,19],[12,11,12,12],[13,14,13,20],[14,11,14,21],[14,22,17,22],[15,11,17,11],[15,12,17,12],[15,14,15,19],[15,20,17,20],[15,21,17,21],[16,14,17,14],[16,15,16,16],[16,17,16,19],[17,18,17,19],[18,18,18,19],[19,0,32,0],[19,14,19,21],[20,1,31,1],[20,14,20,21],[21,2,30,2],[21,14,21,21],[22,3,29,3],[22,14,22,21],[23,4,28,4],[23,8,28,8],[23,14,23,21],[24,5,27,5],[24,9,27,9],[24,14,24,21],[25,17,26,17],[25,18,26,18],[25,19,26,19],[25,20,26,20],[25,22,27,22],[35,12,35,22]]}
[]
[]
[]
[]
[{"$nulls":11},"Форма 4.10.2 Информация о предложении величин тарифов на тепловую энергию, поддержанию резервной тепловой мощности1"]
[]
[{"$nulls":12},"График поэтапного равномерного доведения предельного уровня цены на тепловую энергию (мощность)"]
[]
[]
[{"$nulls":12},{"$f":"\"Дата подачи заявления об \"&IF(datePr_ch=\"\",\"утверждении\",\"изменении\") & \" тарифов\"","v":"Дата подачи заявления об утверждении тарифов"},null,{"$f":"IF(datePr_ch=\"\",IF(datePr=\"\",\"\",datePr),datePr_ch)","v":"28.04.2020"}]
[{"$nulls":12},{"$f":"\"Номер подачи заявления об \"&IF(numberPr_ch=\"\",\"утверждении\",\"изменении\") & \" тарифов\"","v":"Номер подачи заявления об утверждении тарифов"},null,{"$f":"IF(numberPr_ch=\"\",IF(numberPr=\"\",\"\",numberPr),numberPr_ch)","v":"01-10/004762 "}]
[]
[{"$nulls":20},"dp"]
[]
[{"$nulls":11},"Параметры формы",{"$nulls":10},"Описание параметров формы"]
[{"$nulls":11},"№ п/п","Параметр дифференциации тарифа",null,"Период действия тарифа",{"$nulls":5},"Наличие других периодов действия тарифа","Добавить период"]
[{"$nulls":14},"Одноставочный тариф, руб./Гкал","Двухставочный тариф",null,"Период действия"]
[{"$nulls":15},"ставка за тепловую  энергию, руб./Гкал","ставка за содержание тепловой мощности, тыс.руб./Гкал/ч/мес","дата начала","дата окончания"]
[{"$nulls":10},1,"1","2",{"$f":"OFFSET(N19,0,-1)","v":"2"},{"$f":"OFFSET(O19,0,-1)+1","v":3},{"$f":"OFFSET(P19,0,-1)+1","v":4},{"$f":"OFFSET(Q19,0,-1)+1","v":5},{"$f":"OFFSET(R19,0,-1)+1","v":6},{"$f":"OFFSET(S19,0,-1)+1","v":7},null,{"$f":"OFFSET(U19,0,-2)+1","v":8},{"$f":"OFFSET(V19,0,-1)","v":8},{"$f":"OFFSET(W19,0,-1)+1","v":9}]
[1,{"$nulls":10},{"$f":"mergeValue(A20)","v":1},"Наименование тарифа",{"$nulls":9},"Указывается наименование тарифа в случае подачи предложения по нескольким тарифам.\nВ случае наличия нескольких тарифов информация по ним указывается в отдельных строках.",null,null,{"$f":"IF(M20=\"\",\"\",M20 )","v":"Наименование тарифа"}]
[null,1,{"$nulls":9},{"$f":"mergeValue(A21) &\".\"& mergeValue(B21)","v":"1.1"},"Территория действия тарифа",{"$nulls":9},"Указывается наименование территории действия тарифа при наличии дифференциации тарифа по территориальному признаку.\nВ случае дифференциации тарифов по территориальному признаку информация по ним указывается в отдельных строках.",null,null,"Территория действия тарифа"]
[null,null,1,{"$nulls":8},{"$f":"mergeValue(A22) &\".\"& mergeValue(B22)&\".\"& mergeValue(C22)","v":"1.1.1"},"Наименование системы теплоснабжения ",{"$nulls":9},"Указывается наименование системы теплоснабжения при наличии дифференциации тарифа по системам теплоснабжения.\nВ случае дифференциации тарифов по системам теплоснабжения информация по ним указывается в отдельных строках.",null,null,"Наименование системы теплоснабжения "]
[{"$nulls":3},1,{"$nulls":7},{"$f":"mergeValue(A23) &\".\"& mergeValue(B23)&\".\"& mergeValue(C23)&\".\"& mergeValue(D23)","v":"1.1.1.1"},"Источник тепловой энергии  ",{"$nulls":9},"Указывается наименование источника тепловой энергии\nВ случае дифференциации тарифов по источникам тепловой энергии информация по ним указывается в отдельных строках.",null,null,"Источник тепловой энергии  "]
[{"$nulls":4},1,null,null,1,1,null,null,{"$f":"mergeValue(A24) &\".\"& mergeValue(B24)&\".\"& mergeValue(C24)&\".\"& mergeValue(D24)&\".\"& mergeValue(E24)","v":"1.1.1.1.1"},"Схема подключения теплопотребляющей установки к коллектору источника тепловой энергии",{"$nulls":9},"Указывается схема подключения теплопотребляющей установки к коллектору источника тепловой энергии только для тарифов на тепловую энергию и за услуги по поддержанию резервной мощности.\nЗначение выбирается из перечня: Без дифференциации; к коллектору источника тепловой энергии; к тепловой сети без дополнительного преобразования на тепловых пунктах, эксплуатируемых теплоснабжающей организацией; к тепловой сети после тепловых пунктов (на тепловых пунктах), эксплуатируемых теплоснабжающей организацией.\nВ случае дифференциации тарифов по схемам подключения теплопотребляющей установки к коллектору источника тепловой энергии информация по ним указывается в отдельных строках.",null,null,"Схема подключения теплопотребляющей установки к коллектору источника тепловой энергии"]
[{"$nulls":5},1,{"$nulls":3},1,null,{"$f":"mergeValue(A25) &\".\"& mergeValue(B25)&\".\"& mergeValue(C25)&\".\"& mergeValue(D25)&\".\"& mergeValue(E25)&\".\"& mergeValue(F25)","v":"1.1.1.1.1.1"},"Группа потребителей",{"$nulls":9},"Указывается группа потребителей при наличии дифференциации тарифа по группам потребителей.\nЗначение выбирается из перечня: Организации-перепродавцы; Бюджетные организации; Население; Прочие; Без дифференциации.\nВ случае дифференциации тарифов группам потребителей информация по ним указывается в отдельных строках.",null,null,"Группа потребителей"]
[{"$nulls":6},1,{"$nulls":3},1,{"$f":"mergeValue(A26) &\".\"& mergeValue(B26)&\".\"& mergeValue(C26)&\".\"& mergeValue(D26)&\".\"& mergeValue(E26)&\".\"& mergeValue(F26)&\".\"& mergeValue(G26)","v":"1.1.1.1.1.1.1"},{"$nulls":6},"да",null,"нет",null,"В колонке «Параметр дифференциации тарифов» указывается вид теплоносителя.\nЗначение выбирается из перечня: вода; пар; отборный пар, 1.2-2.5 кг/см2; отборный пар, 2.5-7 кг/см2; отборный пар, 7-13 кг/см2; отборный пар, > 13 кг/см2; острый и редуцированный пар; горячая вода в системе централизованного теплоснабжения на отопление; горячая вода в системе централизованного теплоснабжения на горячее водоснабжение; прочее.\nПри подаче предложения на двухставочный тариф колонка «Одноставочный тариф» не заполняется.\nПри подаче предложения на одноставочный тариф колонки в блоке «Двухставочный тариф» не заполняются.\nДаты начала и окончания действия тарифов указываются в виде «ДД.ММ.ГГГГ».\nВ случае отсутствия даты окончания действия тарифа в колонке «Дата окончания» указывается «Нет».\nИнформация в колонке «Ставка за содержание тепловой мощности, тыс. руб./Гкал/ч/мес» указывается только для тарифа по поддержанию резервной мощности. \nВ случае дифференциации тарифов по периодам действия тарифа информация по ним указывается в отдельных колонках.\nВ случае дифференциации тарифов по видам теплоносителя информация по ним указывается в отдельных строках.",{"$f":"strCheckDate(O27:V27)","v":""},null,""]
[{"$nulls":16},{"$f":"R26 & \"-\" & T26","v":"-"},{"$nulls":8},""]
[{"$nulls":12},"Добавить вид теплоносителя (параметры теплоносителя)",{"$nulls":12},"Добавить вид теплоносителя (параметры теплоносителя)"]
[{"$nulls":12},"Добавить группу потребителей",{"$nulls":12},"Добавить группу потребителей"]
[{"$nulls":12},"Добавить схему подключения",{"$nulls":12},"Добавить схему подключения"]
[{"$nulls":12},"Добавить источник тепловой энергии",{"$nulls":12},"Добавить источник тепловой энергии"]
[{"$nulls":12},"Добавить наименование системы теплоснабжения",{"$nulls":12},"Добавить наименование системы теплоснабжения"]
[{"$nulls":12},"Добавить территорию действия тарифа",{"$nulls":12},"Добавить территорию действия тарифа"]
[{"$nulls":12},"Добавить наименование тарифа"]
[]
[{"$nulls":11},1,"Для каждого вида тарифа в сфере теплоснабжения форма заполняется отдельно. При размещении информации по данной форме дополнительно указывается дата подачи заявления об утверждении тарифа и его номер.\n\nПо данной форме размещается в том числе информация о предложении об установлении цен (тарифов) в сфере теплоснабжения для единых теплоснабжающих организаций, а также теплоснабжающих организаций, теплосетевых организаций в ценовых зонах теплоснабжения."]

{"sheet":"Форма 1.0.1 | Резерв мощности","index":16,"n_rows":19,"n_cols":10,"rows_kept":19,"hidden":true,"merged":[[1,5,1,7],[3,5,3,7],[3,8,4,8],[7,0,15,0],[10,1,14,1],[11,2,13,2],[12,8,13,8],[18,6,18,7]]}
["8"]
[{"$nulls":5},"Форма 1.0.1 Основные параметры раскрываемой информации 1"]
[]
[{"$nulls":5},"Параметры формы",null,null,"Описание параметров формы"]
[{"$nulls":5},"№ п/п","Наименование параметра","Информация"]
[{"$nulls":5},"1",2,3,4,4]
[{"$nulls":5},1,"Дата заполнения/внесения изменений",{"$f":"IF(dateCh=\"\",\"\",dateCh)","v":"29.04.2020"},"Указывается календарная дата первичного заполнения или внесения изменений в форму в виде «ДД.ММ.ГГГГ»."]
[1,{"$nulls":4},{"$f":"\"2.\" &mergeValue(A8)","v":"2.1"},"Наименование централизованной системы коммунальной инфраструктуры",null,"Указывается наименование централизованной системы холодного водоснабжения/горячего водоснабжения/водоотведения/теплоснабжения, к которой относится размещаемая информация.\nВ случае наличия нескольких централизованных систем коммунальной инфраструктуры, информация по каждой из них указывается в отдельной строке."]
[{"$nulls":5},{"$f":"\"3.\" &mergeValue(A9)","v":"3.1"},"Наименование регулируемого вида деятельности",null,"Указывается наименование вида регулируемой деятельности."]
[{"$nulls":5},{"$f":"\"4.\"&mergeValue(A10)","v":"4.1"},"Территория оказания услуги по регулируемому виду деятельности","x"]
[null,1,{"$nulls":3},{"$f":"\"4.\"&mergeValue(A11) &\".\"&mergeValue(B11)","v":"4.1.1"},"Субъект Российской Федерации",{"$f":"IF(region_name=\"\",\"\",region_name)","v":"Ярославская область"},"Указывается наименование субъекта Российской Федерации"]
[null,null,1,null,null,{"$f":"\"4.\"&mergeValue(A12) &\".\"&mergeValue(B12)&\".\"&mergeValue(C12)","v":"4.1.1.1"},"муниципальный район",null,"Указывается наименование муниципального района, на территории которого организация оказывает услуги по регулируемому виду деятельности."]
[{"$nulls":3},1,null,{"$f":"\"4.\"&mergeValue(A13) &\".\"&mergeValue(B13)&\".\"&mergeValue(C13)&\".\"&mergeValue(D13)","v":"4.1.1.1.1"},"муниципальное образование",null,"Указывается наименование и код муниципального района, муниципального образования в соответствии с Общероссийским классификатором территорий муниципальных образований (далее - ОКТМО), входящего в муниципальный район, на территории которого организация оказывает услуги по регулируемому виду деятельности.\nВ случае оказания услуг по регулируемому виду деятельности на территории нескольких муниципальных районов (муниципальных образований) данные по каждому их них указываются в отдельной строке."]
[{"$nulls":6},"Добавить МО"]
[{"$nulls":6},"Добавить МР"]
[{"$nulls":6},"Добавить территорию"]
[{"$nulls":6},"Добавить ЦС"]
[]
[{"$nulls":6},"  1 Информация размещается при раскрытии информации по каждой из форм."]

{"sheet":"Форма 4.10.2 | Резерв мощности","index":17,"n_rows":34,"n_cols":27,"rows_kept":34,"hidden":true,"merged":[[4,11,4,19],[6,14,6,19],[7,14,7,19],[8,14,8,19],[9,14,9,19],[11,14,11,20],[12,11,12,21],[12,22,15,22],[13,11,15,11],[13,12,15,12],[13,14,13,19],[13,20,15,20],[13,21,15,21],[14,14,15,14],[14,17,14,19],[15,18,15,19],[16,18,16,19],[17,0,30,0],[17,14,17,21],[18,1,29,1],[18,14,18,21],[19,2,28,2],[19,14,19,21],[20,3,27,3],[20,14,20,21],[21,4,26,4],[21,8,26,8],[21,14,21,21],[22,5,25,5],[22,9,25,9],[22,14,22,21],[23,17,24,17],[23,18,24,18],[23,19,24,19],[23,20,24,20],[23,22,25,22],[33,12,33,22]]}
[]
[]
[]
[]
[{"$nulls":11},"Форма 4.10.2 Информация о предложении величин тарифов на тепловую энергию, поддержанию резервной тепловой мощности1"]
[]
[]
[{"$nulls":12},{"$f":"\"Дата подачи заявления об \"&IF(datePr_ch=\"\",\"утверждении\",\"изменении\") & \" тарифов\"","v":"Дата подачи заявления об утверждении тарифов"},null,{"$f":"IF(datePr_ch=\"\",IF(datePr=\"\",\"\",datePr),datePr_ch)","v":"28.04.2020"}]
[{"$nulls":12},{"$f":"\"Номер подачи заявления об \"&IF(numberPr_ch=\"\",\"утверждении\",\"изменении\") & \" тарифов\"","v":"Номер подачи заявления об утверждении тарифов"},null,{"$f":"IF(numberPr_ch=\"\",IF(numberPr=\"\",\"\",numberPr),numberPr_ch)","v":"01-10/004762 "}]
[]
[{"$nulls":20},"dp"]
[{"$nulls":7},"1"]
[{"$nulls":11},"Параметры формы",{"$nulls":10},"Описание параметров формы"]
[{"$nulls":11},"№ п/п","Параметр дифференциации тарифа",null,"Период действия тарифа",{"$nulls":5},"Наличие других периодов действия тарифа","Добавить период"]
[{"$nulls":14},"Ставка за содержание тепловой мощности, тыс. руб./Гкал/ч/мес.",null,null,"Период действия"]
[{"$nulls":17},"дата начала","дата окончания"]
[{"$nulls":10},1,"1","2","2",{"$f":"OFFSET(O17,0,-1)+1","v":3},{"$f":"OFFSET(P17,0,-1)","v":3},{"$f":"OFFSET(Q17,0,-1)","v":3},{"$f":"OFFSET(R17,0,-1)+1","v":4},{"$f":"OFFSET(S17,0,-1)+1","v":5},null,{"$f":"OFFSET(U17,0,-2)+1","v":6},{"$f":"OFFSET(V17,0,-1)","v":6},{"$f":"OFFSET(W17,0,-1)+1","v":7}]
[1,{"$nulls":10},{"$f":"mergeValue(A18)","v":1},"Наименование тарифа",{"$nulls":9},"Указывается наименование тарифа в случае подачи предложения по нескольким тарифам.\nВ случае наличия нескольких тарифов информация по ним указывается в отдельных строках."]
[null,1,{"$nulls":9},{"$f":"mergeValue(A19) &\".\"& mergeValue(B19)","v":"1.1"},"Территория действия тарифа",{"$nulls":9},"Указывается наименование территории действия тарифа при наличии дифференциации тарифа по территориальному признаку.\nВ случае дифференциации тарифов по территориальному признаку информация по ним указывается в отдельных строках."]
[null,null,1,{"$nulls":8},{"$f":"mergeValue(A20) &\".\"& mergeValue(B20)&\".\"& mergeValue(C20)","v":"1.1.1"},"Наименование системы теплоснабжения ",{"$nulls":9},"Указывается наименование системы теплоснабжения при наличии дифференциации тарифа по системам теплоснабжения.\nВ случае дифференциации тарифов по системам теплоснабжения информация по ним указывается в отдельных строках."]
[{"$nulls":3},1,{"$nulls":7},{"$f":"mergeValue(A21) &\".\"& mergeValue(B21)&\".\"& mergeValue(C21)&\".\"& mergeValue(D21)","v":"1.1.1.1"},"Источник тепловой энергии  ",{"$nulls":9},"Указывается наименование источника тепловой энергии\nВ случае дифференциации тарифов по источникам тепловой энергии информация по ним указывается в отдельных строках."]
[{"$nulls":4},1,null,null,1,1,null,null,{"$f":"mergeValue(A22) &\".\"& mergeValue(B22)&\".\"& mergeValue(C22)&\".\"& mergeValue(D22)&\".\"& mergeValue(E22)","v":"1.1.1.1.1"},"Схема подключения теплопотребляющей установки к коллектору источника тепловой энергии",{"$nulls":9},"Указывается схема подключения теплопотребляющей установки к коллектору источника тепловой энергии только для тарифов на тепловую энергию и за услуги по поддержанию резервной мощности.\nЗначение выбирается из перечня: Без дифференциации; к коллектору источника тепловой энергии; к тепловой сети без дополнительного преобразования на тепловых пунктах, эксплуатируемых теплоснабжающей организацией; к тепловой сети после тепловых пунктов (на тепловых пунктах), эксплуатируемых теплоснабжающей организацией.\nВ случае дифференциации тарифов по схемам подключения теплопотребляющей установки к коллектору источника тепловой энергии информация по ним указывается в отдельных строках."]
[{"$nulls":5},1,{"$nulls":3},1,null,{"$f":"mergeValue(A23) &\".\"& mergeValue(B23)&\".\"& mergeValue(C23)&\".\"& mergeValue(D23)&\".\"& mergeValue(E23)&\".\"& mergeValue(F23)","v":"1.1.1.1.1.1"},"Группа потребителей",{"$nulls":9},"Указывается группа потребителей при наличии дифференциации тарифа по группам потребителей.\nЗначение выбирается из перечня: Организации-перепродавцы; Бюджетные организации; Население; Прочие; Без дифференциации.\nВ случае дифференциации тарифов группам потребителей информация по ним указывается в отдельных строках.",null,{"$f":"strCheckUnique(Z23:Z26)","v":""},null,{"$f":"IF(O23=\"\",\"\",O23 & \":_\")","v":""}]
[{"$nulls":6},1,{"$nulls":3},1,{"$f":"mergeValue(A24) &\".\"& mergeValue(B24)&\".\"& mergeValue(C24)&\".\"& mergeValue(D24)&\".\"& mergeValue(E24)&\".\"& mergeValue(F24)&\".\"& mergeValue(G24)","v":"1.1.1.1.1.1.1"},{"$nulls":6},"да",null,"нет",null,"В колонке «Параметр дифференциации тарифов» указывается вид теплоносителя.\nЗначение выбирается из перечня: вода; пар; отборный пар, 1.2-2.5 кг/см2; отборный пар, 2.5-7 кг/см2; отборный пар, 7-13 кг/см2; отборный пар, > 13 кг/см2; острый и редуцированный пар; горячая вода в системе централизованного теплоснабжения на отопление; горячая вода в системе централизованного теплоснабжения на горячее водоснабжение; прочее.\nПри подаче предложения на двухставочный тариф колонка «Одноставочный тариф» не заполняется.\nПри подаче предложения на одноставочный тариф колонки в блоке «Двухставочный тариф» не заполняются.\nДаты начала и окончания действия тарифов указываются в виде «ДД.ММ.ГГГГ».\nВ случае отсутствия даты окончания действия тарифа в колонке «Дата окончания» указывается «Нет».\nИнформация в колонке «Ставка за содержание тепловой мощности, тыс. руб./Гкал/ч/мес» указывается только для тарифа по поддержанию резервной мощности. \nВ случае дифференциации тарифов по периодам действия тарифа информация по ним указывается в отдельных колонках.\nВ случае дифференциации тарифов по видам теплоносителя информация по ним указывается в отдельных строках.",{"$f":"strCheckDate(O25:V25)","v":""},null,{"$f":"IF(M24=\"\",\"\",M24 )","v":""}]
[{"$nulls":16},{"$f":"R24 & \"-\" & T24","v":"-"}]
[{"$nulls":12},"Добавить вид теплоносителя (параметры теплоносителя)"]
[{"$nulls":12},"Добавить группу потребителей"]
[{"$nulls":12},"Добавить схему подключения"]
[{"$nulls":12},"Добавить источник тепловой энергии"]
[{"$nulls":12},"Добавить наименование системы теплоснабжения"]
[{"$nulls":12},"Добавить территорию действия тарифа"]
[{"$nulls":12},"Добавить наименование тарифа"]
[]
[{"$nulls":11},1,"Для каждого вида тарифа в сфере теплоснабжения форма заполняется отдельно. При размещении информации по данной форме дополнительно указывается дата подачи заявления об утверждении тарифа и его номер.\n\nПо данной форме размещается в том числе информация о предложении об установлении цен (тарифов) в сфере теплоснабжения для единых теплоснабжающих организаций, а также теплоснабжающих организаций, теплосетевых организаций в ценовых зонах теплоснабжения."]

{"sheet":"Форма 1.0.1 | Т-ТН","index":18,"n_rows":19,"n_cols":10,"rows_kept":19,"hidden":true,"merged":[[1,5,1,7],[3,5,3,7],[3,8,4,8],[7,0,15,0],[10,1,14,1],[11,2,13,2],[12,8,13,8],[18,6,18,7]]}
["4"]
[{"$nulls":5},"Форма 1.0.1 Основные параметры раскрываемой информации 1"]
[]
[{"$nulls":5},"Параметры формы",null,null,"Описание параметров формы"]
[{"$nulls":5},"№ п/п","Наименование параметра","Информация"]
[{"$nulls":5},"1",2,3,4,4]
[{"$nulls":5},1,"Дата заполнения/внесения изменений",{"$f":"IF(dateCh=\"\",\"\",dateCh)","v":"29.04.2020"},"Указывается календарная дата первичного заполнения или внесения изменений в форму в виде «ДД.ММ.ГГГГ»."]
[1,{"$nulls":4},{"$f":"\"2.\" &mergeValue(A8)","v":"2.1"},"Наименование централизованной системы коммунальной инфраструктуры",null,"Указывается наименование централизованной системы холодного водоснабжения/горячего водоснабжения/водоотведения/теплоснабжения, к которой относится размещаемая информация.\nВ случае наличия нескольких централизованных систем коммунальной инфраструктуры, информация по каждой из них указывается в отдельной строке."]
[{"$nulls":5},{"$f":"\"3.\" &mergeValue(A9)","v":"3.1"},"Наименование регулируемого вида деятельности",null,"Указывается наименование вида регулируемой деятельности."]
[{"$nulls":5},{"$f":"\"4.\"&mergeValue(A10)","v":"4.1"},"Территория оказания услуги по регулируемому виду деятельности","x"]
[null,1,{"$nulls":3},{"$f":"\"4.\"&mergeValue(A11) &\".\"&mergeValue(B11)","v":"4.1.1"},"Субъект Российской Федерации",{"$f":"IF(region_name=\"\",\"\",region_name)","v":"Ярославская область"},"Указывается наименование субъекта Российской Федерации"]
[null,null,1,null,null,{"$f":"\"4.\"&mergeValue(A12) &\".\"&mergeValue(B12)&\".\"&mergeValue(C12)","v":"4.1.1.1"},"муниципальный район",null,"Указывается наименование муниципального района, на территории которого организация оказывает услуги по регулируемому виду деятельности."]
[{"$nulls":3},1,null,{"$f":"\"4.\"&mergeValue(A13) &\".\"&mergeValue(B13)&\".\"&mergeValue(C13)&\".\"&mergeValue(D13)","v":"4.1.1.1.1"},"муниципальное образование",null,"Указывается наименование и код муниципального района, муниципального образования в соответствии с Общероссийским классификатором территорий муниципальных образований (далее - ОКТМО), входящего в муниципальный район, на территории которого организация оказывает услуги по регулируемому виду деятельности.\nВ случае оказания услуг по регулируемому виду деятельности на территории нескольких муниципальных районов (муниципальных образований) данные по каждому их них указываются в отдельной строке."]
[{"$nulls":6},"Добавить МО"]
[{"$nulls":6},"Добавить МР"]
[{"$nulls":6},"Добавить территорию"]
[{"$nulls":6},"Добавить ЦС"]
[]
[{"$nulls":6},"  1 Информация размещается при раскрытии информации по каждой из форм."]

{"sheet":"Форма 4.10.3 | Т-ТН","index":19,"n_rows":34,"n_cols":26,"rows_kept":34,"hidden":true,"merged":[[4,11,4,19],[6,14,6,19],[7,14,7,19],[8,14,8,19],[9,14,9,19],[10,11,10,12],[10,14,10,19],[11,14,11,20],[12,11,12,21],[12,22,15,22],[13,11,15,11],[13,12,15,12],[13,14,13,19],[13,20,15,20],[13,21,15,21],[14,14,15,14],[14,15,14,16],[14,17,14,19],[15,18,15,19],[16,18,16,19],[17,0,30,0],[17,14,17,21],[18,1,29,1],[18,14,18,21],[19,2,28,2],[19,14,19,21],[20,3,27,3],[20,8,27,8],[20,14,20,21],[21,4,26,4],[22,5,25,5],[22,9,25,9],[22,14,22,21],[23,17,24,17],[23,18,24,18],[23,19,24,19],[23,20,24,20],[23,22,25,22],[33,12,33,22]]}
[]
[]
[]
[]
[{"$nulls":11},"Форма 4.10.3 Информация о предложении величин тарифов на теплоноситель, передачу тепловой энергии, теплоносителя1"]
[]
[]
[{"$nulls":12},{"$f":"\"Дата подачи заявления об \"&IF(datePr_ch=\"\",\"утверждении\",\"изменении\") & \" тарифов\"","v":"Дата подачи заявления об утверждении тарифов"},null,{"$f":"IF(datePr_ch=\"\",IF(datePr=\"\",\"\",datePr),datePr_ch)","v":"28.04.2020"}]
[{"$nulls":12},{"$f":"\"Номер подачи заявления об \"&IF(numberPr_ch=\"\",\"утверждении\",\"изменении\") & \" тарифов\"","v":"Номер подачи заявления об утверждении тарифов"},null,{"$f":"IF(numberPr_ch=\"\",IF(numberPr=\"\",\"\",numberPr),numberPr_ch)","v":"01-10/004762 "}]
[]
[{"$nulls":20},"dp"]
[]
[{"$nulls":11},"Параметры формы",{"$nulls":10},"Описание параметров формы"]
[{"$nulls":11},"№ п/п","Параметр дифференциации тарифа",null,"Период действия тарифа",{"$nulls":5},"Наличие других периодов действия тарифа","Добавить период"]
[{"$nulls":14},"Одноставочный тариф, руб./куб.м",null,null,"Период действия"]
[{"$nulls":17},"дата начала","дата окончания"]
[{"$nulls":10},1,"1","2","2",{"$f":"OFFSET(O17,0,-1)+1","v":3},{"$f":"OFFSET(P17,0,-1)","v":3},{"$f":"OFFSET(Q17,0,-1)","v":3},{"$f":"OFFSET(R17,0,-1)+1","v":4},{"$f":"OFFSET(S17,0,-1)+1","v":5},null,{"$f":"OFFSET(U17,0,-2)+1","v":6},{"$f":"OFFSET(V17,0,-1)","v":6},{"$f":"OFFSET(W17,0,-1)+1","v":7}]
[1,{"$nulls":9},1,{"$f":"mergeValue(A18)","v":1},"Наименование тарифа",{"$nulls":9},"Указывается наименование тарифа в случае подачи предложения по нескольким тарифам.\nВ случае наличия нескольких тарифов информация по ним указывается в отдельных строках."]
[null,1,{"$nulls":8},1,{"$f":"mergeValue(A19) &\".\"& mergeValue(B19)","v":"1.1"},"Территория действия тарифа",{"$nulls":9},"Указывается наименование территории действия тарифа при наличии дифференциации тарифа по территориальному признаку.\nВ случае дифференциации тарифов по территориальному признаку информация по ним указывается в отдельных строках."]
[null,null,1,{"$nulls":7},1,{"$f":"mergeValue(A20) &\".\"& mergeValue(B20)&\".\"& mergeValue(C20)","v":"1.1.1"},"Наименование системы теплоснабжения ",{"$nulls":9},"Указывается наименование системы теплоснабжения при наличии дифференциации тарифа по системам теплоснабжения.\nВ случае дифференциации тарифов по системам теплоснабжения информация по ним указывается в отдельных строках."]
[{"$nulls":3},1,{"$nulls":4},1,null,1,{"$f":"mergeValue(A21) &\".\"& mergeValue(B21)&\".\"& mergeValue(C21)&\".\"& mergeValue(D21)","v":"1.1.1.1"},"Источник тепловой энергии  ",{"$nulls":9},"Указывается наименование источника тепловой энергии\nВ случае дифференциации тарифов по источникам тепловой энергии информация по ним указывается в отдельных строках."]
[{"$nulls":4},1,{"$nulls":5},1]
[{"$nulls":5},1,{"$nulls":4},1,{"$f":"mergeValue(A23) &\".\"& mergeValue(B23)&\".\"& mergeValue(C23)&\".\"& mergeValue(D23)&\".\"&  mergeValue(F23)","v":"1.1.1.1.1"},"Группа потребителей",{"$nulls":9},"Указывается группа потребителей при наличии дифференциации тарифа по группам потребителей.\nЗначение выбирается из перечня: Организации-перепродавцы; Бюджетные организации; Население; Прочие; Без дифференциации.\nВ случае дифференциации тарифов группам потребителей информация по ним указывается в отдельных строках.",null,{"$f":"strCheckUnique(Z23:Z26)","v":""}]
[{"$nulls":6},1,{"$nulls":4},{"$f":"mergeValue(A24) &\".\"& mergeValue(B24)&\".\"& mergeValue(C24)&\".\"& mergeValue(D24)&\".\"&  mergeValue(F24)&\".\"&  mergeValue(G24)","v":"1.1.1.1.1.1"},{"$nulls":6},"да",null,"нет",null,"В колонке «Параметр дифференциации тарифов» указывается вид теплоносителя.\nЗначение выбирается из перечня: вода; пар; отборный пар, 1.2-2.5 кг/см2; отборный пар, 2.5-7 кг/см2; отборный пар, 7-13 кг/см2; отборный пар, > 13 кг/см2; острый и редуцированный пар; горячая вода в системе централизованного теплоснабжения на отопление;  горячая вода в системе централизованного теплоснабжения на горячее водоснабжение; прочее.\nПри подаче предложения на двухставочный тариф колонка «Одноставочный тариф» не заполняется.\nПри подаче предложения на одноставочный тариф колонки в блоке «Двухставочный тариф» не заполняются.\nИнформация в колонке «Двухставочный тариф» не указывается для тарифа на теплоноситель.\nДаты начала и окончания действия тарифов указываются в виде «ДД.ММ.ГГГГ».\nВ случае отсутствия даты окончания действия тарифа в колонке «Дата окончания» указывается «Нет».\nВ случае дифференциации тарифов по видам теплоносителя информация по ним указывается в отдельных строках.",{"$f":"strCheckDate(O25:V25)","v":""},null,{"$f":"IF(M24=\"\",\"\",M24 )","v":""}]
[{"$nulls":10},1,{"$nulls":5},{"$f":"R24 & \"-\" & T24","v":"-"}]
[{"$nulls":10},1,null,"Добавить вид теплоносителя (параметры теплоносителя)"]
[{"$nulls":12},"Добавить группу потребителей"]
[]
[{"$nulls":10},1,null,"Добавить источник тепловой энергии"]
[{"$nulls":10},1,null,"Добавить наименование системы теплоснабжения"]
[{"$nulls":10},1,null,"Добавить территорию действия тарифа"]
[{"$nulls":12},"Добавить наименование тарифа"]
[]
[{"$nulls":11},1,"Для каждого вида цены (тарифа) в сфере теплоснабжения форма заполняется отдельно. При размещении информации по данной форме дополнительно указывается дата подачи заявления об утверждении цены (тарифа) и его номер.\n\nПо данной форме размещается в том числе информация о предложении об установлении цен (тарифов) для единых теплоснабжающих организаций, а также теплоснабжающих организаций, теплосетевых организаций в ценовых зонах теплоснабжения."]

{"sheet":"Форма 1.0.1 | Т-передача ТЭ","index":20,"n_rows":19,"n_cols":10,"rows_kept":19,"hidden":true,"merged":[[1,5,1,7],[3,5,3,7],[3,8,4,8],[7,0,15,0],[10,1,14,1],[11,2,13,2],[12,8,13,8],[18,6,18,7]]}
["6"]
[{"$nulls":5},"Форма 1.0.1 Основные параметры раскрываемой информации 1"]
[]
[{"$nulls":5},"Параметры формы",null,null,"Описание параметров формы"]
[{"$nulls":5},"№ п/п","Наименование параметра","Информация"]
[{"$nulls":5},"1",2,3,4,4]
[{"$nulls":5},1,"Дата заполнения/внесения изменений",{"$f":"IF(dateCh=\"\",\"\",dateCh)","v":"29.04.2020"},"Указывается календарная дата первичного заполнения или внесения изменений в форму в виде «ДД.ММ.ГГГГ»."]
[1,{"$nulls":4},{"$f":"\"2.\" &mergeValue(A8)","v":"2.1"},"Наименование централизованной системы коммунальной инфраструктуры",null,"Указывается наименование централизованной системы холодного водоснабжения/горячего водоснабжения/водоотведения/теплоснабжения, к которой относится размещаемая информация.\nВ случае наличия нескольких централизованных систем коммунальной инфраструктуры, информация по каждой из них указывается в отдельной строке."]
[{"$nulls":5},{"$f":"\"3.\" &mergeValue(A9)","v":"3.1"},"Наименование регулируемого вида деятельности",null,"Указывается наименование вида регулируемой деятельности."]
[{"$nulls":5},{"$f":"\"4.\"&mergeValue(A10)","v":"4.1"},"Территория оказания услуги по регулируемому виду деятельности","x"]
[null,1,{"$nulls":3},{"$f":"\"4.\"&mergeValue(A11) &\".\"&mergeValue(B11)","v":"4.1.1"},"Субъект Российской Федерации",{"$f":"IF(region_name=\"\",\"\",region_name)","v":"Ярославская область"},"Указывается наименование субъекта Российской Федерации"]
[null,null,1,null,null,{"$f":"\"4.\"&mergeValue(A12) &\".\"&mergeValue(B12)&\".\"&mergeValue(C12)","v":"4.1.1.1"},"муниципальный район",null,"Указывается наименование муниципального района, на территории которого организация оказывает услуги по регулируемому виду деятельности."]
[{"$nulls":3},1,null,{"$f":"\"4.\"&mergeValue(A13) &\".\"&mergeValue(B13)&\".\"&mergeValue(C13)&\".\"&mergeValue(D13)","v":"4.1.1.1.1"},"муниципальное образование",null,"Указывается наименование и код муниципального района, муниципального образования в соответствии с Общероссийским классификатором территорий муниципальных образований (далее - ОКТМО), входящего в муниципальный район, на территории которого организация оказывает услуги по регулируемому виду деятельности.\nВ случае оказания услуг по регулируемому виду деятельности на территории нескольких муниципальных районов (муниципальных образований) данные по каждому их них указываются в отдельной строке."]
[{"$nulls":6},"Добавить МО"]
[{"$nulls":6},"Добавить МР"]
[{"$nulls":6},"Добавить территорию"]
[{"$nulls":6},"Добавить ЦС"]
[]
[{"$nulls":6},"  1 Информация размещается при раскрытии информации по каждой из форм."]

{"sheet":"Форма 4.10.3 | Т-передача ТЭ","index":21,"n_rows":34,"n_cols":26,"rows_kept":34,"hidden":true,"merged":[[4,11,4,19],[6,14,6,19],[7,14,7,19],[8,14,8,19],[9,14,9,19],[10,11,10,12],[10,14,10,19],[11,14,11,20],[12,11,12,21],[12,22,15,22],[13,11,15,11],[13,12,15,12],[13,14,13,19],[13,20,15,20],[13,21,15,21],[14,14,15,14],[14,15,14,16],[14,17,14,19],[15,18,15,19],[16,18,16,19],[17,0,30,0],[17,14,17,21],[18,1,29,1],[18,14,18,21],[19,2,28,2],[19,14,19,21],[20,3,27,3],[20,14,20,21],[21,4,26,4],[21,8,26,8],[22,5,25,5],[22,9,25,9],[22,14,22,21],[23,17,24,17],[23,18,24,18],[23,19,24,19],[23,20,24,20],[23,22,25,22],[33,12,33,22]]}
[]
[]
[]
[]
[{"$nulls":11},"Форма 4.2.2 Информация о величинах тарифов на теплоноситель, передачу тепловой энергии, теплоносителя1"]
[]
[]
[{"$nulls":12},{"$f":"\"Дата подачи заявления об \"&IF(datePr_ch=\"\",\"утверждении\",\"изменении\") & \" тарифов\"","v":"Дата подачи заявления об утверждении тарифов"},null,{"$f":"IF(datePr_ch=\"\",IF(datePr=\"\",\"\",datePr),datePr_ch)","v":"28.04.2020"}]
[{"$nulls":12},{"$f":"\"Номер подачи заявления об \"&IF(numberPr_ch=\"\",\"утверждении\",\"изменении\") & \" тарифов\"","v":"Номер подачи заявления об утверждении тарифов"},null,{"$f":"IF(numberPr_ch=\"\",IF(numberPr=\"\",\"\",numberPr),numberPr_ch)","v":"01-10/004762 "}]
[]
[{"$nulls":20},"dp"]
[]
[{"$nulls":11},"Параметры формы",{"$nulls":10},"Описание параметров формы"]
[{"$nulls":11},"№ п/п","Параметр дифференциации тарифа",null,"Период действия тарифа",{"$nulls":5},"Наличие других периодов действия тарифа","Добавить период"]
[{"$nulls":14},"Одноставочный тариф, руб./Гкал","Двухставочный тариф",null,"Период действия"]
[{"$nulls":15},"ставка за тепловую энергию, руб./Гкал","ставка за содержание тепловой мощности, тыс. руб./Гкал/ч/мес.","дата начала","дата окончания"]
[{"$nulls":10},1,"1","2","2",{"$f":"OFFSET(O17,0,-1)+1","v":3},{"$f":"OFFSET(P17,0,-1)+1","v":4},{"$f":"OFFSET(Q17,0,-1)+1","v":5},{"$f":"OFFSET(R17,0,-1)+1","v":6},{"$f":"OFFSET(S17,0,-1)+1","v":7},null,{"$f":"OFFSET(U17,0,-2)+1","v":8},{"$f":"OFFSET(V17,0,-1)","v":8},{"$f":"OFFSET(W17,0,-1)+1","v":9}]
[1,{"$nulls":10},{"$f":"mergeValue(A18)","v":1},"Наименование тарифа",{"$nulls":9},"Указывается наименование тарифа в случае подачи предложения по нескольким тарифам.\nВ случае наличия нескольких тарифов информация по ним указывается в отдельных строках."]
[null,1,{"$nulls":9},{"$f":"mergeValue(A19) &\".\"& mergeValue(B19)","v":"1.1"},"Территория действия тарифа",{"$nulls":9},"Указывается наименование территории действия тарифа при наличии дифференциации тарифа по территориальному признаку.\nВ случае дифференциации тарифов по территориальному признаку информация по ним указывается в отдельных строках."]
[null,null,1,{"$nulls":8},{"$f":"mergeValue(A20) &\".\"& mergeValue(B20)&\".\"& mergeValue(C20)","v":"1.1.1"},"Наименование системы теплоснабжения ",{"$nulls":9},"Указывается наименование системы теплоснабжения при наличии дифференциации тарифа по системам теплоснабжения.\nВ случае дифференциации тарифов по системам теплоснабжения информация по ним указывается в отдельных строках."]
[{"$nulls":3},1,{"$nulls":7},{"$f":"mergeValue(A21) &\".\"& mergeValue(B21)&\".\"& mergeValue(C21)&\".\"& mergeValue(D21)","v":"1.1.1.1"},"Источник тепловой энергии  ",{"$nulls":9},"Указывается наименование источника тепловой энергии\nВ случае дифференциации тарифов по источникам тепловой энергии информация по ним указывается в отдельных строках."]
[{"$nulls":4},1,null,null,1,1]
[{"$nulls":5},1,{"$nulls":3},1,null,{"$f":"mergeValue(A23) &\".\"& mergeValue(B23)&\".\"& mergeValue(C23)&\".\"& mergeValue(D23)&\".\"&  mergeValue(F23)","v":"1.1.1.1.1"},"Группа потребителей",{"$nulls":9},"Указывается группа потребителей при наличии дифференциации тарифа по группам потребителей.\nЗначение выбирается из перечня: Организации-перепродавцы; Бюджетные организации; Население; Прочие; Без дифференциации.\nВ случае дифференциации тарифов группам потребителей информация по ним указывается в отдельных строках.",null,{"$f":"strCheckUnique(Z23:Z26)","v":""}]
[{"$nulls":6},1,{"$nulls":3},1,{"$f":"mergeValue(A24) &\".\"& mergeValue(B24)&\".\"& mergeValue(C24)&\".\"& mergeValue(D24)&\".\"& mergeValue(F24)&\".\"& mergeValue(G24)","v":"1.1.1.1.1.1"},{"$nulls":6},"да",null,"нет",null,"В колонке «Параметр дифференциации тарифов» указывается вид теплоносителя.\nЗначение выбирается из перечня: вода; пар; отборный пар, 1.2-2.5 кг/см2; отборный пар, 2.5-7 кг/см2; отборный пар, 7-13 кг/см2; отборный пар, > 13 кг/см2; острый и редуцированный пар; горячая вода в системе централизованного теплоснабжения на отопление;  горячая вода в системе централизованного теплоснабжения на горячее водоснабжение; прочее.\nПри подаче предложения на двухставочный тариф колонка «Одноставочный тариф» не заполняется.\nПри подаче предложения на одноставочный тариф колонки в блоке «Двухставочный тариф» не заполняются.\nИнформация в колонке «Двухставочный тариф» не указывается для тарифа на теплоноситель.\nДаты начала и окончания действия тарифов указываются в виде «ДД.ММ.ГГГГ».\nВ случае отсутствия даты окончания действия тарифа в колонке «Дата окончания» указывается «Нет».\nВ случае дифференциации тарифов по видам теплоносителя информация по ним указывается в отдельных строках.",{"$f":"strCheckDate(O25:V25)","v":""},null,{"$f":"IF(M24=\"\",\"\",M24 )","v":""}]
[{"$nulls":16},{"$f":"R24 & \"-\" & T24","v":"-"}]
[{"$nulls":12},"Добавить вид теплоносителя (параметры теплоносителя)"]
[{"$nulls":12},"Добавить группу потребителей"]
[]
[{"$nulls":12},"Добавить источник тепловой энергии"]
[{"$nulls":12},"Добавить наименование системы теплоснабжения"]
[{"$nulls":12},"Добавить территорию действия тарифа"]
[{"$nulls":12},"Добавить наименование тарифа"]
[]
[{"$nulls":11},1,"Для каждого вида цены (тарифа) в сфере теплоснабжения форма заполняется отдельно. При размещении информации по данной форме дополнительно указывается дата подачи заявления об утверждении цены (тарифа) и его номер.\n\nПо данной форме размещается в том числе информация о предложении об установлении цен (тарифов) для единых теплоснабжающих организаций, а также теплоснабжающих организаций, теплосетевых организаций в ценовых зонах теплоснабжения."]

{"sheet":"Форма 1.0.1 | Т-передача ТН","index":22,"n_rows":19,"n_cols":10,"rows_kept":19,"hidden":true,"merged":[[1,5,1,7],[3,5,3,7],[3,8,4,8],[7,0,15,0],[10,1,14,1],[11,2,13,2],[12,8,13,8],[18,6,18,7]]}
["7"]
[{"$nulls":5},"Форма 1.0.1 Основные параметры раскрываемой информации 1"]
[]
[{"$nulls":5},"Параметры формы",null,null,"Описание параметров формы"]
[{"$nulls":5},"№ п/п","Наименование параметра","Информация"]
[{"$nulls":5},"1",2,3,4,4]
[{"$nulls":5},1,"Дата заполнения/внесения изменений",{"$f":"IF(dateCh=\"\",\"\",dateCh)","v":"29.04.2020"},"Указывается календарная дата первичного заполнения или внесения изменений в форму в виде «ДД.ММ.ГГГГ»."]
[1,{"$nulls":4},{"$f":"\"2.\" &mergeValue(A8)","v":"2.1"},"Наименование централизованной системы коммунальной инфраструктуры",null,"Указывается наименование централизованной системы холодного водоснабжения/горячего водоснабжения/водоотведения/теплоснабжения, к которой относится размещаемая информация.\nВ случае наличия нескольких централизованных систем коммунальной инфраструктуры, информация по каждой из них указывается в отдельной строке."]
[{"$nulls":5},{"$f":"\"3.\" &mergeValue(A9)","v":"3.1"},"Наименование регулируемого вида деятельности",null,"Указывается наименование вида регулируемой деятельности."]
[{"$nulls":5},{"$f":"\"4.\"&mergeValue(A10)","v":"4.1"},"Территория оказания услуги по регулируемому виду деятельности","x"]
[null,1,{"$nulls":3},{"$f":"\"4.\"&mergeValue(A11) &\".\"&mergeValue(B11)","v":"4.1.1"},"Субъект Российской Федерации",{"$f":"IF(region_name=\"\",\"\",region_name)","v":"Ярославская область"},"Указывается наименование субъекта Российской Федерации"]
[null,null,1,null,null,{"$f":"\"4.\"&mergeValue(A12) &\".\"&mergeValue(B12)&\".\"&mergeValue(C12)","v":"4.1.1.1"},"муниципальный район",null,"Указывается наименование муниципального района, на территории которого организация оказывает услуги по регулируемому виду деятельности."]
[{"$nulls":3},1,null,{"$f":"\"4.\"&mergeValue(A13) &\".\"&mergeValue(B13)&\".\"&mergeValue(C13)&\".\"&mergeValue(D13)","v":"4.1.1.1.1"},"муниципальное образование",null,"Указывается наименование и код муниципального района, муниципального образования в соответствии с Общероссийским классификатором территорий муниципальных образований (далее - ОКТМО), входящего в муниципальный район, на территории которого организация оказывает услуги по регулируемому виду деятельности.\nВ случае оказания услуг по регулируемому виду деятельности на территории нескольких муниципальных районов (муниципальных образований) данные по каждому их них указываются в отдельной строке."]
[{"$nulls":6},"Добавить МО"]
[{"$nulls":6},"Добавить МР"]
[{"$nulls":6},"Добавить территорию"]
[{"$nulls":6},"Добавить ЦС"]
[]
[{"$nulls":6},"  1 Информация размещается при раскрытии информации по каждой из форм."]

{"sheet":"Форма 4.10.3 | Т-передача ТН","index":23,"n_rows":34,"n_cols":26,"rows_kept":34,"hidden":true,"merged":[[4,11,4,19],[6,14,6,19],[7,14,7,19],[8,14,8,19],[9,14,9,19],[11,14,11,20],[12,11,12,21],[12,22,15,22],[13,11,15,11],[13,12,15,12],[13,14,13,19],[13,20,15,20],[13,21,15,21],[14,14,15,14],[14,15,14,16],[14,17,14,19],[15,18,15,19],[16,18,16,19],[17,0,30,0],[17,14,17,21],[18,1,29,1],[18,14,18,21],[19,2,28,2],[19,14,19,21],[20,3,27,3],[20,14,20,21],[21,4,26,4],[21,8,26,8],[22,5,25,5],[22,9,25,9],[22,14,22,21],[23,17,24,17],[23,18,24,18],[23,19,24,19],[23,20,24,20],[23,22,25,22],[33,12,33,22]]}
[]
[]
[]
[]
[{"$nulls":11},"Форма 4.2.2 Информация о величинах тарифов на теплоноситель, передачу тепловой энергии, теплоносителя1"]
[]
[]
[{"$nulls":12},{"$f":"\"Дата подачи заявления об \"&IF(datePr_ch=\"\",\"утверждении\",\"изменении\") & \" тарифов\"","v":"Дата подачи заявления об утверждении тарифов"},null,{"$f":"IF(datePr_ch=\"\",IF(datePr=\"\",\"\",datePr),datePr_ch)","v":"28.04.2020"}]
[{"$nulls":12},{"$f":"\"Номер подачи заявления об \"&IF(numberPr_ch=\"\",\"утверждении\",\"изменении\") & \" тарифов\"","v":"Номер подачи заявления об утверждении тарифов"},null,{"$f":"IF(numberPr_ch=\"\",IF(numberPr=\"\",\"\",numberPr),numberPr_ch)","v":"01-10/004762 "}]
[]
[{"$nulls":20},"dp"]
[]
[{"$nulls":11},"Параметры формы",{"$nulls":10},"Описание параметров формы"]
[{"$nulls":11},"№ п/п","Параметр дифференциации тарифа",null,"Период действия тарифа",{"$nulls":5},"Наличие других периодов действия тарифа","Добавить период"]
[{"$nulls":14},"Одноставочный тариф, руб./Гкал (руб./куб.м)","Двухставочный тариф",null,"Период действия"]
[{"$nulls":15},"ставка за тепловую энергию, руб./Гкал","ставка за содержание тепловой мощности, тыс. руб./Гкал/ч/мес.","дата начала","дата окончания"]
[{"$nulls":10},1,"1","2","2",{"$f":"OFFSET(O17,0,-1)+1","v":3},{"$f":"OFFSET(P17,0,-1)+1","v":4},{"$f":"OFFSET(Q17,0,-1)+1","v":5},{"$f":"OFFSET(R17,0,-1)+1","v":6},{"$f":"OFFSET(S17,0,-1)+1","v":7},null,{"$f":"OFFSET(U17,0,-2)+1","v":8},{"$f":"OFFSET(V17,0,-1)","v":8},{"$f":"OFFSET(W17,0,-1)+1","v":9}]
[1,{"$nulls":10},{"$f":"mergeValue(A18)","v":1},"Наименование тарифа",{"$nulls":9},"Указывается наименование тарифа в случае подачи предложения по нескольким тарифам.\nВ случае наличия нескольких тарифов информация по ним указывается в отдельных строках."]
[null,1,{"$nulls":9},{"$f":"mergeValue(A19) &\".\"& mergeValue(B19)","v":"1.1"},"Территория действия тарифа",{"$nulls":9},"Указывается наименование территории действия тарифа при наличии дифференциации тарифа по территориальному признаку.\nВ случае дифференциации тарифов по территориальному признаку информация по ним указывается в отдельных строках."]
[null,null,1,{"$nulls":8},{"$f":"mergeValue(A20) &\".\"& mergeValue(B20)&\".\"& mergeValue(C20)","v":"1.1.1"},"Наименование системы теплоснабжения ",{"$nulls":9},"Указывается наименование системы теплоснабжения при наличии дифференциации тарифа по системам теплоснабжения.\nВ случае дифференциации тарифов по системам теплоснабжения информация по ним указывается в отдельных строках."]
[{"$nulls":3},1,{"$nulls":7},{"$f":"mergeValue(A21) &\".\"& mergeValue(B21)&\".\"& mergeValue(C21)&\".\"& mergeValue(D21)","v":"1.1.1.1"},"Источник тепловой энергии  ",{"$nulls":9},"Указывается наименование источника тепловой энергии\nВ случае дифференциации тарифов по источникам тепловой энергии информация по ним указывается в отдельных строках."]
[{"$nulls":4},1,null,null,1,1]
[{"$nulls":5},1,{"$nulls":3},1,null,{"$f":"mergeValue(A23) &\".\"& mergeValue(B23)&\".\"& mergeValue(C23)&\".\"& mergeValue(D23)&\".\"&  mergeValue(F23)","v":"1.1.1.1.1"},"Группа потребителей",{"$nulls":9},"Указывается группа потребителей при наличии дифференциации тарифа по группам потребителей.\nЗначение выбирается из перечня: Организации-перепродавцы; Бюджетные организации; Население; Прочие; Без дифференциации.\nВ случае дифференциации тарифов группам потребителей информация по ним указывается в отдельных строках.",null,{"$f":"strCheckUnique(Z23:Z26)","v":""}]
[{"$nulls":6},1,{"$nulls":3},1,{"$f":"mergeValue(A24) &\".\"& mergeValue(B24)&\".\"& mergeValue(C24)&\".\"& mergeValue(D24)&\".\"& mergeValue(F24)&\".\"& mergeValue(G24)","v":"1.1.1.1.1.1"},{"$nulls":6},"да",null,"нет",null,"В колонке «Параметр дифференциации тарифов» указывается вид теплоносителя.\nЗначение выбирается из перечня: вода; пар; отборный пар, 1.2-2.5 кг/см2; отборный пар, 2.5-7 кг/см2; отборный пар, 7-13 кг/см2; отборный пар, > 13 кг/см2; острый и редуцированный пар; горячая вода в системе централизованного теплоснабжения на отопление;  горячая вода в системе централизованного теплоснабжения на горячее водоснабжение; прочее.\nПри подаче предложения на двухставочный тариф колонка «Одноставочный тариф» не заполняется.\nПри подаче предложения на одноставочный тариф колонки в блоке «Двухставочный тариф» не заполняются.\nИнформация в колонке «Двухставочный тариф» не указывается для тарифа на теплоноситель.\nДаты начала и окончания действия тарифов указываются в виде «ДД.ММ.ГГГГ».\nВ случае отсутствия даты окончания действия тарифа в колонке «Дата окончания» указывается «Нет».\nВ случае дифференциации тарифов по видам теплоносителя информация по ним указывается в отдельных строках.",{"$f":"strCheckDate(O25:V25)","v":""},null,{"$f":"IF(M24=\"\",\"\",M24 )","v":""}]
[{"$nulls":16},{"$f":"R24 & \"-\" & T24","v":"-"}]
[{"$nulls":12},"Добавить вид теплоносителя (параметры теплоносителя)"]
[{"$nulls":12},"Добавить группу потребителей"]
[]
[{"$nulls":12},"Добавить источник тепловой энергии"]
[{"$nulls":12},"Добавить наименование системы теплоснабжения"]
[{"$nulls":12},"Добавить территорию действия тарифа"]
[{"$nulls":12},"Добавить наименование тарифа"]
[]
[{"$nulls":11},1,"Для каждого вида цены (тарифа) в сфере теплоснабжения форма заполняется отдельно. При размещении информации по данной форме дополнительно указывается дата подачи заявления об утверждении цены (тарифа) и его номер.\n\nПо данной форме размещается в том числе информация о предложении об установлении цен (тарифов) для единых теплоснабжающих организаций, а также теплоснабжающих организаций, теплосетевых организаций в ценовых зонах теплоснабжения."]

{"sheet":"Форма 1.0.1 | Т-гор.вода","index":24,"n_rows":19,"n_cols":10,"rows_kept":19,"hidden":true,"merged":[[1,5,1,7],[3,5,3,7],[3,8,4,8],[7,0,15,0],[10,1,14,1],[11,2,13,2],[12,8,13,8],[18,6,18,7]]}
["5"]
[{"$nulls":5},"Форма 1.0.1 Основные параметры раскрываемой информации 1"]
[]
[{"$nulls":5},"Параметры формы",null,null,"Описание параметров формы"]
[{"$nulls":5},"№ п/п","Наименование параметра","Информация"]
[{"$nulls":5},"1",2,3,4,4]
[{"$nulls":5},1,"Дата заполнения/внесения изменений",{"$f":"IF(dateCh=\"\",\"\",dateCh)","v":"29.04.2020"},"Указывается календарная дата первичного заполнения или внесения изменений в форму в виде «ДД.ММ.ГГГГ»."]
[1,{"$nulls":4},{"$f":"\"2.\" &mergeValue(A8)","v":"2.1"},"Наименование централизованной системы коммунальной инфраструктуры",null,"Указывается наименование централизованной системы холодного водоснабжения/горячего водоснабжения/водоотведения/теплоснабжения, к которой относится размещаемая информация.\nВ случае наличия нескольких централизованных систем коммунальной инфраструктуры, информация по каждой из них указывается в отдельной строке."]
[{"$nulls":5},{"$f":"\"3.\" &mergeValue(A9)","v":"3.1"},"Наименование регулируемого вида деятельности",null,"Указывается наименование вида регулируемой деятельности."]
[{"$nulls":5},{"$f":"\"4.\"&mergeValue(A10)","v":"4.1"},"Территория оказания услуги по регулируемому виду деятельности","x"]
[null,1,{"$nulls":3},{"$f":"\"4.\"&mergeValue(A11) &\".\"&mergeValue(B11)","v":"4.1.1"},"Субъект Российской Федерации",{"$f":"IF(region_name=\"\",\"\",region_name)","v":"Ярославская область"},"Указывается наименование субъекта Российской Федерации"]
[null,null,1,null,null,{"$f":"\"4.\"&mergeValue(A12) &\".\"&mergeValue(B12)&\".\"&mergeValue(C12)","v":"4.1.1.1"},"муниципальный район",null,"Указывается наименование муниципального района, на территории которого организация оказывает услуги по регулируемому виду деятельности."]
[{"$nulls":3},1,null,{"$f":"\"4.\"&mergeValue(A13) &\".\"&mergeValue(B13)&\".\"&mergeValue(C13)&\".\"&mergeValue(D13)","v":"4.1.1.1.1"},"муниципальное образование",null,"Указывается наименование и код муниципального района, муниципального образования в соответствии с Общероссийским классификатором территорий муниципальных образований (далее - ОКТМО), входящего в муниципальный район, на территории которого организация оказывает услуги по регулируемому виду деятельности.\nВ случае оказания услуг по регулируемому виду деятельности на территории нескольких муниципальных районов (муниципальных образований) данные по каждому их них указываются в отдельной строке."]
[{"$nulls":6},"Добавить МО"]
[{"$nulls":6},"Добавить МР"]
[{"$nulls":6},"Добавить территорию"]
[{"$nulls":6},"Добавить ЦС"]
[]
[{"$nulls":6},"  1 Информация размещается при раскрытии информации по каждой из форм."]

{"sheet":"Форма 4.10.4 | Т-гор.вода","index":25,"n_rows":36,"n_cols":32,"rows_kept":36,"hidden":true,"merged":[[4,11,4,19],[6,14,6,19],[7,14,7,19],[8,14,8,19],[9,14,9,19],[11,14,11,25],[12,11,12,26],[12,27,15,27],[13,11,15,11],[13,12,15,12],[13,14,13,24],[13,25,15,25],[13,26,15,26],[14,14,15,14],[14,15,15,15],[14,16,15,16],[14,17,14,18],[14,19,14,20],[14,22,14,24],[15,23,15,24],[16,23,16,24],[17,0,32,0],[17,14,17,26],[18,1,31,1],[18,14,18,26],[19,2,30,2],[19,14,19,26],[20,3,29,3],[20,14,20,26],[21,4,28,4],[22,5,27,5],[22,8,27,8],[22,14,22,26],[23,6,26,6],[23,9,26,9],[23,22,25,22],[23,23,25,23],[23,24,25,24],[23,25,25,25],[24,27,26,27],[35,12,35,22]]}
[]
[]
[]
[]
[{"$nulls":11},"Форма 4.10.4 Информация о предложении величин тарифов на горячую воду (в открытых системах)1"]
[]
[]
[{"$nulls":12},{"$f":"\"Дата подачи заявления об \"&IF(datePr_ch=\"\",\"утверждении\",\"изменении\") & \" тарифов\"","v":"Дата подачи заявления об утверждении тарифов"},null,{"$f":"IF(datePr_ch=\"\",IF(datePr=\"\",\"\",datePr),datePr_ch)","v":"28.04.2020"}]
[{"$nulls":12},{"$f":"\"Номер подачи заявления об \"&IF(numberPr_ch=\"\",\"утверждении\",\"изменении\") & \" тарифов\"","v":"Номер подачи заявления об утверждении тарифов"},null,{"$f":"IF(numberPr_ch=\"\",IF(numberPr=\"\",\"\",numberPr),numberPr_ch)","v":"01-10/004762 "}]
[]
[{"$nulls":25},"dp"]
[]
[{"$nulls":11},"Параметры формы",{"$nulls":15},"Описание параметров формы"]
[{"$nulls":11},"№ п/п","Параметр дифференциации тарифа",null,"Период действия тарифа",{"$nulls":10},"Наличие других периодов действия тарифа","Добавить период"]
[{"$nulls":14},"Компонент на теплоноситель, руб./куб.м","Одноставочный компонент на тепловую энергию, руб/Гкал","Одноставочный тариф, руб./куб.м","Двухставочный тариф",null,"Двухставочный тариф",null,null,"Период действия"]
[{"$nulls":17},"ставка за потребление горячей воды, руб./куб.м","ставка за содержание системы ГВС, тыс.руб./куб.м/ч/мес","ставка за тепловую энергию в компоненте на тепловую энергию, руб/Гкал","ставка за содержание тепловой мощности в компоненте на тепловую энергию, тыс. руб./Гкал/ч в мес.",null,"дата начала","дата окончания"]
[{"$nulls":10},1,"1","2","2",{"$f":"OFFSET(O17,0,-1)+1","v":3},{"$f":"OFFSET(P17,0,-1)+1","v":4},5,6,7,8,9,{"$f":"OFFSET(V17,0,-1)","v":9},10,{"$f":"OFFSET(X17,0,-1)+1","v":11},null,{"$f":"OFFSET(Z17,0,-2)+1","v":12},null,{"$f":"OFFSET(AB17,0,-2)+1","v":13}]
[1,{"$nulls":10},{"$f":"mergeValue(A18)","v":1},"Наименование тарифа",{"$nulls":14},"Указывается наименование тарифа в случае подачи предложения по нескольким тарифам.\nВ случае наличия нескольких тарифов информация по ним указывается в отдельных строках."]
[null,1,{"$nulls":9},{"$f":"mergeValue(A19) &\".\"& mergeValue(B19)","v":"1.1"},"Территория действия тарифа",{"$nulls":14},"Указывается наименование территории действия тарифа при наличии дифференциации тарифа по территориальному признаку.\nВ случае дифференциации тарифов по территориальному признаку информация по ним указывается в отдельных строках."]
[null,null,1,{"$nulls":8},{"$f":"mergeValue(A20) &\".\"& mergeValue(B20)&\".\"& mergeValue(C20)","v":"1.1.1"},"Наименование системы теплоснабжения ",{"$nulls":14},"Указывается наименование системы теплоснабжения при наличии дифференциации тарифа по системам теплоснабжения.\nВ случае дифференциации тарифов по системам теплоснабжения информация по ним указывается в отдельных строках."]
[{"$nulls":3},1,{"$nulls":7},{"$f":"mergeValue(A21) &\".\"& mergeValue(B21)&\".\"& mergeValue(C21)&\".\"& mergeValue(D21)","v":"1.1.1.1"},"Источник тепловой энергии  ",{"$nulls":14},"Указывается наименование источника тепловой энергии\nВ случае дифференциации тарифов по источникам тепловой энергии информация по ним указывается в отдельных строках."]
[{"$nulls":4},1]
[{"$nulls":5},1,{"$nulls":5},{"$f":"mergeValue(A23) &\".\"& mergeValue(B23)&\".\"& mergeValue(C23)&\".\"& mergeValue(D23)&\".\"& mergeValue(F23)","v":"1.1.1.1.1"},"Группа потребителей",{"$nulls":14},"Указывается группа потребителей при наличии дифференциации тарифа по группам потребителей.\nЗначение выбирается из перечня: Организации-перепродавцы; Бюджетные организации; Население; Прочие; Без дифференциации.\nВ случае дифференциации тарифов группам потребителей информация по ним указывается в отдельных строках.",null,{"$f":"strCheckUnique(AE23:AE28)","v":""}]
[{"$nulls":6},1,{"$nulls":4},{"$f":"mergeValue(A24) &\".\"& mergeValue(B24)&\".\"& mergeValue(C24)&\".\"& mergeValue(D24)&\".\"& mergeValue(F24)&\".\"& mergeValue(G24)","v":"1.1.1.1.1.1"},"горячая вода в системе централизованного теплоснабжения на горячее водоснабжение",{"$nulls":8},{"$f":"W24 & \"-\" & Y24","v":"-"},null,"да",null,"нет",null,"Указывается вид теплоносителя. Значение выбирается из перечня: вода; пар; отборный пар, 1.2-2.5 кг/см2; отборный пар, 2.5-7 кг/см2; отборный пар, 7-13 кг/см2; отборный пар, > 13 кг/см2; острый и редуцированный пар; горячая вода в системе централизованного теплоснабжения на отопление; горячая вода в системе централизованного теплоснабжения на горячее водоснабжение; прочее.\nВ случае дифференциации тарифов по видам теплоносителя информация по ним указывается в отдельных строках.",{"$f":"strCheckDate(O24:AA24)","v":""},null,{"$f":"IF(M24=\"\",\"\",M24 )","v":"горячая вода в системе централизованного теплоснабжения на горячее водоснабжение"}]
[{"$nulls":7},1,{"$nulls":3},{"$f":"mergeValue(A25) &\".\"& mergeValue(B25)&\".\"& mergeValue(C25)&\".\"& mergeValue(D25)&\".\"& mergeValue(F25)&\".\"& mergeValue(G25)&\".\"& mergeValue(H25)","v":"1.1.1.1.1.1.1"},{"$nulls":9},{"$f":"W25 & \"-\" & Y25","v":"-"},{"$nulls":5},"В колонке «Параметр дифференциации тарифов» указывается наименование поставщика в случае наличия дифференциации компонента двухставочного тарифа на горячую воду по поставщикам.\nПри подаче предложения на двухставочный тариф колонка «Одноставочный тариф» не заполняется.\nПри подаче предложения на одноставочный тариф колонки в блоке «Двухставочный тариф» не заполняются.\nВ случае отсутствия разбивки тарифа на компоненты колонки «Компонент на теплоноситель, руб./куб.м» и «Одноставочный компонент на тепловую энергию, руб/Гкал» не заполняются.\nДаты начала и окончания действия тарифов указываются в виде «ДД.ММ.ГГГГ».\nВ случае отсутствия даты окончания действия тарифа в колонке «Дата окончания» указывается «Нет».\nВ случае дифференциации тарифов по поставщикам информация по ним указывается в отдельных строках.",{"$f":"strCheckDate(O25:AA25)","v":""}]
[{"$nulls":31},{"$f":"OFFSET(AF26,-1,0)","v":0}]
[{"$nulls":12},"Добавить поставщика"]
[{"$nulls":12},"Добавить вид теплоносителя (параметры теплоносителя)"]
[{"$nulls":12},"Добавить группу потребителей"]
[]
[{"$nulls":12},"Добавить источник тепловой энергии"]
[{"$nulls":12},"Добавить наименование системы теплоснабжения"]
[{"$nulls":12},"Добавить территорию действия тарифа"]
[{"$nulls":12},"Добавить наименование тарифа"]
[]
[{"$nulls":11},1,"При размещении информации по данной форме дополнительно указывается дата подачи заявления об утверждении цены (тарифа) и его номер.\n\nПо данной форме раскрывается в том числе информация о предложении об установлении цен (тарифов) для единых теплоснабжающих организаций, а также теплоснабжающих организаций, теплосетевых организаций в ценовых зонах теплоснабжения."]

{"sheet":"Форма 1.0.1 | Т-подкл","index":26,"n_rows":19,"n_cols":10,"rows_kept":19,"hidden":true,"merged":[[1,5,1,7],[3,5,3,7],[3,8,4,8],[7,0,15,0],[10,1,14,1],[11,2,13,2],[12,8,13,8],[18,6,18,7]]}
["10"]
[{"$nulls":5},"Форма 1.0.1 Основные параметры раскрываемой информации 1"]
[]
[{"$nulls":5},"Параметры формы",null,null,"Описание параметров формы"]
[{"$nulls":5},"№ п/п","Наименование параметра","Информация"]
[{"$nulls":5},"1",2,3,4,4]
[{"$nulls":5},1,"Дата заполнения/внесения изменений",{"$f":"IF(dateCh=\"\",\"\",dateCh)","v":"29.04.2020"},"Указывается календарная дата первичного заполнения или внесения изменений в форму в виде «ДД.ММ.ГГГГ»."]
[1,{"$nulls":4},{"$f":"\"2.\" &mergeValue(A8)","v":"2.1"},"Наименование централизованной системы коммунальной инфраструктуры",null,"Указывается наименование централизованной системы холодного водоснабжения/горячего водоснабжения/водоотведения/теплоснабжения, к которой относится размещаемая информация.\nВ случае наличия нескольких централизованных систем коммунальной инфраструктуры, информация по каждой из них указывается в отдельной строке."]
[{"$nulls":5},{"$f":"\"3.\" &mergeValue(A9)","v":"3.1"},"Наименование регулируемого вида деятельности",null,"Указывается наименование вида регулируемой деятельности."]
[{"$nulls":5},{"$f":"\"4.\"&mergeValue(A10)","v":"4.1"},"Территория оказания услуги по регулируемому виду деятельности","x"]
[null,1,{"$nulls":3},{"$f":"\"4.\"&mergeValue(A11) &\".\"&mergeValue(B11)","v":"4.1.1"},"Субъект Российской Федерации",{"$f":"IF(region_name=\"\",\"\",region_name)","v":"Ярославская область"},"Указывается наименование субъекта Российской Федерации"]
[null,null,1,null,null,{"$f":"\"4.\"&mergeValue(A12) &\".\"&mergeValue(B12)&\".\"&mergeValue(C12)","v":"4.1.1.1"},"муниципальный район",null,"Указывается наименование муниципального района, на территории которого организация оказывает услуги по регулируемому виду деятельности."]
[{"$nulls":3},1,null,{"$f":"\"4.\"&mergeValue(A13) &\".\"&mergeValue(B13)&\".\"&mergeValue(C13)&\".\"&mergeValue(D13)","v":"4.1.1.1.1"},"муниципальное образование",null,"Указывается наименование и код муниципального района, муниципального образования в соответствии с Общероссийским классификатором территорий муниципальных образований (далее - ОКТМО), входящего в муниципальный район, на территории которого организация оказывает услуги по регулируемому виду деятельности.\nВ случае оказания услуг по регулируемому виду деятельности на территории нескольких муниципальных районов (муниципальных образований) данные по каждому их них указываются в отдельной строке."]
[{"$nulls":6},"Добавить МО"]
[{"$nulls":6},"Добавить МР"]
[{"$nulls":6},"Добавить территорию"]
[{"$nulls":6},"Добавить ЦС"]
[]
[{"$nulls":6},"  1 Информация размещается при раскрытии информации по каждой из форм."]

{"sheet":"Форма 4.10.5 | Т-подкл","index":27,"n_rows":33,"n_cols":35,"rows_kept":33,"hidden":true,"merged":[[4,11,4,19],[6,14,6,19],[7,13,7,19],[8,13,8,19],[9,14,9,19],[11,11,11,12],[11,14,11,19],[12,14,12,19],[12,25,12,30],[13,11,13,31],[13,32,16,32],[14,11,16,11],[14,12,16,12],[14,13,16,16],[14,17,16,20],[14,21,16,24],[14,25,14,29],[14,30,16,30],[14,31,16,31],[15,25,15,26],[15,27,15,29],[16,28,16,29],[17,13,17,16],[17,17,17,20],[17,28,17,29],[18,0,29,0],[18,13,18,31],[19,1,28,1],[19,13,19,31],[20,2,27,2],[20,13,20,31],[21,3,26,3],[21,13,21,31],[22,4,25,4],[22,10,25,10],[22,11,25,11],[22,12,25,12],[22,13,25,13],[22,14,24,14],[22,15,24,15],[22,16,24,16],[22,17,24,17],[22,18,23,18],[22,19,23,19],[22,20,23,20],[22,21,23,21],[22,27,23,27],[22,28,23,28],[22,29,23,29],[22,30,23,30],[22,32,26,32],[32,12,32,32]]}
[]
[]
[]
[]
[{"$nulls":11},"Форма 4.10.5 Информация о предложении величин тарифов на подключение к системе теплоснабжения1"]
[]
[]
[{"$nulls":12},{"$f":"\"Дата подачи заявления об \"&IF(datePr_ch=\"\",\"утверждении\",\"изменении\") & \" тарифов\"","v":"Дата подачи заявления об утверждении тарифов"},{"$f":"IF(datePr_ch=\"\",IF(datePr=\"\",\"\",datePr),datePr_ch)","v":"28.04.2020"}]
[{"$nulls":12},{"$f":"\"Номер подачи заявления об \"&IF(numberPr_ch=\"\",\"утверждении\",\"изменении\") & \" тарифов\"","v":"Номер подачи заявления об утверждении тарифов"},{"$f":"IF(numberPr_ch=\"\",IF(numberPr=\"\",\"\",numberPr),numberPr_ch)","v":"01-10/004762 "}]
[]
[{"$nulls":25},"NDS","woNDS"]
[{"$nulls":30},"dp"]
[]
[{"$nulls":11},"Параметры формы",{"$nulls":20},"Описание параметров формы"]
[{"$nulls":11},"№ п/п","Параметр дифференциации тарифа/Заявитель","Подключаемая тепловая нагрузка, Гкал/ч",{"$nulls":3},"Тип прокладки тепловых сетей",{"$nulls":3},"Диаметр тепловых сетей",{"$nulls":3},"Период действия тарифа",{"$nulls":4},"Наличие других периодов действия тарифа","Добавить период"]
[{"$nulls":25},"Плата за подключение (технологическое присоединение), тыс. руб./Гкал/ч (руб.)",null,"Период действия"]
[{"$nulls":25},"с НДС","без НДС","дата начала","дата окончания"]
[{"$nulls":10},1,"1","2",{"$f":"OFFSET(N18,0,-1)+1","v":3},{"$nulls":3},{"$f":"OFFSET(N18,0,0)+1","v":4},{"$nulls":6},{"$f":"OFFSET(R18,0,0)+1","v":5},{"$f":"OFFSET(Z18,0,-1)+1","v":6},{"$f":"OFFSET(AA18,0,-1)+1","v":7},{"$f":"OFFSET(AB18,0,-1)+1","v":8},{"$f":"OFFSET(AC18,0,-1)+1","v":9},null,{"$f":"OFFSET(AE18,0,-2)+1","v":10},null,{"$f":"OFFSET(AG18,0,-2)+1","v":11}]
[1,{"$nulls":10},{"$f":"mergeValue(A19)","v":1},"Наименование тарифа",{"$nulls":19},"Указывается наименование тарифа в случае подачи предложения по нескольким тарифам.\nВ случае наличия нескольких тарифов информация по ним указывается в отдельных строках."]
[null,1,{"$nulls":9},{"$f":"mergeValue(A20) &\".\"& mergeValue(B20)","v":"1.1"},"Территория действия тарифа",{"$nulls":19},"Указывается наименование территории действия тарифа при наличии дифференциации тарифа по территориальному признаку.\nВ случае дифференциации тарифов по территориальному признаку информация по ним указывается в отдельных строках."]
[null,null,1,{"$nulls":8},{"$f":"mergeValue(A21) &\".\"& mergeValue(B21)&\".\"& mergeValue(C21)","v":"1.1.1"},"Наименование системы теплоснабжения ",{"$nulls":19},"Указывается наименование системы теплоснабжения при наличии дифференциации тарифа по системам теплоснабжения.\nВ случае дифференциации тарифов по системам теплоснабжения информация по ним указывается в отдельных строках."]
[{"$nulls":3},1,{"$nulls":7},{"$f":"mergeValue(A22) &\".\"& mergeValue(B22)&\".\"& mergeValue(C22)&\".\"& mergeValue(D22)","v":"1.1.1.1"},"Источник тепловой энергии  ",{"$nulls":19},"Указывается наименование источника тепловой энергии."]
[{"$nulls":4},1,{"$nulls":6},{"$f":"mergeValue(A23) &\".\"& mergeValue(B23)&\".\"& mergeValue(C23)&\".\"& mergeValue(D23)&\".\"& mergeValue(E23)","v":"1.1.1.1.1"},null,"нет",null,1,null,"нет",null,1,null,"нет",null,1,{"$nulls":4},"да",null,"нет",null,"В колодке «Параметр дифференциации тарифа/Заявитель» указывается наименование категории потребителей, к которой относится тариф.\nДаты начала и окончания указываются в виде «ДД.ММ.ГГГГ».\nВ случае отсутствия даты окончания тарифа в колонке «Дата окончания» указывается «Нет».\nВ случае наличия дифференциации по подключаемой нагрузке, диапазону диаметров, типу прокладки тепловых сетей, информация по ним указывается в отдельных строках.\nВ случае дифференциации тарифов по периодам действия тарифа информация по ним указывается в отдельных колонках.",{"$f":"strCheckDate(Z24:AF24)","v":""},{"$f":"IF(AND(COUNTIF(AJ18:AJ27,AJ23)>1,AJ23<>\"\"),\"ErrUnique:HasDoubleConn\",\"\")","v":""}]
[{"$nulls":26},{"$f":"AB23 & \"-\" & AD23","v":"-"}]
[]
[]
[{"$nulls":12},"Добавить строку"]
[{"$nulls":12},"Добавить источник тепловой энергии"]
[{"$nulls":12},"Добавить наименование системы теплоснабжения"]
[{"$nulls":12},"Добавить территорию действия тарифа"]
[{"$nulls":12},"Добавить наименование тарифа"]
[]
[{"$nulls":11},1,"При размещении информации по данной форме дополнительно указывается дата подачи заявления об утверждении цены (тарифа) и его номер.\n\nПо данной форме размещается в том числе информация о предложении об установлении цен (тарифов) для единых теплоснабжающих организаций, а также теплоснабжающих организаций, теплосетевых организаций в ценовых зонах теплоснабжения."]

{"sheet":"Форма 1.0.1 | Т-подкл(инд)","index":28,"n_rows":19,"n_cols":10,"rows_kept":19,"hidden":true,"merged":[[1,5,1,7],[3,5,3,7],[3,8,4,8],[7,0,15,0],[10,1,14,1],[11,2,13,2],[12,8,13,8],[18,6,18,7]]}
["9"]
[{"$nulls":5},"Форма 1.0.1 Основные параметры раскрываемой информации 1"]
[]
[{"$nulls":5},"Параметры формы",null,null,"Описание параметров формы"]
[{"$nulls":5},"№ п/п","Наименование параметра","Информация"]
[{"$nulls":5},"1",2,3,4,4]
[{"$nulls":5},1,"Дата заполнения/внесения изменений",{"$f":"IF(dateCh=\"\",\"\",dateCh)","v":"29.04.2020"},"Указывается календарная дата первичного заполнения или внесения изменений в форму в виде «ДД.ММ.ГГГГ»."]
[1,{"$nulls":4},{"$f":"\"2.\" &mergeValue(A8)","v":"2.1"},"Наименование централизованной системы коммунальной инфраструктуры",null,"Указывается наименование централизованной системы холодного водоснабжения/горячего водоснабжения/водоотведения/теплоснабжения, к которой относится размещаемая информация.\nВ случае наличия нескольких централизованных систем коммунальной инфраструктуры, информация по каждой из них указывается в отдельной строке."]
[{"$nulls":5},{"$f":"\"3.\" &mergeValue(A9)","v":"3.1"},"Наименование регулируемого вида деятельности",null,"Указывается наименование вида регулируемой деятельности."]
[{"$nulls":5},{"$f":"\"4.\"&mergeValue(A10)","v":"4.1"},"Территория оказания услуги по регулируемому виду деятельности","x"]
[null,1,{"$nulls":3},{"$f":"\"4.\"&mergeValue(A11) &\".\"&mergeValue(B11)","v":"4.1.1"},"Субъект Российской Федерации",{"$f":"IF(region_name=\"\",\"\",region_name)","v":"Ярославская область"},"Указывается наименование субъекта Российской Федерации"]
[null,null,1,null,null,{"$f":"\"4.\"&mergeValue(A12) &\".\"&mergeValue(B12)&\".\"&mergeValue(C12)","v":"4.1.1.1"},"муниципальный район",null,"Указывается наименование муниципального района, на территории которого организация оказывает услуги по регулируемому виду деятельности."]
[{"$nulls":3},1,null,{"$f":"\"4.\"&mergeValue(A13) &\".\"&mergeValue(B13)&\".\"&mergeValue(C13)&\".\"&mergeValue(D13)","v":"4.1.1.1.1"},"муниципальное образование",null,"Указывается наименование и код муниципального района, муниципального образования в соответствии с Общероссийским классификатором территорий муниципальных образований (далее - ОКТМО), входящего в муниципальный район, на территории которого организация оказывает услуги по регулируемому виду деятельности.\nВ случае оказания услуг по регулируемому виду деятельности на территории нескольких муниципальных районов (муниципальных образований) данные по каждому их них указываются в отдельной строке."]
[{"$nulls":6},"Добавить МО"]
[{"$nulls":6},"Добавить МР"]
[{"$nulls":6},"Добавить территорию"]
[{"$nulls":6},"Добавить ЦС"]
[]
[{"$nulls":6},"  1 Информация размещается при раскрытии информации по каждой из форм."]

{"sheet":"Форма 4.10.6 | Т-подкл(инд)","index":29,"n_rows":31,"n_cols":25,"rows_kept":31,"hidden":true,"merged":[[4,11,4,19],[6,14,6,19],[7,14,7,19],[8,14,8,19],[9,14,9,19],[11,11,11,12],[12,16,12,21],[13,11,13,22],[13,23,16,23],[14,11,16,11],[14,12,16,12],[14,14,16,14],[14,15,16,15],[14,16,14,20],[14,21,16,21],[14,22,16,22],[15,16,15,17],[15,18,15,20],[16,19,16,20],[17,19,17,20],[18,0,27,0],[18,14,18,22],[19,1,26,1],[19,14,19,22],[20,2,25,2],[20,14,20,22],[21,3,24,3],[21,14,21,22],[22,23,24,23],[30,12,30,23]]}
[]
[]
[]
[]
[{"$nulls":11},"Форма 4.10.6 Информация о предложении платы за подключение к системе теплоснабжения в индивидуальном порядке1"]
[]
[]
[{"$nulls":12},{"$f":"\"Дата подачи заявления об \"&IF(datePr_ch=\"\",\"утверждении\",\"изменении\") & \" тарифов\"","v":"Дата подачи заявления об утверждении тарифов"},null,{"$f":"IF(datePr_ch=\"\",IF(datePr=\"\",\"\",datePr),datePr_ch)","v":"28.04.2020"}]
[{"$nulls":12},{"$f":"\"Номер подачи заявления об \"&IF(numberPr_ch=\"\",\"утверждении\",\"изменении\") & \" тарифов\"","v":"Номер подачи заявления об утверждении тарифов"},null,{"$f":"IF(numberPr_ch=\"\",IF(numberPr=\"\",\"\",numberPr),numberPr_ch)","v":"01-10/004762 "}]
[]
[{"$nulls":16},"NDS","woNDS"]
[{"$nulls":21},"dp"]
[]
[{"$nulls":11},"Параметры формы",{"$nulls":11},"Описание параметров формы"]
[{"$nulls":11},"№ п/п","Заявитель",null,"Наименование объекта, адрес","Подключаемая тепловая нагрузка, Гкал/ч","Период действия тарифа",{"$nulls":4},"Наличие других периодов действия тарифа","Добавить период"]
[{"$nulls":16},"Плата за подключение (технологическое присоединение), тыс. руб./Гкал/ч (руб.)",null,"Период действия"]
[{"$nulls":16},"с НДС","без НДС","дата начала","дата окончания"]
[{"$nulls":10},1,"1","2","2",{"$f":"OFFSET(O18,0,-1)+1","v":3},4,5,6,7,8,null,{"$f":"OFFSET(V18,0,-2)+1","v":9},null,{"$f":"OFFSET(X18,0,-2)+1","v":10}]
[1,{"$nulls":10},{"$f":"mergeValue(A19)","v":1},"Наименование тарифа",{"$nulls":10},"Указывается наименование тарифа в случае подачи предложения по нескольким тарифам.\nВ случае наличия нескольких тарифов информация по ним указывается в отдельных строках."]
[null,1,{"$nulls":9},{"$f":"mergeValue(A20) &\".\"& mergeValue(B20)","v":"1.1"},"Территория действия тарифа",{"$nulls":10},"Указывается наименование территории действия тарифа при наличии дифференциации тарифа по территориальному признаку.\nВ случае дифференциации тарифов по территориальному признаку информация по ним указывается в отдельных строках."]
[null,null,1,{"$nulls":8},{"$f":"mergeValue(A21) &\".\"& mergeValue(B21)&\".\"& mergeValue(C21)","v":"1.1.1"},"Наименование системы теплоснабжения ",{"$nulls":10},"Указывается наименование системы теплоснабжения при наличии дифференциации тарифа по системам теплоснабжения.\nВ случае дифференциации тарифов по системам теплоснабжения информация по ним указывается в отдельных строках."]
[{"$nulls":3},1,{"$nulls":7},{"$f":"mergeValue(A22) &\".\"& mergeValue(B22)&\".\"& mergeValue(C22)&\".\"& mergeValue(D22)","v":"1.1.1.1"},"Источник тепловой энергии  ",{"$nulls":10},"Указывается наименование источника тепловой энергии."]
[{"$nulls":4},1,{"$nulls":6},{"$f":"mergeValue(A23) &\".\"& mergeValue(B23)&\".\"& mergeValue(C23)&\".\"& mergeValue(D23)&\".\"& mergeValue(E23)","v":"1.1.1.1.1"},{"$nulls":7},"да",null,"нет",null,"В колодке «Заявитель» указывается наименование заявителя, к которой относится тариф.\nДаты начала и окончания указываются в виде «ДД.ММ.ГГГГ».\nВ случае отсутствия даты окончания тарифа в колонке «Дата окончания» указывается «Нет».\nВ случае наличия дифференциации по категориям потребителей/заявителям информация по ним указывается в отдельных строках.\nВ случае дифференциации по периодам действия тарифа информация по ним указывается в отдельных колонках.",{"$f":"strCheckDateTwo(N23:W23)","v":""}]
[{"$nulls":17},{"$f":"S23 & \"-\" & U23","v":"-"}]
[{"$nulls":12},"Добавить строку"]
[{"$nulls":12},"Добавить источник тепловой энергии"]
[{"$nulls":12},"Добавить наименование системы теплоснабжения"]
[{"$nulls":12},"Добавить территорию действия тарифа"]
[{"$nulls":12},"Добавить наименование тарифа"]
[]
[{"$nulls":11},1,"При размещении информации по данной форме дополнительно указывается дата подачи заявления об утверждении платы и его номер.\n\nПо данной форме раскрывается в том числе информация о предложении об установлении соответствующих цен (тарифов) в сфере теплоснабжения для единых теплоснабжающих организаций, а также теплоснабжающих организаций, теплосетевых организаций в ценовых зонах теплоснабжения."]

{"sheet":"Форма 1.0.1 | Форма 4.9","index":30,"n_rows":33,"n_cols":10,"rows_kept":33,"merged":[[1,5,1,7],[3,5,3,7],[3,8,4,8],[7,0,12,0],[10,1,12,1],[11,2,12,2],[13,0,18,0],[16,1,18,1],[17,2,18,2],[19,0,24,0],[22,1,24,1],[23,2,24,2],[25,0,30,0],[28,1,30,1],[29,2,30,2],[32,6,32,7]]}
["11"]
[{"$nulls":5},"Форма 1.0.1 Основные параметры раскрываемой информации 1"]
[]
[{"$nulls":5},"Параметры формы",null,null,"Описание параметров формы"]
[{"$nulls":5},"№ п/п","Наименование параметра","Информация"]
[{"$nulls":5},"1",2,3,4,4]
[{"$nulls":5},1,"Дата заполнения/внесения изменений",{"$f":"IF(dateCh=\"\",\"\",dateCh)","v":"29.04.2020"},"Указывается календарная дата первичного заполнения или внесения изменений в форму в виде «ДД.ММ.ГГГГ»."]
[1,{"$nulls":4},{"$f":"\"2.\" &mergeValue(A8)","v":"2.1"},"Наименование централизованной системы коммунальной инфраструктуры",{"$f":"IF('Перечень тарифов'!R21=\"\",\"наименование отсутствует\",\"\" & 'Перечень тарифов'!R21 & \"\")","v":"Тарифы на тепловую энергию для потребитетей г. Ярославля в зоне деятельности ЕТО-1"},"Указывается наименование централизованной системы холодного водоснабжения/горячего водоснабжения/водоотведения/теплоснабжения, к которой относится размещаемая информация.\nВ случае наличия нескольких централизованных систем коммунальной инфраструктуры, информация по каждой из них указывается в отдельной строке."]
[{"$nulls":5},{"$f":"\"3.\" &mergeValue(A9)","v":"3.1"},"Наименование регулируемого вида деятельности",{"$f":"IF('Перечень тарифов'!F21=\"\",\"наименование отсутствует\",\"\" & 'Перечень тарифов'!F21 & \"\")","v":"Производство тепловой энергии. Некомбинированная выработка; Производство тепловой энергии. Комбинированная выработка с уст. мощностью производства электрической энергии 25 МВт и более; Передача. Тепловая энергия; Сбыт. Тепловая энергия"},"Указывается наименование вида регулируемой деятельности."]
[{"$nulls":5},{"$f":"\"4.\"&mergeValue(A10)","v":"4.1"},"Территория оказания услуги по регулируемому виду деятельности","x"]
[null,1,{"$nulls":3},{"$f":"\"4.\"&mergeValue(A11) &\".\"&mergeValue(B11)","v":"4.1.1"},"Субъект Российской Федерации",{"$f":"IF(region_name=\"\",\"\",region_name)","v":"Ярославская область"},"Указывается наименование субъекта Российской Федерации"]
[null,null,1,null,null,{"$f":"\"4.\"&mergeValue(A12) &\".\"&mergeValue(B12)&\".\"&mergeValue(C12)","v":"4.1.1.1"},"муниципальный район",{"$f":"IF(Территории!H13=\"\",\"\",\"\" & Территории!H13 & \"\")","v":"город Ярославль"},"Указывается наименование муниципального района, на территории которого организация оказывает услуги по регулируемому виду деятельности."]
[{"$nulls":3},1,null,{"$f":"\"4.\"&mergeValue(A13) &\".\"&mergeValue(B13)&\".\"&mergeValue(C13)&\".\"&mergeValue(D13)","v":"4.1.1.1.1"},"муниципальное образование",{"$f":"IF(Территории!R14=\"\",\"\",\"\" & Территории!R14 & \"\")","v":"город Ярославль (78701000)"},"Указывается наименование и код муниципального района, муниципального образования в соответствии с Общероссийским классификатором территорий муниципальных образований (далее - ОКТМО), входящего в муниципальный район, на территории которого организация оказывает услуги по регулируемому виду деятельности.\nВ случае оказания услуг по регулируемому виду деятельности на территории нескольких муниципальных районов (муниципальных образований) данные по каждому их них указываются в отдельной строке."]
[2,{"$nulls":4},{"$f":"\"2.\" &mergeValue(A14)","v":"2.2"},"Наименование централизованной системы коммунальной инфраструктуры",{"$f":"IF('Перечень тарифов'!R24=\"\",\"наименование отсутствует\",\"\" & 'Перечень тарифов'!R24 & \"\")","v":"Тарифы на тепловую энергию для потребитетей Ярославского муниципального района Ярославской области в зоне деятельности ЕТО-4"},"Указывается наименование централизованной системы холодного водоснабжения/горячего водоснабжения/водоотведения/теплоснабжения, к которой относится размещаемая информация.\nВ случае наличия нескольких централизованных систем коммунальной инфраструктуры, информация по каждой из них указывается в отдельной строке."]
[{"$nulls":5},{"$f":"\"3.\" &mergeValue(A15)","v":"3.2"},"Наименование регулируемого вида деятельности",{"$f":"IF('Перечень тарифов'!F21=\"\",\"наименование отсутствует\",\"\" & 'Перечень тарифов'!F21 & \"\")","v":"Производство тепловой энергии. Некомбинированная выработка; Производство тепловой энергии. Комбинированная выработка с уст. мощностью производства электрической энергии 25 МВт и более; Передача. Тепловая энергия; Сбыт. Тепловая энергия"},"Указывается наименование вида регулируемой деятельности."]
[{"$nulls":5},{"$f":"\"4.\"&mergeValue(A16)","v":"4.2"},"Территория оказания услуги по регулируемому виду деятельности","x"]
[null,1,{"$nulls":3},{"$f":"\"4.\"&mergeValue(A17) &\".\"&mergeValue(B17)","v":"4.2.1"},"Субъект Российской Федерации",{"$f":"IF(region_name=\"\",\"\",region_name)","v":"Ярославская область"},"Указывается наименование субъекта Российской Федерации"]
[null,null,1,null,null,{"$f":"\"4.\"&mergeValue(A18) &\".\"&mergeValue(B18)&\".\"&mergeValue(C18)","v":"4.2.1.1"},"муниципальный район",{"$f":"IF(Территории!H16=\"\",\"\",\"\" & Территории!H16 & \"\")","v":"Ярославский муниципальный район"},"Указывается наименование муниципального района, на территории которого организация оказывает услуги по регулируемому виду деятельности."]
[{"$nulls":3},1,null,{"$f":"\"4.\"&mergeValue(A19) &\".\"&mergeValue(B19)&\".\"&mergeValue(C19)&\".\"&mergeValue(D19)","v":"4.2.1.1.1"},"муниципальное образование",{"$f":"IF(Территории!R17=\"\",\"\",\"\" & Территории!R17 & \"\")","v":"Ярославский муниципальный район (78650000)"},"Указывается наименование и код муниципального района, муниципального образования в соответствии с Общероссийским классификатором территорий муниципальных образований (далее - ОКТМО), входящего в муниципальный район, на территории которого организация оказывает услуги по регулируемому виду деятельности.\nВ случае оказания услуг по регулируемому виду деятельности на территории нескольких муниципальных районов (муниципальных образований) данные по каждому их них указываются в отдельной строке."]
[3,{"$nulls":4},{"$f":"\"2.\" &mergeValue(A20)","v":"2.3"},"Наименование централизованной системы коммунальной инфраструктуры",{"$f":"IF('Перечень тарифов'!R26=\"\",\"наименование отсутствует\",\"\" & 'Перечень тарифов'!R26 & \"\")","v":"Тарифы на тепловую энергию для потребителей с. Лучинское Ярославского муниципального района Ярославской области через тепловые сети ФГБУ \"Центр жилищно-коммунального управления\" Министерства обороны РФ"},"Указывается наименование централизованной системы холодного водоснабжения/горячего водоснабжения/водоотведения/теплоснабжения, к которой относится размещаемая информация.\nВ случае наличия нескольких централизованных систем коммунальной инфраструктуры, информация по каждой из них указывается в отдельной строке."]
[{"$nulls":5},{"$f":"\"3.\" &mergeValue(A21)","v":"3.3"},"Наименование регулируемого вида деятельности",{"$f":"IF('Перечень тарифов'!F21=\"\",\"наименование отсутствует\",\"\" & 'Перечень тарифов'!F21 & \"\")","v":"Производство тепловой энергии. Некомбинированная выработка; Производство тепловой энергии. Комбинированная выработка с уст. мощностью производства электрической энергии 25 МВт и более; Передача. Тепловая энергия; Сбыт. Тепловая энергия"},"Указывается наименование вида регулируемой деятельности."]
[{"$nulls":5},{"$f":"\"4.\"&mergeValue(A22)","v":"4.3"},"Территория оказания услуги по регулируемому виду деятельности","x"]
[null,1,{"$nulls":3},{"$f":"\"4.\"&mergeValue(A23) &\".\"&mergeValue(B23)","v":"4.3.1"},"Субъект Российской Федерации",{"$f":"IF(region_name=\"\",\"\",region_name)","v":"Ярославская область"},"Указывается наименование субъекта Российской Федерации"]
[null,null,1,null,null,{"$f":"\"4.\"&mergeValue(A24) &\".\"&mergeValue(B24)&\".\"&mergeValue(C24)","v":"4.3.1.1"},"муниципальный район",{"$f":"IF(Территории!H16=\"\",\"\",\"\" & Территории!H16 & \"\")","v":"Ярославский муниципальный район"},"Указывается наименование муниципального района, на территории которого организация оказывает услуги по регулируемому виду деятельности."]
[{"$nulls":3},1,null,{"$f":"\"4.\"&mergeValue(A25) &\".\"&mergeValue(B25)&\".\"&mergeValue(C25)&\".\"&mergeValue(D25)","v":"4.3.1.1.1"},"муниципальное образование",{"$f":"IF(Территории!R17=\"\",\"\",\"\" & Территории!R17 & \"\")","v":"Ярославский муниципальный район (78650000)"},"Указывается наименование и код муниципального района, муниципального образования в соответствии с Общероссийским классификатором территорий муниципальных образований (далее - ОКТМО), входящего в муниципальный район, на территории которого организация оказывает услуги по регулируемому виду деятельности.\nВ случае оказания услуг по регулируемому виду деятельности на территории нескольких муниципальных районов (муниципальных образований) данные по каждому их них указываются в отдельной строке."]
[4,{"$nulls":4},{"$f":"\"2.\" &mergeValue(A26)","v":"2.4"},"Наименование централизованной системы коммунальной инфраструктуры",{"$f":"IF('Перечень тарифов'!R31=\"\",\"наименование отсутствует\",\"\" & 'Перечень тарифов'!R31 & \"\")","v":"Тарифы на тепловую энергию для теплосетевых организаций с целью компенсации потерь в зоне деятельности ЕТО-1"},"Указывается наименование централизованной системы холодного водоснабжения/горячего водоснабжения/водоотведения/теплоснабжения, к которой относится размещаемая информация.\nВ случае наличия нескольких централизованных систем коммунальной инфраструктуры, информация по каждой из них указывается в отдельной строке."]
[{"$nulls":5},{"$f":"\"3.\" &mergeValue(A27)","v":"3.4"},"Наименование регулируемого вида деятельности",{"$f":"IF('Перечень тарифов'!F31=\"\",\"наименование отсутствует\",\"\" & 'Перечень тарифов'!F31 & \"\")","v":"Сбыт. Тепловая энергия"},"Указывается наименование вида регулируемой деятельности."]
[{"$nulls":5},{"$f":"\"4.\"&mergeValue(A28)","v":"4.4"},"Территория оказания услуги по регулируемому виду деятельности","x"]
[null,1,{"$nulls":3},{"$f":"\"4.\"&mergeValue(A29) &\".\"&mergeValue(B29)","v":"4.4.1"},"Субъект Российской Федерации",{"$f":"IF(region_name=\"\",\"\",region_name)","v":"Ярославская область"},"Указывается наименование субъекта Российской Федерации"]
[null,null,1,null,null,{"$f":"\"4.\"&mergeValue(A30) &\".\"&mergeValue(B30)&\".\"&mergeValue(C30)","v":"4.4.1.1"},"муниципальный район",{"$f":"IF(Территории!H13=\"\",\"\",\"\" & Территории!H13 & \"\")","v":"город Ярославль"},"Указывается наименование муниципального района, на территории которого организация оказывает услуги по регулируемому виду деятельности."]
[{"$nulls":3},1,null,{"$f":"\"4.\"&mergeValue(A31) &\".\"&mergeValue(B31)&\".\"&mergeValue(C31)&\".\"&mergeValue(D31)","v":"4.4.1.1.1"},"муниципальное образование",{"$f":"IF(Территории!R14=\"\",\"\",\"\" & Территории!R14 & \"\")","v":"город Ярославль (78701000)"},"Указывается наименование и код муниципального района, муниципального образования в соответствии с Общероссийским классификатором территорий муниципальных образований (далее - ОКТМО), входящего в муниципальный район, на территории которого организация оказывает услуги по регулируемому виду деятельности.\nВ случае оказания услуг по регулируемому виду деятельности на территории нескольких муниципальных районов (муниципальных образований) данные по каждому их них указываются в отдельной строке."]
[]
[{"$nulls":6},"  1 Информация размещается при раскрытии информации по каждой из форм."]

{"sheet":"Форма 4.9","index":31,"n_rows":14,"n_cols":8,"rows_kept":14,"merged":[[4,3,4,6],[6,3,6,6],[6,7,7,7],[9,7,13,7]]}
[]
[]
[]
[]
[{"$nulls":3},"Форма 4.9 Информация о способах приобретения, стоимости и объемах товаров, необходимых для производства товаров и (или) оказания услуг"]
[]
[{"$nulls":3},"Параметры формы",{"$nulls":3},"Описание параметров формы"]
[{"$nulls":3},"№ п/п","Наименование параметра","Информация","Ссылка на документ"]
[{"$nulls":3},"1","2","3","4","5"]
[{"$nulls":3},"1","Сведения о правовых актах, регламентирующих правила закупки (положение о закупках) в организации","Положение о закупочной деятельности (новая редакция №4), утверждено приказом \"ПАО \"ТГК-2\" от 26.09.2019 № 313 ","http://www.tgc-2.ru/procurements/activity/legal/","В колонке «Информация» указывается описательная информация, характеризующая размещаемые данные.\nВ колонке «Ссылка на документ» указывается либо ссылка на документ, предварительно загруженный в хранилище файлов ФГИС ЕИАС, либо ссылка на официальный сайт в сети «Интернет», на котором размещена информация.\nВ случае наличия дополнительных сведений о способах приобретения, стоимости и объемах товаров, необходимых для производства товаров и (или) оказания услуг организацией, информация по ним указывается в отдельных строках."]
[{"$nulls":3},"2","Сведения о месте размещения положения о закупках организации","Официальный сайт ПАО «ТГК-2»\n\n\nОфициальный сайт Единой информационной системы в сфере закупок\n\n\n","http://www.tgc-2.ru/procurements/activity/legal/"]
[{"$nulls":3},"3","Сведения о планировании закупочных процедур","Годовая комплексная программа закупок ПАО «ТГК-2» на 2020 год","http://www.tgc-2.ru/procurements/reports/"]
[{"$nulls":3},"4","Сведения о результатах проведения закупочных процедур","Реестр закупок\n\n\n\n\n\n\n\n\nРеестр договоров","http://zakupki.gov.ru/epz/order/quicksearch/search.html?searchString=7606053324&morphology=on&pageNumber=1&sortDirection=false&recordsPerPage=_10&showLotsInfoHidden=false&fz44=on&fz223=on&af=on&ca=on&pc=on&pa=on&currencyId=-1&regionDeleted=false&sortBy=UPDATE_DATEhttp://zakupki.gov.ru/epz/contractfz223/quicksearch/search.html?searchString=7606053324&morphology=on&pageNumber=1&sortDirection=false&recordsPerPage=_10&statuses_0=on&statuses=0&currencyId=-1&regionDeleted=false&sortBy=BY_UPDATE_DATE"]
[{"$nulls":4},"Добавить сведения"]

{"sheet":"Форма 1.0.1 | Форма 4.10.1","index":32,"n_rows":33,"n_cols":10,"rows_kept":33,"merged":[[1,5,1,7],[3,5,3,7],[3,8,4,8],[7,0,12,0],[10,1,12,1],[11,2,12,2],[13,0,18,0],[16,1,18,1],[17,2,18,2],[19,0,24,0],[22,1,24,1],[23,2,24,2],[25,0,30,0],[28,1,30,1],[29,2,30,2],[32,6,32,7]]}
["11"]
[{"$nulls":5},"Форма 1.0.1 Основные параметры раскрываемой информации 1"]
[]
[{"$nulls":5},"Параметры формы",null,null,"Описание параметров формы"]
[{"$nulls":5},"№ п/п","Наименование параметра","Информация"]
[{"$nulls":5},"1",2,3,4,4]
[{"$nulls":5},1,"Дата заполнения/внесения изменений",{"$f":"IF(dateCh=\"\",\"\",dateCh)","v":"29.04.2020"},"Указывается календарная дата первичного заполнения или внесения изменений в форму в виде «ДД.ММ.ГГГГ»."]
[1,{"$nulls":4},{"$f":"\"2.\" &mergeValue(A8)","v":"2.1"},"Наименование централизованной системы коммунальной инфраструктуры",{"$f":"IF('Перечень тарифов'!R21=\"\",\"наименование отсутствует\",\"\" & 'Перечень тарифов'!R21 & \"\")","v":"Тарифы на тепловую энергию для потребитетей г. Ярославля в зоне деятельности ЕТО-1"},"Указывается наименование централизованной системы холодного водоснабжения/горячего водоснабжения/водоотведения/теплоснабжения, к которой относится размещаемая информация.\nВ случае наличия нескольких централизованных систем коммунальной инфраструктуры, информация по каждой из них указывается в отдельной строке."]
[{"$nulls":5},{"$f":"\"3.\" &mergeValue(A9)","v":"3.1"},"Наименование регулируемого вида деятельности",{"$f":"IF('Перечень тарифов'!F21=\"\",\"наименование отсутствует\",\"\" & 'Перечень тарифов'!F21 & \"\")","v":"Производство тепловой энергии. Некомбинированная выработка; Производство тепловой энергии. Комбинированная выработка с уст. мощностью производства электрической энергии 25 МВт и более; Передача. Тепловая энергия; Сбыт. Тепловая энергия"},"Указывается наименование вида регулируемой деятельности."]
[{"$nulls":5},{"$f":"\"4.\"&mergeValue(A10)","v":"4.1"},"Территория оказания услуги по регулируемому виду деятельности","x"]
[null,1,{"$nulls":3},{"$f":"\"4.\"&mergeValue(A11) &\".\"&mergeValue(B11)","v":"4.1.1"},"Субъект Российской Федерации",{"$f":"IF(region_name=\"\",\"\",region_name)","v":"Ярославская область"},"Указывается наименование субъекта Российской Федерации"]
[null,null,1,null,null,{"$f":"\"4.\"&mergeValue(A12) &\".\"&mergeValue(B12)&\".\"&mergeValue(C12)","v":"4.1.1.1"},"муниципальный район",{"$f":"IF(Территории!H13=\"\",\"\",\"\" & Территории!H13 & \"\")","v":"город Ярославль"},"Указывается наименование муниципального района, на территории которого организация оказывает услуги по регулируемому виду деятельности."]
[{"$nulls":3},1,null,{"$f":"\"4.\"&mergeValue(A13) &\".\"&mergeValue(B13)&\".\"&mergeValue(C13)&\".\"&mergeValue(D13)","v":"4.1.1.1.1"},"муниципальное образование",{"$f":"IF(Территории!R14=\"\",\"\",\"\" & Территории!R14 & \"\")","v":"город Ярославль (78701000)"},"Указывается наименование и код муниципального района, муниципального образования в соответствии с Общероссийским классификатором территорий муниципальных образований (далее - ОКТМО), входящего в муниципальный район, на территории которого организация оказывает услуги по регулируемому виду деятельности.\nВ случае оказания услуг по регулируемому виду деятельности на территории нескольких муниципальных районов (муниципальных образований) данные по каждому их них указываются в отдельной строке."]
[2,{"$nulls":4},{"$f":"\"2.\" &mergeValue(A14)","v":"2.2"},"Наименование централизованной системы коммунальной инфраструктуры",{"$f":"IF('Перечень тарифов'!R24=\"\",\"наименование отсутствует\",\"\" & 'Перечень тарифов'!R24 & \"\")","v":"Тарифы на тепловую энергию для потребитетей Ярославского муниципального района Ярославской области в зоне деятельности ЕТО-4"},"Указывается наименование централизованной системы холодного водоснабжения/горячего водоснабжения/водоотведения/теплоснабжения, к которой относится размещаемая информация.\nВ случае наличия нескольких централизованных систем коммунальной инфраструктуры, информация по каждой из них указывается в отдельной строке."]
[{"$nulls":5},{"$f":"\"3.\" &mergeValue(A15)","v":"3.2"},"Наименование регулируемого вида деятельности",{"$f":"IF('Перечень тарифов'!F21=\"\",\"наименование отсутствует\",\"\" & 'Перечень тарифов'!F21 & \"\")","v":"Производство тепловой энергии. Некомбинированная выработка; Производство тепловой энергии. Комбинированная выработка с уст. мощностью производства электрической энергии 25 МВт и более; Передача. Тепловая энергия; Сбыт. Тепловая энергия"},"Указывается наименование вида регулируемой деятельности."]
[{"$nulls":5},{"$f":"\"4.\"&mergeValue(A16)","v":"4.2"},"Территория оказания услуги по регулируемому виду деятельности","x"]
[null,1,{"$nulls":3},{"$f":"\"4.\"&mergeValue(A17) &\".\"&mergeValue(B17)","v":"4.2.1"},"Субъект Российской Федерации",{"$f":"IF(region_name=\"\",\"\",region_name)","v":"Ярославская область"},"Указывается наименование субъекта Российской Федерации"]
[null,null,1,null,null,{"$f":"\"4.\"&mergeValue(A18) &\".\"&mergeValue(B18)&\".\"&mergeValue(C18)","v":"4.2.1.1"},"муниципальный район",{"$f":"IF(Территории!H16=\"\",\"\",\"\" & Территории!H16 & \"\")","v":"Ярославский муниципальный район"},"Указывается наименование муниципального района, на территории которого организация оказывает услуги по регулируемому виду деятельности."]
[{"$nulls":3},1,null,{"$f":"\"4.\"&mergeValue(A19) &\".\"&mergeValue(B19)&\".\"&mergeValue(C19)&\".\"&mergeValue(D19)","v":"4.2.1.1.1"},"муниципальное образование",{"$f":"IF(Территории!R17=\"\",\"\",\"\" & Территории!R17 & \"\")","v":"Ярославский муниципальный район (78650000)"},"Указывается наименование и код муниципального района, муниципального образования в соответствии с Общероссийским классификатором территорий муниципальных образований (далее - ОКТМО), входящего в муниципальный район, на территории которого организация оказывает услуги по регулируемому виду деятельности.\nВ случае оказания услуг по регулируемому виду деятельности на территории нескольких муниципальных районов (муниципальных образований) данные по каждому их них указываются в отдельной строке."]
[3,{"$nulls":4},{"$f":"\"2.\" &mergeValue(A20)","v":"2.3"},"Наименование централизованной системы коммунальной инфраструктуры",{"$f":"IF('Перечень тарифов'!R26=\"\",\"наименование отсутствует\",\"\" & 'Перечень тарифов'!R26 & \"\")","v":"Тарифы на тепловую энергию для потребителей с. Лучинское Ярославского муниципального района Ярославской области через тепловые сети ФГБУ \"Центр жилищно-коммунального управления\" Министерства обороны РФ"},"Указывается наименование централизованной системы холодного водоснабжения/горячего водоснабжения/водоотведения/теплоснабжения, к которой относится размещаемая информация.\nВ случае наличия нескольких централизованных систем коммунальной инфраструктуры, информация по каждой из них указывается в отдельной строке."]
[{"$nulls":5},{"$f":"\"3.\" &mergeValue(A21)","v":"3.3"},"Наименование регулируемого вида деятельности",{"$f":"IF('Перечень тарифов'!F21=\"\",\"наименование отсутствует\",\"\" & 'Перечень тарифов'!F21 & \"\")","v":"Производство тепловой энергии. Некомбинированная выработка; Производство тепловой энергии. Комбинированная выработка с уст. мощностью производства электрической энергии 25 МВт и более; Передача. Тепловая энергия; Сбыт. Тепловая энергия"},"Указывается наименование вида регулируемой деятельности."]
[{"$nulls":5},{"$f":"\"4.\"&mergeValue(A22)","v":"4.3"},"Территория оказания услуги по регулируемому виду деятельности","x"]
[null,1,{"$nulls":3},{"$f":"\"4.\"&mergeValue(A23) &\".\"&mergeValue(B23)","v":"4.3.1"},"Субъект Российской Федерации",{"$f":"IF(region_name=\"\",\"\",region_name)","v":"Ярославская область"},"Указывается наименование субъекта Российской Федерации"]
[null,null,1,null,null,{"$f":"\"4.\"&mergeValue(A24) &\".\"&mergeValue(B24)&\".\"&mergeValue(C24)","v":"4.3.1.1"},"муниципальный район",{"$f":"IF(Территории!H16=\"\",\"\",\"\" & Территории!H16 & \"\")","v":"Ярославский муниципальный район"},"Указывается наименование муниципального района, на территории которого организация оказывает услуги по регулируемому виду деятельности."]
[{"$nulls":3},1,null,{"$f":"\"4.\"&mergeValue(A25) &\".\"&mergeValue(B25)&\".\"&mergeValue(C25)&\".\"&mergeValue(D25)","v":"4.3.1.1.1"},"муниципальное образование",{"$f":"IF(Территории!R17=\"\",\"\",\"\" & Территории!R17 & \"\")","v":"Ярославский муниципальный район (78650000)"},"Указывается наименование и код муниципального района, муниципального образования в соответствии с Общероссийским классификатором территорий муниципальных образований (далее - ОКТМО), входящего в муниципальный район, на территории которого организация оказывает услуги по регулируемому виду деятельности.\nВ случае оказания услуг по регулируемому виду деятельности на территории нескольких муниципальных районов (муниципальных образований) данные по каждому их них указываются в отдельной строке."]
[4,{"$nulls":4},{"$f":"\"2.\" &mergeValue(A26)","v":"2.4"},"Наименование централизованной системы коммунальной инфраструктуры",{"$f":"IF('Перечень тарифов'!R31=\"\",\"наименование отсутствует\",\"\" & 'Перечень тарифов'!R31 & \"\")","v":"Тарифы на тепловую энергию для теплосетевых организаций с целью компенсации потерь в зоне деятельности ЕТО-1"},"Указывается наименование централизованной системы холодного водоснабжения/горячего водоснабжения/водоотведения/теплоснабжения, к которой относится размещаемая информация.\nВ случае наличия нескольких централизованных систем коммунальной инфраструктуры, информация по каждой из них указывается в отдельной строке."]
[{"$nulls":5},{"$f":"\"3.\" &mergeValue(A27)","v":"3.4"},"Наименование регулируемого вида деятельности",{"$f":"IF('Перечень тарифов'!F31=\"\",\"наименование отсутствует\",\"\" & 'Перечень тарифов'!F31 & \"\")","v":"Сбыт. Тепловая энергия"},"Указывается наименование вида регулируемой деятельности."]
[{"$nulls":5},{"$f":"\"4.\"&mergeValue(A28)","v":"4.4"},"Территория оказания услуги по регулируемому виду деятельности","x"]
[null,1,{"$nulls":3},{"$f":"\"4.\"&mergeValue(A29) &\".\"&mergeValue(B29)","v":"4.4.1"},"Субъект Российской Федерации",{"$f":"IF(region_name=\"\",\"\",region_name)","v":"Ярославская область"},"Указывается наименование субъекта Российской Федерации"]
[null,null,1,null,null,{"$f":"\"4.\"&mergeValue(A30) &\".\"&mergeValue(B30)&\".\"&mergeValue(C30)","v":"4.4.1.1"},"муниципальный район",{"$f":"IF(Территории!H13=\"\",\"\",\"\" & Территории!H13 & \"\")","v":"город Ярославль"},"Указывается наименование муниципального района, на территории которого организация оказывает услуги по регулируемому виду деятельности."]
[{"$nulls":3},1,null,{"$f":"\"4.\"&mergeValue(A31) &\".\"&mergeValue(B31)&\".\"&mergeValue(C31)&\".\"&mergeValue(D31)","v":"4.4.1.1.1"},"муниципальное образование",{"$f":"IF(Территории!R14=\"\",\"\",\"\" & Территории!R14 & \"\")","v":"город Ярославль (78701000)"},"Указывается наименование и код муниципального района, муниципального образования в соответствии с Общероссийским классификатором территорий муниципальных образований (далее - ОКТМО), входящего в муниципальный район, на территории которого организация оказывает услуги по регулируемому виду деятельности.\nВ случае оказания услуг по регулируемому виду деятельности на территории нескольких муниципальных районов (муниципальных образований) данные по каждому их них указываются в отдельной строке."]
[]
[{"$nulls":6},"  1 Информация размещается при раскрытии информации по каждой из форм."]

{"sheet":"Форма 4.10.1","index":33,"n_rows":68,"n_cols":15,"rows_kept":68,"merged":[[4,3,4,10],[6,5,6,10],[7,5,7,10],[9,3,9,10],[9,11,11,11],[10,3,11,3],[10,4,11,4],[10,5,11,5],[10,6,10,8],[10,9,11,9],[10,10,11,10],[11,6,11,7],[12,6,12,7],[13,4,13,10],[14,6,14,7],[15,4,15,10],[16,2,17,2],[16,3,17,3],[16,4,17,4],[16,5,17,5],[16,11,19,11],[18,3,19,3],[18,4,19,4],[18,5,19,5],[20,4,20,10],[21,6,21,7],[22,4,22,10],[23,2,27,2],[23,3,27,3],[23,4,27,4],[23,5,27,5],[23,11,32,11],[28,3,32,3],[28,4,32,4],[28,5,32,5],[33,4,33,10],[34,2,38,2],[34,3,38,3],[34,4,38,4],[34,5,38,5],[34,11,43,11],[39,3,43,3],[39,4,43,4],[39,5,43,5],[44,4,44,10],[45,2,49,2],[45,3,49,3],[45,4,49,4],[45,5,49,5],[45,11,54,11],[50,3,54,3],[50,4,54,4],[50,5,54,5],[55,4,55,10],[56,2,60,2],[56,3,60,3],[56,4,60,4],[56,5,60,5],[56,11,65,11],[61,3,65,3],[61,4,65,4],[61,5,65,5],[67,4,67,11]]}
[]
[]
[]
[]
[{"$nulls":3},"Форма 4.10.1 Информация о предложении регулируемой организацией об установлении тарифов в сфере теплоснабжения на очередной период регулирования1"]
[]
[{"$nulls":4},{"$f":"\"Дата подачи заявления об \"&IF(datePr_ch=\"\",\"утверждении\",\"изменении\") & \" тарифов\"","v":"Дата подачи заявления об утверждении тарифов"},{"$f":"IF(datePr_ch=\"\",IF(datePr=\"\",\"\",datePr),datePr_ch)","v":"28.04.2020"}]
[{"$nulls":4},{"$f":"\"Номер подачи заявления об \"&IF(numberPr_ch=\"\",\"утверждении\",\"изменении\") & \" тарифов\"","v":"Номер подачи заявления об утверждении тарифов"},{"$f":"IF(numberPr_ch=\"\",IF(numberPr=\"\",\"\",numberPr),numberPr_ch)","v":"01-10/004762 "}]
[]
[{"$nulls":3},"Параметры формы",{"$nulls":7},"Описание параметров формы"]
[{"$nulls":3},"№ п/п","Вид тарифа","Наименование тарифа","Период действия тарифов",null,null,"Информация","Ссылка на документ"]
[{"$nulls":6},"с",null,"по"]
[{"$nulls":3},"1","2","3","4",null,"5","6","7","8"]
[{"$nulls":3},1,"Копия инвестиционной программы, утвержденной в установленном законодательством Российской Федерации порядке, а до ее утверждения копия проекта инвестиционной программы"]
[{"$nulls":3},"1.1","x","x","x",null,"x","Инвестиционная программа ПАО «ТГК-2» в сфере теплоснабжения на 2019-2023 годы, утвержденная приказом Департамента жилищно-коммунального хозяйства энергетики и регулирования тарифов Ярославской области от 30.10.2018г. № 374 с изменениями, утвержденными приказом № 472 от 18.11.2019","https://portal.eias.ru/Portal/DownloadPage.aspx?type=12&guid=38102b13-0cdd-4d82-aa3e-aa317df9fcc9","Заполняется в случае наличия инвестиционной программы (проекта инвестиционной программы) в отчетном периоде.\nВ колонке «Информация» указывается наименование инвестиционной программы.\nВ колонке «Ссылка на документ» указывается ссылка на документ, предварительно загруженный в хранилище файлов ФГИС ЕИАС."]
[null,3,null,2,"Предлагаемый метод регулирования",{"$nulls":4},"x"]
[{"$nulls":3},"2.1",{"$f":"IF('Перечень тарифов'!E21=\"\",\"наименование отсутствует\",\"\" & 'Перечень тарифов'!E21 & \"\")","v":"Тарифы на тепловую энергию (мощность), поставляемую потребителям теплоснабжающими организациями в соответствии с установленными предельными (минимальными и (или) максимальными) уровнями указанных тарифов"},{"$f":"IF('Перечень тарифов'!J21=\"\",\"наименование отсутствует\",\"\" & 'Перечень тарифов'!J21 & \"\")","v":"Тарифы на тепловую энергию, поставляемую потребителям единой теплоснабжающей организации ПАО \"ТГК-2\""},null,"01.01.2021","31.12.2023","метод индексации установленных тарифов","x","Значение в колонке «Вид тарифа» выбирается из перечня видов тарифов в сфере теплоснабжения, предусмотренных законодательством в сфере теплоснабжения.\nЗначение в колонке «Информация» выбирается из перечня: Метод экономически обоснованных расходов (затрат); Метод индексации установленных тарифов; Метод обеспечения доходности инвестированного капитала; Метод сравнения аналогов.\nДаты начала и окончания периода действия тарифов указывается в виде «ДД.ММ.ГГГГ».\nВ случае дифференциации предлагаемых методов регулирования видам тарифов и (или) по периодам действия тарифов информация по каждому из них указывается в отдельной строке."]
[{"$nulls":7},"Добавить период"]
[{"$nulls":3},"2.2",{"$f":"IF('Перечень тарифов'!E31=\"\",\"наименование отсутствует\",\"\" & 'Перечень тарифов'!E31 & \"\")","v":"Тарифы на тепловую энергию (мощность), поставляемую другим теплоснабжающим организациям теплоснабжающими организациями"},{"$f":"IF('Перечень тарифов'!J31=\"\",\"наименование отсутствует\",\"\" & 'Перечень тарифов'!J31 & \"\")","v":"Тарифы на тепловую энергию, поставляемую единой теплоснабжающей организацией ПАО \"ТГК-2\" теплосетевым организациям в зоне деятельности ЕТО-1, приобретающим тепловую энергию с целью компенсации потерь"},null,"01.01.2021","31.12.2023","метод индексации установленных тарифов","x"]
[{"$nulls":7},"Добавить период"]
[null,3,null,"3","Долгосрочные параметры регулирования (в случае если их установление предусмотрено выбранным методом регулирования)"]
[{"$nulls":3},"3.1","x","x","x",null,"x","x","https://portal.eias.ru/Portal/DownloadPage.aspx?type=12&guid=38102b13-0cdd-4d82-aa3e-aa317df9fcc9","Долгосрочные параметры регулирования указываются в случае выбора любого метода регулирования за исключением метода экономически обоснованных затрат в виде ссылки на документ, предварительно загруженный в хранилище файлов ФГИС ЕИАС."]
[null,3,null,"4","Необходимая валовая выручка на соответствующий период, в том числе с разбивкой по годам"]
[{"$nulls":3},"4.1",{"$f":"IF('Перечень тарифов'!E21=\"\",\"наименование отсутствует\",\"\" & 'Перечень тарифов'!E21 & \"\")","v":"Тарифы на тепловую энергию (мощность), поставляемую потребителям теплоснабжающими организациями в соответствии с установленными предельными (минимальными и (или) максимальными) уровнями указанных тарифов"},{"$f":"IF('Перечень тарифов'!J21=\"\",\"наименование отсутствует\",\"\" & 'Перечень тарифов'!J21 & \"\")","v":"Тарифы на тепловую энергию, поставляемую потребителям единой теплоснабжающей организации ПАО \"ТГК-2\""},null,"01.01.2021","30.06.2021",{"$f":"6715692.91874578*0.581907","v":{"v":3907908.7192686005,"d":"3,907,908.72"}},"x","Значение в колонке «Вид тарифа» выбирается из перечня видов тарифов в сфере теплоснабжения, предусмотренных законодательством в сфере теплоснабжения.\nДаты начала и окончания периода действия тарифов указывается в виде «ДД.ММ.ГГГГ».\nВеличина необходимой валовой выручки указывается в колонке «Информация» в тыс. руб.\nВ случае дифференциации необходимой валовой выручки по видам тарифов и (или) по периодам действия тарифов информация указывается в отдельных строках."]
[{"$nulls":6},"О","01.07.2021","30.06.2022",{"v":7047772.086690812,"d":"7,047,772.09"},"x"]
[{"$nulls":6},"О","01.07.2022","30.06.2023",{"v":7030779.567880638,"d":"7,030,779.57"},"x"]
[{"$nulls":6},"О","01.07.2023","31.12.2023",{"$f":"7313583.63578052*0.418093","v":{"v":3057758.123034385,"d":"3,057,758.12"}},"x"]
[{"$nulls":7},"Добавить период"]
[{"$nulls":3},"4.2",{"$f":"IF('Перечень тарифов'!E31=\"\",\"наименование отсутствует\",\"\" & 'Перечень тарифов'!E31 & \"\")","v":"Тарифы на тепловую энергию (мощность), поставляемую другим теплоснабжающим организациям теплоснабжающими организациями"},{"$f":"IF('Перечень тарифов'!J31=\"\",\"наименование отсутствует\",\"\" & 'Перечень тарифов'!J31 & \"\")","v":"Тарифы на тепловую энергию, поставляемую единой теплоснабжающей организацией ПАО \"ТГК-2\" теплосетевым организациям в зоне деятельности ЕТО-1, приобретающим тепловую энергию с целью компенсации потерь"},null,"01.01.2021","30.06.2021",{"$f":"244093.446277041*0.581907","v":{"v":142039.68504273408,"d":"142,039.69"}},"x"]
[{"$nulls":6},"О","01.07.2021","30.06.2022",{"v":265432.5469849572,"d":"265,432.55"},"x"]
[{"$nulls":6},"О","01.07.2022","30.06.2023",{"v":267182.342607939,"d":"267,182.34"},"x"]
[{"$nulls":6},"О","01.07.2023","31.12.2023",{"$f":"274696.433794206*0.418093","v":{"v":114848.65609432098,"d":"114,848.66"}},"x"]
[{"$nulls":7},"Добавить период"]
[{"$nulls":3},"5","Годовой объем полезного отпуска тепловой энергии (теплоносителя)"]
[{"$nulls":3},"5.1",{"$f":"IF('Перечень тарифов'!E21=\"\",\"наименование отсутствует\",\"\" & 'Перечень тарифов'!E21 & \"\")","v":"Тарифы на тепловую энергию (мощность), поставляемую потребителям теплоснабжающими организациями в соответствии с установленными предельными (минимальными и (или) максимальными) уровнями указанных тарифов"},{"$f":"IF('Перечень тарифов'!J21=\"\",\"наименование отсутствует\",\"\" & 'Перечень тарифов'!J21 & \"\")","v":"Тарифы на тепловую энергию, поставляемую потребителям единой теплоснабжающей организации ПАО \"ТГК-2\""},null,"01.01.2021","30.06.2021",{"$f":"(4214.96961107895+40.16)*0.581907","v":{"v":2476.089706594118,"d":"2,476.09"}},"x","Значение в колонке «Вид тарифа» выбирается из перечня видов тарифов в сфере теплоснабжения, предусмотренных законодательством в сфере теплоснабжения\r\nДаты начала и окончания периода действия тарифов указывается в виде «ДД.ММ.ГГГГ».\r\nВеличина годового объема полезного отпуска тепловой энергии (теплоносителя) указывается в колонке «Информация» в тыс. Гкал.\r\nВ случае дифференциации объема полезного отпуска тепловой энергии (теплоносителя) по видам тарифов и (или) по периодам действия тарифов информация указывается в отдельных строках."]
[{"$nulls":6},"О","01.07.2021","30.06.2022",{"$f":"4047.53973767539+36.61","v":{"v":4084.14973767539,"d":"4,084.15"}},"x"]
[{"$nulls":6},"О","01.07.2022","30.06.2023",{"$f":"4047.53973767539+36.61","v":{"v":4084.14973767539,"d":"4,084.15"}},"x"]
[{"$nulls":6},"О","01.07.2023","31.12.2023",{"$f":"(4047.53973767539+36.61)-J35","v":{"v":1608.060031081272,"d":"1,608.06"}},"x"]
[{"$nulls":7},"Добавить период"]
[{"$nulls":3},"5.2",{"$f":"IF('Перечень тарифов'!E31=\"\",\"наименование отсутствует\",\"\" & 'Перечень тарифов'!E31 & \"\")","v":"Тарифы на тепловую энергию (мощность), поставляемую другим теплоснабжающим организациям теплоснабжающими организациями"},{"$f":"IF('Перечень тарифов'!J31=\"\",\"наименование отсутствует\",\"\" & 'Перечень тарифов'!J31 & \"\")","v":"Тарифы на тепловую энергию, поставляемую единой теплоснабжающей организацией ПАО \"ТГК-2\" теплосетевым организациям в зоне деятельности ЕТО-1, приобретающим тепловую энергию с целью компенсации потерь"},null,"01.01.2021","30.06.2021",{"$f":"175.477295*0.581907","v":{"v":102.11146630156499,"d":"102.11"}},"x"]
[{"$nulls":6},"О","01.07.2021","30.06.2022",{"v":167.27348299999997,"d":"167.27"},"x"]
[{"$nulls":6},"О","01.07.2022","30.06.2023",{"v":167.27348299999997,"d":"167.27"},"x"]
[{"$nulls":6},"О","01.07.2023","31.12.2023",{"$f":"167.273483-J40","v":{"v":65.16201669843501,"d":"65.16"}},"x"]
[{"$nulls":7},"Добавить период"]
[{"$nulls":3},"6","Размер недополученных доходов регулируемой организацией, исчисленный в соответствии с законодательством в сфере теплоснабжения"]
[{"$nulls":3},"6.1",{"$f":"IF('Перечень тарифов'!E21=\"\",\"наименование отсутствует\",\"\" & 'Перечень тарифов'!E21 & \"\")","v":"Тарифы на тепловую энергию (мощность), поставляемую потребителям теплоснабжающими организациями в соответствии с установленными предельными (минимальными и (или) максимальными) уровнями указанных тарифов"},{"$f":"IF('Перечень тарифов'!J21=\"\",\"наименование отсутствует\",\"\" & 'Перечень тарифов'!J21 & \"\")","v":"Тарифы на тепловую энергию, поставляемую потребителям единой теплоснабжающей организации ПАО \"ТГК-2\""},null,"01.01.2021","30.06.2021",{"v":0,"d":"0.00"},"x","Значение в колонке «Вид тарифа» выбирается из перечня видов тарифов в сфере теплоснабжения, предусмотренных законодательством в сфере теплоснабжения.\nДаты начала и окончания периода действия тарифов указывается в виде «ДД.ММ.ГГГГ».\nВеличина недополученных доходов регулируемой организации указывается в колонке «Информация» в тыс. руб. \nВ случае отсутствия недополученных доходов регулируемой организацией, исчисленных в соответствии с законодательством в сфере теплоснабжения, указывается значение 0.\nВ случае дифференциации недополученных доходов регулируемой организацией по видам тарифов и (или) по периодам действия тарифов информация указывается в отдельных строках.",null,null,"c 01:03 до 18:55"]
[{"$nulls":6},"О","01.07.2021","30.06.2022",{"v":145328.79483577143,"d":"145,328.79"},"x"]
[{"$nulls":6},"О","01.07.2022","30.06.2023",{"v":0,"d":"0.00"},"x"]
[{"$nulls":6},"О","01.07.2023","31.12.2023",{"v":0,"d":"0.00"},"x"]
[{"$nulls":7},"Добавить период"]
[{"$nulls":3},"6.2",{"$f":"IF('Перечень тарифов'!E31=\"\",\"наименование отсутствует\",\"\" & 'Перечень тарифов'!E31 & \"\")","v":"Тарифы на тепловую энергию (мощность), поставляемую другим теплоснабжающим организациям теплоснабжающими организациями"},{"$f":"IF('Перечень тарифов'!J31=\"\",\"наименование отсутствует\",\"\" & 'Перечень тарифов'!J31 & \"\")","v":"Тарифы на тепловую энергию, поставляемую единой теплоснабжающей организацией ПАО \"ТГК-2\" теплосетевым организациям в зоне деятельности ЕТО-1, приобретающим тепловую энергию с целью компенсации потерь"},null,"01.01.2021","30.06.2021",{"v":0,"d":"0.00"},"x"]
[{"$nulls":6},"О","01.07.2021","30.06.2022",{"v":0,"d":"0.00"},"x"]
[{"$nulls":6},"О","01.07.2022","30.06.2023",{"v":0,"d":"0.00"},"x"]
[{"$nulls":6},"О","01.07.2023","31.12.2023",{"v":0,"d":"0.00"},"x"]
[{"$nulls":7},"Добавить период"]
[null,3,null,"7","Размер экономически обоснованных расходов, не учтенных при регулировании тарифов в предыдущий период регулирования (при их наличии), определенном в соответствии с законодательством в сфере теплоснабжения"]
[{"$nulls":3},"7.1",{"$f":"IF('Перечень тарифов'!E21=\"\",\"наименование отсутствует\",\"\" & 'Перечень тарифов'!E21 & \"\")","v":"Тарифы на тепловую энергию (мощность), поставляемую потребителям теплоснабжающими организациями в соответствии с установленными предельными (минимальными и (или) максимальными) уровнями указанных тарифов"},{"$f":"IF('Перечень тарифов'!J21=\"\",\"наименование отсутствует\",\"\" & 'Перечень тарифов'!J21 & \"\")","v":"Тарифы на тепловую энергию, поставляемую потребителям единой теплоснабжающей организации ПАО \"ТГК-2\""},null,"01.01.2021","30.06.2021",{"v":0,"d":"0.00"},"x","Значение в колонке «Вид тарифа» выбирается из перечня видов тарифов в сфере теплоснабжения, предусмотренных законодательством в сфере теплоснабжения.\nДаты начала и окончания периода действия тарифов указывается в виде «ДД.ММ.ГГГГ».\nВеличина экономически обоснованных расходов, не учтенных при регулировании тарифов в предыдущий период регулирования, указывается в колонке «Информация» в тыс. руб. \nВ случае отсутствия экономически обоснованных расходов, не учтенных при регулировании тарифов в предыдущий период регулирования, определенных в соответствии с законодательством в сфере теплоснабжения, указывается значение 0.\nВ случае дифференциации экономически обоснованных расходов по видам тарифов и (или) по периодам действия тарифов информация указывается в отдельных строках."]
[{"$nulls":6},"О","01.07.2021","30.06.2022",{"v":0,"d":"0.00"},"x"]
[{"$nulls":6},"О","01.07.2022","30.06.2023",{"v":0,"d":"0.00"},"x"]
[{"$nulls":6},"О","01.07.2023","31.12.2023",{"v":0,"d":"0.00"},"x"]
[{"$nulls":7},"Добавить период"]
[{"$nulls":3},"7.2",{"$f":"IF('Перечень тарифов'!E31=\"\",\"наименование отсутствует\",\"\" & 'Перечень тарифов'!E31 & \"\")","v":"Тарифы на тепловую энергию (мощность), поставляемую другим теплоснабжающим организациям теплоснабжающими организациями"},{"$f":"IF('Перечень тарифов'!J31=\"\",\"наименование отсутствует\",\"\" & 'Перечень тарифов'!J31 & \"\")","v":"Тарифы на тепловую энергию, поставляемую единой теплоснабжающей организацией ПАО \"ТГК-2\" теплосетевым организациям в зоне деятельности ЕТО-1, приобретающим тепловую энергию с целью компенсации потерь"},null,"01.01.2021","30.06.2021",{"v":0,"d":"0.00"},"x"]
[{"$nulls":6},"О","01.07.2021","30.06.2022",{"v":0,"d":"0.00"},"x"]
[{"$nulls":6},"О","01.07.2022","30.06.2023",{"v":0,"d":"0.00"},"x"]
[{"$nulls":6},"О","01.07.2023","31.12.2023",{"v":0,"d":"0.00"},"x"]
[{"$nulls":7},"Добавить период"]
[]
[{"$nulls":3},1,"При размещении информации по данной форме дополнительно указывается дата подачи заявления об утверждении тарифа и его номер."]

{"sheet":"Форма 1.0.2","index":34,"n_rows":15,"n_cols":13,"rows_kept":15,"hidden":true,"merged":[[4,3,4,9],[7,3,7,9],[7,10,9,10],[8,3,9,3],[8,4,8,5],[8,6,8,9],[11,10,12,10],[14,4,14,9]]}
[]
[]
[]
[]
[{"$nulls":3},"Форма 1.0.2 Информация о публикации в печатных изданиях 2"]
[]
[]
[{"$nulls":3},"Параметры формы",{"$nulls":6},"Описание параметров формы"]
[{"$nulls":3},"№ п/п","Форма публикации",null,"Официальное печатное издание"]
[{"$nulls":4},"Номер","Наименование","Наименование","Номер","Дата выпуска","Ссылка на документ"]
[{"$nulls":3},"1","2","3","4","5","6","7","8"]
["3","",null,"1",{"$nulls":6},"В колонке «Дата выпуска» дата выпуска печатного издания указывается в виде «ДД.ММ.ГГГГ».\nВ колонке «Ссылка на документ» указывается ссылка на отсканированную копию печатного издания, предварительно загруженную в хранилище федеральной государственной информационной системы «Единая информационно-аналитическая система «Федеральный орган регулирования - региональные органы регулирования - субъекты регулирования» (далее – ФГИС ЕИАС), с опубликованной информацией.\nВ случае публикации информации в нескольких печатных изданиях информация по каждому из них указывается в отдельной строке.",null,{"$f":"IF(ISERROR(INDEX(kind_of_nameforms,MATCH(E12,kind_of_forms,0),1)),\"\",INDEX(kind_of_nameforms,MATCH(E12,kind_of_forms,0),1))","v":""}]
[{"$nulls":4},"Добавить строку"]
[]
[{"$nulls":4},"2 Размещается информация по каждой из форм раскрытия, данные в которой относятся к муниципальному образованию, в котором отсутствует доступ в сеть «Интернет»."]

{"sheet":"Сведения об изменении","index":35,"n_rows":15,"n_cols":5,"rows_kept":15,"hidden":true,"merged":[[6,3,6,4],[14,3,14,4]]}
[]
[]
[]
[]
[]
[]
[{"$nulls":3},"Сведения об изменениях в первоначально опубликованной информации*"]
[]
[{"$nulls":3},"№ п/п","Сведения"]
[{"$nulls":3},"1","2"]
[{"$nulls":3},0]
[{"$nulls":3},1]
[{"$nulls":4},"Добавить"]
[]
[{"$nulls":3},"* Лист заполняется в случае, если на Титульном листе в поле \"Тип отчета\" выбрано значение «Изменения в раскрытой ранее информации»."]

{"sheet":"Комментарии","index":36,"n_rows":12,"n_cols":5,"rows_kept":12,"merged":[[6,3,6,4]]}
[]
[]
[]
[]
[]
[]
[{"$nulls":3},"Комментарии"]
[]
[{"$nulls":3},"№ п/п","Комментарий"]
[{"$nulls":3},"1","2"]
[{"$nulls":3},0]
[{"$nulls":4},"Добавить"]

{"sheet":"Проверка","index":37,"n_rows":4,"n_cols":4,"rows_kept":4,"merged":[[1,1,1,3]]}
[]
[null,"Результат проверки"]
[]
[null,"Ссылка","Причина","Статус"]

{"sheet":"et_union_hor","index":38,"n_rows":373,"n_cols":61,"rows_kept":373,"hidden":true,"merged":[[8,3,12,3],[8,4,12,4],[8,5,12,5],[8,6,12,6],[8,7,11,7],[8,8,11,8],[8,9,11,9],[8,10,11,10],[8,11,10,11],[8,12,10,12],[8,13,10,13],[8,14,10,14],[8,15,9,15],[8,16,9,16],[8,17,9,17],[8,18,9,18],[14,3,18,3],[14,4,18,4],[14,5,18,5],[14,6,18,6],[14,7,17,7],[14,8,17,8],[14,9,17,9],[14,10,17,10],[14,11,16,11],[14,12,16,12],[14,13,16,13],[14,14,16,14],[14,15,15,15],[14,16,15,16],[14,17,15,17],[14,18,15,18],[26,14,26,16],[26,17,27,19],[26,20,28,20],[26,22,28,22],[27,14,28,14],[27,15,27,16],[28,18,28,19],[29,14,29,20],[30,0,43,0],[30,14,30,21],[31,1,42,1],[31,14,31,21],[32,2,41,2],[32,14,32,21],[33,3,40,3],[33,14,33,21],[34,4,39,4],[34,8,39,8],[34,14,34,21],[35,5,38,5],[35,9,38,9],[35,14,35,21],[36,17,37,17],[36,18,37,18],[36,19,37,19],[36,20,37,20],[36,22,38,22],[48,0,61,0],[48,14,48,56],[49,1,60,1],[49,14,49,56],[50,2,59,2],[50,14,50,56],[51,3,58,3],[51,14,51,56],[52,4,57,4],[52,8,57,8],[52,14,52,56],[53,5,56,5],[53,9,56,9],[53,14,53,56],[54,17,55,17],[54,18,55,18],[54,19,55,19],[54,20,55,20],[54,24,55,24],[54,25,55,25],[54,26,55,26],[54,27,55,27],[54,31,55,31],[54,32,55,32],[54,33,55,33],[54,34,55,34],[54,38,55,38],[54,39,55,39],[54,40,55,40],[54,41,55,41],[54,45,55,45],[54,46,55,46],[54,47,55,47],[54,48,55,48],[54,52,55,52],[54,53,55,53],[54,54,55,54],[54,55,55,55],[54,57,56,57],[66,0,79,0],[66,14,66,21],[67,1,78,1],[67,14,67,21],[68,2,77,2],[68,14,68,21],[69,3,76,3],[69,14,69,21],[70,4,75,4],[70,8,75,8],[70,14,70,21],[71,5,74,5],[71,9,74,9],[71,14,71,21],[72,17,73,17],[72,18,73,18],[72,19,73,19],[72,20,73,20],[72,22,74,22],[84,0,97,0],[84,14,84,21],[85,1,96,1],[85,14,85,21],[86,2,95,2],[86,14,86,21],[87,3,94,3],[87,8,94,8],[87,14,87,21],[88,4,93,4],[88,14,88,21],[89,5,92,5],[89,9,92,9],[89,14,89,21],[90,17,91,17],[90,18,91,18],[90,19,91,19],[90,20,91,20],[90,22,92,22],[102,0,117,0],[102,14,102,26],[103,1,116,1],[103,14,103,26],[104,2,115,2],[104,14,104,26],[105,3,114,3],[105,14,105,26],[106,4,113,4],[106,14,106,26],[107,5,112,5],[107,8,112,8],[107,14,107,26],[108,6,111,6],[108,9,111,9],[108,22,110,22],[108,23,110,23],[108,24,110,24],[108,25,110,25],[109,27,111,27],[124,0,137,0],[124,14,124,21],[125,1,136,1],[125,14,125,21],[126,2,135,2],[126,14,126,21],[127,3,134,3],[127,14,127,21],[128,4,133,4],[128,8,133,8],[129,5,132,5],[129,9,132,9],[129,14,129,21],[130,17,131,17],[130,18,131,18],[130,19,131,19],[130,20,131,20],[130,22,132,22],[142,0,155,0],[142,14,142,21],[143,1,154,1],[143,14,143,21],[144,2,153,2],[144,14,144,21],[145,3,152,3],[145,14,145,21],[146,4,151,4],[146,8,151,8],[147,5,150,5],[147,9,150,9],[147,14,147,21],[148,17,149,17],[148,18,149,18],[148,19,149,19],[148,20,149,20],[148,22,150,22],[160,0,173,0],[160,14,160,21],[161,1,172,1],[161,14,161,21],[162,2,171,2],[162,14,162,21],[163,3,170,3],[163,14,163,21],[164,4,169,4],[164,8,169,8],[164,14,164,21],[165,5,168,5],[165,9,168,9],[165,14,165,21],[166,17,167,17],[166,18,167,18],[166,19,167,19],[166,20,167,20],[166,22,168,22],[178,0,187,0],[178,14,178,22],[179,1,186,1],[179,14,179,22],[180,2,185,2],[180,14,180,22],[181,3,184,3],[181,14,181,22],[182,23,184,23],[192,0,203,0],[192,13,192,31],[193,1,202,1],[193,13,193,31],[194,2,201,2],[194,13,194,31],[195,3,200,3],[195,13,195,31],[196,4,199,4],[196,10,199,10],[196,11,199,11],[196,12,199,12],[196,13,199,13],[196,14,198,14],[196,15,198,15],[196,16,198,16],[196,17,198,17],[196,18,197,18],[196,19,197,19],[196,20,197,20],[196,21,197,21],[196,27,197,27],[196,28,197,28],[196,29,197,29],[196,30,197,30],[196,32,200,32],[206,16,208,16],[206,20,207,20],[210,13,213,13],[210,14,212,14],[210,15,212,15],[210,16,212,16],[210,17,212,17],[210,18,211,18],[210,19,211,19],[210,20,211,20],[210,21,211,21],[219,0,232,0],[219,14,219,21],[220,1,231,1],[220,14,220,21],[221,2,230,2],[221,14,221,21],[222,3,229,3],[222,14,222,21],[223,4,228,4],[223,8,228,8],[223,14,223,21],[224,5,227,5],[224,9,227,9],[224,14,224,21],[225,17,226,17],[225,18,226,18],[225,19,226,19],[225,20,226,20],[225,22,227,22],[237,0,250,0],[237,14,237,56],[238,1,249,1],[238,14,238,56],[239,2,248,2],[239,14,239,56],[240,3,247,3],[240,14,240,56],[241,4,246,4],[241,8,246,8],[241,14,241,56],[242,5,245,5],[242,9,245,9],[242,14,242,56],[243,17,244,17],[243,18,244,18],[243,19,244,19],[243,20,244,20],[243,24,244,24],[243,25,244,25],[243,26,244,26],[243,27,244,27],[243,31,244,31],[243,32,244,32],[243,33,244,33],[243,34,244,34],[243,38,244,38],[243,39,244,39],[243,40,244,40],[243,41,244,41],[243,45,244,45],[243,46,244,46],[243,47,244,47],[243,48,244,48],[243,52,244,52],[243,53,244,53],[243,54,244,54],[243,55,244,55],[243,57,245,57],[296,2,297,2],[296,3,297,3],[296,4,297,4],[301,2,302,2],[301,5,302,5],[301,6,302,6],[301,7,302,7],[336,0,344,0],[339,1,343,1],[340,2,342,2],[341,8,342,8],[355,3,356,3],[355,4,356,4],[355,5,356,5],[355,11,356,11],[361,3,362,3],[361,4,362,4],[361,5,362,5],[361,11,362,11]]}
[]
["et_Comm"]
[]
[]
[]
[]
["et_List02(_1,_2,_3)"]
[]
[{"$nulls":3},1,null,null,"нет",null,1,null,"нет",null,"1",null,"нет",null,"1",null,"нет",null,"1"]
[{"$nulls":21},"Добавить источник для дифференциации"]
[{"$nulls":17},"Добавить СТ для дифференциации"]
[{"$nulls":13},"Добавить территорию для дифференциации"]
[]
[]
[{"$nulls":8},1,null,"нет",null,"1",null,"нет",null,"1",null,"нет",null,"1"]
[{"$nulls":21},"Добавить источник для дифференциации"]
[{"$nulls":17},"Добавить СТ для дифференциации"]
[{"$nulls":13},"Добавить территорию для дифференциации"]
[]
[]
["et_List06(_1,_2,_3)",null,"1"]
[]
[]
[]
[]
[]
[{"$nulls":14},"Величина установленного тарифа",null,null,"Срок действия цены (тарифа) на тепловую энергию (мощность)",null,null,"Наличие других периодов действия тарифа"]
[{"$nulls":14},"Одноставочный тариф, руб./Гкал","Двухставочный тариф"]
[{"$nulls":15},"ставка за тепловую  энергию, руб./Гкал","ставка за содержание тепловой мощности, тыс.руб./Гкал/ч/мес","дата начала","дата окончания"]
[{"$nulls":12},"7"]
[1,{"$nulls":10},{"$f":"mergeValue(A31)","v":1},"Наименование тарифа",{"$nulls":9},"Указывается наименование тарифа в случае подачи предложения по нескольким тарифам.\nВ случае наличия нескольких тарифов информация по ним указывается в отдельных строках.",null,null,{"$f":"IF(M31=\"\",\"\",M31 )","v":"Наименование тарифа"}]
[null,1,{"$nulls":9},{"$f":"mergeValue(A32) &\".\"& mergeValue(B32)","v":"1.1"},"Территория действия тарифа",{"$nulls":9},"Указывается наименование территории действия тарифа при наличии дифференциации тарифа по территориальному признаку.\nВ случае дифференциации тарифов по территориальному признаку информация по ним указывается в отдельных строках.",null,null,"Территория действия тарифа"]
[null,null,1,{"$nulls":8},{"$f":"mergeValue(A33) &\".\"& mergeValue(B33)&\".\"& mergeValue(C33)","v":"1.1.1"},"Наименование системы теплоснабжения ",{"$nulls":9},"Указывается наименование системы теплоснабжения при наличии дифференциации тарифа по системам теплоснабжения.\nВ случае дифференциации тарифов по системам теплоснабжения информация по ним указывается в отдельных строках.",null,null,"Наименование системы теплоснабжения "]
[{"$nulls":3},1,{"$nulls":7},{"$f":"mergeValue(A34) &\".\"& mergeValue(B34)&\".\"& mergeValue(C34)&\".\"& mergeValue(D34)","v":"1.1.1.1"},"Источник тепловой энергии  ",{"$nulls":9},"Указывается наименование источника тепловой энергии\nВ случае дифференциации тарифов по источникам тепловой энергии информация по ним указывается в отдельных строках.",null,null,"Источник тепловой энергии  "]
[{"$nulls":4},1,null,null,1,1,null,null,{"$f":"mergeValue(A35) &\".\"& mergeValue(B35)&\".\"& mergeValue(C35)&\".\"& mergeValue(D35)&\".\"& mergeValue(E35)","v":"1.1.1.1.1"},"Схема подключения теплопотребляющей установки к коллектору источника тепловой энергии",{"$nulls":9},"Указывается схема подключения теплопотребляющей установки к коллектору источника тепловой энергии только для тарифов на тепловую энергию и за услуги по поддержанию резервной мощности.\nЗначение выбирается из перечня: Без дифференциации; к коллектору источника тепловой энергии; к тепловой сети без дополнительного преобразования на тепловых пунктах, эксплуатируемых теплоснабжающей организацией; к тепловой сети после тепловых пунктов (на тепловых пунктах), эксплуатируемых теплоснабжающей организацией.\nВ случае дифференциации тарифов по схемам подключения теплопотребляющей установки к коллектору источника тепловой энергии информация по ним указывается в отдельных строках.",null,null,"Схема подключения теплопотребляющей установки к коллектору источника тепловой энергии"]
[{"$nulls":5},1,{"$nulls":3},1,null,{"$f":"mergeValue(A36) &\".\"& mergeValue(B36)&\".\"& mergeValue(C36)&\".\"& mergeValue(D36)&\".\"& mergeValue(E36)&\".\"& mergeValue(F36)","v":"1.1.1.1.1.1"},"Группа потребителей",{"$nulls":9},"Указывается группа потребителей при наличии дифференциации тарифа по группам потребителей.\nЗначение выбирается из перечня: Организации-перепродавцы; Бюджетные организации; Население; Прочие; Без дифференциации.\nВ случае дифференциации тарифов группам потребителей информация по ним указывается в отдельных строках.",null,null,"Группа потребителей"]
[{"$nulls":6},1,{"$nulls":3},1,{"$f":"mergeValue(A37) &\".\"& mergeValue(B37)&\".\"& mergeValue(C37)&\".\"& mergeValue(D37)&\".\"& mergeValue(E37)&\".\"& mergeValue(F37)&\".\"& mergeValue(G37)","v":"1.1.1.1.1.1.1"},{"$nulls":6},"да",null,"да",null,"В колонке «Параметр дифференциации тарифов» указывается вид теплоносителя.\nЗначение выбирается из перечня: вода; пар; отборный пар, 1.2-2.5 кг/см2; отборный пар, 2.5-7 кг/см2; отборный пар, 7-13 кг/см2; отборный пар, > 13 кг/см2; острый и редуцированный пар; горячая вода в системе централизованного теплоснабжения на отопление; горячая вода в системе централизованного теплоснабжения на горячее водоснабжение; прочее.\nПри подаче предложения на двухставочный тариф колонка «Одноставочный тариф» не заполняется.\nПри подаче предложения на одноставочный тариф колонки в блоке «Двухставочный тариф» не заполняются.\nДаты начала и окончания действия тарифов указываются в виде «ДД.ММ.ГГГГ».\nВ случае отсутствия даты окончания действия тарифа в колонке «Дата окончания» указывается «Нет».\nИнформация в колонке «Ставка за содержание тепловой мощности, тыс. руб./Гкал/ч/мес» указывается только для тарифа по поддержанию резервной мощности. \nВ случае дифференциации тарифов по периодам действия тарифа информация по ним указывается в отдельных колонках.\nВ случае дифференциации тарифов по видам теплоносителя информация по ним указывается в отдельных строках.",{"$f":"strCheckDate(O38:V38)","v":""},null,""]
[{"$nulls":16},{"$f":"R37 & \"-\" & T37","v":"-"},{"$nulls":8},""]
[{"$nulls":12},"Добавить вид теплоносителя (параметры теплоносителя)",{"$nulls":12},"Добавить вид теплоносителя (параметры теплоносителя)"]
[{"$nulls":12},"Добавить группу потребителей",{"$nulls":12},"Добавить группу потребителей"]
[{"$nulls":12},"Добавить схему подключения",{"$nulls":12},"Добавить схему подключения"]
[{"$nulls":12},"Добавить источник тепловой энергии",{"$nulls":12},"Добавить источник тепловой энергии"]
[{"$nulls":12},"Добавить наименование системы теплоснабжения",{"$nulls":12},"Добавить наименование системы теплоснабжения"]
[{"$nulls":12},"Добавить территорию действия тарифа",{"$nulls":12},"Добавить территорию действия тарифа"]
[{"$nulls":12},"Добавить наименование тарифа"]
[]
["et_List06(_1,_2,_3)",null,"2"]
[]
[1,{"$nulls":10},{"$f":"mergeValue(A49)","v":1},"Наименование тарифа",{"$nulls":44},"Указывается наименование тарифа в случае подачи предложения по нескольким тарифам.\nВ случае наличия нескольких тарифов информация по ним указывается в отдельных строках.",null,null,{"$f":"IF(M49=\"\",\"\",M49 )","v":"Наименование тарифа"}]
[null,1,{"$nulls":9},{"$f":"mergeValue(A50) &\".\"& mergeValue(B50)","v":"1.1"},"Территория действия тарифа",{"$nulls":44},"Указывается наименование территории действия тарифа при наличии дифференциации тарифа по территориальному признаку.\nВ случае дифференциации тарифов по территориальному признаку информация по ним указывается в отдельных строках.",null,null,"Территория действия тарифа"]
[null,null,1,{"$nulls":8},{"$f":"mergeValue(A51) &\".\"& mergeValue(B51)&\".\"& mergeValue(C51)","v":"1.1.1"},"Наименование системы теплоснабжения ",{"$nulls":44},"Указывается наименование системы теплоснабжения при наличии дифференциации тарифа по системам теплоснабжения.\nВ случае дифференциации тарифов по системам теплоснабжения информация по ним указывается в отдельных строках.",null,null,"Наименование системы теплоснабжения "]
[{"$nulls":3},1,{"$nulls":7},{"$f":"mergeValue(A52) &\".\"& mergeValue(B52)&\".\"& mergeValue(C52)&\".\"& mergeValue(D52)","v":"1.1.1.1"},"Источник тепловой энергии  ",{"$nulls":44},"Указывается наименование источника тепловой энергии\nВ случае дифференциации тарифов по источникам тепловой энергии информация по ним указывается в отдельных строках.",null,null,"Источник тепловой энергии  "]
[{"$nulls":4},1,null,null,1,1,null,null,{"$f":"mergeValue(A53) &\".\"& mergeValue(B53)&\".\"& mergeValue(C53)&\".\"& mergeValue(D53)&\".\"& mergeValue(E53)","v":"1.1.1.1.1"},"Схема подключения теплопотребляющей установки к коллектору источника тепловой энергии",{"$nulls":44},"Указывается схема подключения теплопотребляющей установки к коллектору источника тепловой энергии только для тарифов на тепловую энергию и за услуги по поддержанию резервной мощности.\nЗначение выбирается из перечня: Без дифференциации; к коллектору источника тепловой энергии; к тепловой сети без дополнительного преобразования на тепловых пунктах, эксплуатируемых теплоснабжающей организацией; к тепловой сети после тепловых пунктов (на тепловых пунктах), эксплуатируемых теплоснабжающей организацией.\nВ случае дифференциации тарифов по схемам подключения теплопотребляющей установки к коллектору источника тепловой энергии информация по ним указывается в отдельных строках.",null,null,"Схема подключения теплопотребляющей установки к коллектору источника тепловой энергии"]
[{"$nulls":5},1,{"$nulls":3},1,null,{"$f":"mergeValue(A54) &\".\"& mergeValue(B54)&\".\"& mergeValue(C54)&\".\"& mergeValue(D54)&\".\"& mergeValue(E54)&\".\"& mergeValue(F54)","v":"1.1.1.1.1.1"},"Группа потребителей",{"$nulls":44},"Указывается группа потребителей при наличии дифференциации тарифа по группам потребителей.\nЗначение выбирается из перечня: Организации-перепродавцы; Бюджетные организации; Население; Прочие; Без дифференциации.\nВ случае дифференциации тарифов группам потребителей информация по ним указывается в отдельных строках.",null,null,"Группа потребителей"]
[{"$nulls":6},1,{"$nulls":3},1,{"$f":"mergeValue(A55) &\".\"& mergeValue(B55)&\".\"& mergeValue(C55)&\".\"& mergeValue(D55)&\".\"& mergeValue(E55)&\".\"& mergeValue(F55)&\".\"& mergeValue(G55)","v":"1.1.1.1.1.1.1"},{"$nulls":6},"да",null,"да",{"$nulls":4},"да",null,"да",{"$nulls":4},"да",null,"да",{"$nulls":4},"да",null,"да",{"$nulls":4},"да",null,"да",{"$nulls":4},"да",null,"нет",null,"В колонке «Параметр дифференциации тарифов» указывается вид теплоносителя.\nЗначение выбирается из перечня: вода; пар; отборный пар, 1.2-2.5 кг/см2; отборный пар, 2.5-7 кг/см2; отборный пар, 7-13 кг/см2; отборный пар, > 13 кг/см2; острый и редуцированный пар; горячая вода в системе централизованного теплоснабжения на отопление; горячая вода в системе централизованного теплоснабжения на горячее водоснабжение; прочее.\nПри подаче предложения на двухставочный тариф колонка «Одноставочный тариф» не заполняется.\nПри подаче предложения на одноставочный тариф колонки в блоке «Двухставочный тариф» не заполняются.\nДаты начала и окончания действия тарифов указываются в виде «ДД.ММ.ГГГГ».\nВ случае отсутствия даты окончания действия тарифа в колонке «Дата окончания» указывается «Нет».\nИнформация в колонке «Ставка за содержание тепловой мощности, тыс. руб./Гкал/ч/мес» указывается только для тарифа по поддержанию резервной мощности. \nВ случае дифференциации тарифов по периодам действия тарифа информация по ним указывается в отдельных колонках.\nВ случае дифференциации тарифов по видам теплоносителя информация по ним указывается в отдельных строках.",{"$f":"strCheckDate(O56:BE56)","v":""},null,""]
[{"$nulls":16},{"$f":"R55 & \"-\" & T55","v":"-"},{"$nulls":6},{"$f":"Y55 & \"-\" & AA55","v":"-"},{"$nulls":6},{"$f":"AF55 & \"-\" & AH55","v":"-"},{"$nulls":6},{"$f":"AM55 & \"-\" & AO55","v":"-"},{"$nulls":6},{"$f":"AT55 & \"-\" & AV55","v":"-"},{"$nulls":6},{"$f":"BA55 & \"-\" & BC55","v":"-"},{"$nulls":8},""]
[{"$nulls":12},"Добавить вид теплоносителя (параметры теплоносителя)",{"$nulls":47},"Добавить вид теплоносителя (параметры теплоносителя)"]
[{"$nulls":12},"Добавить группу потребителей",{"$nulls":47},"Добавить группу потребителей"]
[{"$nulls":12},"Добавить схему подключения",{"$nulls":47},"Добавить схему подключения"]
[{"$nulls":12},"Добавить источник тепловой энергии",{"$nulls":47},"Добавить источник тепловой энергии"]
[{"$nulls":12},"Добавить наименование системы теплоснабжения",{"$nulls":47},"Добавить наименование системы теплоснабжения"]
[{"$nulls":12},"Добавить территорию действия тарифа",{"$nulls":47},"Добавить территорию действия тарифа"]
[{"$nulls":12},"Добавить наименование тарифа"]
[]
["et_List06(_1,_2,_3)",null,"3"]
[]
[1,{"$nulls":10},{"$f":"mergeValue(A67)","v":1},"Наименование тарифа",{"$nulls":9},"Указывается наименование тарифа в случае подачи предложения по нескольким тарифам.\nВ случае наличия нескольких тарифов информация по ним указывается в отдельных строках.",null,null,{"$f":"IF(M67=\"\",\"\",M67 )","v":"Наименование тарифа"}]
[null,1,{"$nulls":9},{"$f":"mergeValue(A68) &\".\"& mergeValue(B68)","v":"1.1"},"Территория действия тарифа",{"$nulls":9},"Указывается наименование территории действия тарифа при наличии дифференциации тарифа по территориальному признаку.\nВ случае дифференциации тарифов по территориальному признаку информация по ним указывается в отдельных строках.",null,null,"Территория действия тарифа"]
[null,null,1,{"$nulls":8},{"$f":"mergeValue(A69) &\".\"& mergeValue(B69)&\".\"& mergeValue(C69)","v":"1.1.1"},"Наименование системы теплоснабжения ",{"$nulls":9},"Указывается наименование системы теплоснабжения при наличии дифференциации тарифа по системам теплоснабжения.\nВ случае дифференциации тарифов по системам теплоснабжения информация по ним указывается в отдельных строках.",null,null,"Наименование системы теплоснабжения "]
[{"$nulls":3},1,{"$nulls":7},{"$f":"mergeValue(A70) &\".\"& mergeValue(B70)&\".\"& mergeValue(C70)&\".\"& mergeValue(D70)","v":"1.1.1.1"},"Источник тепловой энергии  ",{"$nulls":9},"Указывается наименование источника тепловой энергии\nВ случае дифференциации тарифов по источникам тепловой энергии информация по ним указывается в отдельных строках.",null,null,"Источник тепловой энергии  "]
[{"$nulls":4},1,null,null,1,1,null,null,{"$f":"mergeValue(A71) &\".\"& mergeValue(B71)&\".\"& mergeValue(C71)&\".\"& mergeValue(D71)&\".\"& mergeValue(E71)","v":"1.1.1.1.1"},"Схема подключения теплопотребляющей установки к коллектору источника тепловой энергии",{"$nulls":9},"Указывается схема подключения теплопотребляющей установки к коллектору источника тепловой энергии только для тарифов на тепловую энергию и за услуги по поддержанию резервной мощности.\nЗначение выбирается из перечня: Без дифференциации; к коллектору источника тепловой энергии; к тепловой сети без дополнительного преобразования на тепловых пунктах, эксплуатируемых теплоснабжающей организацией; к тепловой сети после тепловых пунктов (на тепловых пунктах), эксплуатируемых теплоснабжающей организацией.\nВ случае дифференциации тарифов по схемам подключения теплопотребляющей установки к коллектору источника тепловой энергии информация по ним указывается в отдельных строках.",null,null,"Схема подключения теплопотребляющей установки к коллектору источника тепловой энергии"]
[{"$nulls":5},1,{"$nulls":3},1,null,{"$f":"mergeValue(A72) &\".\"& mergeValue(B72)&\".\"& mergeValue(C72)&\".\"& mergeValue(D72)&\".\"& mergeValue(E72)&\".\"& mergeValue(F72)","v":"1.1.1.1.1.1"},"Группа потребителей",{"$nulls":9},"Указывается группа потребителей при наличии дифференциации тарифа по группам потребителей.\nЗначение выбирается из перечня: Организации-перепродавцы; Бюджетные организации; Население; Прочие; Без дифференциации.\nВ случае дифференциации тарифов группам потребителей информация по ним указывается в отдельных строках.",null,null,"Группа потребителей"]
[{"$nulls":6},1,{"$nulls":3},1,{"$f":"mergeValue(A73) &\".\"& mergeValue(B73)&\".\"& mergeValue(C73)&\".\"& mergeValue(D73)&\".\"& mergeValue(E73)&\".\"& mergeValue(F73)&\".\"& mergeValue(G73)","v":"1.1.1.1.1.1.1"},{"$nulls":6},"да",null,"да",null,"В колонке «Параметр дифференциации тарифов» указывается вид теплоносителя.\nЗначение выбирается из перечня: вода; пар; отборный пар, 1.2-2.5 кг/см2; отборный пар, 2.5-7 кг/см2; отборный пар, 7-13 кг/см2; отборный пар, > 13 кг/см2; острый и редуцированный пар; горячая вода в системе централизованного теплоснабжения на отопление; горячая вода в системе централизованного теплоснабжения на горячее водоснабжение; прочее.\nПри подаче предложения на двухставочный тариф колонка «Одноставочный тариф» не заполняется.\nПри подаче предложения на одноставочный тариф колонки в блоке «Двухставочный тариф» не заполняются.\nДаты начала и окончания действия тарифов указываются в виде «ДД.ММ.ГГГГ».\nВ случае отсутствия даты окончания действия тарифа в колонке «Дата окончания» указывается «Нет».\nИнформация в колонке «Ставка за содержание тепловой мощности, тыс. руб./Гкал/ч/мес» указывается только для тарифа по поддержанию резервной мощности. \nВ случае дифференциации тарифов по периодам действия тарифа информация по ним указывается в отдельных колонках.\nВ случае дифференциации тарифов по видам теплоносителя информация по ним указывается в отдельных строках.",{"$f":"strCheckDate(O74:V74)","v":""},null,""]
[{"$nulls":16},{"$f":"R73 & \"-\" & T73","v":"-"},{"$nulls":8},""]
[{"$nulls":12},"Добавить вид теплоносителя (параметры теплоносителя)",{"$nulls":12},"Добавить вид теплоносителя (параметры теплоносителя)"]
[{"$nulls":12},"Добавить группу потребителей",{"$nulls":12},"Добавить группу потребителей"]
[{"$nulls":12},"Добавить схему подключения",{"$nulls":12},"Добавить схему подключения"]
[{"$nulls":12},"Добавить источник тепловой энергии",{"$nulls":12},"Добавить источник тепловой энергии"]
[{"$nulls":12},"Добавить наименование системы теплоснабжения",{"$nulls":12},"Добавить наименование системы теплоснабжения"]
[{"$nulls":12},"Добавить территорию действия тарифа",{"$nulls":12},"Добавить территорию действия тарифа"]
[{"$nulls":12},"Добавить наименование тарифа"]
[]
["et_List06(_1,_2,_3)",null,"4"]
[]
[1,{"$nulls":9},1,{"$f":"mergeValue(A85)","v":1},"Наименование тарифа",{"$nulls":9},"Указывается наименование тарифа в случае подачи предложения по нескольким тарифам.\nВ случае наличия нескольких тарифов информация по ним указывается в отдельных строках."]
[null,1,{"$nulls":8},1,{"$f":"mergeValue(A86) &\".\"& mergeValue(B86)","v":"1.1"},"Территория действия тарифа",{"$nulls":9},"Указывается наименование территории действия тарифа при наличии дифференциации тарифа по территориальному признаку.\nВ случае дифференциации тарифов по территориальному признаку информация по ним указывается в отдельных строках."]
[null,null,1,{"$nulls":7},1,{"$f":"mergeValue(A87) &\".\"& mergeValue(B87)&\".\"& mergeValue(C87)","v":"1.1.1"},"Наименование системы теплоснабжения ",{"$nulls":9},"Указывается наименование системы теплоснабжения при наличии дифференциации тарифа по системам теплоснабжения.\nВ случае дифференциации тарифов по системам теплоснабжения информация по ним указывается в отдельных строках."]
[{"$nulls":3},1,{"$nulls":4},1,null,1,{"$f":"mergeValue(A88) &\".\"& mergeValue(B88)&\".\"& mergeValue(C88)&\".\"& mergeValue(D88)","v":"1.1.1.1"},"Источник тепловой энергии  ",{"$nulls":9},"Указывается наименование источника тепловой энергии\nВ случае дифференциации тарифов по источникам тепловой энергии информация по ним указывается в отдельных строках."]
[{"$nulls":4},1,{"$nulls":5},1]
[{"$nulls":5},1,{"$nulls":4},1,{"$f":"mergeValue(A90) &\".\"& mergeValue(B90)&\".\"& mergeValue(C90)&\".\"& mergeValue(D90)&\".\"&  mergeValue(F90)","v":"1.1.1.1.1"},"Группа потребителей",{"$nulls":9},"Указывается группа потребителей при наличии дифференциации тарифа по группам потребителей.\nЗначение выбирается из перечня: Организации-перепродавцы; Бюджетные организации; Население; Прочие; Без дифференциации.\nВ случае дифференциации тарифов группам потребителей информация по ним указывается в отдельных строках.",null,{"$f":"strCheckUnique(Z90:Z93)","v":""}]
[{"$nulls":6},1,{"$nulls":4},{"$f":"mergeValue(A91) &\".\"& mergeValue(B91)&\".\"& mergeValue(C91)&\".\"& mergeValue(D91)&\".\"&  mergeValue(F91)&\".\"&  mergeValue(G91)","v":"1.1.1.1.1.1"},{"$nulls":6},"да",null,"да",null,"В колонке «Параметр дифференциации тарифов» указывается вид теплоносителя.\nЗначение выбирается из перечня: вода; пар; отборный пар, 1.2-2.5 кг/см2; отборный пар, 2.5-7 кг/см2; отборный пар, 7-13 кг/см2; отборный пар, > 13 кг/см2; острый и редуцированный пар; горячая вода в системе централизованного теплоснабжения на отопление;  горячая вода в системе централизованного теплоснабжения на горячее водоснабжение; прочее.\nПри подаче предложения на двухставочный тариф колонка «Одноставочный тариф» не заполняется.\nПри подаче предложения на одноставочный тариф колонки в блоке «Двухставочный тариф» не заполняются.\nИнформация в колонке «Двухставочный тариф» не указывается для тарифа на теплоноситель.\nДаты начала и окончания действия тарифов указываются в виде «ДД.ММ.ГГГГ».\nВ случае отсутствия даты окончания действия тарифа в колонке «Дата окончания» указывается «Нет».\nВ случае дифференциации тарифов по видам теплоносителя информация по ним указывается в отдельных строках.",{"$f":"strCheckDate(O92:V92)","v":""},null,{"$f":"IF(M91=\"\",\"\",M91 )","v":""}]
[{"$nulls":10},1,{"$nulls":5},{"$f":"R91 & \"-\" & T91","v":"-"}]
[{"$nulls":10},1,null,"Добавить вид теплоносителя (параметры теплоносителя)"]
[{"$nulls":12},"Добавить группу потребителей"]
[]
[{"$nulls":10},1,null,"Добавить источник тепловой энергии"]
[{"$nulls":10},1,null,"Добавить наименование системы теплоснабжения"]
[{"$nulls":10},1,null,"Добавить территорию действия тарифа"]
[{"$nulls":12},"Добавить наименование тарифа"]
[]
[{"$nulls":6},"et_List06(_1,_2,_3)",null,"5"]
[]
[1,{"$nulls":10},{"$f":"mergeValue(A103)","v":1},"Наименование тарифа",{"$nulls":14},"Указывается наименование тарифа в случае подачи предложения по нескольким тарифам.\nВ случае наличия нескольких тарифов информация по ним указывается в отдельных строках."]
[null,1,{"$nulls":9},{"$f":"mergeValue(A104) &\".\"& mergeValue(B104)","v":"1.1"},"Территория действия тарифа",{"$nulls":14},"Указывается наименование территории действия тарифа при наличии дифференциации тарифа по территориальному признаку.\nВ случае дифференциации тарифов по территориальному признаку информация по ним указывается в отдельных строках."]
[null,null,1,{"$nulls":8},{"$f":"mergeValue(A105) &\".\"& mergeValue(B105)&\".\"& mergeValue(C105)","v":"1.1.1"},"Наименование системы теплоснабжения ",{"$nulls":14},"Указывается наименование системы теплоснабжения при наличии дифференциации тарифа по системам теплоснабжения.\nВ случае дифференциации тарифов по системам теплоснабжения информация по ним указывается в отдельных строках."]
[{"$nulls":3},1,{"$nulls":7},{"$f":"mergeValue(A106) &\".\"& mergeValue(B106)&\".\"& mergeValue(C106)&\".\"& mergeValue(D106)","v":"1.1.1.1"},"Источник тепловой энергии  ",{"$nulls":14},"Указывается наименование источника тепловой энергии\nВ случае дифференциации тарифов по источникам тепловой энергии информация по ним указывается в отдельных строках."]
[{"$nulls":4},1]
[{"$nulls":5},1,{"$nulls":5},{"$f":"mergeValue(A108) &\".\"& mergeValue(B108)&\".\"& mergeValue(C108)&\".\"& mergeValue(D108)&\".\"& mergeValue(F108)","v":"1.1.1.1.1"},"Группа потребителей",{"$nulls":14},"Указывается группа потребителей при наличии дифференциации тарифа по группам потребителей.\nЗначение выбирается из перечня: Организации-перепродавцы; Бюджетные организации; Население; Прочие; Без дифференциации.\nВ случае дифференциации тарифов группам потребителей информация по ним указывается в отдельных строках.",null,{"$f":"strCheckUnique(AE108:AE113)","v":""}]
[{"$nulls":6},1,{"$nulls":4},{"$f":"mergeValue(A109) &\".\"& mergeValue(B109)&\".\"& mergeValue(C109)&\".\"& mergeValue(D109)&\".\"& mergeValue(F109)&\".\"& mergeValue(G109)","v":"1.1.1.1.1.1"},{"$nulls":9},{"$f":"W109 & \"-\" & Y109","v":"-"},null,"да",null,"да",null,"Указывается вид теплоносителя. Значение выбирается из перечня: вода; пар; отборный пар, 1.2-2.5 кг/см2; отборный пар, 2.5-7 кг/см2; отборный пар, 7-13 кг/см2; отборный пар, > 13 кг/см2; острый и редуцированный пар; горячая вода в системе централизованного теплоснабжения на отопление; горячая вода в системе централизованного теплоснабжения на горячее водоснабжение; прочее.\nВ случае дифференциации тарифов по видам теплоносителя информация по ним указывается в отдельных строках.",{"$f":"strCheckDate(O109:AA109)","v":""},null,{"$f":"IF(M109=\"\",\"\",M109 )","v":""}]
[{"$nulls":7},1,{"$nulls":3},{"$f":"mergeValue(A110) &\".\"& mergeValue(B110)&\".\"& mergeValue(C110)&\".\"& mergeValue(D110)&\".\"& mergeValue(F110)&\".\"& mergeValue(G110)&\".\"& mergeValue(H110)","v":"1.1.1.1.1.1.1"},{"$nulls":9},{"$f":"W110 & \"-\" & Y110","v":"-"},{"$nulls":5},"В колонке «Параметр дифференциации тарифов» указывается наименование поставщика в случае наличия дифференциации компонента двухставочного тарифа на горячую воду по поставщикам.\nПри подаче предложения на двухставочный тариф колонка «Одноставочный тариф» не заполняется.\nПри подаче предложения на одноставочный тариф колонки в блоке «Двухставочный тариф» не заполняются.\nВ случае отсутствия разбивки тарифа на компоненты колонки «Компонент на теплоноситель, руб./куб.м» и «Одноставочный компонент на тепловую энергию, руб/Гкал» не заполняются.\nДаты начала и окончания действия тарифов указываются в виде «ДД.ММ.ГГГГ».\nВ случае отсутствия даты окончания действия тарифа в колонке «Дата окончания» указывается «Нет».\nВ случае дифференциации тарифов по поставщикам информация по ним указывается в отдельных строках.",{"$f":"strCheckDate(O110:AA110)","v":""}]
[{"$nulls":31},{"$f":"OFFSET(AF111,-1,0)","v":0}]
[{"$nulls":12},"Добавить поставщика"]
[{"$nulls":12},"Добавить вид теплоносителя (параметры теплоносителя)"]
[{"$nulls":12},"Добавить группу потребителей"]
[]
[{"$nulls":12},"Добавить источник тепловой энергии"]
[{"$nulls":12},"Добавить наименование системы теплоснабжения"]
[{"$nulls":12},"Добавить территорию действия тарифа"]
[{"$nulls":12},"Добавить наименование тарифа"]
[{"$nulls":7},1,{"$nulls":3},{"$f":"mergeValue(A120) &\".\"& mergeValue(B120)&\".\"& mergeValue(C120)&\".\"& mergeValue(D120)&\".\"& mergeValue(F120)&\".\"& mergeValue(G120)&\".\"& mergeValue(H120)","v":"......1"},{"$nulls":9},{"$f":"W120 & \"-\" & Y120","v":"-"},null,"нет",null,"нет",null,null,{"$f":"strCheckDate(O120:AA120)","v":""}]
[]
[]
[{"$nulls":6},"et_List06(_1,_2,_3)",null,"6"]
[]
[1,{"$nulls":10},{"$f":"mergeValue(A125)","v":1},"Наименование тарифа",{"$nulls":9},"Указывается наименование тарифа в случае подачи предложения по нескольким тарифам.\nВ случае наличия нескольких тарифов информация по ним указывается в отдельных строках."]
[null,1,{"$nulls":9},{"$f":"mergeValue(A126) &\".\"& mergeValue(B126)","v":"1.1"},"Территория действия тарифа",{"$nulls":9},"Указывается наименование территории действия тарифа при наличии дифференциации тарифа по территориальному признаку.\nВ случае дифференциации тарифов по территориальному признаку информация по ним указывается в отдельных строках."]
[null,null,1,{"$nulls":8},{"$f":"mergeValue(A127) &\".\"& mergeValue(B127)&\".\"& mergeValue(C127)","v":"1.1.1"},"Наименование системы теплоснабжения ",{"$nulls":9},"Указывается наименование системы теплоснабжения при наличии дифференциации тарифа по системам теплоснабжения.\nВ случае дифференциации тарифов по системам теплоснабжения информация по ним указывается в отдельных строках."]
[{"$nulls":3},1,{"$nulls":7},{"$f":"mergeValue(A128) &\".\"& mergeValue(B128)&\".\"& mergeValue(C128)&\".\"& mergeValue(D128)","v":"1.1.1.1"},"Источник тепловой энергии  ",{"$nulls":9},"Указывается наименование источника тепловой энергии\nВ случае дифференциации тарифов по источникам тепловой энергии информация по ним указывается в отдельных строках."]
[{"$nulls":4},1,null,null,1,1]
[{"$nulls":5},1,{"$nulls":3},1,null,{"$f":"mergeValue(A130) &\".\"& mergeValue(B130)&\".\"& mergeValue(C130)&\".\"& mergeValue(D130)&\".\"&  mergeValue(F130)","v":"1.1.1.1.1"},"Группа потребителей",{"$nulls":9},"Указывается группа потребителей при наличии дифференциации тарифа по группам потребителей.\nЗначение выбирается из перечня: Организации-перепродавцы; Бюджетные организации; Население; Прочие; Без дифференциации.\nВ случае дифференциации тарифов группам потребителей информация по ним указывается в отдельных строках.",null,{"$f":"strCheckUnique(Z130:Z133)","v":""}]
[{"$nulls":6},1,{"$nulls":3},1,{"$f":"mergeValue(A131) &\".\"& mergeValue(B131)&\".\"& mergeValue(C131)&\".\"& mergeValue(D131)&\".\"& mergeValue(F131)&\".\"& mergeValue(G131)","v":"1.1.1.1.1.1"},{"$nulls":6},"да",null,"нет",null,"В колонке «Параметр дифференциации тарифов» указывается вид теплоносителя.\nЗначение выбирается из перечня: вода; пар; отборный пар, 1.2-2.5 кг/см2; отборный пар, 2.5-7 кг/см2; отборный пар, 7-13 кг/см2; отборный пар, > 13 кг/см2; острый и редуцированный пар; горячая вода в системе централизованного теплоснабжения на отопление;  горячая вода в системе централизованного теплоснабжения на горячее водоснабжение; прочее.\nПри подаче предложения на двухставочный тариф колонка «Одноставочный тариф» не заполняется.\nПри подаче предложения на одноставочный тариф колонки в блоке «Двухставочный тариф» не заполняются.\nИнформация в колонке «Двухставочный тариф» не указывается для тарифа на теплоноситель.\nДаты начала и окончания действия тарифов указываются в виде «ДД.ММ.ГГГГ».\nВ случае отсутствия даты окончания действия тарифа в колонке «Дата окончания» указывается «Нет».\nВ случае дифференциации тарифов по видам теплоносителя информация по ним указывается в отдельных строках.",{"$f":"strCheckDate(O132:V132)","v":""},null,{"$f":"IF(M131=\"\",\"\",M131 )","v":""}]
[{"$nulls":16},{"$f":"R131 & \"-\" & T131","v":"-"}]
[{"$nulls":12},"Добавить вид теплоносителя (параметры теплоносителя)"]
[{"$nulls":12},"Добавить группу потребителей"]
[]
[{"$nulls":12},"Добавить источник тепловой энергии"]
[{"$nulls":12},"Добавить наименование системы теплоснабжения"]
[{"$nulls":12},"Добавить территорию действия тарифа"]
[{"$nulls":12},"Добавить наименование тарифа"]
[]
[{"$nulls":6},"et_List06(_1,_2,_3)",null,"7"]
[]
[1,{"$nulls":10},{"$f":"mergeValue(A143)","v":1},"Наименование тарифа",{"$nulls":9},"Указывается наименование тарифа в случае подачи предложения по нескольким тарифам.\nВ случае наличия нескольких тарифов информация по ним указывается в отдельных строках."]
[null,1,{"$nulls":9},{"$f":"mergeValue(A144) &\".\"& mergeValue(B144)","v":"1.1"},"Территория действия тарифа",{"$nulls":9},"Указывается наименование территории действия тарифа при наличии дифференциации тарифа по территориальному признаку.\nВ случае дифференциации тарифов по территориальному признаку информация по ним указывается в отдельных строках."]
[null,null,1,{"$nulls":8},{"$f":"mergeValue(A145) &\".\"& mergeValue(B145)&\".\"& mergeValue(C145)","v":"1.1.1"},"Наименование системы теплоснабжения ",{"$nulls":9},"Указывается наименование системы теплоснабжения при наличии дифференциации тарифа по системам теплоснабжения.\nВ случае дифференциации тарифов по системам теплоснабжения информация по ним указывается в отдельных строках."]
[{"$nulls":3},1,{"$nulls":7},{"$f":"mergeValue(A146) &\".\"& mergeValue(B146)&\".\"& mergeValue(C146)&\".\"& mergeValue(D146)","v":"1.1.1.1"},"Источник тепловой энергии  ",{"$nulls":9},"Указывается наименование источника тепловой энергии\nВ случае дифференциации тарифов по источникам тепловой энергии информация по ним указывается в отдельных строках."]
[{"$nulls":4},1,null,null,1,1]
[{"$nulls":5},1,{"$nulls":3},1,null,{"$f":"mergeValue(A148) &\".\"& mergeValue(B148)&\".\"& mergeValue(C148)&\".\"& mergeValue(D148)&\".\"&  mergeValue(F148)","v":"1.1.1.1.1"},"Группа потребителей",{"$nulls":9},"Указывается группа потребителей при наличии дифференциации тарифа по группам потребителей.\nЗначение выбирается из перечня: Организации-перепродавцы; Бюджетные организации; Население; Прочие; Без дифференциации.\nВ случае дифференциации тарифов группам потребителей информация по ним указывается в отдельных строках.",null,{"$f":"strCheckUnique(Z148:Z151)","v":""}]
[{"$nulls":6},1,{"$nulls":3},1,{"$f":"mergeValue(A149) &\".\"& mergeValue(B149)&\".\"& mergeValue(C149)&\".\"& mergeValue(D149)&\".\"& mergeValue(F149)&\".\"& mergeValue(G149)","v":"1.1.1.1.1.1"},{"$nulls":6},"да",null,"нет",null,"В колонке «Параметр дифференциации тарифов» указывается вид теплоносителя.\nЗначение выбирается из перечня: вода; пар; отборный пар, 1.2-2.5 кг/см2; отборный пар, 2.5-7 кг/см2; отборный пар, 7-13 кг/см2; отборный пар, > 13 кг/см2; острый и редуцированный пар; горячая вода в системе централизованного теплоснабжения на отопление;  горячая вода в системе централизованного теплоснабжения на горячее водоснабжение; прочее.\nПри подаче предложения на двухставочный тариф колонка «Одноставочный тариф» не заполняется.\nПри подаче предложения на одноставочный тариф колонки в блоке «Двухставочный тариф» не заполняются.\nИнформация в колонке «Двухставочный тариф» не указывается для тарифа на теплоноситель.\nДаты начала и окончания действия тарифов указываются в виде «ДД.ММ.ГГГГ».\nВ случае отсутствия даты окончания действия тарифа в колонке «Дата окончания» указывается «Нет».\nВ случае дифференциации тарифов по видам теплоносителя информация по ним указывается в отдельных строках.",{"$f":"strCheckDate(O150:V150)","v":""},null,{"$f":"IF(M149=\"\",\"\",M149 )","v":""}]
[{"$nulls":16},{"$f":"R149 & \"-\" & T149","v":"-"}]
[{"$nulls":12},"Добавить вид теплоносителя (параметры теплоносителя)"]
[{"$nulls":12},"Добавить группу потребителей"]
[]
[{"$nulls":12},"Добавить источник тепловой энергии"]
[{"$nulls":12},"Добавить наименование системы теплоснабжения"]
[{"$nulls":12},"Добавить территорию действия тарифа"]
[{"$nulls":12},"Добавить наименование тарифа"]
[]
[{"$nulls":6},"et_List06(_1,_2,_3)",null,"8"]
[]
[1,{"$nulls":10},{"$f":"mergeValue(A161)","v":1},"Наименование тарифа",{"$nulls":9},"Указывается наименование тарифа в случае подачи предложения по нескольким тарифам.\nВ случае наличия нескольких тарифов информация по ним указывается в отдельных строках."]
[null,1,{"$nulls":9},{"$f":"mergeValue(A162) &\".\"& mergeValue(B162)","v":"1.1"},"Территория действия тарифа",{"$nulls":9},"Указывается наименование территории действия тарифа при наличии дифференциации тарифа по территориальному признаку.\nВ случае дифференциации тарифов по территориальному признаку информация по ним указывается в отдельных строках."]
[null,null,1,{"$nulls":8},{"$f":"mergeValue(A163) &\".\"& mergeValue(B163)&\".\"& mergeValue(C163)","v":"1.1.1"},"Наименование системы теплоснабжения ",{"$nulls":9},"Указывается наименование системы теплоснабжения при наличии дифференциации тарифа по системам теплоснабжения.\nВ случае дифференциации тарифов по системам теплоснабжения информация по ним указывается в отдельных строках."]
[{"$nulls":3},1,{"$nulls":7},{"$f":"mergeValue(A164) &\".\"& mergeValue(B164)&\".\"& mergeValue(C164)&\".\"& mergeValue(D164)","v":"1.1.1.1"},"Источник тепловой энергии  ",{"$nulls":9},"Указывается наименование источника тепловой энергии\nВ случае дифференциации тарифов по источникам тепловой энергии информация по ним указывается в отдельных строках."]
[{"$nulls":4},1,null,null,1,1,null,null,{"$f":"mergeValue(A165) &\".\"& mergeValue(B165)&\".\"& mergeValue(C165)&\".\"& mergeValue(D165)&\".\"& mergeValue(E165)","v":"1.1.1.1.1"},"Схема подключения теплопотребляющей установки к коллектору источника тепловой энергии",{"$nulls":9},"Указывается схема подключения теплопотребляющей установки к коллектору источника тепловой энергии только для тарифов на тепловую энергию и за услуги по поддержанию резервной мощности.\nЗначение выбирается из перечня: Без дифференциации; к коллектору источника тепловой энергии; к тепловой сети без дополнительного преобразования на тепловых пунктах, эксплуатируемых теплоснабжающей организацией; к тепловой сети после тепловых пунктов (на тепловых пунктах), эксплуатируемых теплоснабжающей организацией.\nВ случае дифференциации тарифов по схемам подключения теплопотребляющей установки к коллектору источника тепловой энергии информация по ним указывается в отдельных строках."]
[{"$nulls":5},1,{"$nulls":3},1,null,{"$f":"mergeValue(A166) &\".\"& mergeValue(B166)&\".\"& mergeValue(C166)&\".\"& mergeValue(D166)&\".\"& mergeValue(E166)&\".\"& mergeValue(F166)","v":"1.1.1.1.1.1"},"Группа потребителей",{"$nulls":9},"Указывается группа потребителей при наличии дифференциации тарифа по группам потребителей.\nЗначение выбирается из перечня: Организации-перепродавцы; Бюджетные организации; Население; Прочие; Без дифференциации.\nВ случае дифференциации тарифов группам потребителей информация по ним указывается в отдельных строках.",null,{"$f":"strCheckUnique(Z166:Z169)","v":""},null,{"$f":"IF(O166=\"\",\"\",O166 & \":_\")","v":""}]
[{"$nulls":6},1,{"$nulls":3},1,{"$f":"mergeValue(A167) &\".\"& mergeValue(B167)&\".\"& mergeValue(C167)&\".\"& mergeValue(D167)&\".\"& mergeValue(E167)&\".\"& mergeValue(F167)&\".\"& mergeValue(G167)","v":"1.1.1.1.1.1.1"},{"$nulls":6},"да",null,"да",null,"В колонке «Параметр дифференциации тарифов» указывается вид теплоносителя.\nЗначение выбирается из перечня: вода; пар; отборный пар, 1.2-2.5 кг/см2; отборный пар, 2.5-7 кг/см2; отборный пар, 7-13 кг/см2; отборный пар, > 13 кг/см2; острый и редуцированный пар; горячая вода в системе централизованного теплоснабжения на отопление; горячая вода в системе централизованного теплоснабжения на горячее водоснабжение; прочее.\nПри подаче предложения на двухставочный тариф колонка «Одноставочный тариф» не заполняется.\nПри подаче предложения на одноставочный тариф колонки в блоке «Двухставочный тариф» не заполняются.\nДаты начала и окончания действия тарифов указываются в виде «ДД.ММ.ГГГГ».\nВ случае отсутствия даты окончания действия тарифа в колонке «Дата окончания» указывается «Нет».\nИнформация в колонке «Ставка за содержание тепловой мощности, тыс. руб./Гкал/ч/мес» указывается только для тарифа по поддержанию резервной мощности. \nВ случае дифференциации тарифов по периодам действия тарифа информация по ним указывается в отдельных колонках.\nВ случае дифференциации тарифов по видам теплоносителя информация по ним указывается в отдельных строках.",{"$f":"strCheckDate(O168:V168)","v":""},null,{"$f":"IF(M167=\"\",\"\",M167 )","v":""}]
[{"$nulls":16},{"$f":"R167 & \"-\" & T167","v":"-"}]
[{"$nulls":12},"Добавить вид теплоносителя (параметры теплоносителя)"]
[{"$nulls":12},"Добавить группу потребителей"]
[{"$nulls":12},"Добавить схему подключения"]
[{"$nulls":12},"Добавить источник тепловой энергии"]
[{"$nulls":12},"Добавить наименование системы теплоснабжения"]
[{"$nulls":12},"Добавить территорию действия тарифа"]
[{"$nulls":12},"Добавить наименование тарифа"]
[]
[{"$nulls":6},"et_List06(_1,_2,_3)",null,"9"]
[]
[1,{"$nulls":10},{"$f":"mergeValue(A179)","v":1},"Наименование тарифа",{"$nulls":10},"Указывается наименование тарифа в случае подачи предложения по нескольким тарифам.\nВ случае наличия нескольких тарифов информация по ним указывается в отдельных строках."]
[null,1,{"$nulls":9},{"$f":"mergeValue(A180) &\".\"& mergeValue(B180)","v":"1.1"},"Территория действия тарифа",{"$nulls":10},"Указывается наименование территории действия тарифа при наличии дифференциации тарифа по территориальному признаку.\nВ случае дифференциации тарифов по территориальному признаку информация по ним указывается в отдельных строках."]
[null,null,1,{"$nulls":8},{"$f":"mergeValue(A181) &\".\"& mergeValue(B181)&\".\"& mergeValue(C181)","v":"1.1.1"},"Наименование системы теплоснабжения ",{"$nulls":10},"Указывается наименование системы теплоснабжения при наличии дифференциации тарифа по системам теплоснабжения.\nВ случае дифференциации тарифов по системам теплоснабжения информация по ним указывается в отдельных строках."]
[{"$nulls":3},1,{"$nulls":7},{"$f":"mergeValue(A182) &\".\"& mergeValue(B182)&\".\"& mergeValue(C182)&\".\"& mergeValue(D182)","v":"1.1.1.1"},"Источник тепловой энергии  ",{"$nulls":10},"Указывается наименование источника тепловой энергии."]
[{"$nulls":4},1,{"$nulls":6},{"$f":"mergeValue(A183) &\".\"& mergeValue(B183)&\".\"& mergeValue(C183)&\".\"& mergeValue(D183)&\".\"& mergeValue(E183)","v":"1.1.1.1.1"},{"$nulls":7},"да",null,"да",null,"В колодке «Заявитель» указывается наименование заявителя, к которой относится тариф.\nДаты начала и окончания указываются в виде «ДД.ММ.ГГГГ».\nВ случае отсутствия даты окончания тарифа в колонке «Дата окончания» указывается «Нет».\nВ случае наличия дифференциации по категориям потребителей/заявителям информация по ним указывается в отдельных строках.\nВ случае дифференциации по периодам действия тарифа информация по ним указывается в отдельных колонках.",{"$f":"strCheckDateTwo(N183:W183)","v":""}]
[{"$nulls":17},{"$f":"S183 & \"-\" & U183","v":"-"}]
[{"$nulls":12},"Добавить строку"]
[{"$nulls":12},"Добавить источник тепловой энергии"]
[{"$nulls":12},"Добавить наименование системы теплоснабжения"]
[{"$nulls":12},"Добавить территорию действия тарифа"]
[{"$nulls":12},"Добавить наименование тарифа"]
[]
[{"$nulls":6},"et_List06(_1,_2,_3)",null,"10"]
[]
[1,{"$nulls":10},{"$f":"mergeValue(A193)","v":1},"Наименование тарифа",{"$nulls":19},"Указывается наименование тарифа в случае подачи предложения по нескольким тарифам.\nВ случае наличия нескольких тарифов информация по ним указывается в отдельных строках."]
[null,1,{"$nulls":9},{"$f":"mergeValue(A194) &\".\"& mergeValue(B194)","v":"1.1"},"Территория действия тарифа",{"$nulls":19},"Указывается наименование территории действия тарифа при наличии дифференциации тарифа по территориальному признаку.\nВ случае дифференциации тарифов по территориальному признаку информация по ним указывается в отдельных строках."]
[null,null,1,{"$nulls":8},{"$f":"mergeValue(A195) &\".\"& mergeValue(B195)&\".\"& mergeValue(C195)","v":"1.1.1"},"Наименование системы теплоснабжения ",{"$nulls":19},"Указывается наименование системы теплоснабжения при наличии дифференциации тарифа по системам теплоснабжения.\nВ случае дифференциации тарифов по системам теплоснабжения информация по ним указывается в отдельных строках."]
[{"$nulls":3},1,{"$nulls":7},{"$f":"mergeValue(A196) &\".\"& mergeValue(B196)&\".\"& mergeValue(C196)&\".\"& mergeValue(D196)","v":"1.1.1.1"},"Источник тепловой энергии  ",{"$nulls":19},"Указывается наименование источника тепловой энергии."]
[{"$nulls":4},1,{"$nulls":6},{"$f":"mergeValue(A197) &\".\"& mergeValue(B197)&\".\"& mergeValue(C197)&\".\"& mergeValue(D197)&\".\"& mergeValue(E197)","v":"1.1.1.1.1"},null,"да",null,1,null,"да",null,1,null,"да",null,1,{"$nulls":4},"да",null,"да",null,"В колодке «Параметр дифференциации тарифа/Заявитель» указывается наименование категории потребителей, к которой относится тариф.\nДаты начала и окончания указываются в виде «ДД.ММ.ГГГГ».\nВ случае отсутствия даты окончания тарифа в колонке «Дата окончания» указывается «Нет».\nВ случае наличия дифференциации по подключаемой нагрузке, диапазону диаметров, типу прокладки тепловых сетей, информация по ним указывается в отдельных строках.\nВ случае дифференциации тарифов по периодам действия тарифа информация по ним указывается в отдельных колонках.",{"$f":"strCheckDate(Z198:AF198)","v":""},{"$f":"IF(AND(COUNTIF(AJ192:AJ192,AJ197)>1,AJ197<>\"\"),\"ErrUnique:HasDoubleConn\",\"\")","v":""}]
[{"$nulls":26},{"$f":"AB197 & \"-\" & AD197","v":"-"}]
[]
[]
[{"$nulls":12},"Добавить строку"]
[{"$nulls":12},"Добавить источник тепловой энергии"]
[{"$nulls":12},"Добавить наименование системы теплоснабжения"]
[{"$nulls":12},"Добавить территорию действия тарифа"]
[{"$nulls":12},"Добавить наименование тарифа"]
[]
[]
[]
[]
[]
[{"$nulls":13},"нет",null,1,null,"да",null,1,null,"да",null,1]
[{"$nulls":24},"Добавить диапазон диаметров тепловых сетей"]
[{"$nulls":20},"Добавить тип прокладки тепловых сетей"]
[]
[]
[]
[]
[{"$nulls":6},"et_List06(_1,_2,_3)",null,"3_i"]
[]
[1,{"$nulls":10},{"$f":"mergeValue(A220)","v":1},"Наименование тарифа",{"$nulls":9},"Указывается наименование тарифа в случае подачи предложения по нескольким тарифам.\nВ случае наличия нескольких тарифов информация по ним указывается в отдельных строках.",null,null,{"$f":"IF(M220=\"\",\"\",M220 )","v":"Наименование тарифа"}]
[null,1,{"$nulls":9},{"$f":"mergeValue(A221) &\".\"& mergeValue(B221)","v":"1.1"},"Территория действия тарифа",{"$nulls":9},"Указывается наименование территории действия тарифа при наличии дифференциации тарифа по территориальному признаку.\nВ случае дифференциации тарифов по территориальному признаку информация по ним указывается в отдельных строках.",null,null,"Территория действия тарифа"]
[null,null,1,{"$nulls":8},{"$f":"mergeValue(A222) &\".\"& mergeValue(B222)&\".\"& mergeValue(C222)","v":"1.1.1"},"Наименование системы теплоснабжения ",{"$nulls":9},"Указывается наименование системы теплоснабжения при наличии дифференциации тарифа по системам теплоснабжения.\nВ случае дифференциации тарифов по системам теплоснабжения информация по ним указывается в отдельных строках.",null,null,"Наименование системы теплоснабжения "]
[{"$nulls":3},1,{"$nulls":7},{"$f":"mergeValue(A223) &\".\"& mergeValue(B223)&\".\"& mergeValue(C223)&\".\"& mergeValue(D223)","v":"1.1.1.1"},"Источник тепловой энергии  ",{"$nulls":9},"Указывается наименование источника тепловой энергии\nВ случае дифференциации тарифов по источникам тепловой энергии информация по ним указывается в отдельных строках.",null,null,"Источник тепловой энергии  "]
[{"$nulls":4},1,null,null,1,1,null,null,{"$f":"mergeValue(A224) &\".\"& mergeValue(B224)&\".\"& mergeValue(C224)&\".\"& mergeValue(D224)&\".\"& mergeValue(E224)","v":"1.1.1.1.1"},"Схема подключения теплопотребляющей установки к коллектору источника тепловой энергии",{"$nulls":9},"Указывается схема подключения теплопотребляющей установки к коллектору источника тепловой энергии только для тарифов на тепловую энергию и за услуги по поддержанию резервной мощности.\nЗначение выбирается из перечня: Без дифференциации; к коллектору источника тепловой энергии; к тепловой сети без дополнительного преобразования на тепловых пунктах, эксплуатируемых теплоснабжающей организацией; к тепловой сети после тепловых пунктов (на тепловых пунктах), эксплуатируемых теплоснабжающей организацией.\nВ случае дифференциации тарифов по схемам подключения теплопотребляющей установки к коллектору источника тепловой энергии информация по ним указывается в отдельных строках.",null,null,"Схема подключения теплопотребляющей установки к коллектору источника тепловой энергии"]
[{"$nulls":5},1,{"$nulls":3},1,null,{"$f":"mergeValue(A225) &\".\"& mergeValue(B225)&\".\"& mergeValue(C225)&\".\"& mergeValue(D225)&\".\"& mergeValue(E225)&\".\"& mergeValue(F225)","v":"1.1.1.1.1.1"},"Группа потребителей",{"$nulls":9},"Указывается группа потребителей при наличии дифференциации тарифа по группам потребителей.\nЗначение выбирается из перечня: Организации-перепродавцы; Бюджетные организации; Население; Прочие; Без дифференциации.\nВ случае дифференциации тарифов группам потребителей информация по ним указывается в отдельных строках.",null,null,"Группа потребителей"]
[{"$nulls":6},1,{"$nulls":3},1,{"$f":"mergeValue(A226) &\".\"& mergeValue(B226)&\".\"& mergeValue(C226)&\".\"& mergeValue(D226)&\".\"& mergeValue(E226)&\".\"& mergeValue(F226)&\".\"& mergeValue(G226)","v":"1.1.1.1.1.1.1"},{"$nulls":6},"да",null,"да",null,"В колонке «Параметр дифференциации тарифов» указывается вид теплоносителя.\nЗначение выбирается из перечня: вода; пар; отборный пар, 1.2-2.5 кг/см2; отборный пар, 2.5-7 кг/см2; отборный пар, 7-13 кг/см2; отборный пар, > 13 кг/см2; острый и редуцированный пар; горячая вода в системе централизованного теплоснабжения на отопление; горячая вода в системе централизованного теплоснабжения на горячее водоснабжение; прочее.\nПри подаче предложения на двухставочный тариф колонка «Одноставочный тариф» не заполняется.\nПри подаче предложения на одноставочный тариф колонки в блоке «Двухставочный тариф» не заполняются.\nДаты начала и окончания действия тарифов указываются в виде «ДД.ММ.ГГГГ».\nВ случае отсутствия даты окончания действия тарифа в колонке «Дата окончания» указывается «Нет».\nИнформация в колонке «Ставка за содержание тепловой мощности, тыс. руб./Гкал/ч/мес» указывается только для тарифа по поддержанию резервной мощности. \nВ случае дифференциации тарифов по периодам действия тарифа информация по ним указывается в отдельных колонках.\nВ случае дифференциации тарифов по видам теплоносителя информация по ним указывается в отдельных строках.",{"$f":"strCheckDate(O227:V227)","v":""},null,""]
[{"$nulls":16},{"$f":"R226 & \"-\" & T226","v":"-"},{"$nulls":8},""]
[{"$nulls":12},"Добавить вид теплоносителя (параметры теплоносителя)",{"$nulls":12},"Добавить вид теплоносителя (параметры теплоносителя)"]
[{"$nulls":12},"Добавить группу потребителей",{"$nulls":12},"Добавить группу потребителей"]
[{"$nulls":12},"Добавить схему подключения",{"$nulls":12},"Добавить схему подключения"]
[{"$nulls":12},"Добавить источник тепловой энергии",{"$nulls":12},"Добавить источник тепловой энергии"]
[{"$nulls":12},"Добавить наименование системы теплоснабжения",{"$nulls":12},"Добавить наименование системы теплоснабжения"]
[{"$nulls":12},"Добавить территорию действия тарифа",{"$nulls":12},"Добавить территорию действия тарифа"]
[{"$nulls":12},"Добавить наименование тарифа"]
[]
[{"$nulls":6},"et_List06(_1,_2,_3)",null,"13"]
[]
[1,{"$nulls":10},{"$f":"mergeValue(A238)","v":1},"Наименование тарифа",{"$nulls":44},"Указывается наименование тарифа в случае подачи предложения по нескольким тарифам.\nВ случае наличия нескольких тарифов информация по ним указывается в отдельных строках.",null,null,{"$f":"IF(M238=\"\",\"\",M238 )","v":"Наименование тарифа"}]
[null,1,{"$nulls":9},{"$f":"mergeValue(A239) &\".\"& mergeValue(B239)","v":"1.1"},"Территория действия тарифа",{"$nulls":44},"Указывается наименование территории действия тарифа при наличии дифференциации тарифа по территориальному признаку.\nВ случае дифференциации тарифов по территориальному признаку информация по ним указывается в отдельных строках.",null,null,"Территория действия тарифа"]
[null,null,1,{"$nulls":8},{"$f":"mergeValue(A240) &\".\"& mergeValue(B240)&\".\"& mergeValue(C240)","v":"1.1.1"},"Наименование системы теплоснабжения ",{"$nulls":44},"Указывается наименование системы теплоснабжения при наличии дифференциации тарифа по системам теплоснабжения.\nВ случае дифференциации тарифов по системам теплоснабжения информация по ним указывается в отдельных строках.",null,null,"Наименование системы теплоснабжения "]
[{"$nulls":3},1,{"$nulls":7},{"$f":"mergeValue(A241) &\".\"& mergeValue(B241)&\".\"& mergeValue(C241)&\".\"& mergeValue(D241)","v":"1.1.1.1"},"Источник тепловой энергии  ",{"$nulls":44},"Указывается наименование источника тепловой энергии\nВ случае дифференциации тарифов по источникам тепловой энергии информация по ним указывается в отдельных строках.",null,null,"Источник тепловой энергии  "]
[{"$nulls":4},1,null,null,1,1,null,null,{"$f":"mergeValue(A242) &\".\"& mergeValue(B242)&\".\"& mergeValue(C242)&\".\"& mergeValue(D242)&\".\"& mergeValue(E242)","v":"1.1.1.1.1"},"Схема подключения теплопотребляющей установки к коллектору источника тепловой энергии",{"$nulls":44},"Указывается схема подключения теплопотребляющей установки к коллектору источника тепловой энергии только для тарифов на тепловую энергию и за услуги по поддержанию резервной мощности.\nЗначение выбирается из перечня: Без дифференциации; к коллектору источника тепловой энергии; к тепловой сети без дополнительного преобразования на тепловых пунктах, эксплуатируемых теплоснабжающей организацией; к тепловой сети после тепловых пунктов (на тепловых пунктах), эксплуатируемых теплоснабжающей организацией.\nВ случае дифференциации тарифов по схемам подключения теплопотребляющей установки к коллектору источника тепловой энергии информация по ним указывается в отдельных строках.",null,null,"Схема подключения теплопотребляющей установки к коллектору источника тепловой энергии"]
[{"$nulls":5},1,{"$nulls":3},1,null,{"$f":"mergeValue(A243) &\".\"& mergeValue(B243)&\".\"& mergeValue(C243)&\".\"& mergeValue(D243)&\".\"& mergeValue(E243)&\".\"& mergeValue(F243)","v":"1.1.1.1.1.1"},"Группа потребителей",{"$nulls":44},"Указывается группа потребителей при наличии дифференциации тарифа по группам потребителей.\nЗначение выбирается из перечня: Организации-перепродавцы; Бюджетные организации; Население; Прочие; Без дифференциации.\nВ случае дифференциации тарифов группам потребителей информация по ним указывается в отдельных строках.",null,null,"Группа потребителей"]
[{"$nulls":6},1,{"$nulls":3},1,{"$f":"mergeValue(A244) &\".\"& mergeValue(B244)&\".\"& mergeValue(C244)&\".\"& mergeValue(D244)&\".\"& mergeValue(E244)&\".\"& mergeValue(F244)&\".\"& mergeValue(G244)","v":"1.1.1.1.1.1.1"},{"$nulls":6},"да",null,"да",{"$nulls":4},"да",null,"да",{"$nulls":4},"да",null,"да",{"$nulls":4},"да",null,"да",{"$nulls":4},"да",null,"да",{"$nulls":4},"да",null,"нет",null,"В колонке «Параметр дифференциации тарифов» указывается вид теплоносителя.\nЗначение выбирается из перечня: вода; пар; отборный пар, 1.2-2.5 кг/см2; отборный пар, 2.5-7 кг/см2; отборный пар, 7-13 кг/см2; отборный пар, > 13 кг/см2; острый и редуцированный пар; горячая вода в системе централизованного теплоснабжения на отопление; горячая вода в системе централизованного теплоснабжения на горячее водоснабжение; прочее.\nПри подаче предложения на двухставочный тариф колонка «Одноставочный тариф» не заполняется.\nПри подаче предложения на одноставочный тариф колонки в блоке «Двухставочный тариф» не заполняются.\nДаты начала и окончания действия тарифов указываются в виде «ДД.ММ.ГГГГ».\nВ случае отсутствия даты окончания действия тарифа в колонке «Дата окончания» указывается «Нет».\nИнформация в колонке «Ставка за содержание тепловой мощности, тыс. руб./Гкал/ч/мес» указывается только для тарифа по поддержанию резервной мощности. \nВ случае дифференциации тарифов по периодам действия тарифа информация по ним указывается в отдельных колонках.\nВ случае дифференциации тарифов по видам теплоносителя информация по ним указывается в отдельных строках.",{"$f":"strCheckDate(O245:BE245)","v":""},null,""]
[{"$nulls":16},{"$f":"R244 & \"-\" & T244","v":"-"},{"$nulls":6},{"$f":"Y244 & \"-\" & AA244","v":"-"},{"$nulls":6},{"$f":"AF244 & \"-\" & AH244","v":"-"},{"$nulls":6},{"$f":"AM244 & \"-\" & AO244","v":"-"},{"$nulls":6},{"$f":"AT244 & \"-\" & AV244","v":"-"},{"$nulls":6},{"$f":"BA244 & \"-\" & BC244","v":"-"},{"$nulls":8},""]
[{"$nulls":12},"Добавить вид теплоносителя (параметры теплоносителя)",{"$nulls":47},"Добавить вид теплоносителя (параметры теплоносителя)"]
[{"$nulls":12},"Добавить группу потребителей",{"$nulls":47},"Добавить группу потребителей"]
[{"$nulls":12},"Добавить схему подключения",{"$nulls":47},"Добавить схему подключения"]
[{"$nulls":12},"Добавить источник тепловой энергии",{"$nulls":47},"Добавить источник тепловой энергии"]
[{"$nulls":12},"Добавить наименование системы теплоснабжения",{"$nulls":47},"Добавить наименование системы теплоснабжения"]
[{"$nulls":12},"Добавить территорию действия тарифа",{"$nulls":47},"Добавить территорию действия тарифа"]
[{"$nulls":12},"Добавить наименование тарифа"]
[]
["et_List07"]
[]
[]
[]
["et_List06"]
[]
[{"$nulls":4},1]
[]
["et_List07"]
[]
[{"$nulls":4},"1"]
[]
["et_List08"]
[]
[{"$nulls":4},"1"]
[]
["et_List00_01","et_List00_02","et_List00_03"]
[]
[{"$nulls":5},"Адрес регулируемой организации"]
[{"$nulls":4},"Юридический адрес"]
[{"$nulls":4},"Почтовый адрес"]
[]
[{"$nulls":5},"Руководитель"]
[{"$nulls":4},"Фамилия, имя, отчество"]
[{"$nulls":4},"(код) номер телефона"]
[]
[{"$nulls":5},"Главный бухгалтер"]
[{"$nulls":4},"Фамилия, имя, отчество"]
[{"$nulls":4},"(код) номер телефона"]
[]
[{"$nulls":5},"Должностное лицо, ответственное за составление формы"]
[{"$nulls":4},"Фамилия, имя, отчество"]
[{"$nulls":4},"Должность"]
[{"$nulls":4},"(код) номер телефона"]
[{"$nulls":4},"e-mail"]
[]
["et_List03"]
[]
["3","",{"$nulls":10},{"$f":"IF(ISERROR(INDEX(kind_of_nameforms,MATCH(E292,kind_of_forms,0),1)),\"\",INDEX(kind_of_nameforms,MATCH(E292,kind_of_forms,0),1))","v":""}]
[]
[]
["et_List01_0"]
[]
[null,"auto",null,1,null,null,0,null,null,"0",null,null,{"$f":"mergeValue(H297)","v":0},null,null,{"$f":"IF(ISERROR(MATCH(Q297,MODesc,0)),\"n\",\"y\")","v":"n"},null,{"$f":"K297&\"(\"&L297&\")\"","v":"()"}]
[{"$nulls":7},"Добавить МР"]
[]
["et_List01_1"]
[]
[null,"auto",{"$nulls":4},0,null,null,"0",null,null,{"$f":"mergeValue(H302)","v":0},{"$nulls":4},{"$f":"K302&\"(\"&L302&\")\"","v":"()"}]
[{"$nulls":10},"Добавить МО"]
[]
["et_List01_2"]
[]
[null,"auto",{"$nulls":7},0,null,null,{"$f":"mergeValue(H307)","v":0},{"$nulls":4},{"$f":"K307&\" (\"&L307&\")\"","v":" ()"}]
[]
[]
["et_List11_1"]
[]
[]
[]
[]
["et_List12_1"]
[]
[{"$nulls":5},"x","x"]
[]
[]
["et_List12_2"]
[]
[{"$nulls":5},"x",null,"x"]
[]
[]
["et_List12_3"]
[]
[{"$nulls":4},{"$f":"E326","v":0},"x",null,"x"]
[]
[]
["et_List12_4"]
[]
[{"$nulls":4},{"$f":"E331","v":0},"x",null,"x"]
[]
[]
["et_List05(_1,_2,_3,_4)"]
[]
[1,{"$nulls":4},{"$f":"\"2.\" &mergeValue(A337)","v":"2.1"},"Наименование централизованной системы коммунальной инфраструктуры",null,"Указывается наименование централизованной системы холодного водоснабжения/горячего водоснабжения/водоотведения/теплоснабжения, к которой относится размещаемая информация.\nВ случае наличия нескольких централизованных систем коммунальной инфраструктуры, информация по каждой из них указывается в отдельной строке."]
[{"$nulls":5},{"$f":"\"3.\" &mergeValue(A338)","v":"3.1"},"Наименование регулируемого вида деятельности",null,"Указывается наименование вида регулируемой деятельности."]
[{"$nulls":5},{"$f":"\"4.\"&mergeValue(A339)","v":"4.1"},"Территория оказания услуги по регулируемому виду деятельности","x"]
[null,1,{"$nulls":3},{"$f":"\"4.\"&mergeValue(A340) &\".\"&mergeValue(B340)","v":"4.1.1"},"Субъект Российской Федерации",{"$f":"IF(region_name=\"\",\"\",region_name)","v":"Ярославская область"},"Указывается наименование субъекта Российской Федерации"]
[null,null,1,null,null,{"$f":"\"4.\"&mergeValue(A341) &\".\"&mergeValue(B341)&\".\"&mergeValue(C341)","v":"4.1.1.1"},"муниципальный район",null,"Указывается наименование муниципального района, на территории которого организация оказывает услуги по регулируемому виду деятельности."]
[{"$nulls":3},1,null,{"$f":"\"4.\"&mergeValue(A342) &\".\"&mergeValue(B342)&\".\"&mergeValue(C342)&\".\"&mergeValue(D342)","v":"4.1.1.1.1"},"муниципальное образование",null,"Указывается наименование и код муниципального района, муниципального образования в соответствии с Общероссийским классификатором территорий муниципальных образований (далее - ОКТМО), входящего в муниципальный район, на территории которого организация оказывает услуги по регулируемому виду деятельности.\nВ случае оказания услуг по регулируемому виду деятельности на территории нескольких муниципальных районов (муниципальных образований) данные по каждому их них указываются в отдельной строке."]
[{"$nulls":6},"Добавить МО"]
[{"$nulls":6},"Добавить МР"]
[{"$nulls":6},"Добавить территорию"]
[{"$nulls":6},"Добавить ЦС"]
[]
[]
["et_List13_1"]
[]
[]
[]
[]
["et_List14_1_1"]
[]
[{"$nulls":10},"x","Значение в колонке «Вид тарифа» выбирается из перечня видов тарифов в сфере холодного водоснабжения, предусмотренных законодательством в сфере водоснабжения и водоотведения.\nЗначение в колонке «Информация» выбирается из перечня: Метод экономически обоснованных расходов (затрат); Метод индексации установленных тарифов; Метод обеспечения доходности инвестированного капитала; Метод сравнения аналогов.\nДаты начала и окончания периода действия тарифов указывается в виде «ДД.ММ.ГГГГ».\nВ случае дифференциации предлагаемых методов регулирования видам тарифов и (или) по периодам действия тарифов информация по каждому из них указывается в отдельной строке."]
[{"$nulls":7},"Добавить период"]
[]
[]
["et_List14_1_4"]
[]
[{"$nulls":10},"x","Значение в колонке «Вид тарифа» выбирается из перечня видов тарифов в сфере холодного водоснабжения, предусмотренных законодательством в сфере водоснабжения и водоотведения.\nЗначение в колонке «Информация» выбирается из перечня: Метод экономически обоснованных расходов (затрат); Метод индексации установленных тарифов; Метод обеспечения доходности инвестированного капитала; Метод сравнения аналогов.\nДаты начала и окончания периода действия тарифов указывается в виде «ДД.ММ.ГГГГ».\nВ случае дифференциации предлагаемых методов регулирования видам тарифов и (или) по периодам действия тарифов информация по каждому из них указывается в отдельной строке."]
[{"$nulls":7},"Добавить период"]
[]
[]
["et_List14_1_2"]
[]
[{"$nulls":10},"x"]
[]
[]
["et_List14_1_3"]
[]
[{"$nulls":10},"x"]

{"sheet":"TEHSHEET","index":39,"n_rows":87,"n_cols":55,"rows_kept":87,"hidden":true,"merged":[[0,51,0,52]]}
["REGION","year_list1","year_list","logical","Месяц\n(MONTH)","Квартал\n(QUARTER)","Месяц\n(kind_of_publication)","НДС\n/kind_of_NDS/","Номер СЦХВ(СЦВО)\n/SKI_number/","Единица измерения объема оказываемых услуг ГВС\n/kind_of_unit_GVS/","Метод регулирования\n/kind_of_control_method/",null,null,"Вид деятельности, на которую установлен тариф /kind_of_activity_WARM/","Вид теплоносителя\n(kind_of_heat_transfer)","Тип данных\n(kind_of_data_type)","Схема подключения\n(kind_of_scheme_in)\n(kind_of_scheme_in2)","Группы потребителей\n(kind_of_cons)","Тип прокладки тепловых сетей\n(kind_of_nets)","Диапазаны диаметров тепловых сетей\n(kind_of_diameters)","Подключаемая тепловая нагрузка\n(kind_of_load)",null,"Форма 2, таблица Х","виды тарифа\n/kind_group_rates/","Заголовок таблицы",null,"name_rates_4",null,"name_rates_8",null,null,"Подключаемая тепловая нагрузка\n(kind_of_load3)",null,"Вид теплоносителя\n(kind_of_heat_transfer2)","Вид теплоносителя\n(kind_of_heat_transfer3)",null,"Вид топлива\n(kind_of_fuel)",null,"Способ закупки товаров\n(kind_of_zak)",null,null,"виды тарифа\n/kind_group_rates_load/","виды тарифа\n/kind_group_rates_load_filter/",null,"виды признаков дифференциации\n/kind_of_diff/",null,"Диапазаны диаметров водопроводных сетей\n(kind_of_diameters2)",null,"List_H","List_M",null,"Перечень форм\n(kind_of_forms)",null,null,"Тип организации\nkind_of_org_type"]
["Алтайский край",2000,2013,"да","январь","I квартал","На официальном сайте организации","общий","1","тыс.куб.м/сутки","метод экономически обоснованных расходов (затрат)","метод экономически обоснованных расходов (затрат)",1,"Передача+Сбыт","вода","первичное раскрытие информации","без дифференциации","организации-перепродавцы","надземная (наземная)","50 - 250 мм","не превышает 0,1 Гкал/ч",1,null,"Тарифы на тепловую энергию (мощность), производимую в режиме комбинированной выработки электрической и тепловой энергии источниками тепловой энергии с установленной генерирующей мощностью производства электрической энергии 25 мегаватт и более, в соответствии с установленными федеральным органом исполнительной власти в области государственного регулирования тарифов в сфере теплоснабжения предельными (минимальным и (или) максимальным) уровнями указанных тарифов","Форма 4.10.2 Информация о предложении величин тарифов на тепловую энергию, поддержанию резервной тепловой мощности",null,"Тариф на теплоноситель, поставляемый потребителям","Тариф на теплоноситель, поставляемый потребителям","Плата за услуги по поддержанию резервной тепловой мощности при отсутствии потребления тепловой энергии для отдельных категорий (групп) социально значимых потребителей","Плата за услуги по поддержанию резервной тепловой мощности при отсутствии потребления тепловой энергии для отдельных категорий (групп) социально значимых потребителей",null,"не превышает 0,1 Гкал/ч",null,"Вода","Вода",null,"Газ природный по регулируемой цене",null,"Конкурс",null,null,"Тарифы на тепловую энергию (мощность), производимую в режиме комбинированной выработки электрической и тепловой энергии источниками тепловой энергии с установленной генерирующей мощностью производства электрической энергии 25 мегаватт и более, в соответствии с установленными федеральным органом исполнительной власти в области государственного регулирования тарифов в сфере теплоснабжения предельными (минимальным и (или) максимальным) уровнями указанных тарифов","Тарифы на теплоноситель, поставляемый теплоснабжающими организациями потребителям, другим теплоснабжающим организациям",null,"объемы потребления воды абонентами",null,"40 мм и менее",null,"00","00",null,"Форма 1.0.1","Основные параметры раскрываемой информации",null,"Регулируемая организация"]
["Амурская область",2001,2014,"нет","февраль","II квартал","На сайте регулирующего органа","общий с учетом освобождения от уплаты НДС","2","Гкал/ч","метод индексации установленных тарифов","метод индексации установленных тарифов",2,"Передача","пар","изменения в раскрытой ранее информации","к коллектору источника тепловой энергии","бюджетные организации","подземная (канальная)","251 - 400 мм","более 0,1 Гкал/ч и не превышает 1,5 Гкал/ч",2,null,"Тарифы на тепловую энергию (мощность), поставляемую другим теплоснабжающим организациям теплоснабжающими организациями","Форма 4.10.2 Информация о предложении величин тарифов на тепловую энергию, поддержанию резервной тепловой мощности",null,"Тариф на теплоноситель, поставляемый теплоснабжающей организацией, владеющей источником (источниками) тепловой энергии, на котором производится теплоноситель","Тариф на теплоноситель, поставляемый теплоснабжающей организацией, владеющей источником (источниками) тепловой энергии, на котором производится теплоноситель","Плата за услуги по поддержанию резервной тепловой мощности, оказываемые регулируемой организацией, мощность источников тепловой энергии которой используется для поддержания резервной мощности в соответствии со схемой теплоснабжения","Плата за услуги по поддержанию резервной тепловой мощности, оказываемые регулируемой организацией, мощность источников тепловой энергии которой используется для поддержания резервной мощности в соответствии со схемой теплоснабжения",null,"более 0,1 Гкал/ч и не превышает 1,5 Гкал/ч",null,"Отборный пар, 1,2-2,5 кг/см2","Пар",null,"Газ природный по нерегулируемой цене",null,"Аукцион",null,null,"Тарифы на тепловую энергию (мощность), поставляемую потребителям теплоснабжающими организациями в соответствии с установленными предельными (минимальными и (или) максимальными) уровнями указанных тарифов","Тарифы на горячую воду, поставляемую теплоснабжающими организациями потребителям, другим теплоснабжающим организациям с использованием открытых систем теплоснабжения (горячего водоснабжения)",null,"соответствие качества питьевой воды и горячей воды требованиям, установленным санитарными нормами и правилами",null,"от 41 мм до 70 мм включительно",null,"01","01",null,"Форма 4.9","Информация о способах приобретения, стоимости и объемах товаров, необходимых для производства товаров и (или) оказания услуг",null,"Единая теплоснабжающая организация"]
["Архангельская область",2002,2015,null,"март","III квартал",null,"специальный (упрощенная система налогообложения, система налогообложения для сельскохозяйственных производителей)","3","куб.м/ч","метод обеспечения доходности инвестированного капитала","метод обеспечения доходности инвестированного капитала",3,"производство комбинированная выработка","отборный пар, 1.2-2.5 кг/см2",null,"к тепловой сети без дополнительного преобразования на тепловых пунктах, эксплуатируемых теплоснабжающей организацией","население и приравненные категории","подземная (бесканальная)","401 - 550 мм","превышает 1,5 Гкал/ч при наличии технической возможности подключения",3,{"$nulls":6},"Плата за услуги по поддержанию резервной тепловой мощности, оказываемые регулируемой организацией, мощность тепловых сетей которой используется для поддержания резервной мощности в соответствии со схемой теплоснабжения","Плата за услуги по поддержанию резервной тепловой мощности, оказываемые регулируемой организацией, мощность тепловых сетей которой используется для поддержания резервной мощности в соответствии со схемой теплоснабжения",null,"превышает 1,5 Гкал/ч при наличии технической возможности подключения",null,"Отборный пар, 2,5-7 кг/см2",null,null,"Уголь",null,"Аукцион в электронной форме",null,null,"Тарифы на тепловую энергию (мощность), поставляемую другим теплоснабжающим организациям теплоснабжающими организациями","Тарифы на услуги по передаче тепловой энергии",null,"иное",null,"от 71 мм до 100 мм включительно",null,"02","02",null,"Форма 4.10.1","Информация о предложении регулируемой организацией об установлении тарифов в сфере теплоснабжения на очередной период регулирования",null,"Теплоснабжающая организация в ценовой зоне теплоснабжения"]
["Астраханская область",2003,2016,null,"апрель","IV квартал",null,null,"4",null,"метод сравнения аналогов","метод сравнения аналогов",4,"производство (некомбинированная выработка)+передача+сбыт","отборный пар, 2.5-7 кг/см2",null,"к тепловой сети после тепловых пунктов (на тепловых пунктах), эксплуатируемых теплоснабжающей организацией","прочие",null,"551 - 700 мм","превышает 1,5 Гкал/ч при отсутствии технической возможности подключения",4,null,"Тарифы на теплоноситель, поставляемый теплоснабжающими организациями потребителям, другим теплоснабжающим организациям","Форма 4.10.3 Информация о предложении величин тарифов на теплоноситель, передачу тепловой энергии, теплоносителя",1,{"$nulls":5},"не известна",null,"Отборный пар, 7-13 кг/см2",null,null,"Мазут",null,"Запрос котировок",null,null,"Тарифы на теплоноситель, поставляемый теплоснабжающими организациями потребителям, другим теплоснабжающим организациям","Тарифы на услуги по передаче теплоносителя",{"$nulls":3},"от 101 мм до 150 мм включительно",null,"03","03",null,"Форма 4.10.2","Информация о предложении величин тарифов на тепловую энергию, поддержанию резервной тепловой мощности",null,"Теплосетевая организация в ценовой зоне теплоснабжения"]
["Белгородская область",2004,2017,null,"май",null,"НДС общий\n/kind_of_NDS_tariff/","НДС\n/kind_of_NDS_tariff/","5","Вид тарифа на передачу тепловой энергии /kind_of_tariff_unit/",{"$nulls":3},"производство (некомбинированная выработка)+передача","отборный пар, 7-13 кг/см2",null,null,"без дифференциации",null,"701 мм и выше","не известна",5,null,"Тарифы на горячую воду, поставляемую теплоснабжающими организациями потребителям, другим теплоснабжающим организациям с использованием открытых систем теплоснабжения (горячего водоснабжения)","Форма 4.10.4 Информация о предложении величин тарифов на горячую воду (в открытых системах)",{"$nulls":8},"Отборный пар, > 13 кг/см2",null,null,"Дизельное топливо",null,"Единственный поставщик",null,null,"Тарифы на горячую воду, поставляемую теплоснабжающими организациями потребителям, другим теплоснабжающим организациям с использованием открытых систем теплоснабжения (горячего водоснабжения)","Плата за подключение к системе теплоснабжения",{"$nulls":3},"от 151 мм до 200 мм включительно",null,"04","04",null,"Форма 4.10.3","Информация о предложении величин тарифов на теплоноситель, передачу тепловой энергии, теплоносителя"]
["Брянская область",2005,null,null,"июнь",null,"тариф указан с НДС для плательщиков НДС","тариф для организаций не являющихся плательщиками НДС","6","руб./Гкал/ч/мес",{"$nulls":3},"производство (некомбинированная выработка)+сбыт","отборный пар, > 13 кг/см2",{"$nulls":5},"нет","6",null,"Тарифы на услуги по передаче тепловой энергии","Форма 4.10.3 Информация о предложении величин тарифов на теплоноситель, передачу тепловой энергии, теплоносителя",{"$nulls":8},"Острый и редуцированный пар",null,null,"Дрова",null,"Иное",null,null,"Тарифы на услуги по передаче тепловой энергии","Плата за подключение к системе теплоснабжения (индивидуальная)",{"$nulls":3},"от 201 мм до 250 мм включительно",null,"05","05",null,"Форма 4.10.4","Информация о предложении величин тарифов на горячую воду (в открытых системах)"]
["Владимирская область",2006,null,null,"июль",null,"тариф указан без НДС для плательщиков НДС","тариф не утверждался","7","руб./Гкал",{"$nulls":3},"производство (некомбинированная выработка)","острый и редуцированный пар",{"$nulls":6},"7",null,"Тарифы на услуги по передаче теплоносителя","Форма 4.10.3 Информация о предложении величин тарифов на теплоноситель, передачу тепловой энергии, теплоносителя",{"$nulls":11},"Электроэнергия",{"$nulls":4},"Тарифы на услуги по передаче теплоносителя","Плата за услуги по поддержанию резервной тепловой мощности при отсутствии потребления тепловой энергии",{"$nulls":3},"от 250  мм и более",null,"06","06",null,"Форма 4.10.5","Информация о предложении величин тарифов на подключение к системе теплоснабжения"]
["Волгоградская область",2007,null,null,"август",null,"тариф не утверждался",null,"8",{"$nulls":5},"горячая вода в системе централизованного теплоснабжения на отопление",{"$nulls":6},"8",null,"Плата за услуги по поддержанию резервной тепловой мощности при отсутствии потребления тепловой энергии","Форма 4.10.2 Информация о предложении величин тарифов на тепловую энергию, поддержанию резервной тепловой мощности",1,{"$nulls":10},"Прочее",{"$nulls":4},"Плата за подключение к системе теплоснабжения","Тарифы на тепловую энергию (мощность), производимую в режиме комбинированной выработки электрической и тепловой энергии источниками тепловой энергии с установленной генерирующей мощностью производства электрической энергии 25 мегаватт и более, в соответствии с установленными федеральным органом исполнительной власти в области государственного регулирования тарифов в сфере теплоснабжения предельными (минимальным и (или) максимальным) уровнями указанных тарифов",{"$nulls":5},"07","07",null,"Форма 4.10.6","Информация о предложении платы за подключение к системе теплоснабжения в индивидуальном порядке"]
["Вологодская область",2008,null,null,"сентябрь",{"$nulls":3},"9",{"$nulls":5},"горячая вода в системе централизованного теплоснабжения на горячее водоснабжение",{"$nulls":6},"9",null,"Плата за подключение к системе теплоснабжения (индивидуальная)","Форма 4.10.6 Информация о предложении платы за подключение к системе теплоснабжения в индивидуальном порядке",{"$nulls":16},"Плата за подключение к системе теплоснабжения (индивидуальная)",{"$nulls":6},"08","08"]
["Воронежская область",2009,null,null,"октябрь",{"$nulls":3},"10",{"$nulls":5},"прочее",{"$nulls":6},"10",null,"Плата за подключение к системе теплоснабжения","Форма 4.10.5 Информация о предложении величин тарифов на подключение к системе теплоснабжения",{"$nulls":16},"Плата за услуги по поддержанию резервной тепловой мощности при отсутствии потребления тепловой энергии",{"$nulls":6},"09","09"]
["г.Байконур",2010,null,null,"ноябрь",null,"НДС общий люди\n/kind_of_NDS_tariff_people/","НДС\n/kind_of_NDS_tariff_people/","11",{"$nulls":5},"без дифференциации",{"$nulls":6},"11",null,"Предельный уровнь цены на тепловую энергию (мощность), поставляемую теплоснабжающими организациями потребителям. Индикативы","Форма 4.10.2 Информация о предложении величин тарифов на тепловую энергию, поддержанию резервной тепловой мощности",{"$nulls":23},"10","10"]
["г. Москва",2011,null,null,"декабрь",null,"тариф с НДС организаций-плательщиков НДС","тариф организаций не являющихся плательщиками НДС","12",{"$nulls":12},"12",{"$nulls":26},"11","11"]
["г.Санкт-Петербург",2012,{"$nulls":4},"тариф не утверждался","тариф не утверждался","13",{"$nulls":4},"Вид деятельности /kind_of_activity/",{"$nulls":7},13,null,"Тарифы на тепловую энергию (мощность), поставляемую потребителям теплоснабжающими организациями в соответствии с установленными предельными (минимальными и (или) максимальными) уровнями указанных тарифов","Форма 4.10.2 Информация о предложении величин тарифов на тепловую энергию, поддержанию резервной тепловой мощности",{"$nulls":23},"12","12"]
["г.Севастополь",2013,{"$nulls":6},"14",{"$nulls":4},"производство тепловой энергии (мощности) в режиме комбинированной выработки электрической и тепловой энергии источниками тепловой энергии с установленной генерирующей мощностью производства электрической энергии 25 МВт и более",{"$nulls":34},"13","13"]
["Еврейская автономная область",2014,{"$nulls":6},"15",{"$nulls":4},"производство тепловой энергии (мощности) в режиме комбинированной выработки электрической и тепловой энергии источниками тепловой энергии с установленной генерирующей мощностью производства электрической энергии менее 25 МВт",{"$nulls":34},"14","14"]
["Забайкальский край",2015,{"$nulls":6},"16",{"$nulls":4},"производство тепловой энергии (мощности) не в режиме комбинированной выработки электрической и тепловой энергии источниками тепловой энергии",{"$nulls":34},"15","15"]
["Ивановская область",2016,{"$nulls":6},"17",{"$nulls":4},"производство теплоносителя",{"$nulls":34},"16","16"]
["Иркутская область",2017,{"$nulls":6},"18",{"$nulls":4},"передача тепловой энергии и теплоносителя",{"$nulls":34},"17","17"]
["Кабардино-Балкарская республика",2018,{"$nulls":6},"19",{"$nulls":4},"сбыт тепловой энергии и теплоносителя",{"$nulls":34},"18","18"]
["Калининградская область",2019,{"$nulls":6},"20",{"$nulls":4},"подключение к системе теплоснабжения",{"$nulls":34},"19","19"]
["Калужская область",2020,{"$nulls":11},"поддержание резервной тепловой мощности при отсутствии потребления тепловой энергии",{"$nulls":34},"20","20"]
["Камчатский край",2021,{"$nulls":46},"21","21"]
["Карачаево-Черкесская республика",2022,{"$nulls":46},"22","22"]
["Кемеровская область",2023,{"$nulls":46},"23","23"]
["Кировская область",2024,{"$nulls":47},"24"]
["Костромская область",2025,{"$nulls":47},"25"]
["Краснодарский край",{"$nulls":6},"Текущая дата",{"$nulls":41},"26"]
["Красноярский край",null,null,"Организация",{"$f":"IF(periodStart = \"\",\"\", periodStart)","v":"01.01.2021"},{"$f":"IF(periodEnd = \"\",\"\", periodEnd)","v":"31.12.2023"},null,"29.04.2020 14:13:46",{"$nulls":41},"27"]
["Курганская область",{"$nulls":48},"28"]
["Курская область",{"$nulls":48},"29"]
["Ленинградская область",null,null,"Виды деятельности",{"$nulls":3},"https://appsrv.regportal-tariff.ru/procwsxls/",{"$nulls":6},"вода",{"$nulls":34},"30"]
["Липецкая область",{"$nulls":13},"пар",{"$nulls":34},"31"]
["Магаданская область",{"$nulls":13},"отборный пар, 1.2-2.5 кг/см2",{"$nulls":34},"32"]
["Московская область",{"$nulls":13},"отборный пар, 2.5-7 кг/см2",{"$nulls":34},"33"]
["Мурманская область",{"$nulls":13},"отборный пар, 7-13 кг/см2",{"$nulls":34},"34"]
["Ненецкий автономный округ",{"$nulls":13},"отборный пар, > 13 кг/см2",{"$nulls":34},"35"]
["Нижегородская область",{"$nulls":13},"острый и редуцированный пар",{"$nulls":34},"36"]
["Новгородская область",{"$nulls":13},"горячая вода в системе централизованного теплоснабжения на отопление",{"$nulls":34},"37"]
["Новосибирская область",{"$nulls":13},"горячая вода в системе централизованного теплоснабжения на горячее водоснабжение",{"$nulls":34},"38"]
["Омская область",{"$nulls":13},"прочее",{"$nulls":34},"39"]
["Оренбургская область",{"$nulls":48},"40"]
["Орловская область",{"$nulls":48},"41"]
["Пензенская область",{"$nulls":48},"42"]
["Пермский край",{"$nulls":48},"43"]
["Приморский край",{"$nulls":48},"44"]
["Псковская область",{"$nulls":48},"45"]
["Республика Адыгея",{"$nulls":48},"46"]
["Республика Алтай",{"$nulls":48},"47"]
["Республика Башкортостан",{"$nulls":48},"48"]
["Республика Бурятия",{"$nulls":48},"49"]
["Республика Дагестан",{"$nulls":48},"50"]
["Республика Ингушетия",{"$nulls":48},"51"]
["Республика Калмыкия",{"$nulls":48},"52"]
["Республика Карелия",{"$nulls":48},"53"]
["Республика Коми",{"$nulls":48},"54"]
["Республика Крым",{"$nulls":48},"55"]
["Республика Марий Эл",{"$nulls":48},"56"]
["Республика Мордовия",{"$nulls":48},"57"]
["Республика Саха (Якутия)",{"$nulls":48},"58"]
["Республика Северная Осетия-Алания",{"$nulls":48},"59"]
["Республика Татарстан"]
["Республика Тыва"]
["Республика Хакасия"]
["Ростовская область"]
["Рязанская область"]
["Самарская область"]
["Саратовская область"]
["Сахалинская область"]
["Свердловская область"]
["Смоленская область"]
["Ставропольский край"]
["Тамбовская область"]
["Тверская область"]
["Томская область"]
["Тульская область"]
["Тюменская область"]
["Удмуртская республика"]
["Ульяновская область"]
["Хабаровский край"]
["Ханты-Мансийский автономный округ"]
["Челябинская область"]
["Чеченская республика"]
["Чувашская республика"]
["Чукотский автономный округ"]
["Ямало-Ненецкий автономный округ"]
["Ярославская область"]

{"sheet":"modList14_1","index":40,"n_rows":0,"n_cols":0,"rows_kept":0,"hidden":true}

{"sheet":"modList13","index":41,"n_rows":0,"n_cols":0,"rows_kept":0,"hidden":true}

{"sheet":"modListTempFilter","index":42,"n_rows":0,"n_cols":0,"rows_kept":0,"hidden":true}

{"sheet":"modCheckCyan","index":43,"n_rows":549,"n_cols":1,"rows_kept":549,"hidden":true}
[{"$f":"IF('Форма 4.10.2 | Т-ТЭ | >=25МВт'!$O$22=\"\",1,0)","v":1}]
[{"$f":"IF('Форма 4.10.2 | Т-ТЭ | >=25МВт'!$O$23=\"\",1,0)","v":1}]
[{"$f":"IF('Форма 4.10.2 | Т-ТЭ | >=25МВт'!$M$24=\"\",1,0)","v":1}]
[{"$f":"IF('Форма 4.10.2 | Т-ТЭ | >=25МВт'!$R$24=\"\",1,0)","v":1}]
[{"$f":"IF('Форма 4.10.2 | Т-ТЭ | >=25МВт'!$T$24=\"\",1,0)","v":1}]
[{"$f":"IF('Форма 4.10.2 | Т-ТЭ | >=25МВт'!$S$24=\"\",1,0)","v":0}]
[{"$f":"IF('Форма 4.10.2 | Т-ТЭ | >=25МВт'!$U$24=\"\",1,0)","v":0}]
[{"$f":"IF('Форма 4.10.2 | Т-ТЭ | ТСО'!$O$22=\"\",1,0)","v":0}]
[{"$f":"IF('Форма 4.10.2 | Т-ТЭ | ТСО'!$O$23=\"\",1,0)","v":0}]
[{"$f":"IF('Форма 4.10.2 | Т-ТЭ | ТСО'!$M$24=\"\",1,0)","v":0}]
[{"$f":"IF('Форма 4.10.2 | Т-ТЭ | ТСО'!$R$24=\"\",1,0)","v":0}]
[{"$f":"IF('Форма 4.10.2 | Т-ТЭ | ТСО'!$T$24=\"\",1,0)","v":0}]
[{"$f":"IF('Форма 4.10.2 | Т-ТЭ | ТСО'!$S$24=\"\",1,0)","v":0}]
[{"$f":"IF('Форма 4.10.2 | Т-ТЭ | ТСО'!$U$24=\"\",1,0)","v":0}]
[{"$f":"IF('Форма 4.10.2 | Т-ТЭ | потр'!$O$22=\"\",1,0)","v":0}]
[{"$f":"IF('Форма 4.10.2 | Т-ТЭ | потр'!$O$23=\"\",1,0)","v":0}]
[{"$f":"IF('Форма 4.10.2 | Т-ТЭ | потр'!$M$24=\"\",1,0)","v":0}]
[{"$f":"IF('Форма 4.10.2 | Т-ТЭ | потр'!$R$24=\"\",1,0)","v":0}]
[{"$f":"IF('Форма 4.10.2 | Т-ТЭ | потр'!$T$24=\"\",1,0)","v":0}]
[{"$f":"IF('Форма 4.10.2 | Т-ТЭ | потр'!$S$24=\"\",1,0)","v":0}]
[{"$f":"IF('Форма 4.10.2 | Т-ТЭ | потр'!$U$24=\"\",1,0)","v":0}]
[{"$f":"IF('Форма 4.10.2 | Т-ТЭ | предел'!$O$24=\"\",1,0)","v":1}]
[{"$f":"IF('Форма 4.10.2 | Т-ТЭ | предел'!$O$25=\"\",1,0)","v":1}]
[{"$f":"IF('Форма 4.10.2 | Т-ТЭ | предел'!$M$26=\"\",1,0)","v":1}]
[{"$f":"IF('Форма 4.10.2 | Т-ТЭ | предел'!$R$26=\"\",1,0)","v":1}]
[{"$f":"IF('Форма 4.10.2 | Т-ТЭ | предел'!$T$26=\"\",1,0)","v":1}]
[{"$f":"IF('Форма 4.10.2 | Т-ТЭ | предел'!$S$26=\"\",1,0)","v":0}]
[{"$f":"IF('Форма 4.10.2 | Т-ТЭ | предел'!$U$26=\"\",1,0)","v":0}]
[{"$f":"IF('Форма 4.10.2 | Т-ТЭ | индикат'!$O$7=\"\",1,0)","v":1}]
[{"$f":"IF('Форма 4.10.2 | Т-ТЭ | индикат'!$O$24=\"\",1,0)","v":1}]
[{"$f":"IF('Форма 4.10.2 | Т-ТЭ | индикат'!$O$25=\"\",1,0)","v":1}]
[{"$f":"IF('Форма 4.10.2 | Т-ТЭ | индикат'!$M$26=\"\",1,0)","v":1}]
[{"$f":"IF('Форма 4.10.2 | Т-ТЭ | индикат'!$R$26=\"\",1,0)","v":1}]
[{"$f":"IF('Форма 4.10.2 | Т-ТЭ | индикат'!$T$26=\"\",1,0)","v":1}]
[{"$f":"IF('Форма 4.10.2 | Т-ТЭ | индикат'!$S$26=\"\",1,0)","v":0}]
[{"$f":"IF('Форма 4.10.2 | Т-ТЭ | индикат'!$U$26=\"\",1,0)","v":0}]
[{"$f":"IF('Форма 4.10.2 | Резерв мощности'!$O$22=\"\",1,0)","v":1}]
[{"$f":"IF('Форма 4.10.2 | Резерв мощности'!$O$23=\"\",1,0)","v":1}]
[{"$f":"IF('Форма 4.10.2 | Резерв мощности'!$M$24=\"\",1,0)","v":1}]
[{"$f":"IF('Форма 4.10.2 | Резерв мощности'!$O$24=\"\",1,0)","v":1}]
[{"$f":"IF('Форма 4.10.2 | Резерв мощности'!$R$24=\"\",1,0)","v":1}]
[{"$f":"IF('Форма 4.10.2 | Резерв мощности'!$T$24=\"\",1,0)","v":1}]
[{"$f":"IF('Форма 4.10.2 | Резерв мощности'!$S$24=\"\",1,0)","v":0}]
[{"$f":"IF('Форма 4.10.2 | Резерв мощности'!$U$24=\"\",1,0)","v":0}]
[{"$f":"IF('Форма 4.10.3 | Т-ТН'!$O$23=\"\",1,0)","v":1}]
[{"$f":"IF('Форма 4.10.3 | Т-ТН'!$M$24=\"\",1,0)","v":1}]
[{"$f":"IF('Форма 4.10.3 | Т-ТН'!$R$24=\"\",1,0)","v":1}]
[{"$f":"IF('Форма 4.10.3 | Т-ТН'!$T$24=\"\",1,0)","v":1}]
[{"$f":"IF('Форма 4.10.3 | Т-ТН'!$S$24=\"\",1,0)","v":0}]
[{"$f":"IF('Форма 4.10.3 | Т-ТН'!$U$24=\"\",1,0)","v":0}]
[{"$f":"IF('Форма 4.10.3 | Т-передача ТЭ'!$O$23=\"\",1,0)","v":1}]
[{"$f":"IF('Форма 4.10.3 | Т-передача ТЭ'!$M$24=\"\",1,0)","v":1}]
[{"$f":"IF('Форма 4.10.3 | Т-передача ТЭ'!$R$24=\"\",1,0)","v":1}]
[{"$f":"IF('Форма 4.10.3 | Т-передача ТЭ'!$T$24=\"\",1,0)","v":1}]
[{"$f":"IF('Форма 4.10.3 | Т-передача ТЭ'!$S$24=\"\",1,0)","v":0}]
[{"$f":"IF('Форма 4.10.3 | Т-передача ТЭ'!$U$24=\"\",1,0)","v":0}]
[{"$f":"IF('Форма 4.10.3 | Т-передача ТН'!$O$23=\"\",1,0)","v":1}]
[{"$f":"IF('Форма 4.10.3 | Т-передача ТН'!$M$24=\"\",1,0)","v":1}]
[{"$f":"IF('Форма 4.10.3 | Т-передача ТН'!$R$24=\"\",1,0)","v":1}]
[{"$f":"IF('Форма 4.10.3 | Т-передача ТН'!$T$24=\"\",1,0)","v":1}]
[{"$f":"IF('Форма 4.10.3 | Т-передача ТН'!$S$24=\"\",1,0)","v":0}]
[{"$f":"IF('Форма 4.10.3 | Т-передача ТН'!$U$24=\"\",1,0)","v":0}]
[{"$f":"IF('Форма 4.10.4 | Т-гор.вода'!$O$23=\"\",1,0)","v":1}]
[{"$f":"IF('Форма 4.10.4 | Т-гор.вода'!$M$24=\"\",1,0)","v":0}]
[{"$f":"IF('Форма 4.10.4 | Т-гор.вода'!$W$24=\"\",1,0)","v":1}]
[{"$f":"IF('Форма 4.10.4 | Т-гор.вода'!$Y$24=\"\",1,0)","v":1}]
[{"$f":"IF('Форма 4.10.4 | Т-гор.вода'!$M$25=\"\",1,0)","v":1}]
[{"$f":"IF('Форма 4.10.4 | Т-гор.вода'!$X$24=\"\",1,0)","v":0}]
[{"$f":"IF('Форма 4.10.4 | Т-гор.вода'!$Z$24=\"\",1,0)","v":0}]
[{"$f":"IF('Форма 4.10.5 | Т-подкл'!$AB$23=\"\",1,0)","v":1}]
[{"$f":"IF('Форма 4.10.5 | Т-подкл'!$AD$23=\"\",1,0)","v":1}]
[{"$f":"IF('Форма 4.10.5 | Т-подкл'!$N$23=\"\",1,0)","v":0}]
[{"$f":"IF('Форма 4.10.5 | Т-подкл'!$R$23=\"\",1,0)","v":0}]
[{"$f":"IF('Форма 4.10.5 | Т-подкл'!$V$23=\"\",1,0)","v":0}]
[{"$f":"IF('Форма 4.10.5 | Т-подкл'!$AC$23=\"\",1,0)","v":0}]
[{"$f":"IF('Форма 4.10.5 | Т-подкл'!$AE$23=\"\",1,0)","v":0}]
[{"$f":"IF('Форма 4.10.6 | Т-подкл(инд)'!$M$23=\"\",1,0)","v":1}]
[{"$f":"IF('Форма 4.10.6 | Т-подкл(инд)'!$P$23=\"\",1,0)","v":1}]
[{"$f":"IF('Форма 4.10.6 | Т-подкл(инд)'!$S$23=\"\",1,0)","v":1}]
[{"$f":"IF('Форма 4.10.6 | Т-подкл(инд)'!$T$23=\"\",1,0)","v":0}]
[{"$f":"IF('Форма 4.10.6 | Т-подкл(инд)'!$V$23=\"\",1,0)","v":0}]
[{"$f":"IF('Форма 4.9'!$F$10=\"\",1,0)","v":0}]
[{"$f":"IF('Форма 4.9'!$G$10=\"\",1,0)","v":0}]
[{"$f":"IF('Форма 4.9'!$F$11=\"\",1,0)","v":0}]
[{"$f":"IF('Форма 4.9'!$G$11=\"\",1,0)","v":0}]
[{"$f":"IF('Форма 4.9'!$F$12=\"\",1,0)","v":0}]
[{"$f":"IF('Форма 4.9'!$G$12=\"\",1,0)","v":0}]
[{"$f":"IF('Форма 4.9'!$F$13=\"\",1,0)","v":0}]
[{"$f":"IF('Форма 4.9'!$G$13=\"\",1,0)","v":0}]
[{"$f":"IF('Форма 4.10.1'!$J$15=\"\",1,0)","v":0}]
[{"$f":"IF('Форма 4.10.1'!$H$17=\"\",1,0)","v":0}]
[{"$f":"IF('Форма 4.10.1'!$I$17=\"\",1,0)","v":0}]
[{"$f":"IF('Форма 4.10.1'!$J$17=\"\",1,0)","v":0}]
[{"$f":"IF('Форма 4.10.1'!$H$24=\"\",1,0)","v":0}]
[{"$f":"IF('Форма 4.10.1'!$I$24=\"\",1,0)","v":0}]
[{"$f":"IF('Форма 4.10.1'!$J$24=\"\",1,0)","v":0}]
[{"$f":"IF('Форма 4.10.1'!$H$35=\"\",1,0)","v":0}]
[{"$f":"IF('Форма 4.10.1'!$I$35=\"\",1,0)","v":0}]
[{"$f":"IF('Форма 4.10.1'!$J$35=\"\",1,0)","v":0}]
[{"$f":"IF('Форма 4.10.1'!$H$46=\"\",1,0)","v":0}]
[{"$f":"IF('Форма 4.10.1'!$I$46=\"\",1,0)","v":0}]
[{"$f":"IF('Форма 4.10.1'!$J$46=\"\",1,0)","v":0}]
[{"$f":"IF('Форма 4.10.1'!$H$57=\"\",1,0)","v":0}]
[{"$f":"IF('Форма 4.10.1'!$I$57=\"\",1,0)","v":0}]
[{"$f":"IF('Форма 4.10.1'!$J$57=\"\",1,0)","v":0}]
[{"$f":"IF('Форма 1.0.2'!$E$12=\"\",1,0)","v":1}]
[{"$f":"IF('Форма 1.0.2'!$F$12=\"\",1,0)","v":1}]
[{"$f":"IF('Форма 1.0.2'!$G$12=\"\",1,0)","v":1}]
[{"$f":"IF('Форма 1.0.2'!$H$12=\"\",1,0)","v":1}]
[{"$f":"IF('Форма 1.0.2'!$I$12=\"\",1,0)","v":1}]
[{"$f":"IF('Форма 1.0.2'!$J$12=\"\",1,0)","v":1}]
[{"$f":"IF('Сведения об изменении'!$E$12=\"\",1,0)","v":1}]
[{"$f":"IF('Форма 4.10.6 | Т-подкл(инд)'!$U$23=\"\",1,0)","v":1}]
[{"$f":"IF('Форма 4.10.5 | Т-подкл'!$AA$23=\"\",1,0)","v":1}]
[{"$f":"IF('Форма 4.10.5 | Т-подкл'!$Z$23=\"\",1,0)","v":1}]
[{"$f":"IF(Территории!$E$12=\"\",1,0)","v":0}]
[{"$f":"IF(Территории!$E$15=\"\",1,0)","v":0}]
[{"$f":"IF('Перечень тарифов'!$E$21=\"\",1,0)","v":0}]
[{"$f":"IF('Перечень тарифов'!$F$21=\"\",1,0)","v":0}]
[{"$f":"IF('Перечень тарифов'!$G$21=\"\",1,0)","v":0}]
[{"$f":"IF('Перечень тарифов'!$K$21=\"\",1,0)","v":0}]
[{"$f":"IF('Перечень тарифов'!$O$21=\"\",1,0)","v":0}]
[{"$f":"IF('Перечень тарифов'!$S$21=\"\",1,0)","v":0}]
[{"$f":"IF('Перечень тарифов'!$E$31=\"\",1,0)","v":0}]
[{"$f":"IF('Перечень тарифов'!$F$31=\"\",1,0)","v":0}]
[{"$f":"IF('Перечень тарифов'!$K$31=\"\",1,0)","v":0}]
[{"$f":"IF('Перечень тарифов'!$O$31=\"\",1,0)","v":0}]
[{"$f":"IF('Перечень тарифов'!$S$31=\"\",1,0)","v":0}]
[{"$f":"IF('Перечень тарифов'!$G$31=\"\",1,0)","v":0}]
[{"$f":"IF('Перечень тарифов'!$N$21=\"\",1,0)","v":0}]
[{"$f":"IF('Перечень тарифов'!$N$31=\"\",1,0)","v":0}]
[{"$f":"IF('Перечень тарифов'!$N$24=\"\",1,0)","v":0}]
[{"$f":"IF('Перечень тарифов'!$O$24=\"\",1,0)","v":0}]
[{"$f":"IF('Перечень тарифов'!$S$24=\"\",1,0)","v":0}]
[{"$f":"IF('Перечень тарифов'!$R$21=\"\",1,0)","v":0}]
[{"$f":"IF('Перечень тарифов'!$R$24=\"\",1,0)","v":0}]
[{"$f":"IF('Перечень тарифов'!$R$31=\"\",1,0)","v":0}]
[{"$f":"IF('Перечень тарифов'!$R$26=\"\",1,0)","v":0}]
[{"$f":"IF('Перечень тарифов'!$S$26=\"\",1,0)","v":0}]
[{"$f":"IF('Форма 4.10.2 | Т-ТЭ | потр'!$O$24=\"\",1,0)","v":0}]
[{"$f":"IF('Форма 4.10.2 | Т-ТЭ | потр'!$O$52=\"\",1,0)","v":0}]
[{"$f":"IF('Форма 4.10.2 | Т-ТЭ | потр'!$O$53=\"\",1,0)","v":0}]
[{"$f":"IF('Форма 4.10.2 | Т-ТЭ | потр'!$M$54=\"\",1,0)","v":0}]
[{"$f":"IF('Форма 4.10.2 | Т-ТЭ | потр'!$O$54=\"\",1,0)","v":0}]
[{"$f":"IF('Форма 4.10.2 | Т-ТЭ | потр'!$R$54=\"\",1,0)","v":0}]
[{"$f":"IF('Форма 4.10.2 | Т-ТЭ | потр'!$T$54=\"\",1,0)","v":0}]
[{"$f":"IF('Форма 4.10.2 | Т-ТЭ | потр'!$S$54=\"\",1,0)","v":0}]
[{"$f":"IF('Форма 4.10.2 | Т-ТЭ | потр'!$U$54=\"\",1,0)","v":0}]
[{"$f":"IF('Форма 4.10.2 | Т-ТЭ | потр'!$O$65=\"\",1,0)","v":0}]
[{"$f":"IF('Форма 4.10.2 | Т-ТЭ | потр'!$O$66=\"\",1,0)","v":0}]
[{"$f":"IF('Форма 4.10.2 | Т-ТЭ | потр'!$M$67=\"\",1,0)","v":0}]
[{"$f":"IF('Форма 4.10.2 | Т-ТЭ | потр'!$O$67=\"\",1,0)","v":0}]
[{"$f":"IF('Форма 4.10.2 | Т-ТЭ | потр'!$R$67=\"\",1,0)","v":0}]
[{"$f":"IF('Форма 4.10.2 | Т-ТЭ | потр'!$T$67=\"\",1,0)","v":0}]
[{"$f":"IF('Форма 4.10.2 | Т-ТЭ | потр'!$S$67=\"\",1,0)","v":0}]
[{"$f":"IF('Форма 4.10.2 | Т-ТЭ | потр'!$U$67=\"\",1,0)","v":0}]
[{"$f":"IF('Форма 4.10.2 | Т-ТЭ | ТСО'!$O$24=\"\",1,0)","v":0}]
[{"$f":"IF('Форма 4.10.1'!$H$19=\"\",1,0)","v":0}]
[{"$f":"IF('Форма 4.10.1'!$I$19=\"\",1,0)","v":0}]
[{"$f":"IF('Форма 4.10.1'!$J$19=\"\",1,0)","v":0}]
[{"$f":"IF('Форма 4.10.1'!$H$29=\"\",1,0)","v":0}]
[{"$f":"IF('Форма 4.10.1'!$I$29=\"\",1,0)","v":0}]
[{"$f":"IF('Форма 4.10.1'!$J$29=\"\",1,0)","v":0}]
[{"$f":"IF('Форма 4.10.1'!$H$40=\"\",1,0)","v":0}]
[{"$f":"IF('Форма 4.10.1'!$I$40=\"\",1,0)","v":0}]
[{"$f":"IF('Форма 4.10.1'!$J$40=\"\",1,0)","v":0}]
[{"$f":"IF('Форма 4.10.1'!$H$51=\"\",1,0)","v":0}]
[{"$f":"IF('Форма 4.10.1'!$I$51=\"\",1,0)","v":0}]
[{"$f":"IF('Форма 4.10.1'!$J$51=\"\",1,0)","v":0}]
[{"$f":"IF('Форма 4.10.1'!$H$62=\"\",1,0)","v":0}]
[{"$f":"IF('Форма 4.10.1'!$I$62=\"\",1,0)","v":0}]
[{"$f":"IF('Форма 4.10.1'!$J$62=\"\",1,0)","v":0}]
[{"$f":"IF('Форма 4.10.2 | Т-ТЭ | ТСО'!$Y$24=\"\",1,0)","v":0}]
[{"$f":"IF('Форма 4.10.2 | Т-ТЭ | ТСО'!$AA$24=\"\",1,0)","v":0}]
[{"$f":"IF('Форма 4.10.2 | Т-ТЭ | ТСО'!$V$24=\"\",1,0)","v":0}]
[{"$f":"IF('Форма 4.10.2 | Т-ТЭ | ТСО'!$Z$24=\"\",1,0)","v":0}]
[{"$f":"IF('Форма 4.10.2 | Т-ТЭ | ТСО'!$AB$24=\"\",1,0)","v":0}]
[{"$f":"IF('Форма 4.10.2 | Т-ТЭ | ТСО'!$AF$24=\"\",1,0)","v":0}]
[{"$f":"IF('Форма 4.10.2 | Т-ТЭ | ТСО'!$AH$24=\"\",1,0)","v":0}]
[{"$f":"IF('Форма 4.10.2 | Т-ТЭ | ТСО'!$AC$24=\"\",1,0)","v":0}]
[{"$f":"IF('Форма 4.10.2 | Т-ТЭ | ТСО'!$AG$24=\"\",1,0)","v":0}]
[{"$f":"IF('Форма 4.10.2 | Т-ТЭ | ТСО'!$AI$24=\"\",1,0)","v":0}]
[{"$f":"IF('Форма 4.10.2 | Т-ТЭ | ТСО'!$AM$24=\"\",1,0)","v":0}]
[{"$f":"IF('Форма 4.10.2 | Т-ТЭ | ТСО'!$AO$24=\"\",1,0)","v":0}]
[{"$f":"IF('Форма 4.10.2 | Т-ТЭ | ТСО'!$AJ$24=\"\",1,0)","v":0}]
[{"$f":"IF('Форма 4.10.2 | Т-ТЭ | ТСО'!$AN$24=\"\",1,0)","v":0}]
[{"$f":"IF('Форма 4.10.2 | Т-ТЭ | ТСО'!$AP$24=\"\",1,0)","v":0}]
[{"$f":"IF('Форма 4.10.2 | Т-ТЭ | ТСО'!$AT$24=\"\",1,0)","v":0}]
[{"$f":"IF('Форма 4.10.2 | Т-ТЭ | ТСО'!$AV$24=\"\",1,0)","v":0}]
[{"$f":"IF('Форма 4.10.2 | Т-ТЭ | ТСО'!$AQ$24=\"\",1,0)","v":0}]
[{"$f":"IF('Форма 4.10.2 | Т-ТЭ | ТСО'!$AU$24=\"\",1,0)","v":0}]
[{"$f":"IF('Форма 4.10.2 | Т-ТЭ | ТСО'!$AW$24=\"\",1,0)","v":0}]
[{"$f":"IF('Форма 4.10.2 | Т-ТЭ | ТСО'!$BA$24=\"\",1,0)","v":0}]
[{"$f":"IF('Форма 4.10.2 | Т-ТЭ | ТСО'!$BC$24=\"\",1,0)","v":0}]
[{"$f":"IF('Форма 4.10.2 | Т-ТЭ | ТСО'!$AX$24=\"\",1,0)","v":0}]
[{"$f":"IF('Форма 4.10.2 | Т-ТЭ | ТСО'!$BB$24=\"\",1,0)","v":0}]
[{"$f":"IF('Форма 4.10.2 | Т-ТЭ | ТСО'!$BD$24=\"\",1,0)","v":0}]
[{"$f":"IF('Форма 4.10.2 | Т-ТЭ | потр'!$M$25=\"\",1,0)","v":0}]
[{"$f":"IF('Форма 4.10.2 | Т-ТЭ | потр'!$O$25=\"\",1,0)","v":0}]
[{"$f":"IF('Форма 4.10.2 | Т-ТЭ | потр'!$M$26=\"\",1,0)","v":0}]
[{"$f":"IF('Форма 4.10.2 | Т-ТЭ | потр'!$O$26=\"\",1,0)","v":0}]
[{"$f":"IF('Форма 4.10.2 | Т-ТЭ | потр'!$O$29=\"\",1,0)","v":0}]
[{"$f":"IF('Форма 4.10.2 | Т-ТЭ | потр'!$M$30=\"\",1,0)","v":0}]
[{"$f":"IF('Форма 4.10.2 | Т-ТЭ | потр'!$O$30=\"\",1,0)","v":0}]
[{"$f":"IF('Форма 4.10.2 | Т-ТЭ | потр'!$R$30=\"\",1,0)","v":0}]
[{"$f":"IF('Форма 4.10.2 | Т-ТЭ | потр'!$T$30=\"\",1,0)","v":0}]
[{"$f":"IF('Форма 4.10.2 | Т-ТЭ | потр'!$S$30=\"\",1,0)","v":0}]
[{"$f":"IF('Форма 4.10.2 | Т-ТЭ | потр'!$U$30=\"\",1,0)","v":0}]
[{"$f":"IF('Форма 4.10.2 | Т-ТЭ | потр'!$M$31=\"\",1,0)","v":0}]
[{"$f":"IF('Форма 4.10.2 | Т-ТЭ | потр'!$O$31=\"\",1,0)","v":0}]
[{"$f":"IF('Форма 4.10.2 | Т-ТЭ | потр'!$M$32=\"\",1,0)","v":0}]
[{"$f":"IF('Форма 4.10.2 | Т-ТЭ | потр'!$O$32=\"\",1,0)","v":0}]
[{"$f":"IF('Форма 4.10.2 | Т-ТЭ | потр'!$O$36=\"\",1,0)","v":0}]
[{"$f":"IF('Форма 4.10.2 | Т-ТЭ | потр'!$O$37=\"\",1,0)","v":0}]
[{"$f":"IF('Форма 4.10.2 | Т-ТЭ | потр'!$M$38=\"\",1,0)","v":0}]
[{"$f":"IF('Форма 4.10.2 | Т-ТЭ | потр'!$O$38=\"\",1,0)","v":0}]
[{"$f":"IF('Форма 4.10.2 | Т-ТЭ | потр'!$R$38=\"\",1,0)","v":0}]
[{"$f":"IF('Форма 4.10.2 | Т-ТЭ | потр'!$T$38=\"\",1,0)","v":0}]
[{"$f":"IF('Форма 4.10.2 | Т-ТЭ | потр'!$S$38=\"\",1,0)","v":0}]
[{"$f":"IF('Форма 4.10.2 | Т-ТЭ | потр'!$U$38=\"\",1,0)","v":0}]
[{"$f":"IF('Форма 4.10.2 | Т-ТЭ | потр'!$M$39=\"\",1,0)","v":0}]
[{"$f":"IF('Форма 4.10.2 | Т-ТЭ | потр'!$O$39=\"\",1,0)","v":0}]
[{"$f":"IF('Форма 4.10.2 | Т-ТЭ | потр'!$O$42=\"\",1,0)","v":0}]
[{"$f":"IF('Форма 4.10.2 | Т-ТЭ | потр'!$M$43=\"\",1,0)","v":0}]
[{"$f":"IF('Форма 4.10.2 | Т-ТЭ | потр'!$O$43=\"\",1,0)","v":0}]
[{"$f":"IF('Форма 4.10.2 | Т-ТЭ | потр'!$R$43=\"\",1,0)","v":0}]
[{"$f":"IF('Форма 4.10.2 | Т-ТЭ | потр'!$T$43=\"\",1,0)","v":0}]
[{"$f":"IF('Форма 4.10.2 | Т-ТЭ | потр'!$S$43=\"\",1,0)","v":0}]
[{"$f":"IF('Форма 4.10.2 | Т-ТЭ | потр'!$U$43=\"\",1,0)","v":0}]
[{"$f":"IF('Форма 4.10.2 | Т-ТЭ | потр'!$M$44=\"\",1,0)","v":0}]
[{"$f":"IF('Форма 4.10.2 | Т-ТЭ | потр'!$O$44=\"\",1,0)","v":0}]
[{"$f":"IF('Форма 4.10.2 | Т-ТЭ | потр'!$O$57=\"\",1,0)","v":0}]
[{"$f":"IF('Форма 4.10.2 | Т-ТЭ | потр'!$M$58=\"\",1,0)","v":0}]
[{"$f":"IF('Форма 4.10.2 | Т-ТЭ | потр'!$O$58=\"\",1,0)","v":0}]
[{"$f":"IF('Форма 4.10.2 | Т-ТЭ | потр'!$R$58=\"\",1,0)","v":0}]
[{"$f":"IF('Форма 4.10.2 | Т-ТЭ | потр'!$T$58=\"\",1,0)","v":0}]
[{"$f":"IF('Форма 4.10.2 | Т-ТЭ | потр'!$S$58=\"\",1,0)","v":0}]
[{"$f":"IF('Форма 4.10.2 | Т-ТЭ | потр'!$U$58=\"\",1,0)","v":0}]
[{"$f":"IF('Форма 4.10.2 | Т-ТЭ | потр'!$O$70=\"\",1,0)","v":0}]
[{"$f":"IF('Форма 4.10.2 | Т-ТЭ | потр'!$M$71=\"\",1,0)","v":0}]
[{"$f":"IF('Форма 4.10.2 | Т-ТЭ | потр'!$O$71=\"\",1,0)","v":0}]
[{"$f":"IF('Форма 4.10.2 | Т-ТЭ | потр'!$R$71=\"\",1,0)","v":0}]
[{"$f":"IF('Форма 4.10.2 | Т-ТЭ | потр'!$T$71=\"\",1,0)","v":0}]
[{"$f":"IF('Форма 4.10.2 | Т-ТЭ | потр'!$S$71=\"\",1,0)","v":0}]
[{"$f":"IF('Форма 4.10.2 | Т-ТЭ | потр'!$U$71=\"\",1,0)","v":0}]
[{"$f":"IF('Форма 4.10.2 | Т-ТЭ | потр'!$Y$24=\"\",1,0)","v":0}]
[{"$f":"IF('Форма 4.10.2 | Т-ТЭ | потр'!$AA$24=\"\",1,0)","v":0}]
[{"$f":"IF('Форма 4.10.2 | Т-ТЭ | потр'!$V$25=\"\",1,0)","v":0}]
[{"$f":"IF('Форма 4.10.2 | Т-ТЭ | потр'!$V$26=\"\",1,0)","v":0}]
[{"$f":"IF('Форма 4.10.2 | Т-ТЭ | потр'!$V$24=\"\",1,0)","v":0}]
[{"$f":"IF('Форма 4.10.2 | Т-ТЭ | потр'!$Z$24=\"\",1,0)","v":0}]
[{"$f":"IF('Форма 4.10.2 | Т-ТЭ | потр'!$AB$24=\"\",1,0)","v":0}]
[{"$f":"IF('Форма 4.10.2 | Т-ТЭ | потр'!$Y$67=\"\",1,0)","v":0}]
[{"$f":"IF('Форма 4.10.2 | Т-ТЭ | потр'!$AA$67=\"\",1,0)","v":0}]
[{"$f":"IF('Форма 4.10.2 | Т-ТЭ | потр'!$V$67=\"\",1,0)","v":0}]
[{"$f":"IF('Форма 4.10.2 | Т-ТЭ | потр'!$Z$67=\"\",1,0)","v":0}]
[{"$f":"IF('Форма 4.10.2 | Т-ТЭ | потр'!$AB$67=\"\",1,0)","v":0}]
[{"$f":"IF('Форма 4.10.2 | Т-ТЭ | потр'!$Y$54=\"\",1,0)","v":0}]
[{"$f":"IF('Форма 4.10.2 | Т-ТЭ | потр'!$AA$54=\"\",1,0)","v":0}]
[{"$f":"IF('Форма 4.10.2 | Т-ТЭ | потр'!$V$54=\"\",1,0)","v":0}]
[{"$f":"IF('Форма 4.10.2 | Т-ТЭ | потр'!$Z$54=\"\",1,0)","v":0}]
[{"$f":"IF('Форма 4.10.2 | Т-ТЭ | потр'!$AB$54=\"\",1,0)","v":0}]
[{"$f":"IF('Форма 4.10.2 | Т-ТЭ | потр'!$Y$30=\"\",1,0)","v":0}]
[{"$f":"IF('Форма 4.10.2 | Т-ТЭ | потр'!$AA$30=\"\",1,0)","v":0}]
[{"$f":"IF('Форма 4.10.2 | Т-ТЭ | потр'!$V$31=\"\",1,0)","v":0}]
[{"$f":"IF('Форма 4.10.2 | Т-ТЭ | потр'!$V$32=\"\",1,0)","v":0}]
[{"$f":"IF('Форма 4.10.2 | Т-ТЭ | потр'!$V$30=\"\",1,0)","v":0}]
[{"$f":"IF('Форма 4.10.2 | Т-ТЭ | потр'!$Z$30=\"\",1,0)","v":0}]
[{"$f":"IF('Форма 4.10.2 | Т-ТЭ | потр'!$AB$30=\"\",1,0)","v":0}]
[{"$f":"IF('Форма 4.10.2 | Т-ТЭ | потр'!$Y$38=\"\",1,0)","v":0}]
[{"$f":"IF('Форма 4.10.2 | Т-ТЭ | потр'!$AA$38=\"\",1,0)","v":0}]
[{"$f":"IF('Форма 4.10.2 | Т-ТЭ | потр'!$V$39=\"\",1,0)","v":0}]
[{"$f":"IF('Форма 4.10.2 | Т-ТЭ | потр'!$V$38=\"\",1,0)","v":0}]
[{"$f":"IF('Форма 4.10.2 | Т-ТЭ | потр'!$Z$38=\"\",1,0)","v":0}]
[{"$f":"IF('Форма 4.10.2 | Т-ТЭ | потр'!$AB$38=\"\",1,0)","v":0}]
[{"$f":"IF('Форма 4.10.2 | Т-ТЭ | потр'!$Y$43=\"\",1,0)","v":0}]
[{"$f":"IF('Форма 4.10.2 | Т-ТЭ | потр'!$AA$43=\"\",1,0)","v":0}]
[{"$f":"IF('Форма 4.10.2 | Т-ТЭ | потр'!$V$44=\"\",1,0)","v":0}]
[{"$f":"IF('Форма 4.10.2 | Т-ТЭ | потр'!$V$43=\"\",1,0)","v":0}]
[{"$f":"IF('Форма 4.10.2 | Т-ТЭ | потр'!$Z$43=\"\",1,0)","v":0}]
[{"$f":"IF('Форма 4.10.2 | Т-ТЭ | потр'!$AB$43=\"\",1,0)","v":0}]
[{"$f":"IF('Форма 4.10.2 | Т-ТЭ | потр'!$Y$58=\"\",1,0)","v":0}]
[{"$f":"IF('Форма 4.10.2 | Т-ТЭ | потр'!$AA$58=\"\",1,0)","v":0}]
[{"$f":"IF('Форма 4.10.2 | Т-ТЭ | потр'!$V$58=\"\",1,0)","v":0}]
[{"$f":"IF('Форма 4.10.2 | Т-ТЭ | потр'!$Z$58=\"\",1,0)","v":0}]
[{"$f":"IF('Форма 4.10.2 | Т-ТЭ | потр'!$AB$58=\"\",1,0)","v":0}]
[{"$f":"IF('Форма 4.10.2 | Т-ТЭ | потр'!$Y$71=\"\",1,0)","v":0}]
[{"$f":"IF('Форма 4.10.2 | Т-ТЭ | потр'!$AA$71=\"\",1,0)","v":0}]
[{"$f":"IF('Форма 4.10.2 | Т-ТЭ | потр'!$V$71=\"\",1,0)","v":0}]
[{"$f":"IF('Форма 4.10.2 | Т-ТЭ | потр'!$Z$71=\"\",1,0)","v":0}]
[{"$f":"IF('Форма 4.10.2 | Т-ТЭ | потр'!$AB$71=\"\",1,0)","v":0}]
[{"$f":"IF('Форма 4.10.2 | Т-ТЭ | потр'!$AF$58=\"\",1,0)","v":0}]
[{"$f":"IF('Форма 4.10.2 | Т-ТЭ | потр'!$AH$58=\"\",1,0)","v":0}]
[{"$f":"IF('Форма 4.10.2 | Т-ТЭ | потр'!$AC$58=\"\",1,0)","v":0}]
[{"$f":"IF('Форма 4.10.2 | Т-ТЭ | потр'!$AG$58=\"\",1,0)","v":0}]
[{"$f":"IF('Форма 4.10.2 | Т-ТЭ | потр'!$AI$58=\"\",1,0)","v":0}]
[{"$f":"IF('Форма 4.10.2 | Т-ТЭ | потр'!$AF$24=\"\",1,0)","v":0}]
[{"$f":"IF('Форма 4.10.2 | Т-ТЭ | потр'!$AH$24=\"\",1,0)","v":0}]
[{"$f":"IF('Форма 4.10.2 | Т-ТЭ | потр'!$AC$25=\"\",1,0)","v":0}]
[{"$f":"IF('Форма 4.10.2 | Т-ТЭ | потр'!$AC$26=\"\",1,0)","v":0}]
[{"$f":"IF('Форма 4.10.2 | Т-ТЭ | потр'!$AC$24=\"\",1,0)","v":0}]
[{"$f":"IF('Форма 4.10.2 | Т-ТЭ | потр'!$AG$24=\"\",1,0)","v":0}]
[{"$f":"IF('Форма 4.10.2 | Т-ТЭ | потр'!$AI$24=\"\",1,0)","v":0}]
[{"$f":"IF('Форма 4.10.2 | Т-ТЭ | потр'!$AF$67=\"\",1,0)","v":0}]
[{"$f":"IF('Форма 4.10.2 | Т-ТЭ | потр'!$AH$67=\"\",1,0)","v":0}]
[{"$f":"IF('Форма 4.10.2 | Т-ТЭ | потр'!$AC$67=\"\",1,0)","v":0}]
[{"$f":"IF('Форма 4.10.2 | Т-ТЭ | потр'!$AG$67=\"\",1,0)","v":0}]
[{"$f":"IF('Форма 4.10.2 | Т-ТЭ | потр'!$AI$67=\"\",1,0)","v":0}]
[{"$f":"IF('Форма 4.10.2 | Т-ТЭ | потр'!$AF$54=\"\",1,0)","v":0}]
[{"$f":"IF('Форма 4.10.2 | Т-ТЭ | потр'!$AH$54=\"\",1,0)","v":0}]
[{"$f":"IF('Форма 4.10.2 | Т-ТЭ | потр'!$AC$54=\"\",1,0)","v":0}]
[{"$f":"IF('Форма 4.10.2 | Т-ТЭ | потр'!$AG$54=\"\",1,0)","v":0}]
[{"$f":"IF('Форма 4.10.2 | Т-ТЭ | потр'!$AI$54=\"\",1,0)","v":0}]
[{"$f":"IF('Форма 4.10.2 | Т-ТЭ | потр'!$AF$30=\"\",1,0)","v":0}]
[{"$f":"IF('Форма 4.10.2 | Т-ТЭ | потр'!$AH$30=\"\",1,0)","v":0}]
[{"$f":"IF('Форма 4.10.2 | Т-ТЭ | потр'!$AC$31=\"\",1,0)","v":0}]
[{"$f":"IF('Форма 4.10.2 | Т-ТЭ | потр'!$AC$32=\"\",1,0)","v":0}]
[{"$f":"IF('Форма 4.10.2 | Т-ТЭ | потр'!$AC$30=\"\",1,0)","v":0}]
[{"$f":"IF('Форма 4.10.2 | Т-ТЭ | потр'!$AG$30=\"\",1,0)","v":0}]
[{"$f":"IF('Форма 4.10.2 | Т-ТЭ | потр'!$AI$30=\"\",1,0)","v":0}]
[{"$f":"IF('Форма 4.10.2 | Т-ТЭ | потр'!$AF$38=\"\",1,0)","v":0}]
[{"$f":"IF('Форма 4.10.2 | Т-ТЭ | потр'!$AH$38=\"\",1,0)","v":0}]
[{"$f":"IF('Форма 4.10.2 | Т-ТЭ | потр'!$AC$39=\"\",1,0)","v":0}]
[{"$f":"IF('Форма 4.10.2 | Т-ТЭ | потр'!$AC$38=\"\",1,0)","v":0}]
[{"$f":"IF('Форма 4.10.2 | Т-ТЭ | потр'!$AG$38=\"\",1,0)","v":0}]
[{"$f":"IF('Форма 4.10.2 | Т-ТЭ | потр'!$AI$38=\"\",1,0)","v":0}]
[{"$f":"IF('Форма 4.10.2 | Т-ТЭ | потр'!$AF$43=\"\",1,0)","v":0}]
[{"$f":"IF('Форма 4.10.2 | Т-ТЭ | потр'!$AH$43=\"\",1,0)","v":0}]
[{"$f":"IF('Форма 4.10.2 | Т-ТЭ | потр'!$AC$44=\"\",1,0)","v":0}]
[{"$f":"IF('Форма 4.10.2 | Т-ТЭ | потр'!$AC$43=\"\",1,0)","v":0}]
[{"$f":"IF('Форма 4.10.2 | Т-ТЭ | потр'!$AG$43=\"\",1,0)","v":0}]
[{"$f":"IF('Форма 4.10.2 | Т-ТЭ | потр'!$AI$43=\"\",1,0)","v":0}]
[{"$f":"IF('Форма 4.10.2 | Т-ТЭ | потр'!$AF$71=\"\",1,0)","v":0}]
[{"$f":"IF('Форма 4.10.2 | Т-ТЭ | потр'!$AH$71=\"\",1,0)","v":0}]
[{"$f":"IF('Форма 4.10.2 | Т-ТЭ | потр'!$AC$71=\"\",1,0)","v":0}]
[{"$f":"IF('Форма 4.10.2 | Т-ТЭ | потр'!$AG$71=\"\",1,0)","v":0}]
[{"$f":"IF('Форма 4.10.2 | Т-ТЭ | потр'!$AI$71=\"\",1,0)","v":0}]
[{"$f":"IF('Форма 4.10.2 | Т-ТЭ | потр'!$AM$58=\"\",1,0)","v":0}]
[{"$f":"IF('Форма 4.10.2 | Т-ТЭ | потр'!$AO$58=\"\",1,0)","v":0}]
[{"$f":"IF('Форма 4.10.2 | Т-ТЭ | потр'!$AJ$58=\"\",1,0)","v":0}]
[{"$f":"IF('Форма 4.10.2 | Т-ТЭ | потр'!$AN$58=\"\",1,0)","v":0}]
[{"$f":"IF('Форма 4.10.2 | Т-ТЭ | потр'!$AP$58=\"\",1,0)","v":0}]
[{"$f":"IF('Форма 4.10.2 | Т-ТЭ | потр'!$AM$24=\"\",1,0)","v":0}]
[{"$f":"IF('Форма 4.10.2 | Т-ТЭ | потр'!$AO$24=\"\",1,0)","v":0}]
[{"$f":"IF('Форма 4.10.2 | Т-ТЭ | потр'!$AJ$25=\"\",1,0)","v":0}]
[{"$f":"IF('Форма 4.10.2 | Т-ТЭ | потр'!$AJ$26=\"\",1,0)","v":0}]
[{"$f":"IF('Форма 4.10.2 | Т-ТЭ | потр'!$AJ$24=\"\",1,0)","v":0}]
[{"$f":"IF('Форма 4.10.2 | Т-ТЭ | потр'!$AN$24=\"\",1,0)","v":0}]
[{"$f":"IF('Форма 4.10.2 | Т-ТЭ | потр'!$AP$24=\"\",1,0)","v":0}]
[{"$f":"IF('Форма 4.10.2 | Т-ТЭ | потр'!$AM$67=\"\",1,0)","v":0}]
[{"$f":"IF('Форма 4.10.2 | Т-ТЭ | потр'!$AO$67=\"\",1,0)","v":0}]
[{"$f":"IF('Форма 4.10.2 | Т-ТЭ | потр'!$AJ$67=\"\",1,0)","v":0}]
[{"$f":"IF('Форма 4.10.2 | Т-ТЭ | потр'!$AN$67=\"\",1,0)","v":0}]
[{"$f":"IF('Форма 4.10.2 | Т-ТЭ | потр'!$AP$67=\"\",1,0)","v":0}]
[{"$f":"IF('Форма 4.10.2 | Т-ТЭ | потр'!$AM$54=\"\",1,0)","v":0}]
[{"$f":"IF('Форма 4.10.2 | Т-ТЭ | потр'!$AO$54=\"\",1,0)","v":0}]
[{"$f":"IF('Форма 4.10.2 | Т-ТЭ | потр'!$AJ$54=\"\",1,0)","v":0}]
[{"$f":"IF('Форма 4.10.2 | Т-ТЭ | потр'!$AN$54=\"\",1,0)","v":0}]
[{"$f":"IF('Форма 4.10.2 | Т-ТЭ | потр'!$AP$54=\"\",1,0)","v":0}]
[{"$f":"IF('Форма 4.10.2 | Т-ТЭ | потр'!$AM$30=\"\",1,0)","v":0}]
[{"$f":"IF('Форма 4.10.2 | Т-ТЭ | потр'!$AO$30=\"\",1,0)","v":0}]
[{"$f":"IF('Форма 4.10.2 | Т-ТЭ | потр'!$AJ$31=\"\",1,0)","v":0}]
[{"$f":"IF('Форма 4.10.2 | Т-ТЭ | потр'!$AJ$32=\"\",1,0)","v":0}]
[{"$f":"IF('Форма 4.10.2 | Т-ТЭ | потр'!$AJ$30=\"\",1,0)","v":0}]
[{"$f":"IF('Форма 4.10.2 | Т-ТЭ | потр'!$AN$30=\"\",1,0)","v":0}]
[{"$f":"IF('Форма 4.10.2 | Т-ТЭ | потр'!$AP$30=\"\",1,0)","v":0}]
[{"$f":"IF('Форма 4.10.2 | Т-ТЭ | потр'!$AM$38=\"\",1,0)","v":0}]
[{"$f":"IF('Форма 4.10.2 | Т-ТЭ | потр'!$AO$38=\"\",1,0)","v":0}]
[{"$f":"IF('Форма 4.10.2 | Т-ТЭ | потр'!$AJ$39=\"\",1,0)","v":0}]
[{"$f":"IF('Форма 4.10.2 | Т-ТЭ | потр'!$AJ$38=\"\",1,0)","v":0}]
[{"$f":"IF('Форма 4.10.2 | Т-ТЭ | потр'!$AN$38=\"\",1,0)","v":0}]
[{"$f":"IF('Форма 4.10.2 | Т-ТЭ | потр'!$AP$38=\"\",1,0)","v":0}]
[{"$f":"IF('Форма 4.10.2 | Т-ТЭ | потр'!$AM$43=\"\",1,0)","v":0}]
[{"$f":"IF('Форма 4.10.2 | Т-ТЭ | потр'!$AO$43=\"\",1,0)","v":0}]
[{"$f":"IF('Форма 4.10.2 | Т-ТЭ | потр'!$AJ$44=\"\",1,0)","v":0}]
[{"$f":"IF('Форма 4.10.2 | Т-ТЭ | потр'!$AJ$43=\"\",1,0)","v":0}]
[{"$f":"IF('Форма 4.10.2 | Т-ТЭ | потр'!$AN$43=\"\",1,0)","v":0}]
[{"$f":"IF('Форма 4.10.2 | Т-ТЭ | потр'!$AP$43=\"\",1,0)","v":0}]
[{"$f":"IF('Форма 4.10.2 | Т-ТЭ | потр'!$AM$71=\"\",1,0)","v":0}]
[{"$f":"IF('Форма 4.10.2 | Т-ТЭ | потр'!$AO$71=\"\",1,0)","v":0}]
[{"$f":"IF('Форма 4.10.2 | Т-ТЭ | потр'!$AJ$71=\"\",1,0)","v":0}]
[{"$f":"IF('Форма 4.10.2 | Т-ТЭ | потр'!$AN$71=\"\",1,0)","v":0}]
[{"$f":"IF('Форма 4.10.2 | Т-ТЭ | потр'!$AP$71=\"\",1,0)","v":0}]
[{"$f":"IF('Форма 4.10.2 | Т-ТЭ | потр'!$AT$58=\"\",1,0)","v":0}]
[{"$f":"IF('Форма 4.10.2 | Т-ТЭ | потр'!$AV$58=\"\",1,0)","v":0}]
[{"$f":"IF('Форма 4.10.2 | Т-ТЭ | потр'!$AQ$58=\"\",1,0)","v":0}]
[{"$f":"IF('Форма 4.10.2 | Т-ТЭ | потр'!$AU$58=\"\",1,0)","v":0}]
[{"$f":"IF('Форма 4.10.2 | Т-ТЭ | потр'!$AW$58=\"\",1,0)","v":0}]
[{"$f":"IF('Форма 4.10.2 | Т-ТЭ | потр'!$AT$24=\"\",1,0)","v":0}]
[{"$f":"IF('Форма 4.10.2 | Т-ТЭ | потр'!$AV$24=\"\",1,0)","v":0}]
[{"$f":"IF('Форма 4.10.2 | Т-ТЭ | потр'!$AQ$25=\"\",1,0)","v":0}]
[{"$f":"IF('Форма 4.10.2 | Т-ТЭ | потр'!$AQ$26=\"\",1,0)","v":0}]
[{"$f":"IF('Форма 4.10.2 | Т-ТЭ | потр'!$AQ$24=\"\",1,0)","v":0}]
[{"$f":"IF('Форма 4.10.2 | Т-ТЭ | потр'!$AU$24=\"\",1,0)","v":0}]
[{"$f":"IF('Форма 4.10.2 | Т-ТЭ | потр'!$AW$24=\"\",1,0)","v":0}]
[{"$f":"IF('Форма 4.10.2 | Т-ТЭ | потр'!$AT$67=\"\",1,0)","v":0}]
[{"$f":"IF('Форма 4.10.2 | Т-ТЭ | потр'!$AV$67=\"\",1,0)","v":0}]
[{"$f":"IF('Форма 4.10.2 | Т-ТЭ | потр'!$AQ$67=\"\",1,0)","v":0}]
[{"$f":"IF('Форма 4.10.2 | Т-ТЭ | потр'!$AU$67=\"\",1,0)","v":0}]
[{"$f":"IF('Форма 4.10.2 | Т-ТЭ | потр'!$AW$67=\"\",1,0)","v":0}]
[{"$f":"IF('Форма 4.10.2 | Т-ТЭ | потр'!$AT$54=\"\",1,0)","v":0}]
[{"$f":"IF('Форма 4.10.2 | Т-ТЭ | потр'!$AV$54=\"\",1,0)","v":0}]
[{"$f":"IF('Форма 4.10.2 | Т-ТЭ | потр'!$AQ$54=\"\",1,0)","v":0}]
[{"$f":"IF('Форма 4.10.2 | Т-ТЭ | потр'!$AU$54=\"\",1,0)","v":0}]
[{"$f":"IF('Форма 4.10.2 | Т-ТЭ | потр'!$AW$54=\"\",1,0)","v":0}]
[{"$f":"IF('Форма 4.10.2 | Т-ТЭ | потр'!$AT$30=\"\",1,0)","v":0}]
[{"$f":"IF('Форма 4.10.2 | Т-ТЭ | потр'!$AV$30=\"\",1,0)","v":0}]
[{"$f":"IF('Форма 4.10.2 | Т-ТЭ | потр'!$AQ$31=\"\",1,0)","v":0}]
[{"$f":"IF('Форма 4.10.2 | Т-ТЭ | потр'!$AQ$32=\"\",1,0)","v":0}]
[{"$f":"IF('Форма 4.10.2 | Т-ТЭ | потр'!$AQ$30=\"\",1,0)","v":0}]
[{"$f":"IF('Форма 4.10.2 | Т-ТЭ | потр'!$AU$30=\"\",1,0)","v":0}]
[{"$f":"IF('Форма 4.10.2 | Т-ТЭ | потр'!$AW$30=\"\",1,0)","v":0}]
[{"$f":"IF('Форма 4.10.2 | Т-ТЭ | потр'!$AT$38=\"\",1,0)","v":0}]
[{"$f":"IF('Форма 4.10.2 | Т-ТЭ | потр'!$AV$38=\"\",1,0)","v":0}]
[{"$f":"IF('Форма 4.10.2 | Т-ТЭ | потр'!$AQ$39=\"\",1,0)","v":0}]
[{"$f":"IF('Форма 4.10.2 | Т-ТЭ | потр'!$AQ$38=\"\",1,0)","v":0}]
[{"$f":"IF('Форма 4.10.2 | Т-ТЭ | потр'!$AU$38=\"\",1,0)","v":0}]
[{"$f":"IF('Форма 4.10.2 | Т-ТЭ | потр'!$AW$38=\"\",1,0)","v":0}]
[{"$f":"IF('Форма 4.10.2 | Т-ТЭ | потр'!$AT$43=\"\",1,0)","v":0}]
[{"$f":"IF('Форма 4.10.2 | Т-ТЭ | потр'!$AV$43=\"\",1,0)","v":0}]
[{"$f":"IF('Форма 4.10.2 | Т-ТЭ | потр'!$AQ$44=\"\",1,0)","v":0}]
[{"$f":"IF('Форма 4.10.2 | Т-ТЭ | потр'!$AQ$43=\"\",1,0)","v":0}]
[{"$f":"IF('Форма 4.10.2 | Т-ТЭ | потр'!$AU$43=\"\",1,0)","v":0}]
[{"$f":"IF('Форма 4.10.2 | Т-ТЭ | потр'!$AW$43=\"\",1,0)","v":0}]
[{"$f":"IF('Форма 4.10.2 | Т-ТЭ | потр'!$AT$71=\"\",1,0)","v":0}]
[{"$f":"IF('Форма 4.10.2 | Т-ТЭ | потр'!$AV$71=\"\",1,0)","v":0}]
[{"$f":"IF('Форма 4.10.2 | Т-ТЭ | потр'!$AQ$71=\"\",1,0)","v":0}]
[{"$f":"IF('Форма 4.10.2 | Т-ТЭ | потр'!$AU$71=\"\",1,0)","v":0}]
[{"$f":"IF('Форма 4.10.2 | Т-ТЭ | потр'!$AW$71=\"\",1,0)","v":0}]
[{"$f":"IF('Форма 4.10.2 | Т-ТЭ | потр'!$BA$58=\"\",1,0)","v":0}]
[{"$f":"IF('Форма 4.10.2 | Т-ТЭ | потр'!$BC$58=\"\",1,0)","v":0}]
[{"$f":"IF('Форма 4.10.2 | Т-ТЭ | потр'!$AX$58=\"\",1,0)","v":0}]
[{"$f":"IF('Форма 4.10.2 | Т-ТЭ | потр'!$BB$58=\"\",1,0)","v":0}]
[{"$f":"IF('Форма 4.10.2 | Т-ТЭ | потр'!$BD$58=\"\",1,0)","v":0}]
[{"$f":"IF('Форма 4.10.2 | Т-ТЭ | потр'!$BA$24=\"\",1,0)","v":0}]
[{"$f":"IF('Форма 4.10.2 | Т-ТЭ | потр'!$BC$24=\"\",1,0)","v":0}]
[{"$f":"IF('Форма 4.10.2 | Т-ТЭ | потр'!$AX$25=\"\",1,0)","v":0}]
[{"$f":"IF('Форма 4.10.2 | Т-ТЭ | потр'!$AX$26=\"\",1,0)","v":0}]
[{"$f":"IF('Форма 4.10.2 | Т-ТЭ | потр'!$AX$24=\"\",1,0)","v":0}]
[{"$f":"IF('Форма 4.10.2 | Т-ТЭ | потр'!$BB$24=\"\",1,0)","v":0}]
[{"$f":"IF('Форма 4.10.2 | Т-ТЭ | потр'!$BD$24=\"\",1,0)","v":0}]
[{"$f":"IF('Форма 4.10.2 | Т-ТЭ | потр'!$BA$67=\"\",1,0)","v":0}]
[{"$f":"IF('Форма 4.10.2 | Т-ТЭ | потр'!$BC$67=\"\",1,0)","v":0}]
[{"$f":"IF('Форма 4.10.2 | Т-ТЭ | потр'!$AX$67=\"\",1,0)","v":0}]
[{"$f":"IF('Форма 4.10.2 | Т-ТЭ | потр'!$BB$67=\"\",1,0)","v":0}]
[{"$f":"IF('Форма 4.10.2 | Т-ТЭ | потр'!$BD$67=\"\",1,0)","v":0}]
[{"$f":"IF('Форма 4.10.2 | Т-ТЭ | потр'!$BA$54=\"\",1,0)","v":0}]
[{"$f":"IF('Форма 4.10.2 | Т-ТЭ | потр'!$BC$54=\"\",1,0)","v":0}]
[{"$f":"IF('Форма 4.10.2 | Т-ТЭ | потр'!$AX$54=\"\",1,0)","v":0}]
[{"$f":"IF('Форма 4.10.2 | Т-ТЭ | потр'!$BB$54=\"\",1,0)","v":0}]
[{"$f":"IF('Форма 4.10.2 | Т-ТЭ | потр'!$BD$54=\"\",1,0)","v":0}]
[{"$f":"IF('Форма 4.10.2 | Т-ТЭ | потр'!$BA$30=\"\",1,0)","v":0}]
[{"$f":"IF('Форма 4.10.2 | Т-ТЭ | потр'!$BC$30=\"\",1,0)","v":0}]
[{"$f":"IF('Форма 4.10.2 | Т-ТЭ | потр'!$AX$31=\"\",1,0)","v":0}]
[{"$f":"IF('Форма 4.10.2 | Т-ТЭ | потр'!$AX$32=\"\",1,0)","v":0}]
[{"$f":"IF('Форма 4.10.2 | Т-ТЭ | потр'!$AX$30=\"\",1,0)","v":0}]
[{"$f":"IF('Форма 4.10.2 | Т-ТЭ | потр'!$BB$30=\"\",1,0)","v":0}]
[{"$f":"IF('Форма 4.10.2 | Т-ТЭ | потр'!$BD$30=\"\",1,0)","v":0}]
[{"$f":"IF('Форма 4.10.2 | Т-ТЭ | потр'!$BA$38=\"\",1,0)","v":0}]
[{"$f":"IF('Форма 4.10.2 | Т-ТЭ | потр'!$BC$38=\"\",1,0)","v":0}]
[{"$f":"IF('Форма 4.10.2 | Т-ТЭ | потр'!$AX$39=\"\",1,0)","v":0}]
[{"$f":"IF('Форма 4.10.2 | Т-ТЭ | потр'!$AX$38=\"\",1,0)","v":0}]
[{"$f":"IF('Форма 4.10.2 | Т-ТЭ | потр'!$BB$38=\"\",1,0)","v":0}]
[{"$f":"IF('Форма 4.10.2 | Т-ТЭ | потр'!$BD$38=\"\",1,0)","v":0}]
[{"$f":"IF('Форма 4.10.2 | Т-ТЭ | потр'!$BA$43=\"\",1,0)","v":0}]
[{"$f":"IF('Форма 4.10.2 | Т-ТЭ | потр'!$BC$43=\"\",1,0)","v":0}]
[{"$f":"IF('Форма 4.10.2 | Т-ТЭ | потр'!$AX$44=\"\",1,0)","v":0}]
[{"$f":"IF('Форма 4.10.2 | Т-ТЭ | потр'!$AX$43=\"\",1,0)","v":0}]
[{"$f":"IF('Форма 4.10.2 | Т-ТЭ | потр'!$BB$43=\"\",1,0)","v":0}]
[{"$f":"IF('Форма 4.10.2 | Т-ТЭ | потр'!$BD$43=\"\",1,0)","v":0}]
[{"$f":"IF('Форма 4.10.2 | Т-ТЭ | потр'!$BA$71=\"\",1,0)","v":0}]
[{"$f":"IF('Форма 4.10.2 | Т-ТЭ | потр'!$BC$71=\"\",1,0)","v":0}]
[{"$f":"IF('Форма 4.10.2 | Т-ТЭ | потр'!$AX$71=\"\",1,0)","v":0}]
[{"$f":"IF('Форма 4.10.2 | Т-ТЭ | потр'!$BB$71=\"\",1,0)","v":0}]
[{"$f":"IF('Форма 4.10.2 | Т-ТЭ | потр'!$BD$71=\"\",1,0)","v":0}]
[{"$f":"IF('Форма 4.10.1'!$K$22=\"\",1,0)","v":0}]
[{"$f":"IF('Форма 4.10.1'!$H$25=\"\",1,0)","v":0}]
[{"$f":"IF('Форма 4.10.1'!$I$25=\"\",1,0)","v":0}]
[{"$f":"IF('Форма 4.10.1'!$J$25=\"\",1,0)","v":0}]
[{"$f":"IF('Форма 4.10.1'!$H$26=\"\",1,0)","v":0}]
[{"$f":"IF('Форма 4.10.1'!$I$26=\"\",1,0)","v":0}]
[{"$f":"IF('Форма 4.10.1'!$J$26=\"\",1,0)","v":0}]
[{"$f":"IF('Форма 4.10.1'!$H$27=\"\",1,0)","v":0}]
[{"$f":"IF('Форма 4.10.1'!$I$27=\"\",1,0)","v":0}]
[{"$f":"IF('Форма 4.10.1'!$J$27=\"\",1,0)","v":0}]
[{"$f":"IF('Форма 4.10.1'!$H$30=\"\",1,0)","v":0}]
[{"$f":"IF('Форма 4.10.1'!$I$30=\"\",1,0)","v":0}]
[{"$f":"IF('Форма 4.10.1'!$J$30=\"\",1,0)","v":0}]
[{"$f":"IF('Форма 4.10.1'!$H$31=\"\",1,0)","v":0}]
[{"$f":"IF('Форма 4.10.1'!$I$31=\"\",1,0)","v":0}]
[{"$f":"IF('Форма 4.10.1'!$J$31=\"\",1,0)","v":0}]
[{"$f":"IF('Форма 4.10.1'!$H$32=\"\",1,0)","v":0}]
[{"$f":"IF('Форма 4.10.1'!$I$32=\"\",1,0)","v":0}]
[{"$f":"IF('Форма 4.10.1'!$J$32=\"\",1,0)","v":0}]
[{"$f":"IF('Форма 4.10.1'!$H$36=\"\",1,0)","v":0}]
[{"$f":"IF('Форма 4.10.1'!$I$36=\"\",1,0)","v":0}]
[{"$f":"IF('Форма 4.10.1'!$J$36=\"\",1,0)","v":0}]
[{"$f":"IF('Форма 4.10.1'!$H$37=\"\",1,0)","v":0}]
[{"$f":"IF('Форма 4.10.1'!$I$37=\"\",1,0)","v":0}]
[{"$f":"IF('Форма 4.10.1'!$J$37=\"\",1,0)","v":0}]
[{"$f":"IF('Форма 4.10.1'!$H$38=\"\",1,0)","v":0}]
[{"$f":"IF('Форма 4.10.1'!$I$38=\"\",1,0)","v":0}]
[{"$f":"IF('Форма 4.10.1'!$J$38=\"\",1,0)","v":0}]
[{"$f":"IF('Форма 4.10.1'!$H$41=\"\",1,0)","v":0}]
[{"$f":"IF('Форма 4.10.1'!$I$41=\"\",1,0)","v":0}]
[{"$f":"IF('Форма 4.10.1'!$J$41=\"\",1,0)","v":0}]
[{"$f":"IF('Форма 4.10.1'!$H$42=\"\",1,0)","v":0}]
[{"$f":"IF('Форма 4.10.1'!$I$42=\"\",1,0)","v":0}]
[{"$f":"IF('Форма 4.10.1'!$J$42=\"\",1,0)","v":0}]
[{"$f":"IF('Форма 4.10.1'!$H$43=\"\",1,0)","v":0}]
[{"$f":"IF('Форма 4.10.1'!$I$43=\"\",1,0)","v":0}]
[{"$f":"IF('Форма 4.10.1'!$J$43=\"\",1,0)","v":0}]
[{"$f":"IF('Форма 4.10.1'!$H$47=\"\",1,0)","v":0}]
[{"$f":"IF('Форма 4.10.1'!$I$47=\"\",1,0)","v":0}]
[{"$f":"IF('Форма 4.10.1'!$J$47=\"\",1,0)","v":0}]
[{"$f":"IF('Форма 4.10.1'!$H$48=\"\",1,0)","v":0}]
[{"$f":"IF('Форма 4.10.1'!$I$48=\"\",1,0)","v":0}]
[{"$f":"IF('Форма 4.10.1'!$J$48=\"\",1,0)","v":0}]
[{"$f":"IF('Форма 4.10.1'!$H$49=\"\",1,0)","v":0}]
[{"$f":"IF('Форма 4.10.1'!$I$49=\"\",1,0)","v":0}]
[{"$f":"IF('Форма 4.10.1'!$J$49=\"\",1,0)","v":0}]
[{"$f":"IF('Форма 4.10.1'!$H$52=\"\",1,0)","v":0}]
[{"$f":"IF('Форма 4.10.1'!$I$52=\"\",1,0)","v":0}]
[{"$f":"IF('Форма 4.10.1'!$J$52=\"\",1,0)","v":0}]
[{"$f":"IF('Форма 4.10.1'!$H$53=\"\",1,0)","v":0}]
[{"$f":"IF('Форма 4.10.1'!$I$53=\"\",1,0)","v":0}]
[{"$f":"IF('Форма 4.10.1'!$J$53=\"\",1,0)","v":0}]
[{"$f":"IF('Форма 4.10.1'!$H$54=\"\",1,0)","v":0}]
[{"$f":"IF('Форма 4.10.1'!$I$54=\"\",1,0)","v":0}]
[{"$f":"IF('Форма 4.10.1'!$J$54=\"\",1,0)","v":0}]
[{"$f":"IF('Форма 4.10.1'!$H$58=\"\",1,0)","v":0}]
[{"$f":"IF('Форма 4.10.1'!$I$58=\"\",1,0)","v":0}]
[{"$f":"IF('Форма 4.10.1'!$J$58=\"\",1,0)","v":0}]
[{"$f":"IF('Форма 4.10.1'!$H$59=\"\",1,0)","v":0}]
[{"$f":"IF('Форма 4.10.1'!$I$59=\"\",1,0)","v":0}]
[{"$f":"IF('Форма 4.10.1'!$J$59=\"\",1,0)","v":0}]
[{"$f":"IF('Форма 4.10.1'!$H$60=\"\",1,0)","v":0}]
[{"$f":"IF('Форма 4.10.1'!$I$60=\"\",1,0)","v":0}]
[{"$f":"IF('Форма 4.10.1'!$J$60=\"\",1,0)","v":0}]
[{"$f":"IF('Форма 4.10.1'!$H$63=\"\",1,0)","v":0}]
[{"$f":"IF('Форма 4.10.1'!$I$63=\"\",1,0)","v":0}]
[{"$f":"IF('Форма 4.10.1'!$J$63=\"\",1,0)","v":0}]
[{"$f":"IF('Форма 4.10.1'!$H$64=\"\",1,0)","v":0}]
[{"$f":"IF('Форма 4.10.1'!$I$64=\"\",1,0)","v":0}]
[{"$f":"IF('Форма 4.10.1'!$J$64=\"\",1,0)","v":0}]
[{"$f":"IF('Форма 4.10.1'!$H$65=\"\",1,0)","v":0}]
[{"$f":"IF('Форма 4.10.1'!$I$65=\"\",1,0)","v":0}]
[{"$f":"IF('Форма 4.10.1'!$J$65=\"\",1,0)","v":0}]
[{"$f":"IF('Форма 4.10.1'!$K$15=\"\",1,0)","v":0}]

{"sheet":"REESTR_LINK","index":44,"n_rows":3,"n_cols":3,"rows_kept":3,"hidden":true}
["ID","LINK_NAME","REGION"]
[4189678,"https://portal.eias.ru/Portal/DownloadPage.aspx?type=12&guid=????????-????-????-????-????????????","ALL"]
[4190415,"https://eias.fstrf.ru/disclo/get_file?p_guid=????????-????-????-????-????????????","ALL"]

{"sheet":"REESTR_DS","index":45,"n_rows":6,"n_cols":2,"rows_kept":6,"hidden":true}
[]
[]
[null,"город Ярославль, город Ярославль (78701000);"]
[null,"Ярославский муниципальный район, Ярославский муниципальный район (78650000);"]
[null,"территория 3"]
[null,"территория 4"]

{"sheet":"modHTTP","index":46,"n_rows":0,"n_cols":0,"rows_kept":0,"hidden":true}

{"sheet":"modfrmRezimChoose","index":47,"n_rows":0,"n_cols":0,"rows_kept":0,"hidden":true}

{"sheet":"modSheetMain","index":48,"n_rows":1,"n_cols":2,"rows_kept":1,"hidden":true}
["Форма","Листы"]

{"sheet":"REESTR_VT","index":49,"n_rows":11,"n_cols":2,"rows_kept":11,"hidden":true}
["ID_TARIFF_NAME","TARIFF_NAME"]
[4213775,"Тарифы на тепловую энергию (мощность), производимую в режиме комбинированной выработки электрической и тепловой энергии источниками тепловой энергии с установленной генерирующей мощностью производства электрической энергии 25 мегаватт и более, в соответствии с установленными федеральным органом исполнительной власти в области государственного регулирования тарифов в сфере теплоснабжения предельными (минимальным и (или) максимальным) уровнями указанных тарифов"]
[4213784,"Тарифы на тепловую энергию (мощность), поставляемую потребителям теплоснабжающими организациями в соответствии с установленными предельными (минимальными и (или) максимальными) уровнями указанных тарифов"]
[4213781,"Тарифы на тепловую энергию (мощность), поставляемую другим теплоснабжающим организациям теплоснабжающими организациями"]
[4213776,"Тарифы на теплоноситель, поставляемый теплоснабжающими организациями потребителям, другим теплоснабжающим организациям"]
[4213777,"Тарифы на горячую воду, поставляемую теплоснабжающими организациями потребителям, другим теплоснабжающим организациям с использованием открытых систем теплоснабжения (горячего водоснабжения)"]
[4213778,"Тарифы на услуги по передаче тепловой энергии"]
[4213780,"Тарифы на услуги по передаче теплоносителя"]
[4213779,"Плата за подключение к системе теплоснабжения"]
[4213783,"Плата за подключение к системе теплоснабжения (индивидуальная)"]
[4213782,"Плата за услуги по поддержанию резервной тепловой мощности при отсутствии потребления тепловой энергии"]

{"sheet":"REESTR_VED","index":50,"n_rows":11,"n_cols":2,"rows_kept":11,"hidden":true}
["ID_TARIFF_NAME","VED_NAME"]
[4190064,"Производство тепловой энергии. Некомбинированная выработка"]
[4190065,"Производство тепловой энергии. Комбинированная выработка с уст. мощностью производства электрической энергии менее 25 МВт"]
[4190066,"Производство тепловой энергии. Комбинированная выработка с уст. мощностью производства электрической энергии 25 МВт и более"]
[4190067,"Производство. Теплоноситель"]
[4190068,"Передача. Тепловая энергия"]
[4190069,"Передача. Теплоноситель"]
[4190070,"Сбыт. Тепловая энергия"]
[4190071,"Сбыт. Теплоноситель"]
[4190072,"Подключение (технологическое присоединение) к системе теплоснабжения"]
[4190073,"Поддержание резервной тепловой мощности при отсутствии потребления тепловой энергии"]

{"sheet":"modfrmReestrObj","index":51,"n_rows":0,"n_cols":0,"rows_kept":0,"hidden":true}

{"sheet":"AllSheetsInThisWorkbook","index":52,"n_rows":44,"n_cols":2,"rows_kept":44,"hidden":true}
["Расчетные листы","Скрытые листы"]
["Instruction","modList00"]
["modUpdTemplLogger","TSH_et_union_hor"]
["List00","TEHSHEET"]
["List01","modList14_1"]
["List02","modList13"]
["List05_1","modListTempFilter"]
["List06_1","modCheckCyan"]
["List05_2","REESTR_LINK"]
["List06_2","REESTR_DS"]
["List05_13","modHTTP"]
["List06_13","modfrmRezimChoose"]
["List05_3","modSheetMain"]
["List06_3","REESTR_VT"]
["List05_3_i","REESTR_VED"]
["List06_3_i","modfrmReestrObj"]
["List05_8","AllSheetsInThisWorkbook"]
["List06_8","TSH_et_union_vert"]
["List05_4","modInstruction"]
["List06_4","modRegion"]
["List05_6","modReestr"]
["List06_6","modfrmReestr"]
["List05_7","modUpdTemplMain"]
["List06_7","TSH_REESTR_ORG"]
["List05_5","modClassifierValidate"]
["List06_5","modProv"]
["List05_10","modHyp"]
["List06_10","modServiceModule"]
["List05_9","modList01"]
["List06_9","modList02"]
["List05_11","modList03"]
["List13","TSH_REESTR_MO_FILTER"]
["List14_1","TSH_REESTR_MO"]
["List03","modInfo"]
["List07","modList05"]
["ListComm","modList06"]
["ListCheck","modList07"]
[null,"modList11"]
[null,"modList12"]
[null,"modfrmDateChoose"]
[null,"modComm"]
[null,"modThisWorkbook"]
[null,"modfrmReestrMR"]
[null,"modfrmCheckUpdates"]

{"sheet":"et_union_vert","index":53,"n_rows":0,"n_cols":0,"rows_kept":0,"hidden":true}

{"sheet":"modInstruction","index":54,"n_rows":0,"n_cols":0,"rows_kept":0,"hidden":true}

{"sheet":"modRegion","index":55,"n_rows":0,"n_cols":0,"rows_kept":0,"hidden":true}

{"sheet":"modReestr","index":56,"n_rows":0,"n_cols":0,"rows_kept":0,"hidden":true}

{"sheet":"modfrmReestr","index":57,"n_rows":0,"n_cols":0,"rows_kept":0,"hidden":true}

{"sheet":"modUpdTemplMain","index":58,"n_rows":0,"n_cols":0,"rows_kept":0,"hidden":true}

{"sheet":"REESTR_ORG","index":59,"n_rows":146,"n_cols":10,"rows_kept":146,"hidden":true}
["№","REGION_ID","REGION_NAME","RST_ORG_ID","ORG_NAME","INN_NAME","KPP_NAME","ORG_START_DATE","ORG_END_DATE"]
[1,"2603","Ярославская область","26483206","\"Ярославский электровозоремонтный завод\" им. Б.П. Бещева - филиал ОАО \"Желдорреммаш\"","7715729877","760443001",null,null,"WARM"]
[2,"2603","Ярославская область","26483393","АО \"Воентелеком\"","7718766718","761043001","18-06-2012 00:00:00",null,"WARM"]
[3,"2603","Ярославская область","26560525","АО \"ГУ ЖКХ\"","5116000922","511601001","13-05-2009 00:00:00",null,"WARM"]
[4,"2603","Ярославская область","26483350","АО \"Гаврилов-Ямский машиностроительный завод \"Агат\"","7616002417","761601001",null,null,"WARM"]
[5,"2603","Ярославская область","28135188","АО \"Газпромнефть-Терминал\"","5406724282","540601001","01-01-2013 00:00:00",null,"WARM"]
[6,"2603","Ярославская область","26483474","АО \"Даниловское ЖКХ\"","7617008098","761701001",null,null,"WARM"]
[7,"2603","Ярославская область","28822308","АО \"Малая комплексная энергетика\"","7612043797","760601001",null,null,"WARM"]
[8,"2603","Ярославская область","26483153","АО \"Новый мир\"","7608001240","760801001",null,null,"WARM"]
[9,"2603","Ярославская область","26483200","АО \"Норский керамический завод\"","7602013169","760201001",null,null,"WARM"]
[10,"2603","Ярославская область","26514573","АО \"Первомайское коммунальное хозяйство\"","7623004895","762301001",null,null,"WARM"]
[11,"2603","Ярославская область","26901857","АО \"РЭУ\"","7714783092","332743001",null,null,"WARM"]
[12,"2603","Ярославская область","26483340","АО \"Ресурс\"","7616009483","761601001",null,null,"WARM"]
[13,"2603","Ярославская область","26483220","АО \"Русские краски\"","7605015012","760501001","05-08-2002 00:00:00",null,"WARM"]
[14,"2603","Ярославская область","26483401","АО \"Рыбинский завод приборостроения\"","7610062970","761001001",null,null,"WARM"]
[15,"2603","Ярославская область","26483176","АО \"Старк-Ресурс\"","7601001072","760401001",null,null,"WARM"]
[16,"2603","Ярославская область","28134686","АО \"Тутаевская ПГУ\"","7611020204","761101001",null,null,"WARM"]
[17,"2603","Ярославская область","26483196","АО \"Хром\"","7601001724","760401001",null,null,"WARM"]
[18,"2603","Ярославская область","28507030","АО \"Яркоммунсервис\"","7602090950","760201001","06-04-2012 00:00:00",null,"WARM"]
[19,"2603","Ярославская область","26483230","АО \"Ярославльводоканал\"","7606069518","760601001",null,null,"WARM"]
[20,"2603","Ярославская область","26569087","АО \"Ярославская генерирующая компания\"","7604178769","760601001",null,null,"WARM"]
[21,"2603","Ярославская область","30919361","АО \"Ярославские ЭнергоСистемы\"","7603066822","760301001","27-01-2017 00:00:00",null,"WARM"]
[22,"2603","Ярославская область","26483194","АО \"Ярославский вагоноремонтный завод \"Ремпутьмаш\"","7603030907","760301001",null,null,"WARM"]
[23,"2603","Ярославская область","26811543","АО \"Ярославский технический углерод имени В.Ю. Орлова\"","7605000714","760450001",null,null,"WARM"]
[24,"2603","Ярославская область","26483352","Великосельское МП ЖКХ","7616006563","761601001",null,null,"WARM"]
[25,"2603","Ярославская область","26483369","ГП ЯО \"Северный водоканал\"","7610012391","761001001",null,null,"WARM"]
[26,"2603","Ярославская область","30808282","ГП ЯО \"Южный водоканал\"","7609036849","760301001",null,null,"WARM"]
[27,"2603","Ярославская область","26483431","ЗАО \"Атрус\"","7609002208","760901001","16-09-1996 00:00:00",null,"WARM"]
[28,"2603","Ярославская область","26483190","ЗАО \"Волгаэнергоресурс\"","7602053796","760101001",null,null,"WARM"]
[29,"2603","Ярославская область","26525046","ЗАО \"Железобетон\"","7601000262","760201001",null,null,"WARM"]
[30,"2603","Ярославская область","26483427","ЗАО \"Консервный завод \"Поречский\"","7609015486","760901001",null,null,"WARM"]
[31,"2603","Ярославская область","26483320","ЗАО \"Левашово\"","7621000461","762101001",null,null,"WARM"]
[32,"2603","Ярославская область","26514513","ЗАО \"Пансионат отдыха \"Ярославль\"","7627015577","762701001",null,null,"WARM"]
[33,"2603","Ярославская область","26649288","ЗАО \"Санаторий имени Воровского\"","7626001860","761001001",null,null,"WARM"]
[34,"2603","Ярославская область","26483202","ЗАО \"Энергосервис\"","7603026805","760301001",null,null,"WARM"]
[35,"2603","Ярославская область","26649314","ЗАО \"Ярославль-Резинотехника\"","7603024491","760301001",null,null,"WARM"]
[36,"2603","Ярославская область","26483338","Любимское МУП ЖКХ","7618000140","761801001",null,null,"WARM"]
[37,"2603","Ярославская область","30792750","МКП «Теплосервис»","7617009623","761701001",null,null,"WARM"]
[38,"2603","Ярославская область","31327447","МП ЯМР \"Теплоресурс\"","7627051712","762701001","16-01-2019 00:00:00",null,"WARM"]
[39,"2603","Ярославская область","26483463","МУП \"Коммунальник\"","7613004085","761301001",null,null,"WARM"]
[40,"2603","Ярославская область","30344297","МУП \"Коммунальное хозяйство\"","7615011610","761501001",null,null,"WARM"]
[41,"2603","Ярославская область","28505444","МУП \"Любимский теплосервис\"","7618004018","761801001","15-10-2013 00:00:00",null,"WARM"]
[42,"2603","Ярославская область","26483443","МУП \"Октябрьское жилищно-коммунальное хозяйство\"","7620004833","762001001",null,null,"WARM"]
[43,"2603","Ярославская область","26483240","МУП \"Предприятие коммунально-бытового обслуживания\"","7612039712","761201001",null,null,"WARM"]
[44,"2603","Ярославская область","28442711","МУП \"РКЦ ЖКУ\"","7621006030","762101001",null,null,"WARM"]
[45,"2603","Ярославская область","31224727","МУП \"Расчетный центр\"","7609018487","760901001","05-12-2016 00:00:00",null,"WARM"]
[46,"2603","Ярославская область","26483622","МУП \"Спектр\"","7608011873","760801001",null,null,"WARM"]
[47,"2603","Ярославская область","27569386","МУП \"Тепловые сети\"","7612043980","761201001",null,null,"WARM"]
[48,"2603","Ярославская область","31221168","МУП \"Теплосервис\"","7608036268","760801001","17-09-2018 00:00:00",null,"WARM"]
[49,"2603","Ярославская область","26785009","МУП \"Энергетик\"","7608010100","760801002",null,null,"WARM"]
[50,"2603","Ярославская область","29646676","МУП \"Энергетический ресурс\" Некрасовского муниципального района","7621010075","762101001",null,null,"WARM"]
[51,"2603","Ярославская область","26483228","МУП \"Ярославский городской энергосбыт\"","7604088265","760301001",null,null,"WARM"]
[52,"2603","Ярославская область","30791907","МУП «Энергоресурс» УМР","7612046371","761201001",null,null,"WARM"]
[53,"2603","Ярославская область","26483373","МУП ГО г.Рыбинск \"Теплоэнерго\"","7610044403","761001001",null,null,"WARM"]
[54,"2603","Ярославская область","30881192","МУП ЖКХ \"Акватерм-сервис\"","7614004641","761401001",null,null,"WARM"]
[55,"2603","Ярославская область","26483459","МУП ЖКХ \"Брейтовское\"","7615010408","761501001",null,null,"WARM"]
[56,"2603","Ярославская область","28425128","МУП ЖКХ \"Бурмакино\"","7621009707","762101001",null,null,"WARM"]
[57,"2603","Ярославская область","26483322","МУП ЖКХ \"Заволжское\"","7621006992","762101001",null,null,"WARM"]
[58,"2603","Ярославская область","26483506","МУП ЖКХ \"Заволжье\"","7621005558","762101001",null,null,"WARM"]
[59,"2603","Ярославская область","28821524","МУП ЖКХ Первомайского муниципального района Ярославской области \"Теплоснаб\"","7623005151","762301001",null,null,"WARM"]
[60,"2603","Ярославская область","26483304","МУП РМР ЯО \"Коммунальные системы\"","7610074824","761001001",null,null,"WARM"]
[61,"2603","Ярославская область","30345479","МУП РМР ЯО \"Система ЖКХ\"","7610088016","761001001",null,null,"WARM"]
[62,"2603","Ярославская область","31355330","МУП ТМР \"ТутаевТеплоЭнерго\"","7611026862","761101001","25-10-2019 00:00:00",null,"WARM"]
[63,"2603","Ярославская область","28443212","МУП ТМР \"Тутаевские коммунальные системы\"","7611022836","761101001",null,null,"WARM"]
[64,"2603","Ярославская область","26483455","ОАО \"Даниловский маслосырзвод\"","7617000268","761701001",null,null,"WARM"]
[65,"2603","Ярославская область","26514525","ОАО \"ЖКХ \"Заволжье\"","7627032974","762701001",null,null,"WARM"]
[66,"2603","Ярославская область","26524667","ОАО \"Инкомпроект-Инвест\"","7604149662","760401001",null,null,"WARM"]
[67,"2603","Ярославская область","26483184","ОАО \"Компания \"Спектр\"","7609012894","760601001",null,null,"WARM"]
[68,"2603","Ярославская область","26483417","ОАО \"Петровский завод ЖБИ\"","7609012573","760901001",null,null,"WARM"]
[69,"2603","Ярославская область","26483395","ОАО \"Раскат\"","7610002851","761001001",null,null,"WARM"]
[70,"2603","Ярославская область","26483375","ОАО \"Рыбинскхлеб\"","7610005796","761001001",null,null,"WARM"]
[71,"2603","Ярославская область","27548439","ОАО \"Санаторий \"Красный Холм\"","7627015619","762701001",null,null,"WARM"]
[72,"2603","Ярославская область","26483162","ОАО \"Яргортеплоэнерго\"","7606047507","760601001",null,null,"WARM"]
[73,"2603","Ярославская область","26483174","ОАО \"Ярославский комбинат технических тканей \"Красный Перекоп\"","7601001146","760501001",null,null,"WARM"]
[74,"2603","Ярославская область","26319496","ОАО \"Ярославский нефтеперерабатывающий завод им. Д.И. Менделеева\"","7611002100","761101001",null,null,"WARM"]
[75,"2603","Ярославская область","28267865","ООО  «Котельная завода «Пролетарская свобода»","7604077129","760401001",null,null,"WARM"]
[76,"2603","Ярославская область","26483198","ООО \"АДС\"","7604008710","760401001",null,null,"WARM"]
[77,"2603","Ярославская область","31357107","ООО \"Агентство территориального развития\"","7733553954","773301001","17-10-2005 00:00:00",null,"WARM"]
[78,"2603","Ярославская область","31094278","ООО \"Атлас-М\"","7731444999","773101001","04-04-2013 00:00:00",null,"WARM"]
[79,"2603","Ярославская область","28254087","ООО \"БизнесПродуктГрупп\"","7708579934","772301001",null,null,"WARM"]
[80,"2603","Ярославская область","31224721","ООО \"Велмекс\"","7728231310","503201001","31-10-2002 00:00:00",null,"WARM"]
[81,"2603","Ярославская область","28932227","ООО \"Газпром теплоэнерго Ярославль\"","7603060690","760301001","12-01-2015 00:00:00",null,"WARM"]
[82,"2603","Ярославская область","31036525","ООО \"Компания \"Мастер-Сервис\"","7604137836","760401001","21-07-2008 00:00:00",null,"WARM"]
[83,"2603","Ярославская область","31085027","ООО \"Котельная промплощадки\"","7609038275","760901001","23-01-2018 00:00:00",null,"WARM"]
[84,"2603","Ярославская область","26483367","ООО \"Крома\"","7610063251","761001001",null,null,"WARM"]
[85,"2603","Ярославская область","28981279","ООО \"ЛКМ\"","7610110198","761001001","21-05-2015 00:00:00",null,"WARM"]
[86,"2603","Ярославская область","27568785","ООО \"Муниципальные коммунальные системы\"","7627036930","762701001",null,null,"WARM"]
[87,"2603","Ярославская область","26649427","ООО \"Муниципальные энергетические системы\"","7727575942","760801001",null,null,"WARM"]
[88,"2603","Ярославская область","26525313","ООО \"Мясопродукт\"","7610041709","761001001",null,null,"WARM"]
[89,"2603","Ярославская область","31230718","ООО \"ОРЦ Ярославль\"","2311234703","231101001","12-04-2017 00:00:00",null,"WARM"]
[90,"2603","Ярославская область","28856606","ООО \"Ориентир\"","7604234847","760401001",null,null,"WARM"]
[91,"2603","Ярославская область","28505423","ООО \"Переславская энергетическая компания\"","7608010870","645001001",null,null,"WARM"]
[92,"2603","Ярославская область","31313217","ООО \"Прогресс\"","7627052000","762701001","28-03-2019 00:00:00",null,"WARM"]
[93,"2603","Ярославская область","30794646","ООО \"Промцентр\"","7604234854","760401001",null,null,"WARM"]
[94,"2603","Ярославская область","26525309","ООО \"Раскат-РОС\"","7610059375","761001002",null,null,"WARM"]
[95,"2603","Ярославская область","31352310","ООО \"Рыбинская генерация\"","4401158338","761001001","14-08-2018 00:00:00",null,"WARM"]
[96,"2603","Ярославская область","27965323","ООО \"Рыбинсккабель\"","7610093062","761050001",null,null,"WARM"]
[97,"2603","Ярославская область","31304319","ООО \"СЗЦ \"Энергоконсультант\"","7627036016","762701001","24-12-2010 00:00:00",null,"WARM"]
[98,"2603","Ярославская область","30925371","ООО \"СК РЕЗЕРВ\"","7604290834","760401001","01-06-2017 00:00:00",null,"WARM"]
[99,"2603","Ярославская область","26483296","ООО \"Санаторий \"Черная речка\"","7610057882","761001001",null,null,"WARM"]
[100,"2603","Ярославская область","26483336","ООО \"Санаторий Золотой колос\"","7621006054","762101001",null,null,"WARM"]
[101,"2603","Ярославская область","27555004","ООО \"Спецторг Плюс\"","7604076460","760401001","31-05-2005 00:00:00",null,"WARM"]
[102,"2603","Ярославская область","30814222","ООО \"Строительная Компания Сокол\"","7604165544","760201001",null,null,"WARM"]
[103,"2603","Ярославская область","31026191","ООО \"ТеплоСервис\"","7612048474","761201001","13-09-2017 00:00:00",null,"WARM"]
[104,"2603","Ярославская область","28982870","ООО \"ТеплоЭнергоСтройМонтаж\"","7606074821","762701001","01-05-2015 00:00:00",null,"WARM"]
[105,"2603","Ярославская область","27569416","ООО \"Тепловая энергетическая компания - 1\"","7604188573","760401001",null,null,"WARM"]
[106,"2603","Ярославская область","30373524","ООО \"Теплоресурс\"","7604277921","760401001",null,null,"WARM"]
[107,"2603","Ярославская область","30796099","ООО \"Теплотехник\"","7604278428","760401001",null,null,"WARM"]
[108,"2603","Ярославская область","26483204","ООО \"ТехЭкспо\"","7604122607","760401001",null,null,"WARM"]
[109,"2603","Ярославская область","26525371","ООО \"УК Левобережье\"","7611018780","761101001",null,null,"WARM"]
[110,"2603","Ярославская область","28459632","ООО \"УМПРЭО\"","7612038469","761201001","26-11-2007 00:00:00",null,"WARM"]
[111,"2603","Ярославская область","31094256","ООО \"УСМЗ\"","7612048636","761201001","05-03-2018 00:00:00",null,"WARM"]
[112,"2603","Ярославская область","26483244","ООО \"Угличский завод минеральной воды\"","7612003339","761201001",null,null,"WARM"]
[113,"2603","Ярославская область","26483256","ООО \"Угличский экспериментальный ремонтно-механический завод\"","7612033358","761201001",null,null,"WARM"]
[114,"2603","Ярославская область","28135241","ООО \"Управляющая производственно-торговая компания \"Топливоподающие системы\"","7603013073","760301001","01-01-2013 00:00:00",null,"WARM"]
[115,"2603","Ярославская область","30856146","ООО \"Уют Сервис\"","7604234678","760401001",null,null,"WARM"]
[116,"2603","Ярославская область","28453584","ООО \"Хуадянь-Тенинская ТЭЦ\"","7604217961","760401001","30-01-2018 00:00:00",null,"WARM"]
[117,"2603","Ярославская область","30373563","ООО \"Центр внедрения возобновляемых источников энергии\"","7602098469","760201001",null,null,"WARM"]
[118,"2603","Ярославская область","26483210","ООО \"Энергия-1\"","7605005021","760501001",null,null,"WARM"]
[119,"2603","Ярославская область","27971145","ООО \"Энергокомпания\"","7612044470","761201001",null,null,"WARM"]
[120,"2603","Ярославская область","26483164","ООО \"Ярославская фабрика валяной обуви\"","7603015433","760301001",null,null,"WARM"]
[121,"2603","Ярославская область","31096235","ООО \"Ярославские коммунальные сети\"","7602092114","760201001",null,null,"WARM"]
[122,"2603","Ярославская область","31314675","ООО \"Ярославские коммунальные сети\"","7602092114","762701001","17-05-2019 00:00:00",null,"WARM"]
[123,"2603","Ярославская область","26483403","ПАО \"Научно-производственное объединение Фильтры индустриальные газоочистные\"","7609001719","760901001",null,null,"WARM"]
[124,"2603","Ярославская область","26483377","ПАО \"ОДК-Сатурн\"","7610052644","761001001",null,null,"WARM"]
[125,"2603","Ярославская область","26514608","ПАО \"РОМЗ\"","7609000881","760901001",null,null,"WARM"]
[126,"2603","Ярославская область","26523308","ПАО \"ТГК-2\"","7606053324","760601001",null,null,"WARM"]
[127,"2603","Ярославская область","26483170","ПАО \"ТГК-2\"","7606053324","760631001",null,null,"WARM"]
[128,"2603","Ярославская область","31024154","ПАО \"Ярославский завод \"Красный Маяк\"","7601000022","760601001","01-11-2017 00:00:00",null,"WARM"]
[129,"2603","Ярославская область","26650304","ПАО \"Ярославский ордена Ленина и ордена Октябрьской революции шинный завод\"","7601001509","760150001",null,null,"WARM"]
[130,"2603","Ярославская область","26483178","ПАО \"Ярославский радиозавод\"","7601000086","760401001",null,null,"WARM"]
[131,"2603","Ярославская область","26836275","Северная Дирекция по тепловодоснабжению структурное подразделение Центральной дирекции по тепловодоснабжению - филиала ОАО \"РЖД\"","7708503727","760445028",null,null,"WARM"]
[132,"2603","Ярославская область","30903763","ФГБУ \"ЦЖКУ\" МИНОБОРОНЫ РОССИИ","7729314745","770101001",null,null,"WARM"]
[133,"2603","Ярославская область","26483266","ФГУП \"Григорьевское\"","7627000901","762701001",null,null,"WARM"]
[134,"2603","Ярославская область","26483238","ФГУП Экспериментальный сыродельный завод","7612002423","761201001",null,null,"WARM"]
[135,"2603","Ярославская область","26483391","ФКУ Следственный изолятор 2 УФСИН по Ярославской области","7610028000","761001001",null,null,"WARM"]
[136,"2603","Ярославская область","28160602","ФКУ Следственный изолятор № 1 УФСИН России по Ярославской области","7607008444","760401001",null,null,"WARM"]
[137,"2603","Ярославская область","31253180","Филиал \"Крома\" ООО \"Завод Технофлекс\"","6229024796","761043001","22-06-2018 00:00:00",null,"WARM"]
[138,"2603","Ярославская область","30849324","Филиал АО \"Кордиант\" в городе Ярославле (ЯШЗ)","7601001509","760643002","07-10-2016 00:00:00",null,"WARM"]
[139,"2603","Ярославская область","26483447","Филиал ООО \"Транснефть-Балтика\"-Ярославское районное нефтепроводное управление","4704041900","762702001",null,null,"WARM"]
[140,"2603","Ярославская область","26557735","Филиал ФГУП \"ЖКУ РАН\" Борок","7736111591","762043001",null,null,"WARM"]
[141,"2603","Ярославская область","26649247","Филиал в Ярославской и Костромской областях ПАО междугородной и международной электрической связи \"Ростелеком\"","7707049388","760443003",null,null,"WARM"]
[142,"2603","Ярославская область","26524662","ЧУЗ \"КБ \"РЖД-Медицина\" г. Ярославль","7604068188","760401001",null,null,"WARM"]
[143,"2603","Ярославская область","26483342","Шопшинское МП ЖКХ","7616006316","761601001",null,null,"WARM"]
[144,"2603","Ярославская область","28798643","Ярославская дистанция гражданских сооружений СП Северной дирекции по эксплуатации зданий и сооружений СП СЖД филиала ОАО \"РЖД\"","7708503727","760445099",null,null,"WARM"]
[145,"2603","Ярославская область","26526614","Ярославская дистанция гражданских сооружений, водоснабжения и водоотведения ЯО СЖД-филиала ОАО \"РЖД\"","7708503727","997650007",null,null,"WARM"]

{"sheet":"modClassifierValidate","index":60,"n_rows":0,"n_cols":0,"rows_kept":0,"hidden":true}

{"sheet":"modProv","index":61,"n_rows":0,"n_cols":0,"rows_kept":0,"hidden":true}

{"sheet":"modHyp","index":62,"n_rows":0,"n_cols":0,"rows_kept":0,"hidden":true}

{"sheet":"modServiceModule","index":63,"n_rows":0,"n_cols":0,"rows_kept":0,"hidden":true}

{"sheet":"modList01","index":64,"n_rows":0,"n_cols":0,"rows_kept":0,"hidden":true}

{"sheet":"modList02","index":65,"n_rows":0,"n_cols":0,"rows_kept":0,"hidden":true}

{"sheet":"modList03","index":66,"n_rows":0,"n_cols":0,"rows_kept":0,"hidden":true}

{"sheet":"REESTR_MO_FILTER","index":67,"n_rows":0,"n_cols":0,"rows_kept":0,"hidden":true}

{"sheet":"REESTR_MO","index":68,"n_rows":97,"n_cols":4,"rows_kept":97,"hidden":true}
["№","МР","МО","МО_ОКТМО"]
[1,"Большесельский муниципальный район","Благовещенское сельское поселение","78603411"]
[2,"Большесельский муниципальный район","Большесельский муниципальный район","78603000"]
[3,"Большесельский муниципальный район","Большесельское сельское поселение","78603422"]
[4,"Большесельский муниципальный район","Вареговское сельское поселение","78603427"]
[5,"Борисоглебский муниципальный район","Андреевское сельское поселение","78606422"]
[6,"Борисоглебский муниципальный район","Борисоглебский муниципальный район","78606000"]
[7,"Борисоглебский муниципальный район","Борисоглебское сельское поселение","78606407"]
[8,"Борисоглебский муниципальный район","Вощажниковское сельское поселение","78606410"]
[9,"Борисоглебский муниципальный район","Высоковское сельское поселение","78606415"]
[10,"Борисоглебский муниципальный район","Инальцинское сельское поселение","78606405"]
[11,"Брейтовский муниципальный район","Брейтовский муниципальный район","78609000"]
[12,"Брейтовский муниципальный район","Брейтовское сельское поселение","78609411"]
[13,"Брейтовский муниципальный район","Гореловское сельское поселение","78609422"]
[14,"Брейтовский муниципальный район","Прозоровское сельское поселение","78609433"]
[15,"Гаврилов-Ямский муниципальный район","Великосельское сельское поселение","78612405"]
[16,"Гаврилов-Ямский муниципальный район","Гаврилов-Ямский муниципальный район","78612000"]
[17,"Гаврилов-Ямский муниципальный район","Городское поселение г. Гаврилов-Ям","78612101"]
[18,"Гаврилов-Ямский муниципальный район","Заячье-Холмское сельское поселение","78612477"]
[19,"Гаврилов-Ямский муниципальный район","Митинское сельское поселение","78612450"]
[20,"Гаврилов-Ямский муниципальный район","Шопшинское сельское поселение","78612490"]
[21,"Даниловский муниципальный район","Городское поселение г. Данилов","78615101"]
[22,"Даниловский муниципальный район","Даниловский муниципальный район","78615000"]
[23,"Даниловский муниципальный район","Даниловское сельское поселение","78615435"]
[24,"Даниловский муниципальный район","Дмитриевское сельское поселение","78615420"]
[25,"Даниловский муниципальный район","Середское сельское поселение","78615470"]
[26,"Любимский муниципальный район","Воскресенское сельское поселение","78618405"]
[27,"Любимский муниципальный район","Городское поселение г. Любим","78618101"]
[28,"Любимский муниципальный район","Ермаковское сельское поселение","78618410"]
[29,"Любимский муниципальный район","Любимский муниципальный район","78618000"]
[30,"Любимский муниципальный район","Осецкое сельское поселение","78618433"]
[31,"Мышкинский муниципальный район","Городское поселение г. Мышкин","78621101"]
[32,"Мышкинский муниципальный район","Мышкинский муниципальный район","78621000"]
[33,"Мышкинский муниципальный район","Охотинское сельское поселение","78621430"]
[34,"Мышкинский муниципальный район","Приволжское сельское поселение","78621415"]
[35,"Некоузский муниципальный район","Веретейское сельское поселение","78623404"]
[36,"Некоузский муниципальный район","Волжское сельское поселение","78623406"]
[37,"Некоузский муниципальный район","Некоузский муниципальный район","78623000"]
[38,"Некоузский муниципальный район","Некоузское сельское поселение","78623415"]
[39,"Некоузский муниципальный район","Октябрьское сельское поселение","78623427"]
[40,"Некрасовский муниципальный район","Бурмакино сельское поселение","78626409"]
[41,"Некрасовский муниципальный район","Красный Профинтерн сельское поселение","78626444"]
[42,"Некрасовский муниципальный район","Некрасовский муниципальный район","78626000"]
[43,"Некрасовский муниципальный район","Некрасовское сельское поселение","78626457"]
[44,"Первомайский муниципальный район","Городское поселение п.Пречистое","78629151"]
[45,"Первомайский муниципальный район","Кукобойское сельское поселение","78629435"]
[46,"Первомайский муниципальный район","Первомайский муниципальный район","78629000"]
[47,"Первомайский муниципальный район","Пречистенское сельское поселение","78629450"]
[48,"Пошехонский муниципальный район","Белосельское сельское поселение","78634404"]
[49,"Пошехонский муниципальный район","Городское поселение Пошехонье","78634101"]
[50,"Пошехонский муниципальный район","Ермаковское сельское поселение","78634428"]
[51,"Пошехонский муниципальный район","Кременевское сельское поселение","78634460"]
[52,"Пошехонский муниципальный район","Пошехонский муниципальный район","78634000"]
[53,"Пошехонский муниципальный район","Пригородное сельское поселение","78634436"]
[54,"Ростовский муниципальный район","Городское поселение г.Ростов","78637101"]
[55,"Ростовский муниципальный район","Ишня сельское поселение","78637412"]
[56,"Ростовский муниципальный район","Петровское сельское поселение","78637441"]
[57,"Ростовский муниципальный район","Поречье-Рыбное сельское поселение","78637442"]
[58,"Ростовский муниципальный район","Ростовский муниципальный район","78637000"]
[59,"Ростовский муниципальный район","Семибратово сельское поселение","78637447"]
[60,"Рыбинский муниципальный район","Арефинское сельское поселение","78640410"]
[61,"Рыбинский муниципальный район","Волжское сельское поселение","78640415"]
[62,"Рыбинский муниципальный район","Глебовское сельское поселение","78640443"]
[63,"Рыбинский муниципальный район","Городское поселение Песочное","78640455"]
[64,"Рыбинский муниципальный район","Каменниковское сельское поселение","78640425"]
[65,"Рыбинский муниципальный район","Назаровское сельское поселение","78640430"]
[66,"Рыбинский муниципальный район","Огарковское сельское поселение","78640440"]
[67,"Рыбинский муниципальный район","Октябрьское сельское поселение","78640420"]
[68,"Рыбинский муниципальный район","Покровское сельское поселение","78640435"]
[69,"Рыбинский муниципальный район","Рыбинский муниципальный район","78640000"]
[70,"Рыбинский муниципальный район","Судоверфское сельское поселение","78640452"]
[71,"Рыбинский муниципальный район","Тихменевское сельское поселение","78640447"]
[72,"Тутаевский муниципальный район","Артемьевское сельское поселение","78643405"]
[73,"Тутаевский муниципальный район","Городское поселение г.Тутаев","78643101"]
[74,"Тутаевский муниципальный район","Константиновское сельское поселение","78643420"]
[75,"Тутаевский муниципальный район","Левобережное сельское поселение","78643460"]
[76,"Тутаевский муниципальный район","Тутаевский муниципальный район","78643000"]
[77,"Тутаевский муниципальный район","Чебаковское сельское поселение","78643450"]
[78,"Угличский муниципальный район","Головинское сельское поселение","78646440"]
[79,"Угличский муниципальный район","Городское поселение г.Углич","78646101"]
[80,"Угличский муниципальный район","Ильинское сельское поселение","78646420"]
[81,"Угличский муниципальный район","Отрадновское сельское поселение","78646475"]
[82,"Угличский муниципальный район","Слободское сельское поселение","78646410"]
[83,"Угличский муниципальный район","Угличский муниципальный район","78646000"]
[84,"Угличский муниципальный район","Улейминское сельское поселение","78646480"]
[85,"Ярославский муниципальный район","Городское поселение п. Лесная Поляна","78650155"]
[86,"Ярославский муниципальный район","Заволжское сельское поселение","78650410"]
[87,"Ярославский муниципальный район","Ивняковское сельское поселение","78650455"]
[88,"Ярославский муниципальный район","Карабихское сельское поселение","78650430"]
[89,"Ярославский муниципальный район","Кузнечихинское сельское поселение","78650435"]
[90,"Ярославский муниципальный район","Курбское сельское поселение","78650440"]
[91,"Ярославский муниципальный район","Некрасовское сельское поселение","78650470"]
[92,"Ярославский муниципальный район","Туношенское сельское поселение","78650495"]
[93,"Ярославский муниципальный район","Ярославский муниципальный район","78650000"]
[94,"город Переславль-Залесский","город Переславль-Залесский","78705000"]
[95,"город Рыбинск","город Рыбинск","78715000"]
[96,"город Ярославль","город Ярославль","78701000"]

{"sheet":"modInfo","index":69,"n_rows":36,"n_cols":2,"rows_kept":36,"hidden":true}
[null,"Титульный"]
[null,"Для выбора того или иного источника публикации выполните двойной щелчок по синей ячейке напротив соответствующего источника.\nВНИМАНИЕ! Если Вы снимаете галочку с пункта, то будут скрыты и очищены соответствующие строки на листе \"Форма 1.0.2\"!\n\nОпубликование перечисленных в шаблоне показателей на сайте организации в сети Интернет и в печатных изданиях не обязательно, если данный шаблон предоставлен по системе ЕИАС (региональный сегмент)."]
[null,"Обязательное опубликование на официальном сайте органа исполнительной власти субъекта Российской Федерации в области государственного регулирования цен (тарифов), и (или) на официальном сайте органа местного самоуправления поселения или городского округа в случае их наделения в соответствии с законом субъекта Российской Федерации полномочиями по государственному регулированию цен (тарифов)предусмотрено пунктом 3 (а) постановления Правительства №6 от 17.01.2013г."]
[null,"Задайте период регулирования, выбрав даты начала и окончания периода регулирования из календаря (иконка справа от указанной ячейки), либо введите дату непосредственно в ячейку в формате - 'ДД.ММ.ГГГГ'"]
[null,"Шаблон заполняется раздельно по каждому виду тарифа"]
[null,"В зависимости от указанного вида деятельности будут доступны для заполнения поля 'Производство', 'Передача' и 'Сбыт'"]
[null,"Если выбрано 'да', на листах с разбивкой по потребителям доступны для заполнения графы для двухставочного ставочного тарифа по группам потребителей"]
[null,"Если выбрано 'да', значения тарифов для групп потребителей на листах с разбивкой по потребителям заполнятся автоматически значениями первой группы"]
[null,"Если выбрано значение «да» - в шаблоне будет сформирован лист «Форма 1.0.2» для уведомления органа регулирования о публикации информации в печатных изданиях"]
[null,"По умолчанию установлено значение «первичное раскрытие информации» Это означает, что информация раскрывается в соответствии с установленными сроком и периодичностью. В случае если в уже отправленном шаблоне обнаружена ошибка или произошло изменение информации, исправленный шаблон необходимо отправить с типом отчета «изменения в раскрытой ранее информации». "]
[null,"Укажите является ли данное юридическое лицо подразделением(филиалом) другой организации"]
[null,"Ссылки на публикации"]
[null,"Вводите адрес сайта, не нарушая цвет ячейки /если копируете гиперссылку из браузера, то выполните двойной щелчок по ячейке и только после этого можете вставить скопированный элемент/"]
[null,"Обосновывающие материалы необходимо загружать с помощью \"ЕИАС Мониторинг\". Ссылка на инструкцию по загрузке обосновывающих материалов расположена на листе 'Инструкция' в п.'Методология заполнения'.\n\nВвводите ссылку, не нарушая цвет ячейки /если копируете гиперссылку из браузера, то выполните двойной щелчок по ячейке и только после этого можете вставить скопированный элемент/."]
[null,"Если для какого-либо пункта графы 'Наименование источника (сайта или печатного издания)' информация не раскрывалась, то в соответствующем поле укажите - 'не раскрывалась'"]
[null,"Список МО"]
[null,"В случае, если тариф не дифференцируется по системам теплоснабжения, перечислите все муниципальные районы, в которых организация осуществляет услуги теплоснабжения и сфере оказания услуг по передаче тепловой энергии"]
[null,"В случае, если тариф не дифференцируется по системам теплоснабжения, перечислите все муниципальные образования, в которых организация осуществляет услуги теплоснабжения и сфере оказания услуг по передаче тепловой энергии"]
[null,"Признак дифференциации тарифа"]
[null,"В случае, если тариф не дифференцируется по системам теплоснабжения, укажите \"1\".\nВведите значение от 1 до 100, чтобы указать очередной условный порядковый номер системы теплоснабжения"]
[null,"Стандарты"]
[null,"В качестве примечания Вы можете указать единицу измерения"]
[]
[null,"Для корректного формирования Таблицы 25 Формы 1.10 необходимо задать разбивку по диаметрам и способу прокладки тепловых сетей"]
[]
[null,"Перечень тарифов"]
[null,"Указывается наименование тарифа в случае утверждения нескольких тарифов.\nВ случае наличия нескольких тарифов информация по ним указывается в отдельных строках."]
[null,"Укажите «Да» в поле «Да/Нет», если дифференциация используется.\nВ поле «Описание» указывается наименование территории действия тарифа при наличии дифференциации тарифа по территориальному признаку.\nВ случае дифференциации тарифов по территориальному признаку информация по ним указывается в отдельных строках."]
[null,"Признаки дифференциации указываются в соответствии с п.6 ст.32 ФЗ РФ от 07.12.2011 №416-ФЗ"]
[null,"Укажите «Да» в поле «Да/Нет», если дифференциация используется. В поле «Описание» укажите название ЦС ГВС или любое другое описание"]
[]
[null,"Территории"]
[1,"Наименование территории действия тарифа для целей идентификации"]
[2,"Муниципальные районы и муниципальные образования, на территории которых действует тариф"]
[null,"Инструкция"]
[null,"Нет доступных обновлений, версия отчёта актуальна"]

{"sheet":"modList05","index":70,"n_rows":0,"n_cols":0,"rows_kept":0,"hidden":true}

{"sheet":"modList06","index":71,"n_rows":0,"n_cols":0,"rows_kept":0,"hidden":true}

{"sheet":"modList07","index":72,"n_rows":0,"n_cols":0,"rows_kept":0,"hidden":true}

{"sheet":"modList11","index":73,"n_rows":0,"n_cols":0,"rows_kept":0,"hidden":true}

{"sheet":"modList12","index":74,"n_rows":0,"n_cols":0,"rows_kept":0,"hidden":true}

{"sheet":"modfrmDateChoose","index":75,"n_rows":0,"n_cols":0,"rows_kept":0,"hidden":true}

{"sheet":"modComm","index":76,"n_rows":0,"n_cols":0,"rows_kept":0,"hidden":true}

{"sheet":"modThisWorkbook","index":77,"n_rows":0,"n_cols":0,"rows_kept":0,"hidden":true}

{"sheet":"modfrmReestrMR","index":78,"n_rows":0,"n_cols":0,"rows_kept":0,"hidden":true}

{"sheet":"modfrmCheckUpdates","index":79,"n_rows":0,"n_cols":0,"rows_kept":0,"hidden":true}